Workbook

Sheet User Interface
A1: Mistrade Range Finder
B3: User Input Field:
B4: Product ID | D4: oesx
B7: EURO STOXX 50® Index Options
A10: OESX | B10: EURO STOXX 50® Index Options | C10: Reference prices up to | D10: Mistrade Range | E10: Spread Unit | F10: Mistrade range is doubled for the following expiration (and above):
C11: 15 | D11: 1.2 | E11: ABS | F11: 25
C12: 225 | D12: 0.08 | E12: PCT
D13: 18 | E13: ABS
A16: For equity and equity index options, mistrade parameters will be doubled on the last trading day.
A17: For the transactions in Option contracts accomplished during a stressed market period, the mistrade ranges reduplicate.
A19: For standard and non-standard options strategies (SOS and NOS) and for non-standard options volatility strategies (NOVS), a fair strategy price is taken as a reference price to obtain a strategy specific mistrade range. A fair leg price is taken as a reference price to derive the leg specific mistrade range that is multiplied by the corresponding leg ratio. The overall mistrade range valid for the strategy is the highest range of the strategy specific mistrade range and the leg specific mistrade ranges of all strategy legs. For standard options volatility strategies (OVS), a fair strategy price is taken as a reference price to obtain a strategy specific mistrade range. A fair leg price is taken as a reference price to derive the leg specific mistrade range that is multiplied by the leg ratio of the standard options strategy part without the options leg multiplier. Again, the overall mistrade range valid for an options strategy is the highest range of the strategy specific mistrade range and the leg specific mistrade range of all strategy legs. The calculations below serve as hypothetical examples for illustrative purposes.
A20: Non-Standard-Option-Volatility-Strategy (NOVS) | B20: Reference Price | C20: Leg Ratio (NOVS) | E20: Mistrade Range based on reference price | F20: Final Mistrade Range (Max. of single leg mistrade ranges multiplied with leg ratio and the strategy mistrade range)
A21: OESX NOVS B400 DEC24 4900 P - S900 DEC24 4650 P- B400 DEC24 4400 P vs B 23 FESX 4833 | B21: 7600 | E21: 18 | F21: 18
A22: Buy DEC24 4900 | B22: 172.6 | C22: 400 | E22: 13.81 | F22: 5524
A23: Sell DEC24 4650 | B23: 88.93 | C23: 900 | E23: 7.11 | F23: 6399
A24: Buy DEC24 4400 | B24: 47 | C24: 400 | E24: 3.76 | F24: 1504
A28: Options-Volatility-Strategy (OVS) | B28: Reference Price | C28: Leg Ratio (OVS) | D28: Leg Multplier | E28: Mistrade Range based on reference price | F28: Final Mistrade Range (Max. of single leg mistrade ranges multiplied with leg ratio and the strategy mistrade range)
A29: OESX BU23 JUN25 4900-5200 vs 26 FESX DEC24 @ 4760 | B29: -127 | E29: 10.16 | F29: 10.16
A30: Buy JUN25 4900 Call | B30: 119 | C30: 2 | D30: 100 | E30: 9.52 | F30: 19.04
A31: Sell JUN25 5200 Call | B31: 37 | C31: 3 | D31: 100 | E31: 2.96 | F31: 8.88

Sheet FX Options (hidden)
A1: Product ID | B1: Name | C1: For expirations | D1: Reference prices up to | G1: Mistrade Range | J1: For expirations | K1: Bid prices | N1: Mistrade Range
A2: AUCO | B2: Options on AUD/USD Futures | C2: M1 – M6: | D2: 0.01 | E2: 0.15 | G2: 0.001 | H2: 0.1 | I2: 0.015 | J2: M7-M12: | K2: 0.01 | L2: 0.15 | N2: 0.002 | O2: 0.2 | P2: 0.03 | R2: =_xlfn.XLOOKUP(A2,'Product List'!A:A,'Product List'!A:A) -> AUCO
A3: EACO | B3: Options on EUR/AUD Futures | C3: M1 – M6: | D3: 0.01 | E3: 0.15 | G3: 0.0012 | H3: 0.1 | I3: 0.015 | J3: M7-M12: | K3: 0.01 | L3: 0.15 | N3: 0.002 | O3: 0.2 | P3: 0.03 | R3: =_xlfn.XLOOKUP(A3,'Product List'!A:A,'Product List'!A:A) -> EACO
A4: EFCO | B4: Options on EUR/CHF Futures | C4: M1 – M6: | D4: 0.01 | E4: 0.15 | G4: 0.001 | H4: 0.1 | I4: 0.015 | J4: M7-M12: | K4: 0.01 | L4: 0.15 | N4: 0.002 | O4: 0.2 | P4: 0.03 | R4: =_xlfn.XLOOKUP(A4,'Product List'!A:A,'Product List'!A:A) -> EFCO
A5: EPCO | B5: Options on EUR/GBP Futures | C5: M1 – M6: | D5: 0.01 | E5: 0.15 | G5: 0.001 | H5: 0.1 | I5: 0.015 | J5: M7-M12: | K5: 0.01 | L5: 0.15 | N5: 0.002 | O5: 0.2 | P5: 0.03 | R5: =_xlfn.XLOOKUP(A5,'Product List'!A:A,'Product List'!A:A) -> EPCO
A6: EUCO | B6: Options on EUR/USD Futures | C6: M1 – M6: | D6: 0.01 | E6: 0.15 | G6: 0.001 | H6: 0.1 | I6: 0.015 | J6: M7-M12: | K6: 0.01 | L6: 0.15 | N6: 0.002 | O6: 0.2 | P6: 0.03 | R6: =_xlfn.XLOOKUP(A6,'Product List'!A:A,'Product List'!A:A) -> EUCO
A7: PFCO | B7: Options on GBP/CHF Futures | C7: M1 – M6: | D7: 0.01 | E7: 0.15 | G7: 0.001 | H7: 0.1 | I7: 0.015 | J7: M7-M12: | K7: 0.01 | L7: 0.15 | N7: 0.002 | O7: 0.2 | P7: 0.03 | R7: =_xlfn.XLOOKUP(A7,'Product List'!A:A,'Product List'!A:A) -> PFCO
A8: PUCO | B8: Options on GBP/USD Futures | C8: M1 – M6: | D8: 0.01 | E8: 0.15 | G8: 0.001 | H8: 0.1 | I8: 0.015 | J8: M7-M12: | K8: 0.01 | L8: 0.15 | N8: 0.002 | O8: 0.2 | P8: 0.03 | R8: =_xlfn.XLOOKUP(A8,'Product List'!A:A,'Product List'!A:A) -> PUCO
A9: NUCO | B9: Options on NZD/USD Futures | C9: M1 – M6: | D9: 0.01 | E9: 0.15 | G9: 0.001 | H9: 0.1 | I9: 0.015 | J9: M7-M12: | K9: 0.01 | L9: 0.15 | N9: 0.002 | O9: 0.2 | P9: 0.03 | R9: =_xlfn.XLOOKUP(A9,'Product List'!A:A,'Product List'!A:A) -> NUCO
A10: UFCO | B10: Options on USD/CHF Futures | C10: M1 – M6: | D10: 0.01 | E10: 0.15 | G10: 0.001 | H10: 0.1 | I10: 0.015 | J10: M7-M12: | K10: 0.01 | L10: 0.15 | N10: 0.002 | O10: 0.2 | P10: 0.03 | R10: =_xlfn.XLOOKUP(A10,'Product List'!A:A,'Product List'!A:A) -> UFCO
A11: AYCO | B11: Options on AUD/JPY Futures | C11: M1 – M6: | D11: 1 | E11: 10 | G11: 0.1 | H11: 0.1 | I11: 1 | J11: M7-M12: | K11: 1 | L11: 10 | N11: 0.2 | O11: 0.2 | P11: 2 | R11: =_xlfn.XLOOKUP(A11,'Product List'!A:A,'Product List'!A:A) -> AYCO
A12: EYCO | B12: Options on EUR/JPY Futures | C12: M1 – M6: | D12: 1 | E12: 10 | G12: 0.1 | H12: 0.1 | I12: 1 | J12: M7-M12: | K12: 1 | L12: 10 | N12: 0.2 | O12: 0.2 | P12: 2 | R12: =_xlfn.XLOOKUP(A12,'Product List'!A:A,'Product List'!A:A) -> EYCO
A13: UYCO | B13: Options on USD/JPY Futures | C13: M1 – M6: | D13: 1 | E13: 10 | G13: 0.1 | H13: 0.1 | I13: 1 | J13: M7-M12: | K13: 1 | L13: 10 | N13: 0.2 | O13: 0.2 | P13: 2 | R13: =_xlfn.XLOOKUP(A13,'Product List'!A:A,'Product List'!A:A) -> UYCO

Sheet Other Options (hidden)
A1: ID | B1: Name | C1: CRYPTO OPTIONS | D1: Spread Class | E1: Expiries with LP Schmes | F1: Reference prices up to | L1: Mistrade Range | R1: Mistrade range is doubled for the following expiration (and above): | V1: no of existing rows | W1: max_EXP with LP Schmes | Y1: EXP | AB1: Product ISIN | AC1: Underl ISIN | AF1: Expiration + x | AG1: 2023-03-27 | AH1: 2023-04-03 | AI1: 2023-04-11 | AJ1: 2023-04-17 | AK1: 2023-05-02 | AL1: 2023-05-08
A2: OTUK | B2: =_xlfn.XLOOKUP(A2,'Product List'!$A:$A,'Product List'!$D:$D) -> FTSE 100 Index Options | C2: =_xlfn.XLOOKUP(A2,'Product List'!$A:$A,'Product List'!$F:$F) -> INDEX OPTIONS | D2: =_xlfn.XLOOKUP(A2,'MMPM1-AMM'!E:E,'MMPM1-AMM'!K:K,_xlfn.XLOOKUP(A2,'MMPM1-PMM'!E:E,'MMPM1-PMM'!J:J)) -> OTUK | E2: =_xlfn.XLOOKUP(A2,'MMPM1-AMM'!E:E,'MMPM1-AMM'!Q:Q,_xlfn.XLOOKUP(A2,'MMPM1-PMM'!E:E,'MMPM1-PMM'!P:P)) -> 7 | F2: =SUMIFS(MMPM2!H:H,MMPM2!C:C,U2,MMPM2!E:E,1,MMPM2!G:G,1) -> 20 | G2: =SUMIFS(MMPM2!H:H,MMPM2!C:C,U2,MMPM2!E:E,1,MMPM2!G:G,2) -> 200 | L2: =SUMIFS(MMPM2!I:I,MMPM2!C:C,U2,MMPM2!E:E,1,MMPM2!G:G,1) -> 3 | M2: =SUMIFS(MMPM2!I:I,MMPM2!C:C,U2,MMPM2!E:E,1,MMPM2!G:G,2) -> 0.15 | N2: =SUMIFS(MMPM2!I:I,MMPM2!C:C,U2,MMPM2!E:E,1,MMPM2!G:G,3) -> 30 | R2: =IF(D2="OVS","",IF(V2=3, "Not applicable",W2-1)) -> Not applicable | S2: =IF(D2="OVS","",IF(V2=3, "No doubling of mistrade range",W2-1)) -> No doubling of mistrade range | U2: =IFERROR(_xlfn.XLOOKUP(A2,'MMPM1-PMM'!E:E,'MMPM1-PMM'!J:J),_xlfn.XLOOKUP(A2,'MMPM1-AMM'!E:E,'MMPM1-AMM'!K:K)) -> OTUK | V2: =IFERROR(_xlfn.XLOOKUP(A2,'MMPM1-AMM'!E:E,'MMPM1-AMM'!T:T),_xlfn.XLOOKUP(A2,'MMPM1-PMM'!E:E,'MMPM1-PMM'!S:S)) -> 3 | W2: =IFERROR(_xlfn.XLOOKUP(A2,'MMPM1-AMM'!E:E,'MMPM1-AMM'!U:U),_xlfn.XLOOKUP(A2,'MMPM1-PMM'!E:E,'MMPM1-PMM'!T:T)) -> 7 | Y2: =W2=E2 -> TRUE | AB2: =_xlfn.XLOOKUP(A2,productlist[PRODUCT_ID],productlist[PRODUCT_ISIN]) -> DE000A2QNKJ3 | AC2: =_xlfn.XLOOKUP(A2,productlist[PRODUCT_ID],productlist[UNDERLYING_ISIN]) -> GB0001383545
A3: BRNT | B3: =_xlfn.XLOOKUP(A3,'Product List'!$A:$A,'Product List'!$D:$D) -> WisdomTree Brent Crude Oil Options | C3: =_xlfn.XLOOKUP(A3,'Product List'!$A:$A,'Product List'!$F:$F) -> OPTIONS ON EXCHANGE-TRADED COMMODITIES SECURITIES | D3: =_xlfn.XLOOKUP(A3,'MMPM1-AMM'!E:E,'MMPM1-AMM'!K:K,_xlfn.XLOOKUP(A3,'MMPM1-PMM'!E:E,'MMPM1-PMM'!J:J)) -> CO-ETF1 | E3: =_xlfn.XLOOKUP(A3,'MMPM1-AMM'!E:E,'MMPM1-AMM'!Q:Q,_xlfn.XLOOKUP(A3,'MMPM1-PMM'!E:E,'MMPM1-PMM'!P:P)) -> 6 | F3: =SUMIFS(MMPM2!H:H,MMPM2!C:C,U3,MMPM2!E:E,1,MMPM2!G:G,1) -> 2 | G3: =SUMIFS(MMPM2!H:H,MMPM2!C:C,U3,MMPM2!E:E,1,MMPM2!G:G,2) -> 20 | L3: =SUMIFS(MMPM2!I:I,MMPM2!C:C,U3,MMPM2!E:E,1,MMPM2!G:G,1) -> 0.2 | M3: =SUMIFS(MMPM2!I:I,MMPM2!C:C,U3,MMPM2!E:E,1,MMPM2!G:G,2) -> 0.1 | N3: =SUMIFS(MMPM2!I:I,MMPM2!C:C,U3,MMPM2!E:E,1,MMPM2!G:G,3) -> 2 | R3: Not applicable | S3: =IF(D3="OVS","",IF(V3=3, "No doubling of mistrade range",W3-1)) -> No doubling of mistrade range | U3: =IFERROR(_xlfn.XLOOKUP(A3,'MMPM1-PMM'!E:E,'MMPM1-PMM'!J:J),_xlfn.XLOOKUP(A3,'MMPM1-AMM'!E:E,'MMPM1-AMM'!K:K)) -> CO-ETF1 | V3: =IFERROR(_xlfn.XLOOKUP(A3,'MMPM1-AMM'!E:E,'MMPM1-AMM'!T:T),_xlfn.XLOOKUP(A3,'MMPM1-PMM'!E:E,'MMPM1-PMM'!S:S)) -> 3 | W3: =IFERROR(_xlfn.XLOOKUP(A3,'MMPM1-AMM'!E:E,'MMPM1-AMM'!U:U),_xlfn.XLOOKUP(A3,'MMPM1-PMM'!E:E,'MMPM1-PMM'!T:T)) -> 6 | Y3: =W3=E3 -> TRUE | AB3: =_xlfn.XLOOKUP(A3,productlist[PRODUCT_ID],productlist[PRODUCT_ISIN]) -> JE00B78CGV99 | AC3: =_xlfn.XLOOKUP(A3,productlist[PRODUCT_ID],productlist[UNDERLYING_ISIN]) -> JE00B78CGV99
A4: COPA | B4: =_xlfn.XLOOKUP(A4,'Product List'!$A:$A,'Product List'!$D:$D) -> WisdomTree Copper Options | C4: =_xlfn.XLOOKUP(A4,'Product List'!$A:$A,'Product List'!$F:$F) -> OPTIONS ON EXCHANGE-TRADED COMMODITIES SECURITIES | D4: =_xlfn.XLOOKUP(A4,'MMPM1-AMM'!E:E,'MMPM1-AMM'!K:K,_xlfn.XLOOKUP(A4,'MMPM1-PMM'!E:E,'MMPM1-PMM'!J:J)) -> CO-ETF1 | E4: =_xlfn.XLOOKUP(A4,'MMPM1-AMM'!E:E,'MMPM1-AMM'!Q:Q,_xlfn.XLOOKUP(A4,'MMPM1-PMM'!E:E,'MMPM1-PMM'!P:P)) -> 6 | F4: =SUMIFS(MMPM2!H:H,MMPM2!C:C,U4,MMPM2!E:E,1,MMPM2!G:G,1) -> 2 | G4: =SUMIFS(MMPM2!H:H,MMPM2!C:C,U4,MMPM2!E:E,1,MMPM2!G:G,2) -> 20 | L4: =SUMIFS(MMPM2!I:I,MMPM2!C:C,U4,MMPM2!E:E,1,MMPM2!G:G,1) -> 0.2 | M4: =SUMIFS(MMPM2!I:I,MMPM2!C:C,U4,MMPM2!E:E,1,MMPM2!G:G,2) -> 0.1 | N4: =SUMIFS(MMPM2!I:I,MMPM2!C:C,U4,MMPM2!E:E,1,MMPM2!G:G,3) -> 2 | R4: Not applicable | S4: No doubling of mistrade range | U4: =IFERROR(_xlfn.XLOOKUP(A4,'MMPM1-PMM'!E:E,'MMPM1-PMM'!J:J),_xlfn.XLOOKUP(A4,'MMPM1-AMM'!E:E,'MMPM1-AMM'!K:K)) -> CO-ETF1 | V4: =IFERROR(_xlfn.XLOOKUP(A4,'MMPM1-AMM'!E:E,'MMPM1-AMM'!T:T),_xlfn.XLOOKUP(A4,'MMPM1-PMM'!E:E,'MMPM1-PMM'!S:S)) -> 3 | W4: =IFERROR(_xlfn.XLOOKUP(A4,'MMPM1-AMM'!E:E,'MMPM1-AMM'!U:U),_xlfn.XLOOKUP(A4,'MMPM1-PMM'!E:E,'MMPM1-PMM'!T:T)) -> 6 | Y4: TRUE | AB4: =_xlfn.XLOOKUP(A4,productlist[PRODUCT_ID],productlist[PRODUCT_ISIN]) -> GB00B15KXQ89 | AC4: =_xlfn.XLOOKUP(A4,productlist[PRODUCT_ID],productlist[UNDERLYING_ISIN]) -> GB00B15KXQ89
A5: NICK | B5: =_xlfn.XLOOKUP(A5,'Product List'!$A:$A,'Product List'!$D:$D) -> WisdomTree Nickel Options | C5: =_xlfn.XLOOKUP(A5,'Product List'!$A:$A,'Product List'!$F:$F) -> OPTIONS ON EXCHANGE-TRADED COMMODITIES SECURITIES | D5: =_xlfn.XLOOKUP(A5,'MMPM1-AMM'!E:E,'MMPM1-AMM'!K:K,_xlfn.XLOOKUP(A5,'MMPM1-PMM'!E:E,'MMPM1-PMM'!J:J)) -> CO-ETF1 | E5: =_xlfn.XLOOKUP(A5,'MMPM1-AMM'!E:E,'MMPM1-AMM'!Q:Q,_xlfn.XLOOKUP(A5,'MMPM1-PMM'!E:E,'MMPM1-PMM'!P:P)) -> 6 | F5: =SUMIFS(MMPM2!H:H,MMPM2!C:C,U5,MMPM2!E:E,1,MMPM2!G:G,1) -> 2 | G5: =SUMIFS(MMPM2!H:H,MMPM2!C:C,U5,MMPM2!E:E,1,MMPM2!G:G,2) -> 20 | L5: =SUMIFS(MMPM2!I:I,MMPM2!C:C,U5,MMPM2!E:E,1,MMPM2!G:G,1) -> 0.2 | M5: =SUMIFS(MMPM2!I:I,MMPM2!C:C,U5,MMPM2!E:E,1,MMPM2!G:G,2) -> 0.1 | N5: =SUMIFS(MMPM2!I:I,MMPM2!C:C,U5,MMPM2!E:E,1,MMPM2!G:G,3) -> 2 | R5: Not applicable | S5: No doubling of mistrade range | U5: =IFERROR(_xlfn.XLOOKUP(A5,'MMPM1-PMM'!E:E,'MMPM1-PMM'!J:J),_xlfn.XLOOKUP(A5,'MMPM1-AMM'!E:E,'MMPM1-AMM'!K:K)) -> CO-ETF1 | V5: =IFERROR(_xlfn.XLOOKUP(A5,'MMPM1-AMM'!E:E,'MMPM1-AMM'!T:T),_xlfn.XLOOKUP(A5,'MMPM1-PMM'!E:E,'MMPM1-PMM'!S:S)) -> 3 | W5: =IFERROR(_xlfn.XLOOKUP(A5,'MMPM1-AMM'!E:E,'MMPM1-AMM'!U:U),_xlfn.XLOOKUP(A5,'MMPM1-PMM'!E:E,'MMPM1-PMM'!T:T)) -> 6 | Y5: TRUE | AB5: =_xlfn.XLOOKUP(A5,productlist[PRODUCT_ID],productlist[PRODUCT_ISIN]) -> GB00B15KY211 | AC5: =_xlfn.XLOOKUP(A5,productlist[PRODUCT_ID],productlist[UNDERLYING_ISIN]) -> GB00B15KY211
A6: CNDX | B6: =_xlfn.XLOOKUP(A6,'Product List'!$A:$A,'Product List'!$D:$D) -> iShares NASDAQ 100 UCITS Options | C6: =_xlfn.XLOOKUP(A6,'Product List'!$A:$A,'Product List'!$F:$F) -> EXTF-OPTIONS | D6: =_xlfn.XLOOKUP(A6,'MMPM1-AMM'!E:E,'MMPM1-AMM'!K:K,_xlfn.XLOOKUP(A6,'MMPM1-PMM'!E:E,'MMPM1-PMM'!J:J)) -> ETF3 | E6: =_xlfn.XLOOKUP(A6,'MMPM1-AMM'!E:E,'MMPM1-AMM'!Q:Q,_xlfn.XLOOKUP(A6,'MMPM1-PMM'!E:E,'MMPM1-PMM'!P:P)) -> 6 | F6: =SUMIFS(MMPM2!H:H,MMPM2!C:C,U6,MMPM2!E:E,1,MMPM2!G:G,1) -> 10 | G6: =SUMIFS(MMPM2!H:H,MMPM2!C:C,U6,MMPM2!E:E,1,MMPM2!G:G,2) -> 50 | L6: =SUMIFS(MMPM2!I:I,MMPM2!C:C,U6,MMPM2!E:E,1,MMPM2!G:G,1) -> 1.5 | M6: =SUMIFS(MMPM2!I:I,MMPM2!C:C,U6,MMPM2!E:E,1,MMPM2!G:G,2) -> 0.15 | N6: =SUMIFS(MMPM2!I:I,MMPM2!C:C,U6,MMPM2!E:E,1,MMPM2!G:G,3) -> 7.5 | R6: Not applicable | S6: No doubling of mistrade range | U6: =IFERROR(_xlfn.XLOOKUP(A6,'MMPM1-PMM'!E:E,'MMPM1-PMM'!J:J),_xlfn.XLOOKUP(A6,'MMPM1-AMM'!E:E,'MMPM1-AMM'!K:K)) -> ETF3 | V6: =IFERROR(_xlfn.XLOOKUP(A6,'MMPM1-AMM'!E:E,'MMPM1-AMM'!T:T),_xlfn.XLOOKUP(A6,'MMPM1-PMM'!E:E,'MMPM1-PMM'!S:S)) -> 3 | W6: =IFERROR(_xlfn.XLOOKUP(A6,'MMPM1-AMM'!E:E,'MMPM1-AMM'!U:U),_xlfn.XLOOKUP(A6,'MMPM1-PMM'!E:E,'MMPM1-PMM'!T:T)) -> 6 | Y6: TRUE | AB6: =_xlfn.XLOOKUP(A6,productlist[PRODUCT_ID],productlist[PRODUCT_ISIN]) -> IE00B53SZB19 | AC6: =_xlfn.XLOOKUP(A6,productlist[PRODUCT_ID],productlist[UNDERLYING_ISIN]) -> IE00B53SZB19
A7: ICOM | B7: =_xlfn.XLOOKUP(A7,'Product List'!$A:$A,'Product List'!$D:$D) -> iShares Diversified Commodity Swap UCITS Options | C7: =_xlfn.XLOOKUP(A7,'Product List'!$A:$A,'Product List'!$F:$F) -> EXTF-OPTIONS | D7: =_xlfn.XLOOKUP(A7,'MMPM1-AMM'!E:E,'MMPM1-AMM'!K:K,_xlfn.XLOOKUP(A7,'MMPM1-PMM'!E:E,'MMPM1-PMM'!J:J)) -> CO-ETF1 | E7: =_xlfn.XLOOKUP(A7,'MMPM1-AMM'!E:E,'MMPM1-AMM'!Q:Q,_xlfn.XLOOKUP(A7,'MMPM1-PMM'!E:E,'MMPM1-PMM'!P:P)) -> 6 | F7: =SUMIFS(MMPM2!H:H,MMPM2!C:C,U7,MMPM2!E:E,1,MMPM2!G:G,1) -> 2 | G7: =SUMIFS(MMPM2!H:H,MMPM2!C:C,U7,MMPM2!E:E,1,MMPM2!G:G,2) -> 20 | L7: =SUMIFS(MMPM2!I:I,MMPM2!C:C,U7,MMPM2!E:E,1,MMPM2!G:G,1) -> 0.2 | M7: =SUMIFS(MMPM2!I:I,MMPM2!C:C,U7,MMPM2!E:E,1,MMPM2!G:G,2) -> 0.1 | N7: =SUMIFS(MMPM2!I:I,MMPM2!C:C,U7,MMPM2!E:E,1,MMPM2!G:G,3) -> 2 | R7: Not applicable | S7: No doubling of mistrade range | U7: =IFERROR(_xlfn.XLOOKUP(A7,'MMPM1-PMM'!E:E,'MMPM1-PMM'!J:J),_xlfn.XLOOKUP(A7,'MMPM1-AMM'!E:E,'MMPM1-AMM'!K:K)) -> CO-ETF1 | V7: =IFERROR(_xlfn.XLOOKUP(A7,'MMPM1-AMM'!E:E,'MMPM1-AMM'!T:T),_xlfn.XLOOKUP(A7,'MMPM1-PMM'!E:E,'MMPM1-PMM'!S:S)) -> 3 | W7: =IFERROR(_xlfn.XLOOKUP(A7,'MMPM1-AMM'!E:E,'MMPM1-AMM'!U:U),_xlfn.XLOOKUP(A7,'MMPM1-PMM'!E:E,'MMPM1-PMM'!T:T)) -> 6 | Y7: TRUE | AB7: =_xlfn.XLOOKUP(A7,productlist[PRODUCT_ID],productlist[PRODUCT_ISIN]) -> IE00BDFL4P12 | AC7: =_xlfn.XLOOKUP(A7,productlist[PRODUCT_ID],productlist[UNDERLYING_ISIN]) -> IE00BDFL4P12
A8: 4BRZ | B8: =_xlfn.XLOOKUP(A8,'Product List'!$A:$A,'Product List'!$D:$D) -> iShares MSCI Brazil (DE) Options | C8: =_xlfn.XLOOKUP(A8,'Product List'!$A:$A,'Product List'!$F:$F) -> EXTF-OPTIONS | D8: =_xlfn.XLOOKUP(A8,'MMPM1-AMM'!E:E,'MMPM1-AMM'!K:K,_xlfn.XLOOKUP(A8,'MMPM1-PMM'!E:E,'MMPM1-PMM'!J:J)) -> ETF5 | E8: =_xlfn.XLOOKUP(A8,'MMPM1-AMM'!E:E,'MMPM1-AMM'!Q:Q,_xlfn.XLOOKUP(A8,'MMPM1-PMM'!E:E,'MMPM1-PMM'!P:P)) -> 6 | F8: =SUMIFS(MMPM2!H:H,MMPM2!C:C,U8,MMPM2!E:E,1,MMPM2!G:G,1) -> 1 | G8: =SUMIFS(MMPM2!H:H,MMPM2!C:C,U8,MMPM2!E:E,1,MMPM2!G:G,2) -> 5 | L8: =SUMIFS(MMPM2!I:I,MMPM2!C:C,U8,MMPM2!E:E,1,MMPM2!G:G,1) -> 0.25 | M8: =SUMIFS(MMPM2!I:I,MMPM2!C:C,U8,MMPM2!E:E,1,MMPM2!G:G,2) -> 0.25 | N8: =SUMIFS(MMPM2!I:I,MMPM2!C:C,U8,MMPM2!E:E,1,MMPM2!G:G,3) -> 1.25 | R8: Not applicable | S8: No doubling of mistrade range | U8: =IFERROR(_xlfn.XLOOKUP(A8,'MMPM1-PMM'!E:E,'MMPM1-PMM'!J:J),_xlfn.XLOOKUP(A8,'MMPM1-AMM'!E:E,'MMPM1-AMM'!K:K)) -> ETF5 | V8: =IFERROR(_xlfn.XLOOKUP(A8,'MMPM1-AMM'!E:E,'MMPM1-AMM'!T:T),_xlfn.XLOOKUP(A8,'MMPM1-PMM'!E:E,'MMPM1-PMM'!S:S)) -> 3 | W8: =IFERROR(_xlfn.XLOOKUP(A8,'MMPM1-AMM'!E:E,'MMPM1-AMM'!U:U),_xlfn.XLOOKUP(A8,'MMPM1-PMM'!E:E,'MMPM1-PMM'!T:T)) -> 6 | Y8: TRUE | AB8: =_xlfn.XLOOKUP(A8,productlist[PRODUCT_ID],productlist[PRODUCT_ISIN]) -> DE000A0Q4R85 | AC8: =_xlfn.XLOOKUP(A8,productlist[PRODUCT_ID],productlist[UNDERLYING_ISIN]) -> DE000A0Q4R85
A9: CSPX | B9: =_xlfn.XLOOKUP(A9,'Product List'!$A:$A,'Product List'!$D:$D) -> iShares Core S&P 500 UCITS Options | C9: =_xlfn.XLOOKUP(A9,'Product List'!$A:$A,'Product List'!$F:$F) -> EXTF-OPTIONS | D9: =_xlfn.XLOOKUP(A9,'MMPM1-AMM'!E:E,'MMPM1-AMM'!K:K,_xlfn.XLOOKUP(A9,'MMPM1-PMM'!E:E,'MMPM1-PMM'!J:J)) -> ETF3 | E9: =_xlfn.XLOOKUP(A9,'MMPM1-AMM'!E:E,'MMPM1-AMM'!Q:Q,_xlfn.XLOOKUP(A9,'MMPM1-PMM'!E:E,'MMPM1-PMM'!P:P)) -> 6 | F9: =SUMIFS(MMPM2!H:H,MMPM2!C:C,U9,MMPM2!E:E,1,MMPM2!G:G,1) -> 10 | G9: =SUMIFS(MMPM2!H:H,MMPM2!C:C,U9,MMPM2!E:E,1,MMPM2!G:G,2) -> 50 | L9: =SUMIFS(MMPM2!I:I,MMPM2!C:C,U9,MMPM2!E:E,1,MMPM2!G:G,1) -> 1.5 | M9: =SUMIFS(MMPM2!I:I,MMPM2!C:C,U9,MMPM2!E:E,1,MMPM2!G:G,2) -> 0.15 | N9: =SUMIFS(MMPM2!I:I,MMPM2!C:C,U9,MMPM2!E:E,1,MMPM2!G:G,3) -> 7.5 | R9: Not applicable | S9: No doubling of mistrade range | U9: =IFERROR(_xlfn.XLOOKUP(A9,'MMPM1-PMM'!E:E,'MMPM1-PMM'!J:J),_xlfn.XLOOKUP(A9,'MMPM1-AMM'!E:E,'MMPM1-AMM'!K:K)) -> ETF3 | V9: =IFERROR(_xlfn.XLOOKUP(A9,'MMPM1-AMM'!E:E,'MMPM1-AMM'!T:T),_xlfn.XLOOKUP(A9,'MMPM1-PMM'!E:E,'MMPM1-PMM'!S:S)) -> 3 | W9: =IFERROR(_xlfn.XLOOKUP(A9,'MMPM1-AMM'!E:E,'MMPM1-AMM'!U:U),_xlfn.XLOOKUP(A9,'MMPM1-PMM'!E:E,'MMPM1-PMM'!T:T)) -> 6 | Y9: TRUE | AB9: =_xlfn.XLOOKUP(A9,productlist[PRODUCT_ID],productlist[PRODUCT_ISIN]) -> IE00B5BMR087 | AC9: =_xlfn.XLOOKUP(A9,productlist[PRODUCT_ID],productlist[UNDERLYING_ISIN]) -> IE00B5BMR087
A10: DBX1 | B10: =_xlfn.XLOOKUP(A10,'Product List'!$A:$A,'Product List'!$D:$D) -> Xtrackers MSCI Emerging Markets UCITS Options | C10: =_xlfn.XLOOKUP(A10,'Product List'!$A:$A,'Product List'!$F:$F) -> EXTF-OPTIONS | D10: =_xlfn.XLOOKUP(A10,'MMPM1-AMM'!E:E,'MMPM1-AMM'!K:K,_xlfn.XLOOKUP(A10,'MMPM1-PMM'!E:E,'MMPM1-PMM'!J:J)) -> ETF1 | E10: =_xlfn.XLOOKUP(A10,'MMPM1-AMM'!E:E,'MMPM1-AMM'!Q:Q,_xlfn.XLOOKUP(A10,'MMPM1-PMM'!E:E,'MMPM1-PMM'!P:P)) -> 6 | F10: =SUMIFS(MMPM2!H:H,MMPM2!C:C,U10,MMPM2!E:E,1,MMPM2!G:G,1) -> 1 | G10: =SUMIFS(MMPM2!H:H,MMPM2!C:C,U10,MMPM2!E:E,1,MMPM2!G:G,2) -> 5 | L10: =SUMIFS(MMPM2!I:I,MMPM2!C:C,U10,MMPM2!E:E,1,MMPM2!G:G,1) -> 0.15 | M10: =SUMIFS(MMPM2!I:I,MMPM2!C:C,U10,MMPM2!E:E,1,MMPM2!G:G,2) -> 0.15 | N10: =SUMIFS(MMPM2!I:I,MMPM2!C:C,U10,MMPM2!E:E,1,MMPM2!G:G,3) -> 0.75 | R10: Not applicable | S10: No doubling of mistrade range | U10: =IFERROR(_xlfn.XLOOKUP(A10,'MMPM1-PMM'!E:E,'MMPM1-PMM'!J:J),_xlfn.XLOOKUP(A10,'MMPM1-AMM'!E:E,'MMPM1-AMM'!K:K)) -> ETF1 | V10: =IFERROR(_xlfn.XLOOKUP(A10,'MMPM1-AMM'!E:E,'MMPM1-AMM'!T:T),_xlfn.XLOOKUP(A10,'MMPM1-PMM'!E:E,'MMPM1-PMM'!S:S)) -> 3 | W10: =IFERROR(_xlfn.XLOOKUP(A10,'MMPM1-AMM'!E:E,'MMPM1-AMM'!U:U),_xlfn.XLOOKUP(A10,'MMPM1-PMM'!E:E,'MMPM1-PMM'!T:T)) -> 6 | Y10: TRUE | AB10: =_xlfn.XLOOKUP(A10,productlist[PRODUCT_ID],productlist[PRODUCT_ISIN]) -> LU0292107645 | AC10: =_xlfn.XLOOKUP(A10,productlist[PRODUCT_ID],productlist[UNDERLYING_ISIN]) -> LU0292107645
A11: DBXA | B11: =_xlfn.XLOOKUP(A11,'Product List'!$A:$A,'Product List'!$D:$D) -> Xtrackers MSCI Europe UCITS Options | C11: =_xlfn.XLOOKUP(A11,'Product List'!$A:$A,'Product List'!$F:$F) -> EXTF-OPTIONS | D11: =_xlfn.XLOOKUP(A11,'MMPM1-AMM'!E:E,'MMPM1-AMM'!K:K,_xlfn.XLOOKUP(A11,'MMPM1-PMM'!E:E,'MMPM1-PMM'!J:J)) -> ETF1 | E11: =_xlfn.XLOOKUP(A11,'MMPM1-AMM'!E:E,'MMPM1-AMM'!Q:Q,_xlfn.XLOOKUP(A11,'MMPM1-PMM'!E:E,'MMPM1-PMM'!P:P)) -> 6 | F11: =SUMIFS(MMPM2!H:H,MMPM2!C:C,U11,MMPM2!E:E,1,MMPM2!G:G,1) -> 1 | G11: =SUMIFS(MMPM2!H:H,MMPM2!C:C,U11,MMPM2!E:E,1,MMPM2!G:G,2) -> 5 | L11: =SUMIFS(MMPM2!I:I,MMPM2!C:C,U11,MMPM2!E:E,1,MMPM2!G:G,1) -> 0.15 | M11: =SUMIFS(MMPM2!I:I,MMPM2!C:C,U11,MMPM2!E:E,1,MMPM2!G:G,2) -> 0.15 | N11: =SUMIFS(MMPM2!I:I,MMPM2!C:C,U11,MMPM2!E:E,1,MMPM2!G:G,3) -> 0.75 | R11: Not applicable | S11: No doubling of mistrade range | U11: =IFERROR(_xlfn.XLOOKUP(A11,'MMPM1-PMM'!E:E,'MMPM1-PMM'!J:J),_xlfn.XLOOKUP(A11,'MMPM1-AMM'!E:E,'MMPM1-AMM'!K:K)) -> ETF1 | V11: =IFERROR(_xlfn.XLOOKUP(A11,'MMPM1-AMM'!E:E,'MMPM1-AMM'!T:T),_xlfn.XLOOKUP(A11,'MMPM1-PMM'!E:E,'MMPM1-PMM'!S:S)) -> 3 | W11: =IFERROR(_xlfn.XLOOKUP(A11,'MMPM1-AMM'!E:E,'MMPM1-AMM'!U:U),_xlfn.XLOOKUP(A11,'MMPM1-PMM'!E:E,'MMPM1-PMM'!T:T)) -> 6 | Y11: TRUE | AB11: =_xlfn.XLOOKUP(A11,productlist[PRODUCT_ID],productlist[PRODUCT_ISIN]) -> LU0274209237 | AC11: =_xlfn.XLOOKUP(A11,productlist[PRODUCT_ID],productlist[UNDERLYING_ISIN]) -> LU0274209237
A12: DBXW | B12: =_xlfn.XLOOKUP(A12,'Product List'!$A:$A,'Product List'!$D:$D) -> Xtrackers MSCI World Swap UCITS Options | C12: =_xlfn.XLOOKUP(A12,'Product List'!$A:$A,'Product List'!$F:$F) -> EXTF-OPTIONS | D12: =_xlfn.XLOOKUP(A12,'MMPM1-AMM'!E:E,'MMPM1-AMM'!K:K,_xlfn.XLOOKUP(A12,'MMPM1-PMM'!E:E,'MMPM1-PMM'!J:J)) -> ETF1 | E12: =_xlfn.XLOOKUP(A12,'MMPM1-AMM'!E:E,'MMPM1-AMM'!Q:Q,_xlfn.XLOOKUP(A12,'MMPM1-PMM'!E:E,'MMPM1-PMM'!P:P)) -> 6 | F12: =SUMIFS(MMPM2!H:H,MMPM2!C:C,U12,MMPM2!E:E,1,MMPM2!G:G,1) -> 1 | G12: =SUMIFS(MMPM2!H:H,MMPM2!C:C,U12,MMPM2!E:E,1,MMPM2!G:G,2) -> 5 | L12: =SUMIFS(MMPM2!I:I,MMPM2!C:C,U12,MMPM2!E:E,1,MMPM2!G:G,1) -> 0.15 | M12: =SUMIFS(MMPM2!I:I,MMPM2!C:C,U12,MMPM2!E:E,1,MMPM2!G:G,2) -> 0.15 | N12: =SUMIFS(MMPM2!I:I,MMPM2!C:C,U12,MMPM2!E:E,1,MMPM2!G:G,3) -> 0.75 | R12: Not applicable | S12: No doubling of mistrade range | U12: =IFERROR(_xlfn.XLOOKUP(A12,'MMPM1-PMM'!E:E,'MMPM1-PMM'!J:J),_xlfn.XLOOKUP(A12,'MMPM1-AMM'!E:E,'MMPM1-AMM'!K:K)) -> ETF1 | V12: =IFERROR(_xlfn.XLOOKUP(A12,'MMPM1-AMM'!E:E,'MMPM1-AMM'!T:T),_xlfn.XLOOKUP(A12,'MMPM1-PMM'!E:E,'MMPM1-PMM'!S:S)) -> 3 | W12: =IFERROR(_xlfn.XLOOKUP(A12,'MMPM1-AMM'!E:E,'MMPM1-AMM'!U:U),_xlfn.XLOOKUP(A12,'MMPM1-PMM'!E:E,'MMPM1-PMM'!T:T)) -> 6 | Y12: TRUE | AB12: =_xlfn.XLOOKUP(A12,productlist[PRODUCT_ID],productlist[PRODUCT_ISIN]) -> LU0274208692 | AC12: =_xlfn.XLOOKUP(A12,productlist[PRODUCT_ID],productlist[UNDERLYING_ISIN]) -> LU0274208692
A13: EEMB | B13: =_xlfn.XLOOKUP(A13,'Product List'!$A:$A,'Product List'!$D:$D) -> iShares J.P. Morgan USD Emerging Market Bond UCITS Options [european] | C13: =_xlfn.XLOOKUP(A13,'Product List'!$A:$A,'Product List'!$F:$F) -> EXTF-OPTIONS | D13: =_xlfn.XLOOKUP(A13,'MMPM1-AMM'!E:E,'MMPM1-AMM'!K:K,_xlfn.XLOOKUP(A13,'MMPM1-PMM'!E:E,'MMPM1-PMM'!J:J)) -> FI-ETF | E13: =_xlfn.XLOOKUP(A13,'MMPM1-AMM'!E:E,'MMPM1-AMM'!Q:Q,_xlfn.XLOOKUP(A13,'MMPM1-PMM'!E:E,'MMPM1-PMM'!P:P)) -> 3 | F13: =SUMIFS(MMPM2!H:H,MMPM2!C:C,U13,MMPM2!E:E,1,MMPM2!G:G,1) -> 1.5 | G13: =SUMIFS(MMPM2!H:H,MMPM2!C:C,U13,MMPM2!E:E,1,MMPM2!G:G,2) -> 15 | L13: =SUMIFS(MMPM2!I:I,MMPM2!C:C,U13,MMPM2!E:E,1,MMPM2!G:G,1) -> 0.35 | M13: =SUMIFS(MMPM2!I:I,MMPM2!C:C,U13,MMPM2!E:E,1,MMPM2!G:G,2) -> 0.2 | N13: =SUMIFS(MMPM2!I:I,MMPM2!C:C,U13,MMPM2!E:E,1,MMPM2!G:G,3) -> 3 | R13: Not applicable | S13: No doubling of mistrade range | U13: =IFERROR(_xlfn.XLOOKUP(A13,'MMPM1-PMM'!E:E,'MMPM1-PMM'!J:J),_xlfn.XLOOKUP(A13,'MMPM1-AMM'!E:E,'MMPM1-AMM'!K:K)) -> FI-ETF | V13: =IFERROR(_xlfn.XLOOKUP(A13,'MMPM1-AMM'!E:E,'MMPM1-AMM'!T:T),_xlfn.XLOOKUP(A13,'MMPM1-PMM'!E:E,'MMPM1-PMM'!S:S)) -> 3 | W13: =IFERROR(_xlfn.XLOOKUP(A13,'MMPM1-AMM'!E:E,'MMPM1-AMM'!U:U),_xlfn.XLOOKUP(A13,'MMPM1-PMM'!E:E,'MMPM1-PMM'!T:T)) -> 3 | Y13: TRUE | AB13: =_xlfn.XLOOKUP(A13,productlist[PRODUCT_ID],productlist[PRODUCT_ISIN]) -> DE000A2BNDB7 | AC13: =_xlfn.XLOOKUP(A13,productlist[PRODUCT_ID],productlist[UNDERLYING_ISIN]) -> IE00B2NPKV68
A14: EHYU | B14: =_xlfn.XLOOKUP(A14,'Product List'!$A:$A,'Product List'!$D:$D) -> iShares USD High Yield Corporate Bond UCITS Options [european] | C14: =_xlfn.XLOOKUP(A14,'Product List'!$A:$A,'Product List'!$F:$F) -> EXTF-OPTIONS | D14: =_xlfn.XLOOKUP(A14,'MMPM1-AMM'!E:E,'MMPM1-AMM'!K:K,_xlfn.XLOOKUP(A14,'MMPM1-PMM'!E:E,'MMPM1-PMM'!J:J)) -> FI-ETF | E14: =_xlfn.XLOOKUP(A14,'MMPM1-AMM'!E:E,'MMPM1-AMM'!Q:Q,_xlfn.XLOOKUP(A14,'MMPM1-PMM'!E:E,'MMPM1-PMM'!P:P)) -> 3 | F14: =SUMIFS(MMPM2!H:H,MMPM2!C:C,U14,MMPM2!E:E,1,MMPM2!G:G,1) -> 1.5 | G14: =SUMIFS(MMPM2!H:H,MMPM2!C:C,U14,MMPM2!E:E,1,MMPM2!G:G,2) -> 15 | L14: =SUMIFS(MMPM2!I:I,MMPM2!C:C,U14,MMPM2!E:E,1,MMPM2!G:G,1) -> 0.35 | M14: =SUMIFS(MMPM2!I:I,MMPM2!C:C,U14,MMPM2!E:E,1,MMPM2!G:G,2) -> 0.2 | N14: =SUMIFS(MMPM2!I:I,MMPM2!C:C,U14,MMPM2!E:E,1,MMPM2!G:G,3) -> 3 | R14: Not applicable | S14: No doubling of mistrade range | U14: =IFERROR(_xlfn.XLOOKUP(A14,'MMPM1-PMM'!E:E,'MMPM1-PMM'!J:J),_xlfn.XLOOKUP(A14,'MMPM1-AMM'!E:E,'MMPM1-AMM'!K:K)) -> FI-ETF | V14: =IFERROR(_xlfn.XLOOKUP(A14,'MMPM1-AMM'!E:E,'MMPM1-AMM'!T:T),_xlfn.XLOOKUP(A14,'MMPM1-PMM'!E:E,'MMPM1-PMM'!S:S)) -> 3 | W14: =IFERROR(_xlfn.XLOOKUP(A14,'MMPM1-AMM'!E:E,'MMPM1-AMM'!U:U),_xlfn.XLOOKUP(A14,'MMPM1-PMM'!E:E,'MMPM1-PMM'!T:T)) -> 3 | Y14: TRUE | AB14: =_xlfn.XLOOKUP(A14,productlist[PRODUCT_ID],productlist[PRODUCT_ISIN]) -> DE000A26R3M9 | AC14: =_xlfn.XLOOKUP(A14,productlist[PRODUCT_ID],productlist[UNDERLYING_ISIN]) -> IE00B4PY7Y77
A15: ELQD | B15: =_xlfn.XLOOKUP(A15,'Product List'!$A:$A,'Product List'!$D:$D) -> iShares USD Corporate Bond UCITS Options [european] | C15: =_xlfn.XLOOKUP(A15,'Product List'!$A:$A,'Product List'!$F:$F) -> EXTF-OPTIONS | D15: =_xlfn.XLOOKUP(A15,'MMPM1-AMM'!E:E,'MMPM1-AMM'!K:K,_xlfn.XLOOKUP(A15,'MMPM1-PMM'!E:E,'MMPM1-PMM'!J:J)) -> FI-ETF | E15: =_xlfn.XLOOKUP(A15,'MMPM1-AMM'!E:E,'MMPM1-AMM'!Q:Q,_xlfn.XLOOKUP(A15,'MMPM1-PMM'!E:E,'MMPM1-PMM'!P:P)) -> 3 | F15: =SUMIFS(MMPM2!H:H,MMPM2!C:C,U15,MMPM2!E:E,1,MMPM2!G:G,1) -> 1.5 | G15: =SUMIFS(MMPM2!H:H,MMPM2!C:C,U15,MMPM2!E:E,1,MMPM2!G:G,2) -> 15 | L15: =SUMIFS(MMPM2!I:I,MMPM2!C:C,U15,MMPM2!E:E,1,MMPM2!G:G,1) -> 0.35 | M15: =SUMIFS(MMPM2!I:I,MMPM2!C:C,U15,MMPM2!E:E,1,MMPM2!G:G,2) -> 0.2 | N15: =SUMIFS(MMPM2!I:I,MMPM2!C:C,U15,MMPM2!E:E,1,MMPM2!G:G,3) -> 3 | R15: Not applicable | S15: No doubling of mistrade range | U15: =IFERROR(_xlfn.XLOOKUP(A15,'MMPM1-PMM'!E:E,'MMPM1-PMM'!J:J),_xlfn.XLOOKUP(A15,'MMPM1-AMM'!E:E,'MMPM1-AMM'!K:K)) -> FI-ETF | V15: =IFERROR(_xlfn.XLOOKUP(A15,'MMPM1-AMM'!E:E,'MMPM1-AMM'!T:T),_xlfn.XLOOKUP(A15,'MMPM1-PMM'!E:E,'MMPM1-PMM'!S:S)) -> 3 | W15: =IFERROR(_xlfn.XLOOKUP(A15,'MMPM1-AMM'!E:E,'MMPM1-AMM'!U:U),_xlfn.XLOOKUP(A15,'MMPM1-PMM'!E:E,'MMPM1-PMM'!T:T)) -> 3 | Y15: TRUE | AB15: =_xlfn.XLOOKUP(A15,productlist[PRODUCT_ID],productlist[PRODUCT_ISIN]) -> DE000A26R3N7 | AC15: =_xlfn.XLOOKUP(A15,productlist[PRODUCT_ID],productlist[UNDERLYING_ISIN]) -> IE0032895942
A16: EUN2 | B16: =_xlfn.XLOOKUP(A16,'Product List'!$A:$A,'Product List'!$D:$D) -> iShares Core EURO STOXX 50® UCITS Options | C16: =_xlfn.XLOOKUP(A16,'Product List'!$A:$A,'Product List'!$F:$F) -> EXTF-OPTIONS | D16: =_xlfn.XLOOKUP(A16,'MMPM1-AMM'!E:E,'MMPM1-AMM'!K:K,_xlfn.XLOOKUP(A16,'MMPM1-PMM'!E:E,'MMPM1-PMM'!J:J)) -> ETF1 | E16: =_xlfn.XLOOKUP(A16,'MMPM1-AMM'!E:E,'MMPM1-AMM'!Q:Q,_xlfn.XLOOKUP(A16,'MMPM1-PMM'!E:E,'MMPM1-PMM'!P:P)) -> 6 | F16: =SUMIFS(MMPM2!H:H,MMPM2!C:C,U16,MMPM2!E:E,1,MMPM2!G:G,1) -> 1 | G16: =SUMIFS(MMPM2!H:H,MMPM2!C:C,U16,MMPM2!E:E,1,MMPM2!G:G,2) -> 5 | L16: =SUMIFS(MMPM2!I:I,MMPM2!C:C,U16,MMPM2!E:E,1,MMPM2!G:G,1) -> 0.15 | M16: =SUMIFS(MMPM2!I:I,MMPM2!C:C,U16,MMPM2!E:E,1,MMPM2!G:G,2) -> 0.15 | N16: =SUMIFS(MMPM2!I:I,MMPM2!C:C,U16,MMPM2!E:E,1,MMPM2!G:G,3) -> 0.75 | R16: Not applicable | S16: No doubling of mistrade range | U16: =IFERROR(_xlfn.XLOOKUP(A16,'MMPM1-PMM'!E:E,'MMPM1-PMM'!J:J),_xlfn.XLOOKUP(A16,'MMPM1-AMM'!E:E,'MMPM1-AMM'!K:K)) -> ETF1 | V16: =IFERROR(_xlfn.XLOOKUP(A16,'MMPM1-AMM'!E:E,'MMPM1-AMM'!T:T),_xlfn.XLOOKUP(A16,'MMPM1-PMM'!E:E,'MMPM1-PMM'!S:S)) -> 3 | W16: =IFERROR(_xlfn.XLOOKUP(A16,'MMPM1-AMM'!E:E,'MMPM1-AMM'!U:U),_xlfn.XLOOKUP(A16,'MMPM1-PMM'!E:E,'MMPM1-PMM'!T:T)) -> 6 | Y16: TRUE | AB16: =_xlfn.XLOOKUP(A16,productlist[PRODUCT_ID],productlist[PRODUCT_ISIN]) -> IE0008471009 | AC16: =_xlfn.XLOOKUP(A16,productlist[PRODUCT_ID],productlist[UNDERLYING_ISIN]) -> IE0008471009
A17: EXS1 | B17: =_xlfn.XLOOKUP(A17,'Product List'!$A:$A,'Product List'!$D:$D) -> iShares Core DAX® UCITS (DE) Options | C17: =_xlfn.XLOOKUP(A17,'Product List'!$A:$A,'Product List'!$F:$F) -> EXTF-OPTIONS | D17: =_xlfn.XLOOKUP(A17,'MMPM1-AMM'!E:E,'MMPM1-AMM'!K:K,_xlfn.XLOOKUP(A17,'MMPM1-PMM'!E:E,'MMPM1-PMM'!J:J)) -> ETF2 | E17: =_xlfn.XLOOKUP(A17,'MMPM1-AMM'!E:E,'MMPM1-AMM'!Q:Q,_xlfn.XLOOKUP(A17,'MMPM1-PMM'!E:E,'MMPM1-PMM'!P:P)) -> 6 | F17: =SUMIFS(MMPM2!H:H,MMPM2!C:C,U17,MMPM2!E:E,1,MMPM2!G:G,1) -> 1.5 | G17: =SUMIFS(MMPM2!H:H,MMPM2!C:C,U17,MMPM2!E:E,1,MMPM2!G:G,2) -> 15 | L17: =SUMIFS(MMPM2!I:I,MMPM2!C:C,U17,MMPM2!E:E,1,MMPM2!G:G,1) -> 0.25 | M17: =SUMIFS(MMPM2!I:I,MMPM2!C:C,U17,MMPM2!E:E,1,MMPM2!G:G,2) -> 0.15 | N17: =SUMIFS(MMPM2!I:I,MMPM2!C:C,U17,MMPM2!E:E,1,MMPM2!G:G,3) -> 2.25 | R17: Not applicable | S17: No doubling of mistrade range | U17: =IFERROR(_xlfn.XLOOKUP(A17,'MMPM1-PMM'!E:E,'MMPM1-PMM'!J:J),_xlfn.XLOOKUP(A17,'MMPM1-AMM'!E:E,'MMPM1-AMM'!K:K)) -> ETF2 | V17: =IFERROR(_xlfn.XLOOKUP(A17,'MMPM1-AMM'!E:E,'MMPM1-AMM'!T:T),_xlfn.XLOOKUP(A17,'MMPM1-PMM'!E:E,'MMPM1-PMM'!S:S)) -> 3 | W17: =IFERROR(_xlfn.XLOOKUP(A17,'MMPM1-AMM'!E:E,'MMPM1-AMM'!U:U),_xlfn.XLOOKUP(A17,'MMPM1-PMM'!E:E,'MMPM1-PMM'!T:T)) -> 6 | Y17: TRUE | AB17: =_xlfn.XLOOKUP(A17,productlist[PRODUCT_ID],productlist[PRODUCT_ISIN]) -> DE0005933931 | AC17: =_xlfn.XLOOKUP(A17,productlist[PRODUCT_ID],productlist[UNDERLYING_ISIN]) -> DE0005933931
A18: EXSA | B18: =_xlfn.XLOOKUP(A18,'Product List'!$A:$A,'Product List'!$D:$D) -> iShares STOXX® Europe 600 UCITS (DE) Options | C18: =_xlfn.XLOOKUP(A18,'Product List'!$A:$A,'Product List'!$F:$F) -> EXTF-OPTIONS | D18: =_xlfn.XLOOKUP(A18,'MMPM1-AMM'!E:E,'MMPM1-AMM'!K:K,_xlfn.XLOOKUP(A18,'MMPM1-PMM'!E:E,'MMPM1-PMM'!J:J)) -> ETF1 | E18: =_xlfn.XLOOKUP(A18,'MMPM1-AMM'!E:E,'MMPM1-AMM'!Q:Q,_xlfn.XLOOKUP(A18,'MMPM1-PMM'!E:E,'MMPM1-PMM'!P:P)) -> 6 | F18: =SUMIFS(MMPM2!H:H,MMPM2!C:C,U18,MMPM2!E:E,1,MMPM2!G:G,1) -> 1 | G18: =SUMIFS(MMPM2!H:H,MMPM2!C:C,U18,MMPM2!E:E,1,MMPM2!G:G,2) -> 5 | L18: =SUMIFS(MMPM2!I:I,MMPM2!C:C,U18,MMPM2!E:E,1,MMPM2!G:G,1) -> 0.15 | M18: =SUMIFS(MMPM2!I:I,MMPM2!C:C,U18,MMPM2!E:E,1,MMPM2!G:G,2) -> 0.15 | N18: =SUMIFS(MMPM2!I:I,MMPM2!C:C,U18,MMPM2!E:E,1,MMPM2!G:G,3) -> 0.75 | R18: Not applicable | S18: No doubling of mistrade range | U18: =IFERROR(_xlfn.XLOOKUP(A18,'MMPM1-PMM'!E:E,'MMPM1-PMM'!J:J),_xlfn.XLOOKUP(A18,'MMPM1-AMM'!E:E,'MMPM1-AMM'!K:K)) -> ETF1 | V18: =IFERROR(_xlfn.XLOOKUP(A18,'MMPM1-AMM'!E:E,'MMPM1-AMM'!T:T),_xlfn.XLOOKUP(A18,'MMPM1-PMM'!E:E,'MMPM1-PMM'!S:S)) -> 3 | W18: =IFERROR(_xlfn.XLOOKUP(A18,'MMPM1-AMM'!E:E,'MMPM1-AMM'!U:U),_xlfn.XLOOKUP(A18,'MMPM1-PMM'!E:E,'MMPM1-PMM'!T:T)) -> 6 | Y18: TRUE | AB18: =_xlfn.XLOOKUP(A18,productlist[PRODUCT_ID],productlist[PRODUCT_ISIN]) -> DE0002635307 | AC18: =_xlfn.XLOOKUP(A18,productlist[PRODUCT_ID],productlist[UNDERLYING_ISIN]) -> DE0002635307
A19: EXX1 | B19: =_xlfn.XLOOKUP(A19,'Product List'!$A:$A,'Product List'!$D:$D) -> iShares EURO STOXX® Banks 30-15 UCITS (DE) Options | C19: =_xlfn.XLOOKUP(A19,'Product List'!$A:$A,'Product List'!$F:$F) -> EXTF-OPTIONS | D19: =_xlfn.XLOOKUP(A19,'MMPM1-AMM'!E:E,'MMPM1-AMM'!K:K,_xlfn.XLOOKUP(A19,'MMPM1-PMM'!E:E,'MMPM1-PMM'!J:J)) -> ETF1 | E19: =_xlfn.XLOOKUP(A19,'MMPM1-AMM'!E:E,'MMPM1-AMM'!Q:Q,_xlfn.XLOOKUP(A19,'MMPM1-PMM'!E:E,'MMPM1-PMM'!P:P)) -> 6 | F19: =SUMIFS(MMPM2!H:H,MMPM2!C:C,U19,MMPM2!E:E,1,MMPM2!G:G,1) -> 1 | G19: =SUMIFS(MMPM2!H:H,MMPM2!C:C,U19,MMPM2!E:E,1,MMPM2!G:G,2) -> 5 | L19: =SUMIFS(MMPM2!I:I,MMPM2!C:C,U19,MMPM2!E:E,1,MMPM2!G:G,1) -> 0.15 | M19: =SUMIFS(MMPM2!I:I,MMPM2!C:C,U19,MMPM2!E:E,1,MMPM2!G:G,2) -> 0.15 | N19: =SUMIFS(MMPM2!I:I,MMPM2!C:C,U19,MMPM2!E:E,1,MMPM2!G:G,3) -> 0.75 | R19: Not applicable | S19: No doubling of mistrade range | U19: =IFERROR(_xlfn.XLOOKUP(A19,'MMPM1-PMM'!E:E,'MMPM1-PMM'!J:J),_xlfn.XLOOKUP(A19,'MMPM1-AMM'!E:E,'MMPM1-AMM'!K:K)) -> ETF1 | V19: =IFERROR(_xlfn.XLOOKUP(A19,'MMPM1-AMM'!E:E,'MMPM1-AMM'!T:T),_xlfn.XLOOKUP(A19,'MMPM1-PMM'!E:E,'MMPM1-PMM'!S:S)) -> 3 | W19: =IFERROR(_xlfn.XLOOKUP(A19,'MMPM1-AMM'!E:E,'MMPM1-AMM'!U:U),_xlfn.XLOOKUP(A19,'MMPM1-PMM'!E:E,'MMPM1-PMM'!T:T)) -> 6 | Y19: TRUE | AB19: =_xlfn.XLOOKUP(A19,productlist[PRODUCT_ID],productlist[PRODUCT_ISIN]) -> DE0006289309 | AC19: =_xlfn.XLOOKUP(A19,productlist[PRODUCT_ID],productlist[UNDERLYING_ISIN]) -> DE0006289309
A20: IDEM | B20: =_xlfn.XLOOKUP(A20,'Product List'!$A:$A,'Product List'!$D:$D) -> iShares MSCI Emerging Markets UCITS Options | C20: =_xlfn.XLOOKUP(A20,'Product List'!$A:$A,'Product List'!$F:$F) -> EXTF-OPTIONS | D20: =_xlfn.XLOOKUP(A20,'MMPM1-AMM'!E:E,'MMPM1-AMM'!K:K,_xlfn.XLOOKUP(A20,'MMPM1-PMM'!E:E,'MMPM1-PMM'!J:J)) -> ETF6 | E20: =_xlfn.XLOOKUP(A20,'MMPM1-AMM'!E:E,'MMPM1-AMM'!Q:Q,_xlfn.XLOOKUP(A20,'MMPM1-PMM'!E:E,'MMPM1-PMM'!P:P)) -> 6 | F20: =SUMIFS(MMPM2!H:H,MMPM2!C:C,U20,MMPM2!E:E,1,MMPM2!G:G,1) -> 1 | G20: =SUMIFS(MMPM2!H:H,MMPM2!C:C,U20,MMPM2!E:E,1,MMPM2!G:G,2) -> 5 | L20: =SUMIFS(MMPM2!I:I,MMPM2!C:C,U20,MMPM2!E:E,1,MMPM2!G:G,1) -> 0.2 | M20: =SUMIFS(MMPM2!I:I,MMPM2!C:C,U20,MMPM2!E:E,1,MMPM2!G:G,2) -> 0.2 | N20: =SUMIFS(MMPM2!I:I,MMPM2!C:C,U20,MMPM2!E:E,1,MMPM2!G:G,3) -> 1 | R20: Not applicable | S20: No doubling of mistrade range | U20: =IFERROR(_xlfn.XLOOKUP(A20,'MMPM1-PMM'!E:E,'MMPM1-PMM'!J:J),_xlfn.XLOOKUP(A20,'MMPM1-AMM'!E:E,'MMPM1-AMM'!K:K)) -> ETF6 | V20: =IFERROR(_xlfn.XLOOKUP(A20,'MMPM1-AMM'!E:E,'MMPM1-AMM'!T:T),_xlfn.XLOOKUP(A20,'MMPM1-PMM'!E:E,'MMPM1-PMM'!S:S)) -> 3 | W20: =IFERROR(_xlfn.XLOOKUP(A20,'MMPM1-AMM'!E:E,'MMPM1-AMM'!U:U),_xlfn.XLOOKUP(A20,'MMPM1-PMM'!E:E,'MMPM1-PMM'!T:T)) -> 6 | Y20: TRUE | AB20: =_xlfn.XLOOKUP(A20,productlist[PRODUCT_ID],productlist[PRODUCT_ISIN]) -> IE00B0M63177 | AC20: =_xlfn.XLOOKUP(A20,productlist[PRODUCT_ID],productlist[UNDERLYING_ISIN]) -> IE00B0M63177
A21: IGLN | B21: =_xlfn.XLOOKUP(A21,'Product List'!$A:$A,'Product List'!$D:$D) -> iShares Physical Gold Options | C21: =_xlfn.XLOOKUP(A21,'Product List'!$A:$A,'Product List'!$F:$F) -> OPTIONS ON EXCHANGE-TRADED COMMODITIES SECURITIES | D21: =_xlfn.XLOOKUP(A21,'MMPM1-AMM'!E:E,'MMPM1-AMM'!K:K,_xlfn.XLOOKUP(A21,'MMPM1-PMM'!E:E,'MMPM1-PMM'!J:J)) -> CO-ETF1 | E21: =_xlfn.XLOOKUP(A21,'MMPM1-AMM'!E:E,'MMPM1-AMM'!Q:Q,_xlfn.XLOOKUP(A21,'MMPM1-PMM'!E:E,'MMPM1-PMM'!P:P)) -> 6 | F21: =SUMIFS(MMPM2!H:H,MMPM2!C:C,U21,MMPM2!E:E,1,MMPM2!G:G,1) -> 2 | G21: =SUMIFS(MMPM2!H:H,MMPM2!C:C,U21,MMPM2!E:E,1,MMPM2!G:G,2) -> 20 | L21: =SUMIFS(MMPM2!I:I,MMPM2!C:C,U21,MMPM2!E:E,1,MMPM2!G:G,1) -> 0.2 | M21: =SUMIFS(MMPM2!I:I,MMPM2!C:C,U21,MMPM2!E:E,1,MMPM2!G:G,2) -> 0.1 | N21: =SUMIFS(MMPM2!I:I,MMPM2!C:C,U21,MMPM2!E:E,1,MMPM2!G:G,3) -> 2 | R21: Not applicable | S21: No doubling of mistrade range | U21: =IFERROR(_xlfn.XLOOKUP(A21,'MMPM1-PMM'!E:E,'MMPM1-PMM'!J:J),_xlfn.XLOOKUP(A21,'MMPM1-AMM'!E:E,'MMPM1-AMM'!K:K)) -> CO-ETF1 | V21: =IFERROR(_xlfn.XLOOKUP(A21,'MMPM1-AMM'!E:E,'MMPM1-AMM'!T:T),_xlfn.XLOOKUP(A21,'MMPM1-PMM'!E:E,'MMPM1-PMM'!S:S)) -> 3 | W21: =IFERROR(_xlfn.XLOOKUP(A21,'MMPM1-AMM'!E:E,'MMPM1-AMM'!U:U),_xlfn.XLOOKUP(A21,'MMPM1-PMM'!E:E,'MMPM1-PMM'!T:T)) -> 6 | Y21: TRUE | AB21: =_xlfn.XLOOKUP(A21,productlist[PRODUCT_ID],productlist[PRODUCT_ISIN]) -> IE00B4ND3602 | AC21: =_xlfn.XLOOKUP(A21,productlist[PRODUCT_ID],productlist[UNDERLYING_ISIN]) -> IE00B4ND3602
A22: IPRP | B22: =_xlfn.XLOOKUP(A22,'Product List'!$A:$A,'Product List'!$D:$D) -> iShares European Property Yield Options | C22: =_xlfn.XLOOKUP(A22,'Product List'!$A:$A,'Product List'!$F:$F) -> EXTF-OPTIONS | D22: =_xlfn.XLOOKUP(A22,'MMPM1-AMM'!E:E,'MMPM1-AMM'!K:K,_xlfn.XLOOKUP(A22,'MMPM1-PMM'!E:E,'MMPM1-PMM'!J:J)) -> ETF1 | E22: =_xlfn.XLOOKUP(A22,'MMPM1-AMM'!E:E,'MMPM1-AMM'!Q:Q,_xlfn.XLOOKUP(A22,'MMPM1-PMM'!E:E,'MMPM1-PMM'!P:P)) -> 6 | F22: =SUMIFS(MMPM2!H:H,MMPM2!C:C,U22,MMPM2!E:E,1,MMPM2!G:G,1) -> 1 | G22: =SUMIFS(MMPM2!H:H,MMPM2!C:C,U22,MMPM2!E:E,1,MMPM2!G:G,2) -> 5 | L22: =SUMIFS(MMPM2!I:I,MMPM2!C:C,U22,MMPM2!E:E,1,MMPM2!G:G,1) -> 0.15 | M22: =SUMIFS(MMPM2!I:I,MMPM2!C:C,U22,MMPM2!E:E,1,MMPM2!G:G,2) -> 0.15 | N22: =SUMIFS(MMPM2!I:I,MMPM2!C:C,U22,MMPM2!E:E,1,MMPM2!G:G,3) -> 0.75 | R22: Not applicable | S22: No doubling of mistrade range | U22: =IFERROR(_xlfn.XLOOKUP(A22,'MMPM1-PMM'!E:E,'MMPM1-PMM'!J:J),_xlfn.XLOOKUP(A22,'MMPM1-AMM'!E:E,'MMPM1-AMM'!K:K)) -> ETF1 | V22: =IFERROR(_xlfn.XLOOKUP(A22,'MMPM1-AMM'!E:E,'MMPM1-AMM'!T:T),_xlfn.XLOOKUP(A22,'MMPM1-PMM'!E:E,'MMPM1-PMM'!S:S)) -> 3 | W22: =IFERROR(_xlfn.XLOOKUP(A22,'MMPM1-AMM'!E:E,'MMPM1-AMM'!U:U),_xlfn.XLOOKUP(A22,'MMPM1-PMM'!E:E,'MMPM1-PMM'!T:T)) -> 6 | Y22: TRUE | AB22: =_xlfn.XLOOKUP(A22,productlist[PRODUCT_ID],productlist[PRODUCT_ISIN]) -> IE00B0M63284 | AC22: =_xlfn.XLOOKUP(A22,productlist[PRODUCT_ID],productlist[UNDERLYING_ISIN]) -> IE00B0M63284
A23: IQQY | B23: =_xlfn.XLOOKUP(A23,'Product List'!$A:$A,'Product List'!$D:$D) -> iShares Core MSCI Europe UCITS Options | C23: =_xlfn.XLOOKUP(A23,'Product List'!$A:$A,'Product List'!$F:$F) -> EXTF-OPTIONS | D23: =_xlfn.XLOOKUP(A23,'MMPM1-AMM'!E:E,'MMPM1-AMM'!K:K,_xlfn.XLOOKUP(A23,'MMPM1-PMM'!E:E,'MMPM1-PMM'!J:J)) -> ETF1 | E23: =_xlfn.XLOOKUP(A23,'MMPM1-AMM'!E:E,'MMPM1-AMM'!Q:Q,_xlfn.XLOOKUP(A23,'MMPM1-PMM'!E:E,'MMPM1-PMM'!P:P)) -> 6 | F23: =SUMIFS(MMPM2!H:H,MMPM2!C:C,U23,MMPM2!E:E,1,MMPM2!G:G,1) -> 1 | G23: =SUMIFS(MMPM2!H:H,MMPM2!C:C,U23,MMPM2!E:E,1,MMPM2!G:G,2) -> 5 | L23: =SUMIFS(MMPM2!I:I,MMPM2!C:C,U23,MMPM2!E:E,1,MMPM2!G:G,1) -> 0.15 | M23: =SUMIFS(MMPM2!I:I,MMPM2!C:C,U23,MMPM2!E:E,1,MMPM2!G:G,2) -> 0.15 | N23: =SUMIFS(MMPM2!I:I,MMPM2!C:C,U23,MMPM2!E:E,1,MMPM2!G:G,3) -> 0.75 | R23: Not applicable | S23: No doubling of mistrade range | U23: =IFERROR(_xlfn.XLOOKUP(A23,'MMPM1-PMM'!E:E,'MMPM1-PMM'!J:J),_xlfn.XLOOKUP(A23,'MMPM1-AMM'!E:E,'MMPM1-AMM'!K:K)) -> ETF1 | V23: =IFERROR(_xlfn.XLOOKUP(A23,'MMPM1-AMM'!E:E,'MMPM1-AMM'!T:T),_xlfn.XLOOKUP(A23,'MMPM1-PMM'!E:E,'MMPM1-PMM'!S:S)) -> 3 | W23: =IFERROR(_xlfn.XLOOKUP(A23,'MMPM1-AMM'!E:E,'MMPM1-AMM'!U:U),_xlfn.XLOOKUP(A23,'MMPM1-PMM'!E:E,'MMPM1-PMM'!T:T)) -> 6 | Y23: TRUE | AB23: =_xlfn.XLOOKUP(A23,productlist[PRODUCT_ID],productlist[PRODUCT_ISIN]) -> IE00B1YZSC51 | AC23: =_xlfn.XLOOKUP(A23,productlist[PRODUCT_ID],productlist[UNDERLYING_ISIN]) -> IE00B1YZSC51
A24: ISF | B24: =_xlfn.XLOOKUP(A24,'Product List'!$A:$A,'Product List'!$D:$D) -> iShares Core FTSE 100 UCITS Options | C24: =_xlfn.XLOOKUP(A24,'Product List'!$A:$A,'Product List'!$F:$F) -> EXTF-OPTIONS | D24: =_xlfn.XLOOKUP(A24,'MMPM1-AMM'!E:E,'MMPM1-AMM'!K:K,_xlfn.XLOOKUP(A24,'MMPM1-PMM'!E:E,'MMPM1-PMM'!J:J)) -> ETF4 | E24: =_xlfn.XLOOKUP(A24,'MMPM1-AMM'!E:E,'MMPM1-AMM'!Q:Q,_xlfn.XLOOKUP(A24,'MMPM1-PMM'!E:E,'MMPM1-PMM'!P:P)) -> 6 | F24: =SUMIFS(MMPM2!H:H,MMPM2!C:C,U24,MMPM2!E:E,1,MMPM2!G:G,1) -> 40 | G24: =SUMIFS(MMPM2!H:H,MMPM2!C:C,U24,MMPM2!E:E,1,MMPM2!G:G,2) -> 200 | L24: =SUMIFS(MMPM2!I:I,MMPM2!C:C,U24,MMPM2!E:E,1,MMPM2!G:G,1) -> 8 | M24: =SUMIFS(MMPM2!I:I,MMPM2!C:C,U24,MMPM2!E:E,1,MMPM2!G:G,2) -> 0.2 | N24: =SUMIFS(MMPM2!I:I,MMPM2!C:C,U24,MMPM2!E:E,1,MMPM2!G:G,3) -> 40 | R24: Not applicable | S24: No doubling of mistrade range | U24: =IFERROR(_xlfn.XLOOKUP(A24,'MMPM1-PMM'!E:E,'MMPM1-PMM'!J:J),_xlfn.XLOOKUP(A24,'MMPM1-AMM'!E:E,'MMPM1-AMM'!K:K)) -> ETF4 | V24: =IFERROR(_xlfn.XLOOKUP(A24,'MMPM1-AMM'!E:E,'MMPM1-AMM'!T:T),_xlfn.XLOOKUP(A24,'MMPM1-PMM'!E:E,'MMPM1-PMM'!S:S)) -> 3 | W24: =IFERROR(_xlfn.XLOOKUP(A24,'MMPM1-AMM'!E:E,'MMPM1-AMM'!U:U),_xlfn.XLOOKUP(A24,'MMPM1-PMM'!E:E,'MMPM1-PMM'!T:T)) -> 6 | Y24: TRUE | AB24: =_xlfn.XLOOKUP(A24,productlist[PRODUCT_ID],productlist[PRODUCT_ISIN]) -> IE0005042456 | AC24: =_xlfn.XLOOKUP(A24,productlist[PRODUCT_ID],productlist[UNDERLYING_ISIN]) -> IE0005042456
A25: ISLN | B25: =_xlfn.XLOOKUP(A25,'Product List'!$A:$A,'Product List'!$D:$D) -> iShares Physical Silver Options | C25: =_xlfn.XLOOKUP(A25,'Product List'!$A:$A,'Product List'!$F:$F) -> OPTIONS ON EXCHANGE-TRADED COMMODITIES SECURITIES | D25: =_xlfn.XLOOKUP(A25,'MMPM1-AMM'!E:E,'MMPM1-AMM'!K:K,_xlfn.XLOOKUP(A25,'MMPM1-PMM'!E:E,'MMPM1-PMM'!J:J)) -> CO-ETF1 | E25: =_xlfn.XLOOKUP(A25,'MMPM1-AMM'!E:E,'MMPM1-AMM'!Q:Q,_xlfn.XLOOKUP(A25,'MMPM1-PMM'!E:E,'MMPM1-PMM'!P:P)) -> 6 | F25: =SUMIFS(MMPM2!H:H,MMPM2!C:C,U25,MMPM2!E:E,1,MMPM2!G:G,1) -> 2 | G25: =SUMIFS(MMPM2!H:H,MMPM2!C:C,U25,MMPM2!E:E,1,MMPM2!G:G,2) -> 20 | L25: =SUMIFS(MMPM2!I:I,MMPM2!C:C,U25,MMPM2!E:E,1,MMPM2!G:G,1) -> 0.2 | M25: =SUMIFS(MMPM2!I:I,MMPM2!C:C,U25,MMPM2!E:E,1,MMPM2!G:G,2) -> 0.1 | N25: =SUMIFS(MMPM2!I:I,MMPM2!C:C,U25,MMPM2!E:E,1,MMPM2!G:G,3) -> 2 | R25: Not applicable | S25: No doubling of mistrade range | U25: =IFERROR(_xlfn.XLOOKUP(A25,'MMPM1-PMM'!E:E,'MMPM1-PMM'!J:J),_xlfn.XLOOKUP(A25,'MMPM1-AMM'!E:E,'MMPM1-AMM'!K:K)) -> CO-ETF1 | V25: =IFERROR(_xlfn.XLOOKUP(A25,'MMPM1-AMM'!E:E,'MMPM1-AMM'!T:T),_xlfn.XLOOKUP(A25,'MMPM1-PMM'!E:E,'MMPM1-PMM'!S:S)) -> 3 | W25: =IFERROR(_xlfn.XLOOKUP(A25,'MMPM1-AMM'!E:E,'MMPM1-AMM'!U:U),_xlfn.XLOOKUP(A25,'MMPM1-PMM'!E:E,'MMPM1-PMM'!T:T)) -> 6 | Y25: TRUE | AB25: =_xlfn.XLOOKUP(A25,productlist[PRODUCT_ID],productlist[PRODUCT_ISIN]) -> IE00B4NCWG09 | AC25: =_xlfn.XLOOKUP(A25,productlist[PRODUCT_ID],productlist[UNDERLYING_ISIN]) -> IE00B4NCWG09
A26: IUES | B26: =_xlfn.XLOOKUP(A26,'Product List'!$A:$A,'Product List'!$D:$D) -> iShares S&P 500 Energy Options | C26: =_xlfn.XLOOKUP(A26,'Product List'!$A:$A,'Product List'!$F:$F) -> EXTF-OPTIONS | D26: =_xlfn.XLOOKUP(A26,'MMPM1-AMM'!E:E,'MMPM1-AMM'!K:K,_xlfn.XLOOKUP(A26,'MMPM1-PMM'!E:E,'MMPM1-PMM'!J:J)) -> ETF6 | E26: =_xlfn.XLOOKUP(A26,'MMPM1-AMM'!E:E,'MMPM1-AMM'!Q:Q,_xlfn.XLOOKUP(A26,'MMPM1-PMM'!E:E,'MMPM1-PMM'!P:P)) -> 6 | F26: =SUMIFS(MMPM2!H:H,MMPM2!C:C,U26,MMPM2!E:E,1,MMPM2!G:G,1) -> 1 | G26: =SUMIFS(MMPM2!H:H,MMPM2!C:C,U26,MMPM2!E:E,1,MMPM2!G:G,2) -> 5 | L26: =SUMIFS(MMPM2!I:I,MMPM2!C:C,U26,MMPM2!E:E,1,MMPM2!G:G,1) -> 0.2 | M26: =SUMIFS(MMPM2!I:I,MMPM2!C:C,U26,MMPM2!E:E,1,MMPM2!G:G,2) -> 0.2 | N26: =SUMIFS(MMPM2!I:I,MMPM2!C:C,U26,MMPM2!E:E,1,MMPM2!G:G,3) -> 1 | R26: Not applicable | S26: No doubling of mistrade range | U26: =IFERROR(_xlfn.XLOOKUP(A26,'MMPM1-PMM'!E:E,'MMPM1-PMM'!J:J),_xlfn.XLOOKUP(A26,'MMPM1-AMM'!E:E,'MMPM1-AMM'!K:K)) -> ETF6 | V26: =IFERROR(_xlfn.XLOOKUP(A26,'MMPM1-AMM'!E:E,'MMPM1-AMM'!T:T),_xlfn.XLOOKUP(A26,'MMPM1-PMM'!E:E,'MMPM1-PMM'!S:S)) -> 3 | W26: =IFERROR(_xlfn.XLOOKUP(A26,'MMPM1-AMM'!E:E,'MMPM1-AMM'!U:U),_xlfn.XLOOKUP(A26,'MMPM1-PMM'!E:E,'MMPM1-PMM'!T:T)) -> 6 | Y26: TRUE | AB26: =_xlfn.XLOOKUP(A26,productlist[PRODUCT_ID],productlist[PRODUCT_ISIN]) -> IE00B42NKQ00 | AC26: =_xlfn.XLOOKUP(A26,productlist[PRODUCT_ID],productlist[UNDERLYING_ISIN]) -> IE00B42NKQ00
A27: IUFS | B27: =_xlfn.XLOOKUP(A27,'Product List'!$A:$A,'Product List'!$D:$D) -> iShares S&P 500 Financials Options | C27: =_xlfn.XLOOKUP(A27,'Product List'!$A:$A,'Product List'!$F:$F) -> EXTF-OPTIONS | D27: =_xlfn.XLOOKUP(A27,'MMPM1-AMM'!E:E,'MMPM1-AMM'!K:K,_xlfn.XLOOKUP(A27,'MMPM1-PMM'!E:E,'MMPM1-PMM'!J:J)) -> ETF6 | E27: =_xlfn.XLOOKUP(A27,'MMPM1-AMM'!E:E,'MMPM1-AMM'!Q:Q,_xlfn.XLOOKUP(A27,'MMPM1-PMM'!E:E,'MMPM1-PMM'!P:P)) -> 6 | F27: =SUMIFS(MMPM2!H:H,MMPM2!C:C,U27,MMPM2!E:E,1,MMPM2!G:G,1) -> 1 | G27: =SUMIFS(MMPM2!H:H,MMPM2!C:C,U27,MMPM2!E:E,1,MMPM2!G:G,2) -> 5 | L27: =SUMIFS(MMPM2!I:I,MMPM2!C:C,U27,MMPM2!E:E,1,MMPM2!G:G,1) -> 0.2 | M27: =SUMIFS(MMPM2!I:I,MMPM2!C:C,U27,MMPM2!E:E,1,MMPM2!G:G,2) -> 0.2 | N27: =SUMIFS(MMPM2!I:I,MMPM2!C:C,U27,MMPM2!E:E,1,MMPM2!G:G,3) -> 1 | R27: Not applicable | S27: No doubling of mistrade range | U27: =IFERROR(_xlfn.XLOOKUP(A27,'MMPM1-PMM'!E:E,'MMPM1-PMM'!J:J),_xlfn.XLOOKUP(A27,'MMPM1-AMM'!E:E,'MMPM1-AMM'!K:K)) -> ETF6 | V27: =IFERROR(_xlfn.XLOOKUP(A27,'MMPM1-AMM'!E:E,'MMPM1-AMM'!T:T),_xlfn.XLOOKUP(A27,'MMPM1-PMM'!E:E,'MMPM1-PMM'!S:S)) -> 3 | W27: =IFERROR(_xlfn.XLOOKUP(A27,'MMPM1-AMM'!E:E,'MMPM1-AMM'!U:U),_xlfn.XLOOKUP(A27,'MMPM1-PMM'!E:E,'MMPM1-PMM'!T:T)) -> 6 | Y27: TRUE | AB27: =_xlfn.XLOOKUP(A27,productlist[PRODUCT_ID],productlist[PRODUCT_ISIN]) -> IE00B4JNQZ49 | AC27: =_xlfn.XLOOKUP(A27,productlist[PRODUCT_ID],productlist[UNDERLYING_ISIN]) -> IE00B4JNQZ49
A28: IUHC | B28: =_xlfn.XLOOKUP(A28,'Product List'!$A:$A,'Product List'!$D:$D) -> iShares S&P 500 Health Care Options | C28: =_xlfn.XLOOKUP(A28,'Product List'!$A:$A,'Product List'!$F:$F) -> EXTF-OPTIONS | D28: =_xlfn.XLOOKUP(A28,'MMPM1-AMM'!E:E,'MMPM1-AMM'!K:K,_xlfn.XLOOKUP(A28,'MMPM1-PMM'!E:E,'MMPM1-PMM'!J:J)) -> ETF5 | E28: =_xlfn.XLOOKUP(A28,'MMPM1-AMM'!E:E,'MMPM1-AMM'!Q:Q,_xlfn.XLOOKUP(A28,'MMPM1-PMM'!E:E,'MMPM1-PMM'!P:P)) -> 6 | F28: =SUMIFS(MMPM2!H:H,MMPM2!C:C,U28,MMPM2!E:E,1,MMPM2!G:G,1) -> 1 | G28: =SUMIFS(MMPM2!H:H,MMPM2!C:C,U28,MMPM2!E:E,1,MMPM2!G:G,2) -> 5 | L28: =SUMIFS(MMPM2!I:I,MMPM2!C:C,U28,MMPM2!E:E,1,MMPM2!G:G,1) -> 0.25 | M28: =SUMIFS(MMPM2!I:I,MMPM2!C:C,U28,MMPM2!E:E,1,MMPM2!G:G,2) -> 0.25 | N28: =SUMIFS(MMPM2!I:I,MMPM2!C:C,U28,MMPM2!E:E,1,MMPM2!G:G,3) -> 1.25 | R28: Not applicable | S28: No doubling of mistrade range | U28: =IFERROR(_xlfn.XLOOKUP(A28,'MMPM1-PMM'!E:E,'MMPM1-PMM'!J:J),_xlfn.XLOOKUP(A28,'MMPM1-AMM'!E:E,'MMPM1-AMM'!K:K)) -> ETF5 | V28: =IFERROR(_xlfn.XLOOKUP(A28,'MMPM1-AMM'!E:E,'MMPM1-AMM'!T:T),_xlfn.XLOOKUP(A28,'MMPM1-PMM'!E:E,'MMPM1-PMM'!S:S)) -> 3 | W28: =IFERROR(_xlfn.XLOOKUP(A28,'MMPM1-AMM'!E:E,'MMPM1-AMM'!U:U),_xlfn.XLOOKUP(A28,'MMPM1-PMM'!E:E,'MMPM1-PMM'!T:T)) -> 6 | Y28: TRUE | AB28: =_xlfn.XLOOKUP(A28,productlist[PRODUCT_ID],productlist[PRODUCT_ISIN]) -> IE00B43HR379 | AC28: =_xlfn.XLOOKUP(A28,productlist[PRODUCT_ID],productlist[UNDERLYING_ISIN]) -> IE00B43HR379
A29: IUIT | B29: =_xlfn.XLOOKUP(A29,'Product List'!$A:$A,'Product List'!$D:$D) -> iShares S&P 500 IT Options | C29: =_xlfn.XLOOKUP(A29,'Product List'!$A:$A,'Product List'!$F:$F) -> EXTF-OPTIONS | D29: =_xlfn.XLOOKUP(A29,'MMPM1-AMM'!E:E,'MMPM1-AMM'!K:K,_xlfn.XLOOKUP(A29,'MMPM1-PMM'!E:E,'MMPM1-PMM'!J:J)) -> ETF6 | E29: =_xlfn.XLOOKUP(A29,'MMPM1-AMM'!E:E,'MMPM1-AMM'!Q:Q,_xlfn.XLOOKUP(A29,'MMPM1-PMM'!E:E,'MMPM1-PMM'!P:P)) -> 6 | F29: =SUMIFS(MMPM2!H:H,MMPM2!C:C,U29,MMPM2!E:E,1,MMPM2!G:G,1) -> 1 | G29: =SUMIFS(MMPM2!H:H,MMPM2!C:C,U29,MMPM2!E:E,1,MMPM2!G:G,2) -> 5 | L29: =SUMIFS(MMPM2!I:I,MMPM2!C:C,U29,MMPM2!E:E,1,MMPM2!G:G,1) -> 0.2 | M29: =SUMIFS(MMPM2!I:I,MMPM2!C:C,U29,MMPM2!E:E,1,MMPM2!G:G,2) -> 0.2 | N29: =SUMIFS(MMPM2!I:I,MMPM2!C:C,U29,MMPM2!E:E,1,MMPM2!G:G,3) -> 1 | R29: Not applicable | S29: No doubling of mistrade range | U29: =IFERROR(_xlfn.XLOOKUP(A29,'MMPM1-PMM'!E:E,'MMPM1-PMM'!J:J),_xlfn.XLOOKUP(A29,'MMPM1-AMM'!E:E,'MMPM1-AMM'!K:K)) -> ETF6 | V29: =IFERROR(_xlfn.XLOOKUP(A29,'MMPM1-AMM'!E:E,'MMPM1-AMM'!T:T),_xlfn.XLOOKUP(A29,'MMPM1-PMM'!E:E,'MMPM1-PMM'!S:S)) -> 3 | W29: =IFERROR(_xlfn.XLOOKUP(A29,'MMPM1-AMM'!E:E,'MMPM1-AMM'!U:U),_xlfn.XLOOKUP(A29,'MMPM1-PMM'!E:E,'MMPM1-PMM'!T:T)) -> 6 | Y29: TRUE | AB29: =_xlfn.XLOOKUP(A29,productlist[PRODUCT_ID],productlist[PRODUCT_ISIN]) -> IE00B3WJKG14 | AC29: =_xlfn.XLOOKUP(A29,productlist[PRODUCT_ID],productlist[UNDERLYING_ISIN]) -> IE00B3WJKG14
A30: IUUS | B30: =_xlfn.XLOOKUP(A30,'Product List'!$A:$A,'Product List'!$D:$D) -> iShares S&P 500 Utilities Options | C30: =_xlfn.XLOOKUP(A30,'Product List'!$A:$A,'Product List'!$F:$F) -> EXTF-OPTIONS | D30: =_xlfn.XLOOKUP(A30,'MMPM1-AMM'!E:E,'MMPM1-AMM'!K:K,_xlfn.XLOOKUP(A30,'MMPM1-PMM'!E:E,'MMPM1-PMM'!J:J)) -> ETF6 | E30: =_xlfn.XLOOKUP(A30,'MMPM1-AMM'!E:E,'MMPM1-AMM'!Q:Q,_xlfn.XLOOKUP(A30,'MMPM1-PMM'!E:E,'MMPM1-PMM'!P:P)) -> 6 | F30: =SUMIFS(MMPM2!H:H,MMPM2!C:C,U30,MMPM2!E:E,1,MMPM2!G:G,1) -> 1 | G30: =SUMIFS(MMPM2!H:H,MMPM2!C:C,U30,MMPM2!E:E,1,MMPM2!G:G,2) -> 5 | L30: =SUMIFS(MMPM2!I:I,MMPM2!C:C,U30,MMPM2!E:E,1,MMPM2!G:G,1) -> 0.2 | M30: =SUMIFS(MMPM2!I:I,MMPM2!C:C,U30,MMPM2!E:E,1,MMPM2!G:G,2) -> 0.2 | N30: =SUMIFS(MMPM2!I:I,MMPM2!C:C,U30,MMPM2!E:E,1,MMPM2!G:G,3) -> 1 | R30: Not applicable | S30: No doubling of mistrade range | U30: =IFERROR(_xlfn.XLOOKUP(A30,'MMPM1-PMM'!E:E,'MMPM1-PMM'!J:J),_xlfn.XLOOKUP(A30,'MMPM1-AMM'!E:E,'MMPM1-AMM'!K:K)) -> ETF6 | V30: =IFERROR(_xlfn.XLOOKUP(A30,'MMPM1-AMM'!E:E,'MMPM1-AMM'!T:T),_xlfn.XLOOKUP(A30,'MMPM1-PMM'!E:E,'MMPM1-PMM'!S:S)) -> 3 | W30: =IFERROR(_xlfn.XLOOKUP(A30,'MMPM1-AMM'!E:E,'MMPM1-AMM'!U:U),_xlfn.XLOOKUP(A30,'MMPM1-PMM'!E:E,'MMPM1-PMM'!T:T)) -> 6 | Y30: TRUE | AB30: =_xlfn.XLOOKUP(A30,productlist[PRODUCT_ID],productlist[PRODUCT_ISIN]) -> IE00B4KBBD01 | AC30: =_xlfn.XLOOKUP(A30,productlist[PRODUCT_ID],productlist[UNDERLYING_ISIN]) -> IE00B4KBBD01
A31: IWDA | B31: =_xlfn.XLOOKUP(A31,'Product List'!$A:$A,'Product List'!$D:$D) -> iShares Core MSCI World UCITS Options | C31: =_xlfn.XLOOKUP(A31,'Product List'!$A:$A,'Product List'!$F:$F) -> EXTF-OPTIONS | D31: =_xlfn.XLOOKUP(A31,'MMPM1-AMM'!E:E,'MMPM1-AMM'!K:K,_xlfn.XLOOKUP(A31,'MMPM1-PMM'!E:E,'MMPM1-PMM'!J:J)) -> ETF1 | E31: =_xlfn.XLOOKUP(A31,'MMPM1-AMM'!E:E,'MMPM1-AMM'!Q:Q,_xlfn.XLOOKUP(A31,'MMPM1-PMM'!E:E,'MMPM1-PMM'!P:P)) -> 6 | F31: =SUMIFS(MMPM2!H:H,MMPM2!C:C,U31,MMPM2!E:E,1,MMPM2!G:G,1) -> 1 | G31: =SUMIFS(MMPM2!H:H,MMPM2!C:C,U31,MMPM2!E:E,1,MMPM2!G:G,2) -> 5 | L31: =SUMIFS(MMPM2!I:I,MMPM2!C:C,U31,MMPM2!E:E,1,MMPM2!G:G,1) -> 0.15 | M31: =SUMIFS(MMPM2!I:I,MMPM2!C:C,U31,MMPM2!E:E,1,MMPM2!G:G,2) -> 0.15 | N31: =SUMIFS(MMPM2!I:I,MMPM2!C:C,U31,MMPM2!E:E,1,MMPM2!G:G,3) -> 0.75 | R31: Not applicable | S31: No doubling of mistrade range | U31: =IFERROR(_xlfn.XLOOKUP(A31,'MMPM1-PMM'!E:E,'MMPM1-PMM'!J:J),_xlfn.XLOOKUP(A31,'MMPM1-AMM'!E:E,'MMPM1-AMM'!K:K)) -> ETF1 | V31: =IFERROR(_xlfn.XLOOKUP(A31,'MMPM1-AMM'!E:E,'MMPM1-AMM'!T:T),_xlfn.XLOOKUP(A31,'MMPM1-PMM'!E:E,'MMPM1-PMM'!S:S)) -> 3 | W31: =IFERROR(_xlfn.XLOOKUP(A31,'MMPM1-AMM'!E:E,'MMPM1-AMM'!U:U),_xlfn.XLOOKUP(A31,'MMPM1-PMM'!E:E,'MMPM1-PMM'!T:T)) -> 6 | Y31: TRUE | AB31: =_xlfn.XLOOKUP(A31,productlist[PRODUCT_ID],productlist[PRODUCT_ISIN]) -> IE00B4L5Y983 | AC31: =_xlfn.XLOOKUP(A31,productlist[PRODUCT_ID],productlist[UNDERLYING_ISIN]) -> IE00B4L5Y983
A32: MIDD | B32: =_xlfn.XLOOKUP(A32,'Product List'!$A:$A,'Product List'!$D:$D) -> iShares FTSE 250 Options | C32: =_xlfn.XLOOKUP(A32,'Product List'!$A:$A,'Product List'!$F:$F) -> EXTF-OPTIONS | D32: =_xlfn.XLOOKUP(A32,'MMPM1-AMM'!E:E,'MMPM1-AMM'!K:K,_xlfn.XLOOKUP(A32,'MMPM1-PMM'!E:E,'MMPM1-PMM'!J:J)) -> ETF7 | E32: =_xlfn.XLOOKUP(A32,'MMPM1-AMM'!E:E,'MMPM1-AMM'!Q:Q,_xlfn.XLOOKUP(A32,'MMPM1-PMM'!E:E,'MMPM1-PMM'!P:P)) -> 6 | F32: =SUMIFS(MMPM2!H:H,MMPM2!C:C,U32,MMPM2!E:E,1,MMPM2!G:G,1) -> 40 | G32: =SUMIFS(MMPM2!H:H,MMPM2!C:C,U32,MMPM2!E:E,1,MMPM2!G:G,2) -> 200 | L32: =SUMIFS(MMPM2!I:I,MMPM2!C:C,U32,MMPM2!E:E,1,MMPM2!G:G,1) -> 10 | M32: =SUMIFS(MMPM2!I:I,MMPM2!C:C,U32,MMPM2!E:E,1,MMPM2!G:G,2) -> 0.25 | N32: =SUMIFS(MMPM2!I:I,MMPM2!C:C,U32,MMPM2!E:E,1,MMPM2!G:G,3) -> 50 | R32: Not applicable | S32: No doubling of mistrade range | U32: =IFERROR(_xlfn.XLOOKUP(A32,'MMPM1-PMM'!E:E,'MMPM1-PMM'!J:J),_xlfn.XLOOKUP(A32,'MMPM1-AMM'!E:E,'MMPM1-AMM'!K:K)) -> ETF7 | V32: =IFERROR(_xlfn.XLOOKUP(A32,'MMPM1-AMM'!E:E,'MMPM1-AMM'!T:T),_xlfn.XLOOKUP(A32,'MMPM1-PMM'!E:E,'MMPM1-PMM'!S:S)) -> 3 | W32: =IFERROR(_xlfn.XLOOKUP(A32,'MMPM1-AMM'!E:E,'MMPM1-AMM'!U:U),_xlfn.XLOOKUP(A32,'MMPM1-PMM'!E:E,'MMPM1-PMM'!T:T)) -> 6 | Y32: TRUE | AB32: =_xlfn.XLOOKUP(A32,productlist[PRODUCT_ID],productlist[PRODUCT_ISIN]) -> IE00B00FV128 | AC32: =_xlfn.XLOOKUP(A32,productlist[PRODUCT_ID],productlist[UNDERLYING_ISIN]) -> IE00B00FV128
A33: OATX | B33: =_xlfn.XLOOKUP(A33,'Product List'!$A:$A,'Product List'!$D:$D) -> ATX® Options | C33: =_xlfn.XLOOKUP(A33,'Product List'!$A:$A,'Product List'!$F:$F) -> INDEX OPTIONS | D33: =_xlfn.XLOOKUP(A33,'MMPM1-AMM'!E:E,'MMPM1-AMM'!K:K,_xlfn.XLOOKUP(A33,'MMPM1-PMM'!E:E,'MMPM1-PMM'!J:J)) -> OATX | E33: =_xlfn.XLOOKUP(A33,'MMPM1-AMM'!E:E,'MMPM1-AMM'!Q:Q,_xlfn.XLOOKUP(A33,'MMPM1-PMM'!E:E,'MMPM1-PMM'!P:P)) -> 6 | F33: =SUMIFS(MMPM2!H:H,MMPM2!C:C,U33,MMPM2!E:E,1,MMPM2!G:G,1) -> 40 | G33: =SUMIFS(MMPM2!H:H,MMPM2!C:C,U33,MMPM2!E:E,1,MMPM2!G:G,2) -> 400 | L33: =SUMIFS(MMPM2!I:I,MMPM2!C:C,U33,MMPM2!E:E,1,MMPM2!G:G,1) -> 12 | M33: =SUMIFS(MMPM2!I:I,MMPM2!C:C,U33,MMPM2!E:E,1,MMPM2!G:G,2) -> 0.3 | N33: =SUMIFS(MMPM2!I:I,MMPM2!C:C,U33,MMPM2!E:E,1,MMPM2!G:G,3) -> 120 | R33: Not applicable | S33: No doubling of mistrade range | U33: =IFERROR(_xlfn.XLOOKUP(A33,'MMPM1-PMM'!E:E,'MMPM1-PMM'!J:J),_xlfn.XLOOKUP(A33,'MMPM1-AMM'!E:E,'MMPM1-AMM'!K:K)) -> OATX | V33: =IFERROR(_xlfn.XLOOKUP(A33,'MMPM1-AMM'!E:E,'MMPM1-AMM'!T:T),_xlfn.XLOOKUP(A33,'MMPM1-PMM'!E:E,'MMPM1-PMM'!S:S)) -> 3 | W33: =IFERROR(_xlfn.XLOOKUP(A33,'MMPM1-AMM'!E:E,'MMPM1-AMM'!U:U),_xlfn.XLOOKUP(A33,'MMPM1-PMM'!E:E,'MMPM1-PMM'!T:T)) -> 6 | Y33: TRUE | AB33: =_xlfn.XLOOKUP(A33,productlist[PRODUCT_ID],productlist[PRODUCT_ISIN]) -> DE000A1YD5P8 | AC33: =_xlfn.XLOOKUP(A33,productlist[PRODUCT_ID],productlist[UNDERLYING_ISIN]) -> AT0000999982
A34: OCCO | B34: =_xlfn.XLOOKUP(A34,'Product List'!$A:$A,'Product List'!$D:$D) -> Bloomberg Commodity Options | C34: =_xlfn.XLOOKUP(A34,'Product List'!$A:$A,'Product List'!$F:$F) -> COMMODITY INDEX OPTIONS | D34: =_xlfn.XLOOKUP(A34,'MMPM1-AMM'!E:E,'MMPM1-AMM'!K:K,_xlfn.XLOOKUP(A34,'MMPM1-PMM'!E:E,'MMPM1-PMM'!J:J)) -> OCCO | E34: =_xlfn.XLOOKUP(A34,'MMPM1-AMM'!E:E,'MMPM1-AMM'!Q:Q,_xlfn.XLOOKUP(A34,'MMPM1-PMM'!E:E,'MMPM1-PMM'!P:P)) -> 4 | F34: =SUMIFS(MMPM2!H:H,MMPM2!C:C,U34,MMPM2!E:E,1,MMPM2!G:G,1) -> 5.3 | G34: =SUMIFS(MMPM2!H:H,MMPM2!C:C,U34,MMPM2!E:E,1,MMPM2!G:G,2) -> 53.3 | L34: =SUMIFS(MMPM2!I:I,MMPM2!C:C,U34,MMPM2!E:E,1,MMPM2!G:G,1) -> 0.8 | M34: =SUMIFS(MMPM2!I:I,MMPM2!C:C,U34,MMPM2!E:E,1,MMPM2!G:G,2) -> 0.15 | N34: =SUMIFS(MMPM2!I:I,MMPM2!C:C,U34,MMPM2!E:E,1,MMPM2!G:G,3) -> 8 | R34: Not applicable | S34: No doubling of mistrade range | U34: =IFERROR(_xlfn.XLOOKUP(A34,'MMPM1-PMM'!E:E,'MMPM1-PMM'!J:J),_xlfn.XLOOKUP(A34,'MMPM1-AMM'!E:E,'MMPM1-AMM'!K:K)) -> OCCO | V34: =IFERROR(_xlfn.XLOOKUP(A34,'MMPM1-AMM'!E:E,'MMPM1-AMM'!T:T),_xlfn.XLOOKUP(A34,'MMPM1-PMM'!E:E,'MMPM1-PMM'!S:S)) -> 3 | W34: =IFERROR(_xlfn.XLOOKUP(A34,'MMPM1-AMM'!E:E,'MMPM1-AMM'!U:U),_xlfn.XLOOKUP(A34,'MMPM1-PMM'!E:E,'MMPM1-PMM'!T:T)) -> 4 | Y34: TRUE | AB34: =_xlfn.XLOOKUP(A34,productlist[PRODUCT_ID],productlist[PRODUCT_ISIN]) -> DE000A0YK546 | AC34: =_xlfn.XLOOKUP(A34,productlist[PRODUCT_ID],productlist[UNDERLYING_ISIN]) -> 
A35: OCEE | B35: =_xlfn.XLOOKUP(A35,'Product List'!$A:$A,'Product List'!$D:$D) -> CECE® EUR Index Options | C35: =_xlfn.XLOOKUP(A35,'Product List'!$A:$A,'Product List'!$F:$F) -> INDEX OPTIONS | D35: =_xlfn.XLOOKUP(A35,'MMPM1-AMM'!E:E,'MMPM1-AMM'!K:K,_xlfn.XLOOKUP(A35,'MMPM1-PMM'!E:E,'MMPM1-PMM'!J:J)) -> OCEE | E35: =_xlfn.XLOOKUP(A35,'MMPM1-AMM'!E:E,'MMPM1-AMM'!Q:Q,_xlfn.XLOOKUP(A35,'MMPM1-PMM'!E:E,'MMPM1-PMM'!P:P)) -> 6 | F35: =SUMIFS(MMPM2!H:H,MMPM2!C:C,U35,MMPM2!E:E,1,MMPM2!G:G,1) -> 40 | G35: =SUMIFS(MMPM2!H:H,MMPM2!C:C,U35,MMPM2!E:E,1,MMPM2!G:G,2) -> 400 | L35: =SUMIFS(MMPM2!I:I,MMPM2!C:C,U35,MMPM2!E:E,1,MMPM2!G:G,1) -> 12 | M35: =SUMIFS(MMPM2!I:I,MMPM2!C:C,U35,MMPM2!E:E,1,MMPM2!G:G,2) -> 0.3 | N35: =SUMIFS(MMPM2!I:I,MMPM2!C:C,U35,MMPM2!E:E,1,MMPM2!G:G,3) -> 120 | R35: Not applicable | S35: No doubling of mistrade range | U35: =IFERROR(_xlfn.XLOOKUP(A35,'MMPM1-PMM'!E:E,'MMPM1-PMM'!J:J),_xlfn.XLOOKUP(A35,'MMPM1-AMM'!E:E,'MMPM1-AMM'!K:K)) -> OCEE | V35: =IFERROR(_xlfn.XLOOKUP(A35,'MMPM1-AMM'!E:E,'MMPM1-AMM'!T:T),_xlfn.XLOOKUP(A35,'MMPM1-PMM'!E:E,'MMPM1-PMM'!S:S)) -> 3 | W35: =IFERROR(_xlfn.XLOOKUP(A35,'MMPM1-AMM'!E:E,'MMPM1-AMM'!U:U),_xlfn.XLOOKUP(A35,'MMPM1-PMM'!E:E,'MMPM1-PMM'!T:T)) -> 6 | Y35: TRUE | AB35: =_xlfn.XLOOKUP(A35,productlist[PRODUCT_ID],productlist[PRODUCT_ISIN]) -> DE000A1YD5R4 | AC35: =_xlfn.XLOOKUP(A35,productlist[PRODUCT_ID],productlist[UNDERLYING_ISIN]) -> AT0000726476
A36: OCRU | B36: =_xlfn.XLOOKUP(A36,'Product List'!$A:$A,'Product List'!$D:$D) -> WisdomTree WTI Crude Oil Options | C36: =_xlfn.XLOOKUP(A36,'Product List'!$A:$A,'Product List'!$F:$F) -> OPTIONS ON EXCHANGE-TRADED COMMODITIES SECURITIES | D36: =_xlfn.XLOOKUP(A36,'MMPM1-AMM'!E:E,'MMPM1-AMM'!K:K,_xlfn.XLOOKUP(A36,'MMPM1-PMM'!E:E,'MMPM1-PMM'!J:J)) -> CO-ETF1 | E36: =_xlfn.XLOOKUP(A36,'MMPM1-AMM'!E:E,'MMPM1-AMM'!Q:Q,_xlfn.XLOOKUP(A36,'MMPM1-PMM'!E:E,'MMPM1-PMM'!P:P)) -> 6 | F36: =SUMIFS(MMPM2!H:H,MMPM2!C:C,U36,MMPM2!E:E,1,MMPM2!G:G,1) -> 2 | G36: =SUMIFS(MMPM2!H:H,MMPM2!C:C,U36,MMPM2!E:E,1,MMPM2!G:G,2) -> 20 | L36: =SUMIFS(MMPM2!I:I,MMPM2!C:C,U36,MMPM2!E:E,1,MMPM2!G:G,1) -> 0.2 | M36: =SUMIFS(MMPM2!I:I,MMPM2!C:C,U36,MMPM2!E:E,1,MMPM2!G:G,2) -> 0.1 | N36: =SUMIFS(MMPM2!I:I,MMPM2!C:C,U36,MMPM2!E:E,1,MMPM2!G:G,3) -> 2 | R36: Not applicable | S36: No doubling of mistrade range | U36: =IFERROR(_xlfn.XLOOKUP(A36,'MMPM1-PMM'!E:E,'MMPM1-PMM'!J:J),_xlfn.XLOOKUP(A36,'MMPM1-AMM'!E:E,'MMPM1-AMM'!K:K)) -> CO-ETF1 | V36: =IFERROR(_xlfn.XLOOKUP(A36,'MMPM1-AMM'!E:E,'MMPM1-AMM'!T:T),_xlfn.XLOOKUP(A36,'MMPM1-PMM'!E:E,'MMPM1-PMM'!S:S)) -> 3 | W36: =IFERROR(_xlfn.XLOOKUP(A36,'MMPM1-AMM'!E:E,'MMPM1-AMM'!U:U),_xlfn.XLOOKUP(A36,'MMPM1-PMM'!E:E,'MMPM1-PMM'!T:T)) -> 6 | Y36: TRUE | AB36: =_xlfn.XLOOKUP(A36,productlist[PRODUCT_ID],productlist[PRODUCT_ISIN]) -> DE000A1KQSK2 | AC36: =_xlfn.XLOOKUP(A36,productlist[PRODUCT_ID],productlist[UNDERLYING_ISIN]) -> GB00B15KXV33
A37: ODAX | B37: =_xlfn.XLOOKUP(A37,'Product List'!$A:$A,'Product List'!$D:$D) -> DAX® Options | C37: =_xlfn.XLOOKUP(A37,'Product List'!$A:$A,'Product List'!$F:$F) -> INDEX OPTIONS | D37: =_xlfn.XLOOKUP(A37,'MMPM1-AMM'!E:E,'MMPM1-AMM'!K:K,_xlfn.XLOOKUP(A37,'MMPM1-PMM'!E:E,'MMPM1-PMM'!J:J)) -> ODAX | E37: =_xlfn.XLOOKUP(A37,'MMPM1-AMM'!E:E,'MMPM1-AMM'!Q:Q,_xlfn.XLOOKUP(A37,'MMPM1-PMM'!E:E,'MMPM1-PMM'!P:P)) -> 10 | F37: =SUMIFS(MMPM2!H:H,MMPM2!C:C,U37,MMPM2!E:E,1,MMPM2!G:G,1) -> 25 | G37: =SUMIFS(MMPM2!H:H,MMPM2!C:C,U37,MMPM2!E:E,1,MMPM2!G:G,2) -> 300 | I37: 25 | J37: 300 | L37: =SUMIFS(MMPM2!I:I,MMPM2!C:C,U37,MMPM2!E:E,1,MMPM2!G:G,1) -> 2 | M37: =SUMIFS(MMPM2!I:I,MMPM2!C:C,U37,MMPM2!E:E,1,MMPM2!G:G,2) -> 0.08 | N37: =SUMIFS(MMPM2!I:I,MMPM2!C:C,U37,MMPM2!E:E,1,MMPM2!G:G,3) -> 24 | O37: 4 | P37: 0.16 | Q37: 48 | R37: =AF37 -> 13 | S37: 9 | U37: =IFERROR(_xlfn.XLOOKUP(A37,'MMPM1-PMM'!E:E,'MMPM1-PMM'!J:J),_xlfn.XLOOKUP(A37,'MMPM1-AMM'!E:E,'MMPM1-AMM'!K:K)) -> ODAX | V37: =IFERROR(_xlfn.XLOOKUP(A37,'MMPM1-AMM'!E:E,'MMPM1-AMM'!T:T),_xlfn.XLOOKUP(A37,'MMPM1-PMM'!E:E,'MMPM1-PMM'!S:S)) -> 6 | W37: =IFERROR(_xlfn.XLOOKUP(A37,'MMPM1-AMM'!E:E,'MMPM1-AMM'!U:U),_xlfn.XLOOKUP(A37,'MMPM1-PMM'!E:E,'MMPM1-PMM'!T:T)) -> 10 | Y37: TRUE | AB37: =_xlfn.XLOOKUP(A37,productlist[PRODUCT_ID],productlist[PRODUCT_ISIN]) -> DE0008469495 | AC37: =_xlfn.XLOOKUP(A37,productlist[PRODUCT_ID],productlist[UNDERLYING_ISIN]) -> DE0008469008 | AE37: =W37-1 -> 9 | AF37: =IF(TODAY()<$AH$1,AE37+AG37,IF(TODAY()<$AI$1,AE37+AH37,IF(TODAY()<$AJ$1,AE37+AI37,IF(TODAY()>=$AJ$1,AE37+4)))) -> 13 | AG37: 1 | AH37: 2 | AI37: 3 | AJ37: 4
A38: ODIV | B38: =_xlfn.XLOOKUP(A38,'Product List'!$A:$A,'Product List'!$D:$D) -> DivDAX® Options | C38: =_xlfn.XLOOKUP(A38,'Product List'!$A:$A,'Product List'!$F:$F) -> INDEX OPTIONS | D38: =_xlfn.XLOOKUP(A38,'MMPM1-AMM'!E:E,'MMPM1-AMM'!K:K,_xlfn.XLOOKUP(A38,'MMPM1-PMM'!E:E,'MMPM1-PMM'!J:J)) -> ODIV | E38: =_xlfn.XLOOKUP(A38,'MMPM1-AMM'!E:E,'MMPM1-AMM'!Q:Q,_xlfn.XLOOKUP(A38,'MMPM1-PMM'!E:E,'MMPM1-PMM'!P:P)) -> 7 | F38: =SUMIFS(MMPM2!H:H,MMPM2!C:C,U38,MMPM2!E:E,1,MMPM2!G:G,1) -> 5.3 | G38: =SUMIFS(MMPM2!H:H,MMPM2!C:C,U38,MMPM2!E:E,1,MMPM2!G:G,2) -> 53.3 | L38: =SUMIFS(MMPM2!I:I,MMPM2!C:C,U38,MMPM2!E:E,1,MMPM2!G:G,1) -> 0.8 | M38: =SUMIFS(MMPM2!I:I,MMPM2!C:C,U38,MMPM2!E:E,1,MMPM2!G:G,2) -> 0.15 | N38: =SUMIFS(MMPM2!I:I,MMPM2!C:C,U38,MMPM2!E:E,1,MMPM2!G:G,3) -> 8 | R38: Not applicable | S38: No doubling of mistrade range | U38: =IFERROR(_xlfn.XLOOKUP(A38,'MMPM1-PMM'!E:E,'MMPM1-PMM'!J:J),_xlfn.XLOOKUP(A38,'MMPM1-AMM'!E:E,'MMPM1-AMM'!K:K)) -> ODIV | V38: =IFERROR(_xlfn.XLOOKUP(A38,'MMPM1-AMM'!E:E,'MMPM1-AMM'!T:T),_xlfn.XLOOKUP(A38,'MMPM1-PMM'!E:E,'MMPM1-PMM'!S:S)) -> 3 | W38: =IFERROR(_xlfn.XLOOKUP(A38,'MMPM1-AMM'!E:E,'MMPM1-AMM'!U:U),_xlfn.XLOOKUP(A38,'MMPM1-PMM'!E:E,'MMPM1-PMM'!T:T)) -> 7 | Y38: TRUE | AB38: =_xlfn.XLOOKUP(A38,productlist[PRODUCT_ID],productlist[PRODUCT_ISIN]) -> DE000A0SNKX4 | AC38: =_xlfn.XLOOKUP(A38,productlist[PRODUCT_ID],productlist[UNDERLYING_ISIN]) -> DE000A0C33C3
A39: ODTL | B39: =_xlfn.XLOOKUP(A39,'Product List'!$A:$A,'Product List'!$D:$D) -> iShares USD Treasury Bond 20+yr UCITS Options | C39: =_xlfn.XLOOKUP(A39,'Product List'!$A:$A,'Product List'!$F:$F) -> EXTF-OPTIONS | D39: =_xlfn.XLOOKUP(A39,'MMPM1-AMM'!E:E,'MMPM1-AMM'!K:K,_xlfn.XLOOKUP(A39,'MMPM1-PMM'!E:E,'MMPM1-PMM'!J:J)) -> FI-ETF | E39: =_xlfn.XLOOKUP(A39,'MMPM1-AMM'!E:E,'MMPM1-AMM'!Q:Q,_xlfn.XLOOKUP(A39,'MMPM1-PMM'!E:E,'MMPM1-PMM'!P:P)) -> 3 | F39: =SUMIFS(MMPM2!H:H,MMPM2!C:C,U39,MMPM2!E:E,1,MMPM2!G:G,1) -> 1.5 | G39: =SUMIFS(MMPM2!H:H,MMPM2!C:C,U39,MMPM2!E:E,1,MMPM2!G:G,2) -> 15 | L39: =SUMIFS(MMPM2!I:I,MMPM2!C:C,U39,MMPM2!E:E,1,MMPM2!G:G,1) -> 0.35 | M39: =SUMIFS(MMPM2!I:I,MMPM2!C:C,U39,MMPM2!E:E,1,MMPM2!G:G,2) -> 0.2 | N39: =SUMIFS(MMPM2!I:I,MMPM2!C:C,U39,MMPM2!E:E,1,MMPM2!G:G,3) -> 3 | R39: Not applicable | S39: No doubling of mistrade range | U39: =IFERROR(_xlfn.XLOOKUP(A39,'MMPM1-PMM'!E:E,'MMPM1-PMM'!J:J),_xlfn.XLOOKUP(A39,'MMPM1-AMM'!E:E,'MMPM1-AMM'!K:K)) -> FI-ETF | V39: =IFERROR(_xlfn.XLOOKUP(A39,'MMPM1-AMM'!E:E,'MMPM1-AMM'!T:T),_xlfn.XLOOKUP(A39,'MMPM1-PMM'!E:E,'MMPM1-PMM'!S:S)) -> 3 | W39: =IFERROR(_xlfn.XLOOKUP(A39,'MMPM1-AMM'!E:E,'MMPM1-AMM'!U:U),_xlfn.XLOOKUP(A39,'MMPM1-PMM'!E:E,'MMPM1-PMM'!T:T)) -> 3 | Y39: TRUE | AB39: =_xlfn.XLOOKUP(A39,productlist[PRODUCT_ID],productlist[PRODUCT_ISIN]) -> DE000A26RY50 | AC39: =_xlfn.XLOOKUP(A39,productlist[PRODUCT_ID],productlist[UNDERLYING_ISIN]) -> IE00BSKRJZ44
A40: OEAC | B40: =_xlfn.XLOOKUP(A40,'Product List'!$A:$A,'Product List'!$D:$D) -> iShares EUR Corporate Bond UCITS Options | C40: =_xlfn.XLOOKUP(A40,'Product List'!$A:$A,'Product List'!$F:$F) -> EXTF-OPTIONS | D40: =_xlfn.XLOOKUP(A40,'MMPM1-AMM'!E:E,'MMPM1-AMM'!K:K,_xlfn.XLOOKUP(A40,'MMPM1-PMM'!E:E,'MMPM1-PMM'!J:J)) -> FI-ETF | E40: =_xlfn.XLOOKUP(A40,'MMPM1-AMM'!E:E,'MMPM1-AMM'!Q:Q,_xlfn.XLOOKUP(A40,'MMPM1-PMM'!E:E,'MMPM1-PMM'!P:P)) -> 3 | F40: =SUMIFS(MMPM2!H:H,MMPM2!C:C,U40,MMPM2!E:E,1,MMPM2!G:G,1) -> 1.5 | G40: =SUMIFS(MMPM2!H:H,MMPM2!C:C,U40,MMPM2!E:E,1,MMPM2!G:G,2) -> 15 | L40: =SUMIFS(MMPM2!I:I,MMPM2!C:C,U40,MMPM2!E:E,1,MMPM2!G:G,1) -> 0.35 | M40: =SUMIFS(MMPM2!I:I,MMPM2!C:C,U40,MMPM2!E:E,1,MMPM2!G:G,2) -> 0.2 | N40: =SUMIFS(MMPM2!I:I,MMPM2!C:C,U40,MMPM2!E:E,1,MMPM2!G:G,3) -> 3 | R40: Not applicable | S40: No doubling of mistrade range | U40: =IFERROR(_xlfn.XLOOKUP(A40,'MMPM1-PMM'!E:E,'MMPM1-PMM'!J:J),_xlfn.XLOOKUP(A40,'MMPM1-AMM'!E:E,'MMPM1-AMM'!K:K)) -> FI-ETF | V40: =IFERROR(_xlfn.XLOOKUP(A40,'MMPM1-AMM'!E:E,'MMPM1-AMM'!T:T),_xlfn.XLOOKUP(A40,'MMPM1-PMM'!E:E,'MMPM1-PMM'!S:S)) -> 3 | W40: =IFERROR(_xlfn.XLOOKUP(A40,'MMPM1-AMM'!E:E,'MMPM1-AMM'!U:U),_xlfn.XLOOKUP(A40,'MMPM1-PMM'!E:E,'MMPM1-PMM'!T:T)) -> 3 | Y40: TRUE | AB40: =_xlfn.XLOOKUP(A40,productlist[PRODUCT_ID],productlist[PRODUCT_ISIN]) -> DE000A2BNDA9 | AC40: =_xlfn.XLOOKUP(A40,productlist[PRODUCT_ID],productlist[UNDERLYING_ISIN]) -> IE00B3F81R35
A41: OEDV | B41: =_xlfn.XLOOKUP(A41,'Product List'!$A:$A,'Product List'!$D:$D) -> EURO STOXX® Select Dividend 30 Index Options | C41: =_xlfn.XLOOKUP(A41,'Product List'!$A:$A,'Product List'!$F:$F) -> INDEX OPTIONS | D41: =_xlfn.XLOOKUP(A41,'MMPM1-AMM'!E:E,'MMPM1-AMM'!K:K,_xlfn.XLOOKUP(A41,'MMPM1-PMM'!E:E,'MMPM1-PMM'!J:J)) -> OEDV | E41: =_xlfn.XLOOKUP(A41,'MMPM1-AMM'!E:E,'MMPM1-AMM'!Q:Q,_xlfn.XLOOKUP(A41,'MMPM1-PMM'!E:E,'MMPM1-PMM'!P:P)) -> 6 | F41: =SUMIFS(MMPM2!H:H,MMPM2!C:C,U41,MMPM2!E:E,1,MMPM2!G:G,1) -> 5.3 | G41: =SUMIFS(MMPM2!H:H,MMPM2!C:C,U41,MMPM2!E:E,1,MMPM2!G:G,2) -> 53.3 | L41: =SUMIFS(MMPM2!I:I,MMPM2!C:C,U41,MMPM2!E:E,1,MMPM2!G:G,1) -> 1.1 | M41: =SUMIFS(MMPM2!I:I,MMPM2!C:C,U41,MMPM2!E:E,1,MMPM2!G:G,2) -> 0.2 | N41: =SUMIFS(MMPM2!I:I,MMPM2!C:C,U41,MMPM2!E:E,1,MMPM2!G:G,3) -> 10.7 | R41: Not applicable | S41: No doubling of mistrade range | U41: =IFERROR(_xlfn.XLOOKUP(A41,'MMPM1-PMM'!E:E,'MMPM1-PMM'!J:J),_xlfn.XLOOKUP(A41,'MMPM1-AMM'!E:E,'MMPM1-AMM'!K:K)) -> OEDV | V41: =IFERROR(_xlfn.XLOOKUP(A41,'MMPM1-AMM'!E:E,'MMPM1-AMM'!T:T),_xlfn.XLOOKUP(A41,'MMPM1-PMM'!E:E,'MMPM1-PMM'!S:S)) -> 3 | W41: =IFERROR(_xlfn.XLOOKUP(A41,'MMPM1-AMM'!E:E,'MMPM1-AMM'!U:U),_xlfn.XLOOKUP(A41,'MMPM1-PMM'!E:E,'MMPM1-PMM'!T:T)) -> 6 | Y41: TRUE | AB41: =_xlfn.XLOOKUP(A41,productlist[PRODUCT_ID],productlist[PRODUCT_ISIN]) -> DE000A0ME676 | AC41: =_xlfn.XLOOKUP(A41,productlist[PRODUCT_ID],productlist[UNDERLYING_ISIN]) -> CH0020751589
A42: OEMB | B42: =_xlfn.XLOOKUP(A42,'Product List'!$A:$A,'Product List'!$D:$D) -> iShares J.P. Morgan USD Emerging Market Bond UCITS Options [american] | C42: =_xlfn.XLOOKUP(A42,'Product List'!$A:$A,'Product List'!$F:$F) -> EXTF-OPTIONS | D42: =_xlfn.XLOOKUP(A42,'MMPM1-AMM'!E:E,'MMPM1-AMM'!K:K,_xlfn.XLOOKUP(A42,'MMPM1-PMM'!E:E,'MMPM1-PMM'!J:J)) -> FI-ETF | E42: =_xlfn.XLOOKUP(A42,'MMPM1-AMM'!E:E,'MMPM1-AMM'!Q:Q,_xlfn.XLOOKUP(A42,'MMPM1-PMM'!E:E,'MMPM1-PMM'!P:P)) -> 3 | F42: =SUMIFS(MMPM2!H:H,MMPM2!C:C,U42,MMPM2!E:E,1,MMPM2!G:G,1) -> 1.5 | G42: =SUMIFS(MMPM2!H:H,MMPM2!C:C,U42,MMPM2!E:E,1,MMPM2!G:G,2) -> 15 | L42: =SUMIFS(MMPM2!I:I,MMPM2!C:C,U42,MMPM2!E:E,1,MMPM2!G:G,1) -> 0.35 | M42: =SUMIFS(MMPM2!I:I,MMPM2!C:C,U42,MMPM2!E:E,1,MMPM2!G:G,2) -> 0.2 | N42: =SUMIFS(MMPM2!I:I,MMPM2!C:C,U42,MMPM2!E:E,1,MMPM2!G:G,3) -> 3 | R42: Not applicable | S42: No doubling of mistrade range | U42: =IFERROR(_xlfn.XLOOKUP(A42,'MMPM1-PMM'!E:E,'MMPM1-PMM'!J:J),_xlfn.XLOOKUP(A42,'MMPM1-AMM'!E:E,'MMPM1-AMM'!K:K)) -> FI-ETF | V42: =IFERROR(_xlfn.XLOOKUP(A42,'MMPM1-AMM'!E:E,'MMPM1-AMM'!T:T),_xlfn.XLOOKUP(A42,'MMPM1-PMM'!E:E,'MMPM1-PMM'!S:S)) -> 3 | W42: =IFERROR(_xlfn.XLOOKUP(A42,'MMPM1-AMM'!E:E,'MMPM1-AMM'!U:U),_xlfn.XLOOKUP(A42,'MMPM1-PMM'!E:E,'MMPM1-PMM'!T:T)) -> 3 | Y42: TRUE | AB42: =_xlfn.XLOOKUP(A42,productlist[PRODUCT_ID],productlist[PRODUCT_ISIN]) -> DE000A2G9QK2 | AC42: =_xlfn.XLOOKUP(A42,productlist[PRODUCT_ID],productlist[UNDERLYING_ISIN]) -> IE00B2NPKV68
A43: OESA | B43: =_xlfn.XLOOKUP(A43,'Product List'!$A:$A,'Product List'!$D:$D) -> EURO STOXX® Automobiles & Parts Options | C43: =_xlfn.XLOOKUP(A43,'Product List'!$A:$A,'Product List'!$F:$F) -> INDEX OPTIONS | D43: =_xlfn.XLOOKUP(A43,'MMPM1-AMM'!E:E,'MMPM1-AMM'!K:K,_xlfn.XLOOKUP(A43,'MMPM1-PMM'!E:E,'MMPM1-PMM'!J:J)) -> STXSO1 | E43: =_xlfn.XLOOKUP(A43,'MMPM1-AMM'!E:E,'MMPM1-AMM'!Q:Q,_xlfn.XLOOKUP(A43,'MMPM1-PMM'!E:E,'MMPM1-PMM'!P:P)) -> 5 | F43: =SUMIFS(MMPM2!H:H,MMPM2!C:C,U43,MMPM2!E:E,1,MMPM2!G:G,1) -> 5.3 | G43: =SUMIFS(MMPM2!H:H,MMPM2!C:C,U43,MMPM2!E:E,1,MMPM2!G:G,2) -> 53.3 | L43: =SUMIFS(MMPM2!I:I,MMPM2!C:C,U43,MMPM2!E:E,1,MMPM2!G:G,1) -> 0.8 | M43: =SUMIFS(MMPM2!I:I,MMPM2!C:C,U43,MMPM2!E:E,1,MMPM2!G:G,2) -> 0.15 | N43: =SUMIFS(MMPM2!I:I,MMPM2!C:C,U43,MMPM2!E:E,1,MMPM2!G:G,3) -> 8 | R43: Not applicable | S43: No doubling of mistrade range | U43: =IFERROR(_xlfn.XLOOKUP(A43,'MMPM1-PMM'!E:E,'MMPM1-PMM'!J:J),_xlfn.XLOOKUP(A43,'MMPM1-AMM'!E:E,'MMPM1-AMM'!K:K)) -> STXSO1 | V43: =IFERROR(_xlfn.XLOOKUP(A43,'MMPM1-AMM'!E:E,'MMPM1-AMM'!T:T),_xlfn.XLOOKUP(A43,'MMPM1-PMM'!E:E,'MMPM1-PMM'!S:S)) -> 3 | W43: =IFERROR(_xlfn.XLOOKUP(A43,'MMPM1-AMM'!E:E,'MMPM1-AMM'!U:U),_xlfn.XLOOKUP(A43,'MMPM1-PMM'!E:E,'MMPM1-PMM'!T:T)) -> 5 | Y43: TRUE | AB43: =_xlfn.XLOOKUP(A43,productlist[PRODUCT_ID],productlist[PRODUCT_ISIN]) -> DE0005303572 | AC43: =_xlfn.XLOOKUP(A43,productlist[PRODUCT_ID],productlist[UNDERLYING_ISIN]) -> EU0009658301
A44: OESB | B44: =_xlfn.XLOOKUP(A44,'Product List'!$A:$A,'Product List'!$D:$D) -> EURO STOXX® Banks Options | C44: =_xlfn.XLOOKUP(A44,'Product List'!$A:$A,'Product List'!$F:$F) -> INDEX OPTIONS | D44: =_xlfn.XLOOKUP(A44,'MMPM1-AMM'!E:E,'MMPM1-AMM'!K:K,_xlfn.XLOOKUP(A44,'MMPM1-PMM'!E:E,'MMPM1-PMM'!J:J)) -> STXSO1 | E44: =_xlfn.XLOOKUP(A44,'MMPM1-AMM'!E:E,'MMPM1-AMM'!Q:Q,_xlfn.XLOOKUP(A44,'MMPM1-PMM'!E:E,'MMPM1-PMM'!P:P)) -> 5 | F44: =SUMIFS(MMPM2!H:H,MMPM2!C:C,U44,MMPM2!E:E,1,MMPM2!G:G,1) -> 5.3 | G44: =SUMIFS(MMPM2!H:H,MMPM2!C:C,U44,MMPM2!E:E,1,MMPM2!G:G,2) -> 53.3 | L44: =SUMIFS(MMPM2!I:I,MMPM2!C:C,U44,MMPM2!E:E,1,MMPM2!G:G,1) -> 0.8 | M44: =SUMIFS(MMPM2!I:I,MMPM2!C:C,U44,MMPM2!E:E,1,MMPM2!G:G,2) -> 0.15 | N44: =SUMIFS(MMPM2!I:I,MMPM2!C:C,U44,MMPM2!E:E,1,MMPM2!G:G,3) -> 8 | R44: Not applicable | S44: No doubling of mistrade range | U44: =IFERROR(_xlfn.XLOOKUP(A44,'MMPM1-PMM'!E:E,'MMPM1-PMM'!J:J),_xlfn.XLOOKUP(A44,'MMPM1-AMM'!E:E,'MMPM1-AMM'!K:K)) -> STXSO1 | V44: =IFERROR(_xlfn.XLOOKUP(A44,'MMPM1-AMM'!E:E,'MMPM1-AMM'!T:T),_xlfn.XLOOKUP(A44,'MMPM1-PMM'!E:E,'MMPM1-PMM'!S:S)) -> 3 | W44: =IFERROR(_xlfn.XLOOKUP(A44,'MMPM1-AMM'!E:E,'MMPM1-AMM'!U:U),_xlfn.XLOOKUP(A44,'MMPM1-PMM'!E:E,'MMPM1-PMM'!T:T)) -> 5 | Y44: TRUE | AB44: =_xlfn.XLOOKUP(A44,productlist[PRODUCT_ID],productlist[PRODUCT_ISIN]) -> DE0007923518 | AC44: =_xlfn.XLOOKUP(A44,productlist[PRODUCT_ID],productlist[UNDERLYING_ISIN]) -> EU0009658426
A45: OESC | B45: =_xlfn.XLOOKUP(A45,'Product List'!$A:$A,'Product List'!$D:$D) -> EURO STOXX® Chemicals Options | C45: =_xlfn.XLOOKUP(A45,'Product List'!$A:$A,'Product List'!$F:$F) -> INDEX OPTIONS | D45: =_xlfn.XLOOKUP(A45,'MMPM1-AMM'!E:E,'MMPM1-AMM'!K:K,_xlfn.XLOOKUP(A45,'MMPM1-PMM'!E:E,'MMPM1-PMM'!J:J)) -> STXSO1 | E45: =_xlfn.XLOOKUP(A45,'MMPM1-AMM'!E:E,'MMPM1-AMM'!Q:Q,_xlfn.XLOOKUP(A45,'MMPM1-PMM'!E:E,'MMPM1-PMM'!P:P)) -> 5 | F45: =SUMIFS(MMPM2!H:H,MMPM2!C:C,U45,MMPM2!E:E,1,MMPM2!G:G,1) -> 5.3 | G45: =SUMIFS(MMPM2!H:H,MMPM2!C:C,U45,MMPM2!E:E,1,MMPM2!G:G,2) -> 53.3 | L45: =SUMIFS(MMPM2!I:I,MMPM2!C:C,U45,MMPM2!E:E,1,MMPM2!G:G,1) -> 0.8 | M45: =SUMIFS(MMPM2!I:I,MMPM2!C:C,U45,MMPM2!E:E,1,MMPM2!G:G,2) -> 0.15 | N45: =SUMIFS(MMPM2!I:I,MMPM2!C:C,U45,MMPM2!E:E,1,MMPM2!G:G,3) -> 8 | R45: Not applicable | S45: No doubling of mistrade range | U45: =IFERROR(_xlfn.XLOOKUP(A45,'MMPM1-PMM'!E:E,'MMPM1-PMM'!J:J),_xlfn.XLOOKUP(A45,'MMPM1-AMM'!E:E,'MMPM1-AMM'!K:K)) -> STXSO1 | V45: =IFERROR(_xlfn.XLOOKUP(A45,'MMPM1-AMM'!E:E,'MMPM1-AMM'!T:T),_xlfn.XLOOKUP(A45,'MMPM1-PMM'!E:E,'MMPM1-PMM'!S:S)) -> 3 | W45: =IFERROR(_xlfn.XLOOKUP(A45,'MMPM1-AMM'!E:E,'MMPM1-AMM'!U:U),_xlfn.XLOOKUP(A45,'MMPM1-PMM'!E:E,'MMPM1-PMM'!T:T)) -> 5 | Y45: TRUE | AB45: =_xlfn.XLOOKUP(A45,productlist[PRODUCT_ID],productlist[PRODUCT_ISIN]) -> DE0002271111 | AC45: =_xlfn.XLOOKUP(A45,productlist[PRODUCT_ID],productlist[UNDERLYING_ISIN]) -> EU0009658228
A46: OESE | B46: =_xlfn.XLOOKUP(A46,'Product List'!$A:$A,'Product List'!$D:$D) -> EURO STOXX® Oil & Gas Options | C46: =_xlfn.XLOOKUP(A46,'Product List'!$A:$A,'Product List'!$F:$F) -> INDEX OPTIONS | D46: =_xlfn.XLOOKUP(A46,'MMPM1-AMM'!E:E,'MMPM1-AMM'!K:K,_xlfn.XLOOKUP(A46,'MMPM1-PMM'!E:E,'MMPM1-PMM'!J:J)) -> STXSO1 | E46: =_xlfn.XLOOKUP(A46,'MMPM1-AMM'!E:E,'MMPM1-AMM'!Q:Q,_xlfn.XLOOKUP(A46,'MMPM1-PMM'!E:E,'MMPM1-PMM'!P:P)) -> 5 | F46: =SUMIFS(MMPM2!H:H,MMPM2!C:C,U46,MMPM2!E:E,1,MMPM2!G:G,1) -> 5.3 | G46: =SUMIFS(MMPM2!H:H,MMPM2!C:C,U46,MMPM2!E:E,1,MMPM2!G:G,2) -> 53.3 | L46: =SUMIFS(MMPM2!I:I,MMPM2!C:C,U46,MMPM2!E:E,1,MMPM2!G:G,1) -> 0.8 | M46: =SUMIFS(MMPM2!I:I,MMPM2!C:C,U46,MMPM2!E:E,1,MMPM2!G:G,2) -> 0.15 | N46: =SUMIFS(MMPM2!I:I,MMPM2!C:C,U46,MMPM2!E:E,1,MMPM2!G:G,3) -> 8 | R46: Not applicable | S46: No doubling of mistrade range | U46: =IFERROR(_xlfn.XLOOKUP(A46,'MMPM1-PMM'!E:E,'MMPM1-PMM'!J:J),_xlfn.XLOOKUP(A46,'MMPM1-AMM'!E:E,'MMPM1-AMM'!K:K)) -> STXSO1 | V46: =IFERROR(_xlfn.XLOOKUP(A46,'MMPM1-AMM'!E:E,'MMPM1-AMM'!T:T),_xlfn.XLOOKUP(A46,'MMPM1-PMM'!E:E,'MMPM1-PMM'!S:S)) -> 3 | W46: =IFERROR(_xlfn.XLOOKUP(A46,'MMPM1-AMM'!E:E,'MMPM1-AMM'!U:U),_xlfn.XLOOKUP(A46,'MMPM1-PMM'!E:E,'MMPM1-PMM'!T:T)) -> 5 | Y46: TRUE | AB46: =_xlfn.XLOOKUP(A46,productlist[PRODUCT_ID],productlist[PRODUCT_ISIN]) -> DE0005303556 | AC46: =_xlfn.XLOOKUP(A46,productlist[PRODUCT_ID],productlist[UNDERLYING_ISIN]) -> EU0009658400
A47: OESF | B47: =_xlfn.XLOOKUP(A47,'Product List'!$A:$A,'Product List'!$D:$D) -> EURO STOXX® Financial Services Options | C47: =_xlfn.XLOOKUP(A47,'Product List'!$A:$A,'Product List'!$F:$F) -> INDEX OPTIONS | D47: =_xlfn.XLOOKUP(A47,'MMPM1-AMM'!E:E,'MMPM1-AMM'!K:K,_xlfn.XLOOKUP(A47,'MMPM1-PMM'!E:E,'MMPM1-PMM'!J:J)) -> STXSO1 | E47: =_xlfn.XLOOKUP(A47,'MMPM1-AMM'!E:E,'MMPM1-AMM'!Q:Q,_xlfn.XLOOKUP(A47,'MMPM1-PMM'!E:E,'MMPM1-PMM'!P:P)) -> 5 | F47: =SUMIFS(MMPM2!H:H,MMPM2!C:C,U47,MMPM2!E:E,1,MMPM2!G:G,1) -> 5.3 | G47: =SUMIFS(MMPM2!H:H,MMPM2!C:C,U47,MMPM2!E:E,1,MMPM2!G:G,2) -> 53.3 | L47: =SUMIFS(MMPM2!I:I,MMPM2!C:C,U47,MMPM2!E:E,1,MMPM2!G:G,1) -> 0.8 | M47: =SUMIFS(MMPM2!I:I,MMPM2!C:C,U47,MMPM2!E:E,1,MMPM2!G:G,2) -> 0.15 | N47: =SUMIFS(MMPM2!I:I,MMPM2!C:C,U47,MMPM2!E:E,1,MMPM2!G:G,3) -> 8 | R47: Not applicable | S47: No doubling of mistrade range | U47: =IFERROR(_xlfn.XLOOKUP(A47,'MMPM1-PMM'!E:E,'MMPM1-PMM'!J:J),_xlfn.XLOOKUP(A47,'MMPM1-AMM'!E:E,'MMPM1-AMM'!K:K)) -> STXSO1 | V47: =IFERROR(_xlfn.XLOOKUP(A47,'MMPM1-AMM'!E:E,'MMPM1-AMM'!T:T),_xlfn.XLOOKUP(A47,'MMPM1-PMM'!E:E,'MMPM1-PMM'!S:S)) -> 3 | W47: =IFERROR(_xlfn.XLOOKUP(A47,'MMPM1-AMM'!E:E,'MMPM1-AMM'!U:U),_xlfn.XLOOKUP(A47,'MMPM1-PMM'!E:E,'MMPM1-PMM'!T:T)) -> 5 | Y47: TRUE | AB47: =_xlfn.XLOOKUP(A47,productlist[PRODUCT_ID],productlist[PRODUCT_ISIN]) -> DE0007200719 | AC47: =_xlfn.XLOOKUP(A47,productlist[PRODUCT_ID],productlist[UNDERLYING_ISIN]) -> EU0009658467
A48: OESG | B48: =_xlfn.XLOOKUP(A48,'Product List'!$A:$A,'Product List'!$D:$D) -> EURO STOXX® Industrial Goods & Services Options | C48: =_xlfn.XLOOKUP(A48,'Product List'!$A:$A,'Product List'!$F:$F) -> INDEX OPTIONS | D48: =_xlfn.XLOOKUP(A48,'MMPM1-AMM'!E:E,'MMPM1-AMM'!K:K,_xlfn.XLOOKUP(A48,'MMPM1-PMM'!E:E,'MMPM1-PMM'!J:J)) -> STXSO1 | E48: =_xlfn.XLOOKUP(A48,'MMPM1-AMM'!E:E,'MMPM1-AMM'!Q:Q,_xlfn.XLOOKUP(A48,'MMPM1-PMM'!E:E,'MMPM1-PMM'!P:P)) -> 5 | F48: =SUMIFS(MMPM2!H:H,MMPM2!C:C,U48,MMPM2!E:E,1,MMPM2!G:G,1) -> 5.3 | G48: =SUMIFS(MMPM2!H:H,MMPM2!C:C,U48,MMPM2!E:E,1,MMPM2!G:G,2) -> 53.3 | L48: =SUMIFS(MMPM2!I:I,MMPM2!C:C,U48,MMPM2!E:E,1,MMPM2!G:G,1) -> 0.8 | M48: =SUMIFS(MMPM2!I:I,MMPM2!C:C,U48,MMPM2!E:E,1,MMPM2!G:G,2) -> 0.15 | N48: =SUMIFS(MMPM2!I:I,MMPM2!C:C,U48,MMPM2!E:E,1,MMPM2!G:G,3) -> 8 | R48: Not applicable | S48: No doubling of mistrade range | U48: =IFERROR(_xlfn.XLOOKUP(A48,'MMPM1-PMM'!E:E,'MMPM1-PMM'!J:J),_xlfn.XLOOKUP(A48,'MMPM1-AMM'!E:E,'MMPM1-AMM'!K:K)) -> STXSO1 | V48: =IFERROR(_xlfn.XLOOKUP(A48,'MMPM1-AMM'!E:E,'MMPM1-AMM'!T:T),_xlfn.XLOOKUP(A48,'MMPM1-PMM'!E:E,'MMPM1-PMM'!S:S)) -> 3 | W48: =IFERROR(_xlfn.XLOOKUP(A48,'MMPM1-AMM'!E:E,'MMPM1-AMM'!U:U),_xlfn.XLOOKUP(A48,'MMPM1-PMM'!E:E,'MMPM1-PMM'!T:T)) -> 5 | Y48: TRUE | AB48: =_xlfn.XLOOKUP(A48,productlist[PRODUCT_ID],productlist[PRODUCT_ISIN]) -> DE0002271079 | AC48: =_xlfn.XLOOKUP(A48,productlist[PRODUCT_ID],productlist[UNDERLYING_ISIN]) -> EU0009658525
A49: OESH | B49: =_xlfn.XLOOKUP(A49,'Product List'!$A:$A,'Product List'!$D:$D) -> EURO STOXX® Health Care Options | C49: =_xlfn.XLOOKUP(A49,'Product List'!$A:$A,'Product List'!$F:$F) -> INDEX OPTIONS | D49: =_xlfn.XLOOKUP(A49,'MMPM1-AMM'!E:E,'MMPM1-AMM'!K:K,_xlfn.XLOOKUP(A49,'MMPM1-PMM'!E:E,'MMPM1-PMM'!J:J)) -> STXSO2 | E49: =_xlfn.XLOOKUP(A49,'MMPM1-AMM'!E:E,'MMPM1-AMM'!Q:Q,_xlfn.XLOOKUP(A49,'MMPM1-PMM'!E:E,'MMPM1-PMM'!P:P)) -> 5 | F49: =SUMIFS(MMPM2!H:H,MMPM2!C:C,U49,MMPM2!E:E,1,MMPM2!G:G,1) -> 8.3 | G49: =SUMIFS(MMPM2!H:H,MMPM2!C:C,U49,MMPM2!E:E,1,MMPM2!G:G,2) -> 53.3 | L49: =SUMIFS(MMPM2!I:I,MMPM2!C:C,U49,MMPM2!E:E,1,MMPM2!G:G,1) -> 2.5 | M49: =SUMIFS(MMPM2!I:I,MMPM2!C:C,U49,MMPM2!E:E,1,MMPM2!G:G,2) -> 0.3 | N49: =SUMIFS(MMPM2!I:I,MMPM2!C:C,U49,MMPM2!E:E,1,MMPM2!G:G,3) -> 16.1 | R49: Not applicable | S49: No doubling of mistrade range | U49: =IFERROR(_xlfn.XLOOKUP(A49,'MMPM1-PMM'!E:E,'MMPM1-PMM'!J:J),_xlfn.XLOOKUP(A49,'MMPM1-AMM'!E:E,'MMPM1-AMM'!K:K)) -> STXSO2 | V49: =IFERROR(_xlfn.XLOOKUP(A49,'MMPM1-AMM'!E:E,'MMPM1-AMM'!T:T),_xlfn.XLOOKUP(A49,'MMPM1-PMM'!E:E,'MMPM1-PMM'!S:S)) -> 3 | W49: =IFERROR(_xlfn.XLOOKUP(A49,'MMPM1-AMM'!E:E,'MMPM1-AMM'!U:U),_xlfn.XLOOKUP(A49,'MMPM1-PMM'!E:E,'MMPM1-PMM'!T:T)) -> 4 | Y49: FALSE | AB49: =_xlfn.XLOOKUP(A49,productlist[PRODUCT_ID],productlist[PRODUCT_ISIN]) -> DE0007923526 | AC49: =_xlfn.XLOOKUP(A49,productlist[PRODUCT_ID],productlist[UNDERLYING_ISIN]) -> EU0009658343
A50: OESI | B50: =_xlfn.XLOOKUP(A50,'Product List'!$A:$A,'Product List'!$D:$D) -> EURO STOXX® Insurance Options | C50: =_xlfn.XLOOKUP(A50,'Product List'!$A:$A,'Product List'!$F:$F) -> INDEX OPTIONS | D50: =_xlfn.XLOOKUP(A50,'MMPM1-AMM'!E:E,'MMPM1-AMM'!K:K,_xlfn.XLOOKUP(A50,'MMPM1-PMM'!E:E,'MMPM1-PMM'!J:J)) -> STXSO2 | E50: =_xlfn.XLOOKUP(A50,'MMPM1-AMM'!E:E,'MMPM1-AMM'!Q:Q,_xlfn.XLOOKUP(A50,'MMPM1-PMM'!E:E,'MMPM1-PMM'!P:P)) -> 5 | F50: =SUMIFS(MMPM2!H:H,MMPM2!C:C,U50,MMPM2!E:E,1,MMPM2!G:G,1) -> 8.3 | G50: =SUMIFS(MMPM2!H:H,MMPM2!C:C,U50,MMPM2!E:E,1,MMPM2!G:G,2) -> 53.3 | L50: =SUMIFS(MMPM2!I:I,MMPM2!C:C,U50,MMPM2!E:E,1,MMPM2!G:G,1) -> 2.5 | M50: =SUMIFS(MMPM2!I:I,MMPM2!C:C,U50,MMPM2!E:E,1,MMPM2!G:G,2) -> 0.3 | N50: =SUMIFS(MMPM2!I:I,MMPM2!C:C,U50,MMPM2!E:E,1,MMPM2!G:G,3) -> 16.1 | R50: Not applicable | S50: No doubling of mistrade range | U50: =IFERROR(_xlfn.XLOOKUP(A50,'MMPM1-PMM'!E:E,'MMPM1-PMM'!J:J),_xlfn.XLOOKUP(A50,'MMPM1-AMM'!E:E,'MMPM1-AMM'!K:K)) -> STXSO2 | V50: =IFERROR(_xlfn.XLOOKUP(A50,'MMPM1-AMM'!E:E,'MMPM1-AMM'!T:T),_xlfn.XLOOKUP(A50,'MMPM1-PMM'!E:E,'MMPM1-PMM'!S:S)) -> 3 | W50: =IFERROR(_xlfn.XLOOKUP(A50,'MMPM1-AMM'!E:E,'MMPM1-AMM'!U:U),_xlfn.XLOOKUP(A50,'MMPM1-PMM'!E:E,'MMPM1-PMM'!T:T)) -> 4 | Y50: FALSE | AB50: =_xlfn.XLOOKUP(A50,productlist[PRODUCT_ID],productlist[PRODUCT_ISIN]) -> DE0005303564 | AC50: =_xlfn.XLOOKUP(A50,productlist[PRODUCT_ID],productlist[UNDERLYING_ISIN]) -> EU0009658442
A51: OESJ | B51: =_xlfn.XLOOKUP(A51,'Product List'!$A:$A,'Product List'!$D:$D) -> EURO STOXX® Energy Options | C51: =_xlfn.XLOOKUP(A51,'Product List'!$A:$A,'Product List'!$F:$F) -> INDEX OPTIONS | D51: =_xlfn.XLOOKUP(A51,'MMPM1-AMM'!E:E,'MMPM1-AMM'!K:K,_xlfn.XLOOKUP(A51,'MMPM1-PMM'!E:E,'MMPM1-PMM'!J:J)) -> STXSO1 | E51: =_xlfn.XLOOKUP(A51,'MMPM1-AMM'!E:E,'MMPM1-AMM'!Q:Q,_xlfn.XLOOKUP(A51,'MMPM1-PMM'!E:E,'MMPM1-PMM'!P:P)) -> 5 | F51: =SUMIFS(MMPM2!H:H,MMPM2!C:C,U51,MMPM2!E:E,1,MMPM2!G:G,1) -> 5.3 | G51: =SUMIFS(MMPM2!H:H,MMPM2!C:C,U51,MMPM2!E:E,1,MMPM2!G:G,2) -> 53.3 | L51: =SUMIFS(MMPM2!I:I,MMPM2!C:C,U51,MMPM2!E:E,1,MMPM2!G:G,1) -> 0.8 | M51: =SUMIFS(MMPM2!I:I,MMPM2!C:C,U51,MMPM2!E:E,1,MMPM2!G:G,2) -> 0.15 | N51: =SUMIFS(MMPM2!I:I,MMPM2!C:C,U51,MMPM2!E:E,1,MMPM2!G:G,3) -> 8 | R51: Not applicable | S51: No doubling of mistrade range | U51: =IFERROR(_xlfn.XLOOKUP(A51,'MMPM1-PMM'!E:E,'MMPM1-PMM'!J:J),_xlfn.XLOOKUP(A51,'MMPM1-AMM'!E:E,'MMPM1-AMM'!K:K)) -> STXSO1 | V51: =IFERROR(_xlfn.XLOOKUP(A51,'MMPM1-AMM'!E:E,'MMPM1-AMM'!T:T),_xlfn.XLOOKUP(A51,'MMPM1-PMM'!E:E,'MMPM1-PMM'!S:S)) -> 3 | W51: =IFERROR(_xlfn.XLOOKUP(A51,'MMPM1-AMM'!E:E,'MMPM1-AMM'!U:U),_xlfn.XLOOKUP(A51,'MMPM1-PMM'!E:E,'MMPM1-PMM'!T:T)) -> 5 | Y51: TRUE | AB51: =_xlfn.XLOOKUP(A51,productlist[PRODUCT_ID],productlist[PRODUCT_ISIN]) -> DE000A2QBEV6 | AC51: =_xlfn.XLOOKUP(A51,productlist[PRODUCT_ID],productlist[UNDERLYING_ISIN]) -> CH0462353894
A52: OESK | B52: =_xlfn.XLOOKUP(A52,'Product List'!$A:$A,'Product List'!$D:$D) -> EURO STOXX® Consumer Products & Services Options | C52: =_xlfn.XLOOKUP(A52,'Product List'!$A:$A,'Product List'!$F:$F) -> INDEX OPTIONS | D52: =_xlfn.XLOOKUP(A52,'MMPM1-AMM'!E:E,'MMPM1-AMM'!K:K,_xlfn.XLOOKUP(A52,'MMPM1-PMM'!E:E,'MMPM1-PMM'!J:J)) -> STXSO1 | E52: =_xlfn.XLOOKUP(A52,'MMPM1-AMM'!E:E,'MMPM1-AMM'!Q:Q,_xlfn.XLOOKUP(A52,'MMPM1-PMM'!E:E,'MMPM1-PMM'!P:P)) -> 5 | F52: =SUMIFS(MMPM2!H:H,MMPM2!C:C,U52,MMPM2!E:E,1,MMPM2!G:G,1) -> 5.3 | G52: =SUMIFS(MMPM2!H:H,MMPM2!C:C,U52,MMPM2!E:E,1,MMPM2!G:G,2) -> 53.3 | L52: =SUMIFS(MMPM2!I:I,MMPM2!C:C,U52,MMPM2!E:E,1,MMPM2!G:G,1) -> 0.8 | M52: =SUMIFS(MMPM2!I:I,MMPM2!C:C,U52,MMPM2!E:E,1,MMPM2!G:G,2) -> 0.15 | N52: =SUMIFS(MMPM2!I:I,MMPM2!C:C,U52,MMPM2!E:E,1,MMPM2!G:G,3) -> 8 | R52: =IF(D52="OVS","",IF(V52=3, "Not applicable",W52-1)) -> Not applicable | S52: No doubling of mistrade range | U52: =IFERROR(_xlfn.XLOOKUP(A52,'MMPM1-PMM'!E:E,'MMPM1-PMM'!J:J),_xlfn.XLOOKUP(A52,'MMPM1-AMM'!E:E,'MMPM1-AMM'!K:K)) -> STXSO1 | V52: =IFERROR(_xlfn.XLOOKUP(A52,'MMPM1-AMM'!E:E,'MMPM1-AMM'!T:T),_xlfn.XLOOKUP(A52,'MMPM1-PMM'!E:E,'MMPM1-PMM'!S:S)) -> 3 | W52: =IFERROR(_xlfn.XLOOKUP(A52,'MMPM1-AMM'!E:E,'MMPM1-AMM'!U:U),_xlfn.XLOOKUP(A52,'MMPM1-PMM'!E:E,'MMPM1-PMM'!T:T)) -> 5 | Y52: TRUE | AB52: =_xlfn.XLOOKUP(A52,productlist[PRODUCT_ID],productlist[PRODUCT_ISIN]) -> DE000A2QBEW4 | AC52: =_xlfn.XLOOKUP(A52,productlist[PRODUCT_ID],productlist[UNDERLYING_ISIN]) -> CH0462353654
A53: OESL | B53: =_xlfn.XLOOKUP(A53,'Product List'!$A:$A,'Product List'!$D:$D) -> EURO STOXX® Real Estate Options | C53: =_xlfn.XLOOKUP(A53,'Product List'!$A:$A,'Product List'!$F:$F) -> INDEX OPTIONS | D53: =_xlfn.XLOOKUP(A53,'MMPM1-AMM'!E:E,'MMPM1-AMM'!K:K,_xlfn.XLOOKUP(A53,'MMPM1-PMM'!E:E,'MMPM1-PMM'!J:J)) -> STXSO1 | E53: =_xlfn.XLOOKUP(A53,'MMPM1-AMM'!E:E,'MMPM1-AMM'!Q:Q,_xlfn.XLOOKUP(A53,'MMPM1-PMM'!E:E,'MMPM1-PMM'!P:P)) -> 5 | F53: =SUMIFS(MMPM2!H:H,MMPM2!C:C,U53,MMPM2!E:E,1,MMPM2!G:G,1) -> 5.3 | G53: =SUMIFS(MMPM2!H:H,MMPM2!C:C,U53,MMPM2!E:E,1,MMPM2!G:G,2) -> 53.3 | L53: =SUMIFS(MMPM2!I:I,MMPM2!C:C,U53,MMPM2!E:E,1,MMPM2!G:G,1) -> 0.8 | M53: =SUMIFS(MMPM2!I:I,MMPM2!C:C,U53,MMPM2!E:E,1,MMPM2!G:G,2) -> 0.15 | N53: =SUMIFS(MMPM2!I:I,MMPM2!C:C,U53,MMPM2!E:E,1,MMPM2!G:G,3) -> 8 | R53: Not applicable | S53: =IF(D53="OVS","",IF(V53=3, "No doubling of mistrade range",W53-1)) -> No doubling of mistrade range | U53: =IFERROR(_xlfn.XLOOKUP(A53,'MMPM1-PMM'!E:E,'MMPM1-PMM'!J:J),_xlfn.XLOOKUP(A53,'MMPM1-AMM'!E:E,'MMPM1-AMM'!K:K)) -> STXSO1 | V53: =IFERROR(_xlfn.XLOOKUP(A53,'MMPM1-AMM'!E:E,'MMPM1-AMM'!T:T),_xlfn.XLOOKUP(A53,'MMPM1-PMM'!E:E,'MMPM1-PMM'!S:S)) -> 3 | W53: =IFERROR(_xlfn.XLOOKUP(A53,'MMPM1-AMM'!E:E,'MMPM1-AMM'!U:U),_xlfn.XLOOKUP(A53,'MMPM1-PMM'!E:E,'MMPM1-PMM'!T:T)) -> 5 | Y53: =W53=E53 -> TRUE | AB53: =_xlfn.XLOOKUP(A53,productlist[PRODUCT_ID],productlist[PRODUCT_ISIN]) -> DE000A0V8N51 | AC53: =_xlfn.XLOOKUP(A53,productlist[PRODUCT_ID],productlist[UNDERLYING_ISIN]) -> CH0043274445
A54: OESM | B54: =_xlfn.XLOOKUP(A54,'Product List'!$A:$A,'Product List'!$D:$D) -> EURO STOXX® Media Options | C54: =_xlfn.XLOOKUP(A54,'Product List'!$A:$A,'Product List'!$F:$F) -> INDEX OPTIONS | D54: =_xlfn.XLOOKUP(A54,'MMPM1-AMM'!E:E,'MMPM1-AMM'!K:K,_xlfn.XLOOKUP(A54,'MMPM1-PMM'!E:E,'MMPM1-PMM'!J:J)) -> STXSO1 | E54: =_xlfn.XLOOKUP(A54,'MMPM1-AMM'!E:E,'MMPM1-AMM'!Q:Q,_xlfn.XLOOKUP(A54,'MMPM1-PMM'!E:E,'MMPM1-PMM'!P:P)) -> 5 | F54: =SUMIFS(MMPM2!H:H,MMPM2!C:C,U54,MMPM2!E:E,1,MMPM2!G:G,1) -> 5.3 | G54: =SUMIFS(MMPM2!H:H,MMPM2!C:C,U54,MMPM2!E:E,1,MMPM2!G:G,2) -> 53.3 | L54: =SUMIFS(MMPM2!I:I,MMPM2!C:C,U54,MMPM2!E:E,1,MMPM2!G:G,1) -> 0.8 | M54: =SUMIFS(MMPM2!I:I,MMPM2!C:C,U54,MMPM2!E:E,1,MMPM2!G:G,2) -> 0.15 | N54: =SUMIFS(MMPM2!I:I,MMPM2!C:C,U54,MMPM2!E:E,1,MMPM2!G:G,3) -> 8 | R54: Not applicable | S54: No doubling of mistrade range | U54: =IFERROR(_xlfn.XLOOKUP(A54,'MMPM1-PMM'!E:E,'MMPM1-PMM'!J:J),_xlfn.XLOOKUP(A54,'MMPM1-AMM'!E:E,'MMPM1-AMM'!K:K)) -> STXSO1 | V54: =IFERROR(_xlfn.XLOOKUP(A54,'MMPM1-AMM'!E:E,'MMPM1-AMM'!T:T),_xlfn.XLOOKUP(A54,'MMPM1-PMM'!E:E,'MMPM1-PMM'!S:S)) -> 3 | W54: =IFERROR(_xlfn.XLOOKUP(A54,'MMPM1-AMM'!E:E,'MMPM1-AMM'!U:U),_xlfn.XLOOKUP(A54,'MMPM1-PMM'!E:E,'MMPM1-PMM'!T:T)) -> 5 | Y54: TRUE | AB54: =_xlfn.XLOOKUP(A54,productlist[PRODUCT_ID],productlist[PRODUCT_ISIN]) -> DE0007200693 | AC54: =_xlfn.XLOOKUP(A54,productlist[PRODUCT_ID],productlist[UNDERLYING_ISIN]) -> EU0009658269
A55: OESN | B55: =_xlfn.XLOOKUP(A55,'Product List'!$A:$A,'Product List'!$D:$D) -> EURO STOXX® Construction & Materials Options | C55: =_xlfn.XLOOKUP(A55,'Product List'!$A:$A,'Product List'!$F:$F) -> INDEX OPTIONS | D55: =_xlfn.XLOOKUP(A55,'MMPM1-AMM'!E:E,'MMPM1-AMM'!K:K,_xlfn.XLOOKUP(A55,'MMPM1-PMM'!E:E,'MMPM1-PMM'!J:J)) -> STXSO1 | E55: =_xlfn.XLOOKUP(A55,'MMPM1-AMM'!E:E,'MMPM1-AMM'!Q:Q,_xlfn.XLOOKUP(A55,'MMPM1-PMM'!E:E,'MMPM1-PMM'!P:P)) -> 5 | F55: =SUMIFS(MMPM2!H:H,MMPM2!C:C,U55,MMPM2!E:E,1,MMPM2!G:G,1) -> 5.3 | G55: =SUMIFS(MMPM2!H:H,MMPM2!C:C,U55,MMPM2!E:E,1,MMPM2!G:G,2) -> 53.3 | L55: =SUMIFS(MMPM2!I:I,MMPM2!C:C,U55,MMPM2!E:E,1,MMPM2!G:G,1) -> 0.8 | M55: =SUMIFS(MMPM2!I:I,MMPM2!C:C,U55,MMPM2!E:E,1,MMPM2!G:G,2) -> 0.15 | N55: =SUMIFS(MMPM2!I:I,MMPM2!C:C,U55,MMPM2!E:E,1,MMPM2!G:G,3) -> 8 | R55: Not applicable | S55: No doubling of mistrade range | U55: =IFERROR(_xlfn.XLOOKUP(A55,'MMPM1-PMM'!E:E,'MMPM1-PMM'!J:J),_xlfn.XLOOKUP(A55,'MMPM1-AMM'!E:E,'MMPM1-AMM'!K:K)) -> STXSO1 | V55: =IFERROR(_xlfn.XLOOKUP(A55,'MMPM1-AMM'!E:E,'MMPM1-AMM'!T:T),_xlfn.XLOOKUP(A55,'MMPM1-PMM'!E:E,'MMPM1-PMM'!S:S)) -> 3 | W55: =IFERROR(_xlfn.XLOOKUP(A55,'MMPM1-AMM'!E:E,'MMPM1-AMM'!U:U),_xlfn.XLOOKUP(A55,'MMPM1-PMM'!E:E,'MMPM1-PMM'!T:T)) -> 5 | Y55: TRUE | AB55: =_xlfn.XLOOKUP(A55,productlist[PRODUCT_ID],productlist[PRODUCT_ISIN]) -> DE0002271103 | AC55: =_xlfn.XLOOKUP(A55,productlist[PRODUCT_ID],productlist[UNDERLYING_ISIN]) -> EU0009658509
A56: OESO | B56: =_xlfn.XLOOKUP(A56,'Product List'!$A:$A,'Product List'!$D:$D) -> EURO STOXX® Food & Beverage Options | C56: =_xlfn.XLOOKUP(A56,'Product List'!$A:$A,'Product List'!$F:$F) -> INDEX OPTIONS | D56: =_xlfn.XLOOKUP(A56,'MMPM1-AMM'!E:E,'MMPM1-AMM'!K:K,_xlfn.XLOOKUP(A56,'MMPM1-PMM'!E:E,'MMPM1-PMM'!J:J)) -> STXSO1 | E56: =_xlfn.XLOOKUP(A56,'MMPM1-AMM'!E:E,'MMPM1-AMM'!Q:Q,_xlfn.XLOOKUP(A56,'MMPM1-PMM'!E:E,'MMPM1-PMM'!P:P)) -> 5 | F56: =SUMIFS(MMPM2!H:H,MMPM2!C:C,U56,MMPM2!E:E,1,MMPM2!G:G,1) -> 5.3 | G56: =SUMIFS(MMPM2!H:H,MMPM2!C:C,U56,MMPM2!E:E,1,MMPM2!G:G,2) -> 53.3 | L56: =SUMIFS(MMPM2!I:I,MMPM2!C:C,U56,MMPM2!E:E,1,MMPM2!G:G,1) -> 0.8 | M56: =SUMIFS(MMPM2!I:I,MMPM2!C:C,U56,MMPM2!E:E,1,MMPM2!G:G,2) -> 0.15 | N56: =SUMIFS(MMPM2!I:I,MMPM2!C:C,U56,MMPM2!E:E,1,MMPM2!G:G,3) -> 8 | R56: Not applicable | S56: No doubling of mistrade range | U56: =IFERROR(_xlfn.XLOOKUP(A56,'MMPM1-PMM'!E:E,'MMPM1-PMM'!J:J),_xlfn.XLOOKUP(A56,'MMPM1-AMM'!E:E,'MMPM1-AMM'!K:K)) -> STXSO1 | V56: =IFERROR(_xlfn.XLOOKUP(A56,'MMPM1-AMM'!E:E,'MMPM1-AMM'!T:T),_xlfn.XLOOKUP(A56,'MMPM1-PMM'!E:E,'MMPM1-PMM'!S:S)) -> 3 | W56: =IFERROR(_xlfn.XLOOKUP(A56,'MMPM1-AMM'!E:E,'MMPM1-AMM'!U:U),_xlfn.XLOOKUP(A56,'MMPM1-PMM'!E:E,'MMPM1-PMM'!T:T)) -> 5 | Y56: TRUE | AB56: =_xlfn.XLOOKUP(A56,productlist[PRODUCT_ID],productlist[PRODUCT_ISIN]) -> DE0002271087 | AC56: =_xlfn.XLOOKUP(A56,productlist[PRODUCT_ID],productlist[UNDERLYING_ISIN]) -> EU0009658368
A57: OESP | B57: =_xlfn.XLOOKUP(A57,'Product List'!$A:$A,'Product List'!$D:$D) -> EURO STOXX® Personal Care, Drug & Grocery Stores Options | C57: =_xlfn.XLOOKUP(A57,'Product List'!$A:$A,'Product List'!$F:$F) -> INDEX OPTIONS | D57: =_xlfn.XLOOKUP(A57,'MMPM1-AMM'!E:E,'MMPM1-AMM'!K:K,_xlfn.XLOOKUP(A57,'MMPM1-PMM'!E:E,'MMPM1-PMM'!J:J)) -> STXSO1 | E57: =_xlfn.XLOOKUP(A57,'MMPM1-AMM'!E:E,'MMPM1-AMM'!Q:Q,_xlfn.XLOOKUP(A57,'MMPM1-PMM'!E:E,'MMPM1-PMM'!P:P)) -> 5 | F57: =SUMIFS(MMPM2!H:H,MMPM2!C:C,U57,MMPM2!E:E,1,MMPM2!G:G,1) -> 5.3 | G57: =SUMIFS(MMPM2!H:H,MMPM2!C:C,U57,MMPM2!E:E,1,MMPM2!G:G,2) -> 53.3 | L57: =SUMIFS(MMPM2!I:I,MMPM2!C:C,U57,MMPM2!E:E,1,MMPM2!G:G,1) -> 0.8 | M57: =SUMIFS(MMPM2!I:I,MMPM2!C:C,U57,MMPM2!E:E,1,MMPM2!G:G,2) -> 0.15 | N57: =SUMIFS(MMPM2!I:I,MMPM2!C:C,U57,MMPM2!E:E,1,MMPM2!G:G,3) -> 8 | R57: Not applicable | S57: No doubling of mistrade range | U57: =IFERROR(_xlfn.XLOOKUP(A57,'MMPM1-PMM'!E:E,'MMPM1-PMM'!J:J),_xlfn.XLOOKUP(A57,'MMPM1-AMM'!E:E,'MMPM1-AMM'!K:K)) -> STXSO1 | V57: =IFERROR(_xlfn.XLOOKUP(A57,'MMPM1-AMM'!E:E,'MMPM1-AMM'!T:T),_xlfn.XLOOKUP(A57,'MMPM1-PMM'!E:E,'MMPM1-PMM'!S:S)) -> 3 | W57: =IFERROR(_xlfn.XLOOKUP(A57,'MMPM1-AMM'!E:E,'MMPM1-AMM'!U:U),_xlfn.XLOOKUP(A57,'MMPM1-PMM'!E:E,'MMPM1-PMM'!T:T)) -> 5 | Y57: TRUE | AB57: =_xlfn.XLOOKUP(A57,productlist[PRODUCT_ID],productlist[PRODUCT_ISIN]) -> DE000A2QBEX2 | AC57: =_xlfn.XLOOKUP(A57,productlist[PRODUCT_ID],productlist[UNDERLYING_ISIN]) -> CH0462354173
A58: OESR | B58: =_xlfn.XLOOKUP(A58,'Product List'!$A:$A,'Product List'!$D:$D) -> EURO STOXX® Retail Options | C58: =_xlfn.XLOOKUP(A58,'Product List'!$A:$A,'Product List'!$F:$F) -> INDEX OPTIONS | D58: =_xlfn.XLOOKUP(A58,'MMPM1-AMM'!E:E,'MMPM1-AMM'!K:K,_xlfn.XLOOKUP(A58,'MMPM1-PMM'!E:E,'MMPM1-PMM'!J:J)) -> STXSO1 | E58: =_xlfn.XLOOKUP(A58,'MMPM1-AMM'!E:E,'MMPM1-AMM'!Q:Q,_xlfn.XLOOKUP(A58,'MMPM1-PMM'!E:E,'MMPM1-PMM'!P:P)) -> 5 | F58: =SUMIFS(MMPM2!H:H,MMPM2!C:C,U58,MMPM2!E:E,1,MMPM2!G:G,1) -> 5.3 | G58: =SUMIFS(MMPM2!H:H,MMPM2!C:C,U58,MMPM2!E:E,1,MMPM2!G:G,2) -> 53.3 | L58: =SUMIFS(MMPM2!I:I,MMPM2!C:C,U58,MMPM2!E:E,1,MMPM2!G:G,1) -> 0.8 | M58: =SUMIFS(MMPM2!I:I,MMPM2!C:C,U58,MMPM2!E:E,1,MMPM2!G:G,2) -> 0.15 | N58: =SUMIFS(MMPM2!I:I,MMPM2!C:C,U58,MMPM2!E:E,1,MMPM2!G:G,3) -> 8 | R58: Not applicable | S58: No doubling of mistrade range | U58: =IFERROR(_xlfn.XLOOKUP(A58,'MMPM1-PMM'!E:E,'MMPM1-PMM'!J:J),_xlfn.XLOOKUP(A58,'MMPM1-AMM'!E:E,'MMPM1-AMM'!K:K)) -> STXSO1 | V58: =IFERROR(_xlfn.XLOOKUP(A58,'MMPM1-AMM'!E:E,'MMPM1-AMM'!T:T),_xlfn.XLOOKUP(A58,'MMPM1-PMM'!E:E,'MMPM1-PMM'!S:S)) -> 3 | W58: =IFERROR(_xlfn.XLOOKUP(A58,'MMPM1-AMM'!E:E,'MMPM1-AMM'!U:U),_xlfn.XLOOKUP(A58,'MMPM1-PMM'!E:E,'MMPM1-PMM'!T:T)) -> 5 | Y58: TRUE | AB58: =_xlfn.XLOOKUP(A58,productlist[PRODUCT_ID],productlist[PRODUCT_ISIN]) -> DE0002271046 | AC58: =_xlfn.XLOOKUP(A58,productlist[PRODUCT_ID],productlist[UNDERLYING_ISIN]) -> CH0019113023
A59: OESS | B59: =_xlfn.XLOOKUP(A59,'Product List'!$A:$A,'Product List'!$D:$D) -> EURO STOXX® Basic Resources Options | C59: =_xlfn.XLOOKUP(A59,'Product List'!$A:$A,'Product List'!$F:$F) -> INDEX OPTIONS | D59: =_xlfn.XLOOKUP(A59,'MMPM1-AMM'!E:E,'MMPM1-AMM'!K:K,_xlfn.XLOOKUP(A59,'MMPM1-PMM'!E:E,'MMPM1-PMM'!J:J)) -> STXSO1 | E59: =_xlfn.XLOOKUP(A59,'MMPM1-AMM'!E:E,'MMPM1-AMM'!Q:Q,_xlfn.XLOOKUP(A59,'MMPM1-PMM'!E:E,'MMPM1-PMM'!P:P)) -> 5 | F59: =SUMIFS(MMPM2!H:H,MMPM2!C:C,U59,MMPM2!E:E,1,MMPM2!G:G,1) -> 5.3 | G59: =SUMIFS(MMPM2!H:H,MMPM2!C:C,U59,MMPM2!E:E,1,MMPM2!G:G,2) -> 53.3 | L59: =SUMIFS(MMPM2!I:I,MMPM2!C:C,U59,MMPM2!E:E,1,MMPM2!G:G,1) -> 0.8 | M59: =SUMIFS(MMPM2!I:I,MMPM2!C:C,U59,MMPM2!E:E,1,MMPM2!G:G,2) -> 0.15 | N59: =SUMIFS(MMPM2!I:I,MMPM2!C:C,U59,MMPM2!E:E,1,MMPM2!G:G,3) -> 8 | R59: Not applicable | S59: No doubling of mistrade range | U59: =IFERROR(_xlfn.XLOOKUP(A59,'MMPM1-PMM'!E:E,'MMPM1-PMM'!J:J),_xlfn.XLOOKUP(A59,'MMPM1-AMM'!E:E,'MMPM1-AMM'!K:K)) -> STXSO1 | V59: =IFERROR(_xlfn.XLOOKUP(A59,'MMPM1-AMM'!E:E,'MMPM1-AMM'!T:T),_xlfn.XLOOKUP(A59,'MMPM1-PMM'!E:E,'MMPM1-PMM'!S:S)) -> 3 | W59: =IFERROR(_xlfn.XLOOKUP(A59,'MMPM1-AMM'!E:E,'MMPM1-AMM'!U:U),_xlfn.XLOOKUP(A59,'MMPM1-PMM'!E:E,'MMPM1-PMM'!T:T)) -> 5 | Y59: TRUE | AB59: =_xlfn.XLOOKUP(A59,productlist[PRODUCT_ID],productlist[PRODUCT_ISIN]) -> DE0002271129 | AC59: =_xlfn.XLOOKUP(A59,productlist[PRODUCT_ID],productlist[UNDERLYING_ISIN]) -> EU0009658244
A60: OEST | B60: =_xlfn.XLOOKUP(A60,'Product List'!$A:$A,'Product List'!$D:$D) -> EURO STOXX® Telecommunications Options | C60: =_xlfn.XLOOKUP(A60,'Product List'!$A:$A,'Product List'!$F:$F) -> INDEX OPTIONS | D60: =_xlfn.XLOOKUP(A60,'MMPM1-AMM'!E:E,'MMPM1-AMM'!K:K,_xlfn.XLOOKUP(A60,'MMPM1-PMM'!E:E,'MMPM1-PMM'!J:J)) -> STXSO1 | E60: =_xlfn.XLOOKUP(A60,'MMPM1-AMM'!E:E,'MMPM1-AMM'!Q:Q,_xlfn.XLOOKUP(A60,'MMPM1-PMM'!E:E,'MMPM1-PMM'!P:P)) -> 5 | F60: =SUMIFS(MMPM2!H:H,MMPM2!C:C,U60,MMPM2!E:E,1,MMPM2!G:G,1) -> 5.3 | G60: =SUMIFS(MMPM2!H:H,MMPM2!C:C,U60,MMPM2!E:E,1,MMPM2!G:G,2) -> 53.3 | L60: =SUMIFS(MMPM2!I:I,MMPM2!C:C,U60,MMPM2!E:E,1,MMPM2!G:G,1) -> 0.8 | M60: =SUMIFS(MMPM2!I:I,MMPM2!C:C,U60,MMPM2!E:E,1,MMPM2!G:G,2) -> 0.15 | N60: =SUMIFS(MMPM2!I:I,MMPM2!C:C,U60,MMPM2!E:E,1,MMPM2!G:G,3) -> 8 | R60: Not applicable | S60: No doubling of mistrade range | U60: =IFERROR(_xlfn.XLOOKUP(A60,'MMPM1-PMM'!E:E,'MMPM1-PMM'!J:J),_xlfn.XLOOKUP(A60,'MMPM1-AMM'!E:E,'MMPM1-AMM'!K:K)) -> STXSO1 | V60: =IFERROR(_xlfn.XLOOKUP(A60,'MMPM1-AMM'!E:E,'MMPM1-AMM'!T:T),_xlfn.XLOOKUP(A60,'MMPM1-PMM'!E:E,'MMPM1-PMM'!S:S)) -> 3 | W60: =IFERROR(_xlfn.XLOOKUP(A60,'MMPM1-AMM'!E:E,'MMPM1-AMM'!U:U),_xlfn.XLOOKUP(A60,'MMPM1-PMM'!E:E,'MMPM1-PMM'!T:T)) -> 5 | Y60: TRUE | AB60: =_xlfn.XLOOKUP(A60,productlist[PRODUCT_ID],productlist[PRODUCT_ISIN]) -> DE0007923542 | AC60: =_xlfn.XLOOKUP(A60,productlist[PRODUCT_ID],productlist[UNDERLYING_ISIN]) -> EU0009658566
A61: OESU | B61: =_xlfn.XLOOKUP(A61,'Product List'!$A:$A,'Product List'!$D:$D) -> EURO STOXX® Utilities Options | C61: =_xlfn.XLOOKUP(A61,'Product List'!$A:$A,'Product List'!$F:$F) -> INDEX OPTIONS | D61: =_xlfn.XLOOKUP(A61,'MMPM1-AMM'!E:E,'MMPM1-AMM'!K:K,_xlfn.XLOOKUP(A61,'MMPM1-PMM'!E:E,'MMPM1-PMM'!J:J)) -> STXSO1 | E61: =_xlfn.XLOOKUP(A61,'MMPM1-AMM'!E:E,'MMPM1-AMM'!Q:Q,_xlfn.XLOOKUP(A61,'MMPM1-PMM'!E:E,'MMPM1-PMM'!P:P)) -> 5 | F61: =SUMIFS(MMPM2!H:H,MMPM2!C:C,U61,MMPM2!E:E,1,MMPM2!G:G,1) -> 5.3 | G61: =SUMIFS(MMPM2!H:H,MMPM2!C:C,U61,MMPM2!E:E,1,MMPM2!G:G,2) -> 53.3 | L61: =SUMIFS(MMPM2!I:I,MMPM2!C:C,U61,MMPM2!E:E,1,MMPM2!G:G,1) -> 0.8 | M61: =SUMIFS(MMPM2!I:I,MMPM2!C:C,U61,MMPM2!E:E,1,MMPM2!G:G,2) -> 0.15 | N61: =SUMIFS(MMPM2!I:I,MMPM2!C:C,U61,MMPM2!E:E,1,MMPM2!G:G,3) -> 8 | R61: Not applicable | S61: No doubling of mistrade range | U61: =IFERROR(_xlfn.XLOOKUP(A61,'MMPM1-PMM'!E:E,'MMPM1-PMM'!J:J),_xlfn.XLOOKUP(A61,'MMPM1-AMM'!E:E,'MMPM1-AMM'!K:K)) -> STXSO1 | V61: =IFERROR(_xlfn.XLOOKUP(A61,'MMPM1-AMM'!E:E,'MMPM1-AMM'!T:T),_xlfn.XLOOKUP(A61,'MMPM1-PMM'!E:E,'MMPM1-PMM'!S:S)) -> 3 | W61: =IFERROR(_xlfn.XLOOKUP(A61,'MMPM1-AMM'!E:E,'MMPM1-AMM'!U:U),_xlfn.XLOOKUP(A61,'MMPM1-PMM'!E:E,'MMPM1-PMM'!T:T)) -> 5 | Y61: TRUE | AB61: =_xlfn.XLOOKUP(A61,productlist[PRODUCT_ID],productlist[PRODUCT_ISIN]) -> DE0007200685 | AC61: =_xlfn.XLOOKUP(A61,productlist[PRODUCT_ID],productlist[UNDERLYING_ISIN]) -> EU0009658582
A62: OESV | B62: =_xlfn.XLOOKUP(A62,'Product List'!$A:$A,'Product List'!$D:$D) -> EURO STOXX® Travel & Leisure Options | C62: =_xlfn.XLOOKUP(A62,'Product List'!$A:$A,'Product List'!$F:$F) -> INDEX OPTIONS | D62: =_xlfn.XLOOKUP(A62,'MMPM1-AMM'!E:E,'MMPM1-AMM'!K:K,_xlfn.XLOOKUP(A62,'MMPM1-PMM'!E:E,'MMPM1-PMM'!J:J)) -> STXSO1 | E62: =_xlfn.XLOOKUP(A62,'MMPM1-AMM'!E:E,'MMPM1-AMM'!Q:Q,_xlfn.XLOOKUP(A62,'MMPM1-PMM'!E:E,'MMPM1-PMM'!P:P)) -> 5 | F62: =SUMIFS(MMPM2!H:H,MMPM2!C:C,U62,MMPM2!E:E,1,MMPM2!G:G,1) -> 5.3 | G62: =SUMIFS(MMPM2!H:H,MMPM2!C:C,U62,MMPM2!E:E,1,MMPM2!G:G,2) -> 53.3 | L62: =SUMIFS(MMPM2!I:I,MMPM2!C:C,U62,MMPM2!E:E,1,MMPM2!G:G,1) -> 0.8 | M62: =SUMIFS(MMPM2!I:I,MMPM2!C:C,U62,MMPM2!E:E,1,MMPM2!G:G,2) -> 0.15 | N62: =SUMIFS(MMPM2!I:I,MMPM2!C:C,U62,MMPM2!E:E,1,MMPM2!G:G,3) -> 8 | R62: Not applicable | S62: No doubling of mistrade range | U62: =IFERROR(_xlfn.XLOOKUP(A62,'MMPM1-PMM'!E:E,'MMPM1-PMM'!J:J),_xlfn.XLOOKUP(A62,'MMPM1-AMM'!E:E,'MMPM1-AMM'!K:K)) -> STXSO1 | V62: =IFERROR(_xlfn.XLOOKUP(A62,'MMPM1-AMM'!E:E,'MMPM1-AMM'!T:T),_xlfn.XLOOKUP(A62,'MMPM1-PMM'!E:E,'MMPM1-PMM'!S:S)) -> 3 | W62: =IFERROR(_xlfn.XLOOKUP(A62,'MMPM1-AMM'!E:E,'MMPM1-AMM'!U:U),_xlfn.XLOOKUP(A62,'MMPM1-PMM'!E:E,'MMPM1-PMM'!T:T)) -> 5 | Y62: TRUE | AB62: =_xlfn.XLOOKUP(A62,productlist[PRODUCT_ID],productlist[PRODUCT_ISIN]) -> DE0002271095 | AC62: =_xlfn.XLOOKUP(A62,productlist[PRODUCT_ID],productlist[UNDERLYING_ISIN]) -> CH0019113122
A63: OESW | B63: =_xlfn.XLOOKUP(A63,'Product List'!$A:$A,'Product List'!$D:$D) -> EURO STOXX® Food, Beverage & Tobacco Options | C63: =_xlfn.XLOOKUP(A63,'Product List'!$A:$A,'Product List'!$F:$F) -> INDEX OPTIONS | D63: =_xlfn.XLOOKUP(A63,'MMPM1-AMM'!E:E,'MMPM1-AMM'!K:K,_xlfn.XLOOKUP(A63,'MMPM1-PMM'!E:E,'MMPM1-PMM'!J:J)) -> STXSO1 | E63: =_xlfn.XLOOKUP(A63,'MMPM1-AMM'!E:E,'MMPM1-AMM'!Q:Q,_xlfn.XLOOKUP(A63,'MMPM1-PMM'!E:E,'MMPM1-PMM'!P:P)) -> 5 | F63: =SUMIFS(MMPM2!H:H,MMPM2!C:C,U63,MMPM2!E:E,1,MMPM2!G:G,1) -> 5.3 | G63: =SUMIFS(MMPM2!H:H,MMPM2!C:C,U63,MMPM2!E:E,1,MMPM2!G:G,2) -> 53.3 | L63: =SUMIFS(MMPM2!I:I,MMPM2!C:C,U63,MMPM2!E:E,1,MMPM2!G:G,1) -> 0.8 | M63: =SUMIFS(MMPM2!I:I,MMPM2!C:C,U63,MMPM2!E:E,1,MMPM2!G:G,2) -> 0.15 | N63: =SUMIFS(MMPM2!I:I,MMPM2!C:C,U63,MMPM2!E:E,1,MMPM2!G:G,3) -> 8 | R63: Not applicable | S63: No doubling of mistrade range | U63: =IFERROR(_xlfn.XLOOKUP(A63,'MMPM1-PMM'!E:E,'MMPM1-PMM'!J:J),_xlfn.XLOOKUP(A63,'MMPM1-AMM'!E:E,'MMPM1-AMM'!K:K)) -> STXSO1 | V63: =IFERROR(_xlfn.XLOOKUP(A63,'MMPM1-AMM'!E:E,'MMPM1-AMM'!T:T),_xlfn.XLOOKUP(A63,'MMPM1-PMM'!E:E,'MMPM1-PMM'!S:S)) -> 3 | W63: =IFERROR(_xlfn.XLOOKUP(A63,'MMPM1-AMM'!E:E,'MMPM1-AMM'!U:U),_xlfn.XLOOKUP(A63,'MMPM1-PMM'!E:E,'MMPM1-PMM'!T:T)) -> 5 | Y63: TRUE | AB63: =_xlfn.XLOOKUP(A63,productlist[PRODUCT_ID],productlist[PRODUCT_ISIN]) -> DE000A2QBEU8 | AC63: =_xlfn.XLOOKUP(A63,productlist[PRODUCT_ID],productlist[UNDERLYING_ISIN]) -> CH0462354033
A64: OESX | B64: =_xlfn.XLOOKUP(A64,'Product List'!$A:$A,'Product List'!$D:$D) -> EURO STOXX 50® Index Options | C64: =_xlfn.XLOOKUP(A64,'Product List'!$A:$A,'Product List'!$F:$F) -> INDEX OPTIONS | D64: =_xlfn.XLOOKUP(A64,'MMPM1-AMM'!E:E,'MMPM1-AMM'!K:K,_xlfn.XLOOKUP(A64,'MMPM1-PMM'!E:E,'MMPM1-PMM'!J:J)) -> OESX | E64: =_xlfn.XLOOKUP(A64,'MMPM1-AMM'!E:E,'MMPM1-AMM'!Q:Q,_xlfn.XLOOKUP(A64,'MMPM1-PMM'!E:E,'MMPM1-PMM'!P:P)) -> 17 | F64: =SUMIFS(MMPM2!H:H,MMPM2!C:C,U64,MMPM2!E:E,1,MMPM2!G:G,1) -> 15 | G64: =SUMIFS(MMPM2!H:H,MMPM2!C:C,U64,MMPM2!E:E,1,MMPM2!G:G,2) -> 225 | I64: 15 | J64: 225 | L64: =SUMIFS(MMPM2!I:I,MMPM2!C:C,U64,MMPM2!E:E,1,MMPM2!G:G,1) -> 1.2 | M64: =SUMIFS(MMPM2!I:I,MMPM2!C:C,U64,MMPM2!E:E,1,MMPM2!G:G,2) -> 0.08 | N64: =SUMIFS(MMPM2!I:I,MMPM2!C:C,U64,MMPM2!E:E,1,MMPM2!G:G,3) -> 18 | O64: 2.4 | P64: 0.16 | Q64: 36 | R64: =AF64 -> 25 | S64: 16 | U64: =IFERROR(_xlfn.XLOOKUP(A64,'MMPM1-PMM'!E:E,'MMPM1-PMM'!J:J),_xlfn.XLOOKUP(A64,'MMPM1-AMM'!E:E,'MMPM1-AMM'!K:K)) -> OESX | V64: =IFERROR(_xlfn.XLOOKUP(A64,'MMPM1-AMM'!E:E,'MMPM1-AMM'!T:T),_xlfn.XLOOKUP(A64,'MMPM1-PMM'!E:E,'MMPM1-PMM'!S:S)) -> 6 | W64: =IFERROR(_xlfn.XLOOKUP(A64,'MMPM1-AMM'!E:E,'MMPM1-AMM'!U:U),_xlfn.XLOOKUP(A64,'MMPM1-PMM'!E:E,'MMPM1-PMM'!T:T)) -> 17 | Y64: TRUE | AB64: =_xlfn.XLOOKUP(A64,productlist[PRODUCT_ID],productlist[PRODUCT_ISIN]) -> DE0009652396 | AC64: =_xlfn.XLOOKUP(A64,productlist[PRODUCT_ID],productlist[UNDERLYING_ISIN]) -> EU0009658145 | AE64: =W64-1 -> 16 | AF64: =IF(TODAY()<$AH$1,AE64+AG64,IF(TODAY()<$AI$1,AE64+AH64,IF(TODAY()<$AJ$1,AE64+AI64,IF(TODAY()<AK1,AE64+AJ64,IF(TODAY()<AL1,AE64+AK64,IF(TODAY()>=AL1,AE64+AL64)))))) -> 25 | AG64: 2 | AH64: 4 | AI64: 5 | AJ64: 6 | AK64: 8 | AL64: 9
A65: OESY | B65: =_xlfn.XLOOKUP(A65,'Product List'!$A:$A,'Product List'!$D:$D) -> EURO STOXX® Technology Options | C65: =_xlfn.XLOOKUP(A65,'Product List'!$A:$A,'Product List'!$F:$F) -> INDEX OPTIONS | D65: =_xlfn.XLOOKUP(A65,'MMPM1-AMM'!E:E,'MMPM1-AMM'!K:K,_xlfn.XLOOKUP(A65,'MMPM1-PMM'!E:E,'MMPM1-PMM'!J:J)) -> STXSO1 | E65: =_xlfn.XLOOKUP(A65,'MMPM1-AMM'!E:E,'MMPM1-AMM'!Q:Q,_xlfn.XLOOKUP(A65,'MMPM1-PMM'!E:E,'MMPM1-PMM'!P:P)) -> 5 | F65: =SUMIFS(MMPM2!H:H,MMPM2!C:C,U65,MMPM2!E:E,1,MMPM2!G:G,1) -> 5.3 | G65: =SUMIFS(MMPM2!H:H,MMPM2!C:C,U65,MMPM2!E:E,1,MMPM2!G:G,2) -> 53.3 | L65: =SUMIFS(MMPM2!I:I,MMPM2!C:C,U65,MMPM2!E:E,1,MMPM2!G:G,1) -> 0.8 | M65: =SUMIFS(MMPM2!I:I,MMPM2!C:C,U65,MMPM2!E:E,1,MMPM2!G:G,2) -> 0.15 | N65: =SUMIFS(MMPM2!I:I,MMPM2!C:C,U65,MMPM2!E:E,1,MMPM2!G:G,3) -> 8 | R65: Not applicable | S65: No doubling of mistrade range | U65: =IFERROR(_xlfn.XLOOKUP(A65,'MMPM1-PMM'!E:E,'MMPM1-PMM'!J:J),_xlfn.XLOOKUP(A65,'MMPM1-AMM'!E:E,'MMPM1-AMM'!K:K)) -> STXSO1 | V65: =IFERROR(_xlfn.XLOOKUP(A65,'MMPM1-AMM'!E:E,'MMPM1-AMM'!T:T),_xlfn.XLOOKUP(A65,'MMPM1-PMM'!E:E,'MMPM1-PMM'!S:S)) -> 3 | W65: =IFERROR(_xlfn.XLOOKUP(A65,'MMPM1-AMM'!E:E,'MMPM1-AMM'!U:U),_xlfn.XLOOKUP(A65,'MMPM1-PMM'!E:E,'MMPM1-PMM'!T:T)) -> 5 | Y65: TRUE | AB65: =_xlfn.XLOOKUP(A65,productlist[PRODUCT_ID],productlist[PRODUCT_ISIN]) -> DE0007923534 | AC65: =_xlfn.XLOOKUP(A65,productlist[PRODUCT_ID],productlist[UNDERLYING_ISIN]) -> EU0009658541
A66: OESZ | B66: =_xlfn.XLOOKUP(A66,'Product List'!$A:$A,'Product List'!$D:$D) -> EURO STOXX® Personal & Household Goods Options | C66: =_xlfn.XLOOKUP(A66,'Product List'!$A:$A,'Product List'!$F:$F) -> INDEX OPTIONS | D66: =_xlfn.XLOOKUP(A66,'MMPM1-AMM'!E:E,'MMPM1-AMM'!K:K,_xlfn.XLOOKUP(A66,'MMPM1-PMM'!E:E,'MMPM1-PMM'!J:J)) -> STXSO2 | E66: =_xlfn.XLOOKUP(A66,'MMPM1-AMM'!E:E,'MMPM1-AMM'!Q:Q,_xlfn.XLOOKUP(A66,'MMPM1-PMM'!E:E,'MMPM1-PMM'!P:P)) -> 5 | F66: =SUMIFS(MMPM2!H:H,MMPM2!C:C,U66,MMPM2!E:E,1,MMPM2!G:G,1) -> 8.3 | G66: =SUMIFS(MMPM2!H:H,MMPM2!C:C,U66,MMPM2!E:E,1,MMPM2!G:G,2) -> 53.3 | L66: =SUMIFS(MMPM2!I:I,MMPM2!C:C,U66,MMPM2!E:E,1,MMPM2!G:G,1) -> 2.5 | M66: =SUMIFS(MMPM2!I:I,MMPM2!C:C,U66,MMPM2!E:E,1,MMPM2!G:G,2) -> 0.3 | N66: =SUMIFS(MMPM2!I:I,MMPM2!C:C,U66,MMPM2!E:E,1,MMPM2!G:G,3) -> 16.1 | R66: Not applicable | S66: No doubling of mistrade range | U66: =IFERROR(_xlfn.XLOOKUP(A66,'MMPM1-PMM'!E:E,'MMPM1-PMM'!J:J),_xlfn.XLOOKUP(A66,'MMPM1-AMM'!E:E,'MMPM1-AMM'!K:K)) -> STXSO2 | V66: =IFERROR(_xlfn.XLOOKUP(A66,'MMPM1-AMM'!E:E,'MMPM1-AMM'!T:T),_xlfn.XLOOKUP(A66,'MMPM1-PMM'!E:E,'MMPM1-PMM'!S:S)) -> 3 | W66: =IFERROR(_xlfn.XLOOKUP(A66,'MMPM1-AMM'!E:E,'MMPM1-AMM'!U:U),_xlfn.XLOOKUP(A66,'MMPM1-PMM'!E:E,'MMPM1-PMM'!T:T)) -> 4 | Y66: FALSE | AB66: =_xlfn.XLOOKUP(A66,productlist[PRODUCT_ID],productlist[PRODUCT_ISIN]) -> DE0002271061 | AC66: =_xlfn.XLOOKUP(A66,productlist[PRODUCT_ID],productlist[UNDERLYING_ISIN]) -> CH0019112892
A67: OEXD | B67: =_xlfn.XLOOKUP(A67,'Product List'!$A:$A,'Product List'!$D:$D) -> EURO STOXX 50® Index Dividend Options | C67: =_xlfn.XLOOKUP(A67,'Product List'!$A:$A,'Product List'!$F:$F) -> INDEX DIVIDEND OPTIONS | D67: =_xlfn.XLOOKUP(A67,'MMPM1-AMM'!E:E,'MMPM1-AMM'!K:K,_xlfn.XLOOKUP(A67,'MMPM1-PMM'!E:E,'MMPM1-PMM'!J:J)) -> OEXD2 | E67: =_xlfn.XLOOKUP(A67,'MMPM1-AMM'!E:E,'MMPM1-AMM'!Q:Q,_xlfn.XLOOKUP(A67,'MMPM1-PMM'!E:E,'MMPM1-PMM'!P:P)) -> 5 | F67: =SUMIFS(MMPM2!H:H,MMPM2!C:C,U67,MMPM2!E:E,1,MMPM2!G:G,1) -> 4 | G67: =SUMIFS(MMPM2!H:H,MMPM2!C:C,U67,MMPM2!E:E,1,MMPM2!G:G,2) -> 20 | I67: 4 | J67: 20 | L67: =SUMIFS(MMPM2!I:I,MMPM2!C:C,U67,MMPM2!E:E,1,MMPM2!G:G,1) -> 2.4 | M67: =SUMIFS(MMPM2!I:I,MMPM2!C:C,U67,MMPM2!E:E,1,MMPM2!G:G,2) -> 0.6 | N67: =SUMIFS(MMPM2!I:I,MMPM2!C:C,U67,MMPM2!E:E,1,MMPM2!G:G,3) -> 10 | O67: 2 | P67: 0.5 | Q67: 10 | R67: 4 | S67: 4 | U67: =IFERROR(_xlfn.XLOOKUP(A67,'MMPM1-PMM'!E:E,'MMPM1-PMM'!J:J),_xlfn.XLOOKUP(A67,'MMPM1-AMM'!E:E,'MMPM1-AMM'!K:K)) -> OEXD1 | V67: =IFERROR(_xlfn.XLOOKUP(A67,'MMPM1-AMM'!E:E,'MMPM1-AMM'!T:T),_xlfn.XLOOKUP(A67,'MMPM1-PMM'!E:E,'MMPM1-PMM'!S:S)) -> 6 | W67: =IFERROR(_xlfn.XLOOKUP(A67,'MMPM1-AMM'!E:E,'MMPM1-AMM'!U:U),_xlfn.XLOOKUP(A67,'MMPM1-PMM'!E:E,'MMPM1-PMM'!T:T)) -> 5 | Y67: TRUE | AB67: =_xlfn.XLOOKUP(A67,productlist[PRODUCT_ID],productlist[PRODUCT_ISIN]) -> DE000A1DKML1 | AC67: =_xlfn.XLOOKUP(A67,productlist[PRODUCT_ID],productlist[UNDERLYING_ISIN]) ->  | AE67: 4
A68: OEXF | B68: =_xlfn.XLOOKUP(A68,'Product List'!$A:$A,'Product List'!$D:$D) -> EURO STOXX 50® ex Financials Index Options | C68: =_xlfn.XLOOKUP(A68,'Product List'!$A:$A,'Product List'!$F:$F) -> INDEX OPTIONS | D68: =_xlfn.XLOOKUP(A68,'MMPM1-AMM'!E:E,'MMPM1-AMM'!K:K,_xlfn.XLOOKUP(A68,'MMPM1-PMM'!E:E,'MMPM1-PMM'!J:J)) -> OEXF | E68: =_xlfn.XLOOKUP(A68,'MMPM1-AMM'!E:E,'MMPM1-AMM'!Q:Q,_xlfn.XLOOKUP(A68,'MMPM1-PMM'!E:E,'MMPM1-PMM'!P:P)) -> 8 | F68: =SUMIFS(MMPM2!H:H,MMPM2!C:C,U68,MMPM2!E:E,1,MMPM2!G:G,1) -> 5.3 | G68: =SUMIFS(MMPM2!H:H,MMPM2!C:C,U68,MMPM2!E:E,1,MMPM2!G:G,2) -> 53.3 | L68: =SUMIFS(MMPM2!I:I,MMPM2!C:C,U68,MMPM2!E:E,1,MMPM2!G:G,1) -> 1 | M68: =SUMIFS(MMPM2!I:I,MMPM2!C:C,U68,MMPM2!E:E,1,MMPM2!G:G,2) -> 0.2 | N68: =SUMIFS(MMPM2!I:I,MMPM2!C:C,U68,MMPM2!E:E,1,MMPM2!G:G,3) -> 11 | R68: Not applicable | S68: No doubling of mistrade range | U68: =IFERROR(_xlfn.XLOOKUP(A68,'MMPM1-PMM'!E:E,'MMPM1-PMM'!J:J),_xlfn.XLOOKUP(A68,'MMPM1-AMM'!E:E,'MMPM1-AMM'!K:K)) -> OEXF | V68: =IFERROR(_xlfn.XLOOKUP(A68,'MMPM1-AMM'!E:E,'MMPM1-AMM'!T:T),_xlfn.XLOOKUP(A68,'MMPM1-PMM'!E:E,'MMPM1-PMM'!S:S)) -> 3 | W68: =IFERROR(_xlfn.XLOOKUP(A68,'MMPM1-AMM'!E:E,'MMPM1-AMM'!U:U),_xlfn.XLOOKUP(A68,'MMPM1-PMM'!E:E,'MMPM1-PMM'!T:T)) -> 8 | Y68: TRUE | AB68: =_xlfn.XLOOKUP(A68,productlist[PRODUCT_ID],productlist[PRODUCT_ISIN]) -> DE000A1PHPN0 | AC68: =_xlfn.XLOOKUP(A68,productlist[PRODUCT_ID],productlist[UNDERLYING_ISIN]) -> CH0138312084
A69: OFOX | B69: =_xlfn.XLOOKUP(A69,'Product List'!$A:$A,'Product List'!$D:$D) -> OMXH25 Options | C69: =_xlfn.XLOOKUP(A69,'Product List'!$A:$A,'Product List'!$F:$F) -> INDEX OPTIONS | D69: =_xlfn.XLOOKUP(A69,'MMPM1-AMM'!E:E,'MMPM1-AMM'!K:K,_xlfn.XLOOKUP(A69,'MMPM1-PMM'!E:E,'MMPM1-PMM'!J:J)) -> OFOX | E69: =_xlfn.XLOOKUP(A69,'MMPM1-AMM'!E:E,'MMPM1-AMM'!Q:Q,_xlfn.XLOOKUP(A69,'MMPM1-PMM'!E:E,'MMPM1-PMM'!P:P)) -> 6 | F69: =SUMIFS(MMPM2!H:H,MMPM2!C:C,U69,MMPM2!E:E,1,MMPM2!G:G,1) -> 5.3 | G69: =SUMIFS(MMPM2!H:H,MMPM2!C:C,U69,MMPM2!E:E,1,MMPM2!G:G,2) -> 53.3 | L69: =SUMIFS(MMPM2!I:I,MMPM2!C:C,U69,MMPM2!E:E,1,MMPM2!G:G,1) -> 1 | M69: =SUMIFS(MMPM2!I:I,MMPM2!C:C,U69,MMPM2!E:E,1,MMPM2!G:G,2) -> 0.2 | N69: =SUMIFS(MMPM2!I:I,MMPM2!C:C,U69,MMPM2!E:E,1,MMPM2!G:G,3) -> 11 | R69: Not applicable | S69: No doubling of mistrade range | U69: =IFERROR(_xlfn.XLOOKUP(A69,'MMPM1-PMM'!E:E,'MMPM1-PMM'!J:J),_xlfn.XLOOKUP(A69,'MMPM1-AMM'!E:E,'MMPM1-AMM'!K:K)) -> OFOX | V69: =IFERROR(_xlfn.XLOOKUP(A69,'MMPM1-AMM'!E:E,'MMPM1-AMM'!T:T),_xlfn.XLOOKUP(A69,'MMPM1-PMM'!E:E,'MMPM1-PMM'!S:S)) -> 3 | W69: =IFERROR(_xlfn.XLOOKUP(A69,'MMPM1-AMM'!E:E,'MMPM1-AMM'!U:U),_xlfn.XLOOKUP(A69,'MMPM1-PMM'!E:E,'MMPM1-PMM'!T:T)) -> 6 | Y69: TRUE | AB69: =_xlfn.XLOOKUP(A69,productlist[PRODUCT_ID],productlist[PRODUCT_ISIN]) -> DE000A0G86Q2 | AC69: =_xlfn.XLOOKUP(A69,productlist[PRODUCT_ID],productlist[UNDERLYING_ISIN]) -> FI0008900212
A70: OGDV | B70: =_xlfn.XLOOKUP(A70,'Product List'!$A:$A,'Product List'!$D:$D) -> STOXX® Global Select Dividend 100 Index Options | C70: =_xlfn.XLOOKUP(A70,'Product List'!$A:$A,'Product List'!$F:$F) -> INDEX OPTIONS | D70: =_xlfn.XLOOKUP(A70,'MMPM1-AMM'!E:E,'MMPM1-AMM'!K:K,_xlfn.XLOOKUP(A70,'MMPM1-PMM'!E:E,'MMPM1-PMM'!J:J)) -> OGDV | E70: =_xlfn.XLOOKUP(A70,'MMPM1-AMM'!E:E,'MMPM1-AMM'!Q:Q,_xlfn.XLOOKUP(A70,'MMPM1-PMM'!E:E,'MMPM1-PMM'!P:P)) -> 6 | F70: =SUMIFS(MMPM2!H:H,MMPM2!C:C,U70,MMPM2!E:E,1,MMPM2!G:G,1) -> 5.3 | G70: =SUMIFS(MMPM2!H:H,MMPM2!C:C,U70,MMPM2!E:E,1,MMPM2!G:G,2) -> 53.3 | L70: =SUMIFS(MMPM2!I:I,MMPM2!C:C,U70,MMPM2!E:E,1,MMPM2!G:G,1) -> 0.8 | M70: =SUMIFS(MMPM2!I:I,MMPM2!C:C,U70,MMPM2!E:E,1,MMPM2!G:G,2) -> 0.15 | N70: =SUMIFS(MMPM2!I:I,MMPM2!C:C,U70,MMPM2!E:E,1,MMPM2!G:G,3) -> 8 | R70: Not applicable | S70: No doubling of mistrade range | U70: =IFERROR(_xlfn.XLOOKUP(A70,'MMPM1-PMM'!E:E,'MMPM1-PMM'!J:J),_xlfn.XLOOKUP(A70,'MMPM1-AMM'!E:E,'MMPM1-AMM'!K:K)) -> OGDV | V70: =IFERROR(_xlfn.XLOOKUP(A70,'MMPM1-AMM'!E:E,'MMPM1-AMM'!T:T),_xlfn.XLOOKUP(A70,'MMPM1-PMM'!E:E,'MMPM1-PMM'!S:S)) -> 3 | W70: =IFERROR(_xlfn.XLOOKUP(A70,'MMPM1-AMM'!E:E,'MMPM1-AMM'!U:U),_xlfn.XLOOKUP(A70,'MMPM1-PMM'!E:E,'MMPM1-PMM'!T:T)) -> 6 | Y70: TRUE | AB70: =_xlfn.XLOOKUP(A70,productlist[PRODUCT_ID],productlist[PRODUCT_ISIN]) -> DE000A160XN7 | AC70: =_xlfn.XLOOKUP(A70,productlist[PRODUCT_ID],productlist[UNDERLYING_ISIN]) -> US26063V1180
A71: OHYG | B71: =_xlfn.XLOOKUP(A71,'Product List'!$A:$A,'Product List'!$D:$D) -> iShares EUR High Yield Corporate Bond UCITS Options | C71: =_xlfn.XLOOKUP(A71,'Product List'!$A:$A,'Product List'!$F:$F) -> EXTF-OPTIONS | D71: =_xlfn.XLOOKUP(A71,'MMPM1-AMM'!E:E,'MMPM1-AMM'!K:K,_xlfn.XLOOKUP(A71,'MMPM1-PMM'!E:E,'MMPM1-PMM'!J:J)) -> FI-ETF | E71: =_xlfn.XLOOKUP(A71,'MMPM1-AMM'!E:E,'MMPM1-AMM'!Q:Q,_xlfn.XLOOKUP(A71,'MMPM1-PMM'!E:E,'MMPM1-PMM'!P:P)) -> 3 | F71: =SUMIFS(MMPM2!H:H,MMPM2!C:C,U71,MMPM2!E:E,1,MMPM2!G:G,1) -> 1.5 | G71: =SUMIFS(MMPM2!H:H,MMPM2!C:C,U71,MMPM2!E:E,1,MMPM2!G:G,2) -> 15 | L71: =SUMIFS(MMPM2!I:I,MMPM2!C:C,U71,MMPM2!E:E,1,MMPM2!G:G,1) -> 0.35 | M71: =SUMIFS(MMPM2!I:I,MMPM2!C:C,U71,MMPM2!E:E,1,MMPM2!G:G,2) -> 0.2 | N71: =SUMIFS(MMPM2!I:I,MMPM2!C:C,U71,MMPM2!E:E,1,MMPM2!G:G,3) -> 3 | R71: Not applicable | S71: No doubling of mistrade range | U71: =IFERROR(_xlfn.XLOOKUP(A71,'MMPM1-PMM'!E:E,'MMPM1-PMM'!J:J),_xlfn.XLOOKUP(A71,'MMPM1-AMM'!E:E,'MMPM1-AMM'!K:K)) -> FI-ETF | V71: =IFERROR(_xlfn.XLOOKUP(A71,'MMPM1-AMM'!E:E,'MMPM1-AMM'!T:T),_xlfn.XLOOKUP(A71,'MMPM1-PMM'!E:E,'MMPM1-PMM'!S:S)) -> 3 | W71: =IFERROR(_xlfn.XLOOKUP(A71,'MMPM1-AMM'!E:E,'MMPM1-AMM'!U:U),_xlfn.XLOOKUP(A71,'MMPM1-PMM'!E:E,'MMPM1-PMM'!T:T)) -> 3 | Y71: TRUE | AB71: =_xlfn.XLOOKUP(A71,productlist[PRODUCT_ID],productlist[PRODUCT_ISIN]) -> DE000A2BNC93 | AC71: =_xlfn.XLOOKUP(A71,productlist[PRODUCT_ID],productlist[UNDERLYING_ISIN]) -> IE00B66F4759
A72: OHYU | B72: =_xlfn.XLOOKUP(A72,'Product List'!$A:$A,'Product List'!$D:$D) -> iShares USD High Yield Corporate Bond UCITS Options [american] | C72: =_xlfn.XLOOKUP(A72,'Product List'!$A:$A,'Product List'!$F:$F) -> EXTF-OPTIONS | D72: =_xlfn.XLOOKUP(A72,'MMPM1-AMM'!E:E,'MMPM1-AMM'!K:K,_xlfn.XLOOKUP(A72,'MMPM1-PMM'!E:E,'MMPM1-PMM'!J:J)) -> FI-ETF | E72: =_xlfn.XLOOKUP(A72,'MMPM1-AMM'!E:E,'MMPM1-AMM'!Q:Q,_xlfn.XLOOKUP(A72,'MMPM1-PMM'!E:E,'MMPM1-PMM'!P:P)) -> 3 | F72: =SUMIFS(MMPM2!H:H,MMPM2!C:C,U72,MMPM2!E:E,1,MMPM2!G:G,1) -> 1.5 | G72: =SUMIFS(MMPM2!H:H,MMPM2!C:C,U72,MMPM2!E:E,1,MMPM2!G:G,2) -> 15 | L72: =SUMIFS(MMPM2!I:I,MMPM2!C:C,U72,MMPM2!E:E,1,MMPM2!G:G,1) -> 0.35 | M72: =SUMIFS(MMPM2!I:I,MMPM2!C:C,U72,MMPM2!E:E,1,MMPM2!G:G,2) -> 0.2 | N72: =SUMIFS(MMPM2!I:I,MMPM2!C:C,U72,MMPM2!E:E,1,MMPM2!G:G,3) -> 3 | R72: =IF(D72="OVS","",IF(V72=3, "Not applicable",W72-1)) -> Not applicable | S72: No doubling of mistrade range | U72: =IFERROR(_xlfn.XLOOKUP(A72,'MMPM1-PMM'!E:E,'MMPM1-PMM'!J:J),_xlfn.XLOOKUP(A72,'MMPM1-AMM'!E:E,'MMPM1-AMM'!K:K)) -> FI-ETF | V72: =IFERROR(_xlfn.XLOOKUP(A72,'MMPM1-AMM'!E:E,'MMPM1-AMM'!T:T),_xlfn.XLOOKUP(A72,'MMPM1-PMM'!E:E,'MMPM1-PMM'!S:S)) -> 3 | W72: =IFERROR(_xlfn.XLOOKUP(A72,'MMPM1-AMM'!E:E,'MMPM1-AMM'!U:U),_xlfn.XLOOKUP(A72,'MMPM1-PMM'!E:E,'MMPM1-PMM'!T:T)) -> 3 | Y72: TRUE | AB72: =_xlfn.XLOOKUP(A72,productlist[PRODUCT_ID],productlist[PRODUCT_ISIN]) -> DE000A2G9SQ5 | AC72: =_xlfn.XLOOKUP(A72,productlist[PRODUCT_ID],productlist[UNDERLYING_ISIN]) -> IE00B4PY7Y77
A73: OKS2 | B73: =_xlfn.XLOOKUP(A73,'Product List'!$A:$A,'Product List'!$D:$D) ->  | C73: =_xlfn.XLOOKUP(A73,'Product List'!$A:$A,'Product List'!$F:$F) ->  | D73: =_xlfn.XLOOKUP(A73,'MMPM1-AMM'!E:E,'MMPM1-AMM'!K:K,_xlfn.XLOOKUP(A73,'MMPM1-PMM'!E:E,'MMPM1-PMM'!J:J)) ->  | E73: =_xlfn.XLOOKUP(A73,'MMPM1-AMM'!E:E,'MMPM1-AMM'!Q:Q,_xlfn.XLOOKUP(A73,'MMPM1-PMM'!E:E,'MMPM1-PMM'!P:P)) ->  | F73: =SUMIFS(MMPM2!H:H,MMPM2!C:C,U73,MMPM2!E:E,1,MMPM2!G:G,1) -> 0 | G73: =SUMIFS(MMPM2!H:H,MMPM2!C:C,U73,MMPM2!E:E,1,MMPM2!G:G,2) -> 0 | I73: 1.5 | J73: 20 | L73: =SUMIFS(MMPM2!I:I,MMPM2!C:C,U73,MMPM2!E:E,1,MMPM2!G:G,1) -> 0 | M73: =SUMIFS(MMPM2!I:I,MMPM2!C:C,U73,MMPM2!E:E,1,MMPM2!G:G,2) -> 0 | N73: =SUMIFS(MMPM2!I:I,MMPM2!C:C,U73,MMPM2!E:E,1,MMPM2!G:G,3) -> 0 | O73: 0.2 | P73: 0.15 | Q73: 3 | R73: 2 | S73: 2 | U73: =IFERROR(_xlfn.XLOOKUP(A73,'MMPM1-PMM'!E:E,'MMPM1-PMM'!J:J),_xlfn.XLOOKUP(A73,'MMPM1-AMM'!E:E,'MMPM1-AMM'!K:K)) ->  | V73: =IFERROR(_xlfn.XLOOKUP(A73,'MMPM1-AMM'!E:E,'MMPM1-AMM'!T:T),_xlfn.XLOOKUP(A73,'MMPM1-PMM'!E:E,'MMPM1-PMM'!S:S)) ->  | W73: =IFERROR(_xlfn.XLOOKUP(A73,'MMPM1-AMM'!E:E,'MMPM1-AMM'!U:U),_xlfn.XLOOKUP(A73,'MMPM1-PMM'!E:E,'MMPM1-PMM'!T:T)) ->  | AB73: =_xlfn.XLOOKUP(A73,productlist[PRODUCT_ID],productlist[PRODUCT_ISIN]) ->  | AC73: =_xlfn.XLOOKUP(A73,productlist[PRODUCT_ID],productlist[UNDERLYING_ISIN]) ->  | AE73: 2
A74: OLCE | B74: =_xlfn.XLOOKUP(A74,'Product List'!$A:$A,'Product List'!$D:$D) -> EURO STOXX® Large Index Options | C74: =_xlfn.XLOOKUP(A74,'Product List'!$A:$A,'Product List'!$F:$F) -> INDEX OPTIONS | D74: =_xlfn.XLOOKUP(A74,'MMPM1-AMM'!E:E,'MMPM1-AMM'!K:K,_xlfn.XLOOKUP(A74,'MMPM1-PMM'!E:E,'MMPM1-PMM'!J:J)) -> BB-Size | E74: =_xlfn.XLOOKUP(A74,'MMPM1-AMM'!E:E,'MMPM1-AMM'!Q:Q,_xlfn.XLOOKUP(A74,'MMPM1-PMM'!E:E,'MMPM1-PMM'!P:P)) -> 6 | F74: =SUMIFS(MMPM2!H:H,MMPM2!C:C,U74,MMPM2!E:E,1,MMPM2!G:G,1) -> 5.3 | G74: =SUMIFS(MMPM2!H:H,MMPM2!C:C,U74,MMPM2!E:E,1,MMPM2!G:G,2) -> 53.3 | L74: =SUMIFS(MMPM2!I:I,MMPM2!C:C,U74,MMPM2!E:E,1,MMPM2!G:G,1) -> 0.8 | M74: =SUMIFS(MMPM2!I:I,MMPM2!C:C,U74,MMPM2!E:E,1,MMPM2!G:G,2) -> 0.15 | N74: =SUMIFS(MMPM2!I:I,MMPM2!C:C,U74,MMPM2!E:E,1,MMPM2!G:G,3) -> 8 | R74: =IF(D74="OVS","",IF(V74=3, "Not applicable",W74-1)) -> Not applicable | S74: No doubling of mistrade range | U74: =IFERROR(_xlfn.XLOOKUP(A74,'MMPM1-PMM'!E:E,'MMPM1-PMM'!J:J),_xlfn.XLOOKUP(A74,'MMPM1-AMM'!E:E,'MMPM1-AMM'!K:K)) -> BB-Size | V74: =IFERROR(_xlfn.XLOOKUP(A74,'MMPM1-AMM'!E:E,'MMPM1-AMM'!T:T),_xlfn.XLOOKUP(A74,'MMPM1-PMM'!E:E,'MMPM1-PMM'!S:S)) -> 3 | W74: =IFERROR(_xlfn.XLOOKUP(A74,'MMPM1-AMM'!E:E,'MMPM1-AMM'!U:U),_xlfn.XLOOKUP(A74,'MMPM1-PMM'!E:E,'MMPM1-PMM'!T:T)) -> 6 | Y74: TRUE | AB74: =_xlfn.XLOOKUP(A74,productlist[PRODUCT_ID],productlist[PRODUCT_ISIN]) -> DE000A1DKQQ1 | AC74: =_xlfn.XLOOKUP(A74,productlist[PRODUCT_ID],productlist[UNDERLYING_ISIN]) -> CH0009040632
A75: OLCP | B75: =_xlfn.XLOOKUP(A75,'Product List'!$A:$A,'Product List'!$D:$D) -> STOXX® Europe Large 200 Index Options | C75: =_xlfn.XLOOKUP(A75,'Product List'!$A:$A,'Product List'!$F:$F) -> INDEX OPTIONS | D75: =_xlfn.XLOOKUP(A75,'MMPM1-AMM'!E:E,'MMPM1-AMM'!K:K,_xlfn.XLOOKUP(A75,'MMPM1-PMM'!E:E,'MMPM1-PMM'!J:J)) -> BB-Size | E75: =_xlfn.XLOOKUP(A75,'MMPM1-AMM'!E:E,'MMPM1-AMM'!Q:Q,_xlfn.XLOOKUP(A75,'MMPM1-PMM'!E:E,'MMPM1-PMM'!P:P)) -> 6 | F75: =SUMIFS(MMPM2!H:H,MMPM2!C:C,U75,MMPM2!E:E,1,MMPM2!G:G,1) -> 5.3 | G75: =SUMIFS(MMPM2!H:H,MMPM2!C:C,U75,MMPM2!E:E,1,MMPM2!G:G,2) -> 53.3 | L75: =SUMIFS(MMPM2!I:I,MMPM2!C:C,U75,MMPM2!E:E,1,MMPM2!G:G,1) -> 0.8 | M75: =SUMIFS(MMPM2!I:I,MMPM2!C:C,U75,MMPM2!E:E,1,MMPM2!G:G,2) -> 0.15 | N75: =SUMIFS(MMPM2!I:I,MMPM2!C:C,U75,MMPM2!E:E,1,MMPM2!G:G,3) -> 8 | R75: Not applicable | S75: No doubling of mistrade range | U75: =IFERROR(_xlfn.XLOOKUP(A75,'MMPM1-PMM'!E:E,'MMPM1-PMM'!J:J),_xlfn.XLOOKUP(A75,'MMPM1-AMM'!E:E,'MMPM1-AMM'!K:K)) -> BB-Size | V75: =IFERROR(_xlfn.XLOOKUP(A75,'MMPM1-AMM'!E:E,'MMPM1-AMM'!T:T),_xlfn.XLOOKUP(A75,'MMPM1-PMM'!E:E,'MMPM1-PMM'!S:S)) -> 3 | W75: =IFERROR(_xlfn.XLOOKUP(A75,'MMPM1-AMM'!E:E,'MMPM1-AMM'!U:U),_xlfn.XLOOKUP(A75,'MMPM1-PMM'!E:E,'MMPM1-PMM'!T:T)) -> 6 | Y75: TRUE | AB75: =_xlfn.XLOOKUP(A75,productlist[PRODUCT_ID],productlist[PRODUCT_ISIN]) -> DE000A1DKQU3 | AC75: =_xlfn.XLOOKUP(A75,productlist[PRODUCT_ID],productlist[UNDERLYING_ISIN]) -> CH0009041895
A76: OMAC | B76: =_xlfn.XLOOKUP(A76,'Product List'!$A:$A,'Product List'!$D:$D) -> MSCI ACWI Index Options | C76: =_xlfn.XLOOKUP(A76,'Product List'!$A:$A,'Product List'!$F:$F) -> INDEX OPTIONS | D76: =_xlfn.XLOOKUP(A76,'MMPM1-AMM'!E:E,'MMPM1-AMM'!K:K,_xlfn.XLOOKUP(A76,'MMPM1-PMM'!E:E,'MMPM1-PMM'!J:J)) -> MSCI-1 | E76: =_xlfn.XLOOKUP(A76,'MMPM1-AMM'!E:E,'MMPM1-AMM'!Q:Q,_xlfn.XLOOKUP(A76,'MMPM1-PMM'!E:E,'MMPM1-PMM'!P:P)) -> 6 | F76: =SUMIFS(MMPM2!H:H,MMPM2!C:C,U76,MMPM2!E:E,1,MMPM2!G:G,1) -> 5.3 | G76: =SUMIFS(MMPM2!H:H,MMPM2!C:C,U76,MMPM2!E:E,1,MMPM2!G:G,2) -> 53.3 | L76: =SUMIFS(MMPM2!I:I,MMPM2!C:C,U76,MMPM2!E:E,1,MMPM2!G:G,1) -> 0.8 | M76: =SUMIFS(MMPM2!I:I,MMPM2!C:C,U76,MMPM2!E:E,1,MMPM2!G:G,2) -> 0.15 | N76: =SUMIFS(MMPM2!I:I,MMPM2!C:C,U76,MMPM2!E:E,1,MMPM2!G:G,3) -> 8 | R76: Not applicable | S76: No doubling of mistrade range | U76: =IFERROR(_xlfn.XLOOKUP(A76,'MMPM1-PMM'!E:E,'MMPM1-PMM'!J:J),_xlfn.XLOOKUP(A76,'MMPM1-AMM'!E:E,'MMPM1-AMM'!K:K)) -> MSCI-1 | V76: =IFERROR(_xlfn.XLOOKUP(A76,'MMPM1-AMM'!E:E,'MMPM1-AMM'!T:T),_xlfn.XLOOKUP(A76,'MMPM1-PMM'!E:E,'MMPM1-PMM'!S:S)) -> 3 | W76: =IFERROR(_xlfn.XLOOKUP(A76,'MMPM1-AMM'!E:E,'MMPM1-AMM'!U:U),_xlfn.XLOOKUP(A76,'MMPM1-PMM'!E:E,'MMPM1-PMM'!T:T)) -> 6 | Y76: TRUE | AB76: =_xlfn.XLOOKUP(A76,productlist[PRODUCT_ID],productlist[PRODUCT_ISIN]) -> DE000A2GG9A0 | AC76: =_xlfn.XLOOKUP(A76,productlist[PRODUCT_ID],productlist[UNDERLYING_ISIN]) -> GB00BP5FTG38
A77: OMAS | B77: =_xlfn.XLOOKUP(A77,'Product List'!$A:$A,'Product List'!$D:$D) -> MSCI AC Asia Pacific ex Japan Index Options | C77: =_xlfn.XLOOKUP(A77,'Product List'!$A:$A,'Product List'!$F:$F) -> INDEX OPTIONS | D77: =_xlfn.XLOOKUP(A77,'MMPM1-AMM'!E:E,'MMPM1-AMM'!K:K,_xlfn.XLOOKUP(A77,'MMPM1-PMM'!E:E,'MMPM1-PMM'!J:J)) -> MSCI-2 | E77: =_xlfn.XLOOKUP(A77,'MMPM1-AMM'!E:E,'MMPM1-AMM'!Q:Q,_xlfn.XLOOKUP(A77,'MMPM1-PMM'!E:E,'MMPM1-PMM'!P:P)) -> 6 | F77: =SUMIFS(MMPM2!H:H,MMPM2!C:C,U77,MMPM2!E:E,1,MMPM2!G:G,1) -> 13.3 | G77: =SUMIFS(MMPM2!H:H,MMPM2!C:C,U77,MMPM2!E:E,1,MMPM2!G:G,2) -> 133.3 | L77: =SUMIFS(MMPM2!I:I,MMPM2!C:C,U77,MMPM2!E:E,1,MMPM2!G:G,1) -> 2 | M77: =SUMIFS(MMPM2!I:I,MMPM2!C:C,U77,MMPM2!E:E,1,MMPM2!G:G,2) -> 0.15 | N77: =SUMIFS(MMPM2!I:I,MMPM2!C:C,U77,MMPM2!E:E,1,MMPM2!G:G,3) -> 20 | R77: Not applicable | S77: No doubling of mistrade range | U77: =IFERROR(_xlfn.XLOOKUP(A77,'MMPM1-PMM'!E:E,'MMPM1-PMM'!J:J),_xlfn.XLOOKUP(A77,'MMPM1-AMM'!E:E,'MMPM1-AMM'!K:K)) -> MSCI-2 | V77: =IFERROR(_xlfn.XLOOKUP(A77,'MMPM1-AMM'!E:E,'MMPM1-AMM'!T:T),_xlfn.XLOOKUP(A77,'MMPM1-PMM'!E:E,'MMPM1-PMM'!S:S)) -> 3 | W77: =IFERROR(_xlfn.XLOOKUP(A77,'MMPM1-AMM'!E:E,'MMPM1-AMM'!U:U),_xlfn.XLOOKUP(A77,'MMPM1-PMM'!E:E,'MMPM1-PMM'!T:T)) -> 6 | Y77: TRUE | AB77: =_xlfn.XLOOKUP(A77,productlist[PRODUCT_ID],productlist[PRODUCT_ISIN]) -> DE000A1RRXM1 | AC77: =_xlfn.XLOOKUP(A77,productlist[PRODUCT_ID],productlist[UNDERLYING_ISIN]) -> GB00BP5FSH79
A78: OMAW | B78: =_xlfn.XLOOKUP(A78,'Product List'!$A:$A,'Product List'!$D:$D) -> MSCI ACWI Price Index Options | C78: =_xlfn.XLOOKUP(A78,'Product List'!$A:$A,'Product List'!$F:$F) -> INDEX OPTIONS | D78: =_xlfn.XLOOKUP(A78,'MMPM1-AMM'!E:E,'MMPM1-AMM'!K:K,_xlfn.XLOOKUP(A78,'MMPM1-PMM'!E:E,'MMPM1-PMM'!J:J)) -> MSCI-2 | E78: =_xlfn.XLOOKUP(A78,'MMPM1-AMM'!E:E,'MMPM1-AMM'!Q:Q,_xlfn.XLOOKUP(A78,'MMPM1-PMM'!E:E,'MMPM1-PMM'!P:P)) -> 6 | F78: =SUMIFS(MMPM2!H:H,MMPM2!C:C,U78,MMPM2!E:E,1,MMPM2!G:G,1) -> 13.3 | G78: =SUMIFS(MMPM2!H:H,MMPM2!C:C,U78,MMPM2!E:E,1,MMPM2!G:G,2) -> 133.3 | L78: =SUMIFS(MMPM2!I:I,MMPM2!C:C,U78,MMPM2!E:E,1,MMPM2!G:G,1) -> 2 | M78: =SUMIFS(MMPM2!I:I,MMPM2!C:C,U78,MMPM2!E:E,1,MMPM2!G:G,2) -> 0.15 | N78: =SUMIFS(MMPM2!I:I,MMPM2!C:C,U78,MMPM2!E:E,1,MMPM2!G:G,3) -> 20 | R78: Not applicable | S78: No doubling of mistrade range | U78: =IFERROR(_xlfn.XLOOKUP(A78,'MMPM1-PMM'!E:E,'MMPM1-PMM'!J:J),_xlfn.XLOOKUP(A78,'MMPM1-AMM'!E:E,'MMPM1-AMM'!K:K)) -> MSCI-2 | V78: =IFERROR(_xlfn.XLOOKUP(A78,'MMPM1-AMM'!E:E,'MMPM1-AMM'!T:T),_xlfn.XLOOKUP(A78,'MMPM1-PMM'!E:E,'MMPM1-PMM'!S:S)) -> 3 | W78: =IFERROR(_xlfn.XLOOKUP(A78,'MMPM1-AMM'!E:E,'MMPM1-AMM'!U:U),_xlfn.XLOOKUP(A78,'MMPM1-PMM'!E:E,'MMPM1-PMM'!T:T)) -> 6 | Y78: TRUE | AB78: =_xlfn.XLOOKUP(A78,productlist[PRODUCT_ID],productlist[PRODUCT_ISIN]) -> DE000A2GG893 | AC78: =_xlfn.XLOOKUP(A78,productlist[PRODUCT_ID],productlist[UNDERLYING_ISIN]) -> GB00BP68BY37
A79: OMCE | B79: =_xlfn.XLOOKUP(A79,'Product List'!$A:$A,'Product List'!$D:$D) -> EURO STOXX® Mid Index Options | C79: =_xlfn.XLOOKUP(A79,'Product List'!$A:$A,'Product List'!$F:$F) -> INDEX OPTIONS | D79: =_xlfn.XLOOKUP(A79,'MMPM1-AMM'!E:E,'MMPM1-AMM'!K:K,_xlfn.XLOOKUP(A79,'MMPM1-PMM'!E:E,'MMPM1-PMM'!J:J)) -> BB-Size | E79: =_xlfn.XLOOKUP(A79,'MMPM1-AMM'!E:E,'MMPM1-AMM'!Q:Q,_xlfn.XLOOKUP(A79,'MMPM1-PMM'!E:E,'MMPM1-PMM'!P:P)) -> 6 | F79: =SUMIFS(MMPM2!H:H,MMPM2!C:C,U79,MMPM2!E:E,1,MMPM2!G:G,1) -> 5.3 | G79: =SUMIFS(MMPM2!H:H,MMPM2!C:C,U79,MMPM2!E:E,1,MMPM2!G:G,2) -> 53.3 | L79: =SUMIFS(MMPM2!I:I,MMPM2!C:C,U79,MMPM2!E:E,1,MMPM2!G:G,1) -> 0.8 | M79: =SUMIFS(MMPM2!I:I,MMPM2!C:C,U79,MMPM2!E:E,1,MMPM2!G:G,2) -> 0.15 | N79: =SUMIFS(MMPM2!I:I,MMPM2!C:C,U79,MMPM2!E:E,1,MMPM2!G:G,3) -> 8 | R79: Not applicable | S79: No doubling of mistrade range | U79: =IFERROR(_xlfn.XLOOKUP(A79,'MMPM1-PMM'!E:E,'MMPM1-PMM'!J:J),_xlfn.XLOOKUP(A79,'MMPM1-AMM'!E:E,'MMPM1-AMM'!K:K)) -> BB-Size | V79: =IFERROR(_xlfn.XLOOKUP(A79,'MMPM1-AMM'!E:E,'MMPM1-AMM'!T:T),_xlfn.XLOOKUP(A79,'MMPM1-PMM'!E:E,'MMPM1-PMM'!S:S)) -> 3 | W79: =IFERROR(_xlfn.XLOOKUP(A79,'MMPM1-AMM'!E:E,'MMPM1-AMM'!U:U),_xlfn.XLOOKUP(A79,'MMPM1-PMM'!E:E,'MMPM1-PMM'!T:T)) -> 6 | Y79: TRUE | AB79: =_xlfn.XLOOKUP(A79,productlist[PRODUCT_ID],productlist[PRODUCT_ISIN]) -> DE000A1DKQR9 | AC79: =_xlfn.XLOOKUP(A79,productlist[PRODUCT_ID],productlist[UNDERLYING_ISIN]) -> CH0009042240
A80: OMCP | B80: =_xlfn.XLOOKUP(A80,'Product List'!$A:$A,'Product List'!$D:$D) -> STOXX® Europe Mid 200 Index Options | C80: =_xlfn.XLOOKUP(A80,'Product List'!$A:$A,'Product List'!$F:$F) -> INDEX OPTIONS | D80: =_xlfn.XLOOKUP(A80,'MMPM1-AMM'!E:E,'MMPM1-AMM'!K:K,_xlfn.XLOOKUP(A80,'MMPM1-PMM'!E:E,'MMPM1-PMM'!J:J)) -> BB-Size | E80: =_xlfn.XLOOKUP(A80,'MMPM1-AMM'!E:E,'MMPM1-AMM'!Q:Q,_xlfn.XLOOKUP(A80,'MMPM1-PMM'!E:E,'MMPM1-PMM'!P:P)) -> 6 | F80: =SUMIFS(MMPM2!H:H,MMPM2!C:C,U80,MMPM2!E:E,1,MMPM2!G:G,1) -> 5.3 | G80: =SUMIFS(MMPM2!H:H,MMPM2!C:C,U80,MMPM2!E:E,1,MMPM2!G:G,2) -> 53.3 | L80: =SUMIFS(MMPM2!I:I,MMPM2!C:C,U80,MMPM2!E:E,1,MMPM2!G:G,1) -> 0.8 | M80: =SUMIFS(MMPM2!I:I,MMPM2!C:C,U80,MMPM2!E:E,1,MMPM2!G:G,2) -> 0.15 | N80: =SUMIFS(MMPM2!I:I,MMPM2!C:C,U80,MMPM2!E:E,1,MMPM2!G:G,3) -> 8 | R80: Not applicable | S80: No doubling of mistrade range | U80: =IFERROR(_xlfn.XLOOKUP(A80,'MMPM1-PMM'!E:E,'MMPM1-PMM'!J:J),_xlfn.XLOOKUP(A80,'MMPM1-AMM'!E:E,'MMPM1-AMM'!K:K)) -> BB-Size | V80: =IFERROR(_xlfn.XLOOKUP(A80,'MMPM1-AMM'!E:E,'MMPM1-AMM'!T:T),_xlfn.XLOOKUP(A80,'MMPM1-PMM'!E:E,'MMPM1-PMM'!S:S)) -> 3 | W80: =IFERROR(_xlfn.XLOOKUP(A80,'MMPM1-AMM'!E:E,'MMPM1-AMM'!U:U),_xlfn.XLOOKUP(A80,'MMPM1-PMM'!E:E,'MMPM1-PMM'!T:T)) -> 6 | Y80: TRUE | AB80: =_xlfn.XLOOKUP(A80,productlist[PRODUCT_ID],productlist[PRODUCT_ISIN]) -> DE000A1DKQV1 | AC80: =_xlfn.XLOOKUP(A80,productlist[PRODUCT_ID],productlist[UNDERLYING_ISIN]) -> CH0009107191
A81: OMEA | B81: =_xlfn.XLOOKUP(A81,'Product List'!$A:$A,'Product List'!$D:$D) -> MSCI Emerging Markets Asia Index Options | C81: =_xlfn.XLOOKUP(A81,'Product List'!$A:$A,'Product List'!$F:$F) -> INDEX OPTIONS | D81: =_xlfn.XLOOKUP(A81,'MMPM1-AMM'!E:E,'MMPM1-AMM'!K:K,_xlfn.XLOOKUP(A81,'MMPM1-PMM'!E:E,'MMPM1-PMM'!J:J)) -> MSCI-4 | E81: =_xlfn.XLOOKUP(A81,'MMPM1-AMM'!E:E,'MMPM1-AMM'!Q:Q,_xlfn.XLOOKUP(A81,'MMPM1-PMM'!E:E,'MMPM1-PMM'!P:P)) -> 6 | F81: =SUMIFS(MMPM2!H:H,MMPM2!C:C,U81,MMPM2!E:E,1,MMPM2!G:G,1) -> 15 | G81: =SUMIFS(MMPM2!H:H,MMPM2!C:C,U81,MMPM2!E:E,1,MMPM2!G:G,2) -> 187.5 | L81: =SUMIFS(MMPM2!I:I,MMPM2!C:C,U81,MMPM2!E:E,1,MMPM2!G:G,1) -> 3 | M81: =SUMIFS(MMPM2!I:I,MMPM2!C:C,U81,MMPM2!E:E,1,MMPM2!G:G,2) -> 0.2 | N81: =SUMIFS(MMPM2!I:I,MMPM2!C:C,U81,MMPM2!E:E,1,MMPM2!G:G,3) -> 37.5 | R81: Not applicable | S81: No doubling of mistrade range | U81: =IFERROR(_xlfn.XLOOKUP(A81,'MMPM1-PMM'!E:E,'MMPM1-PMM'!J:J),_xlfn.XLOOKUP(A81,'MMPM1-AMM'!E:E,'MMPM1-AMM'!K:K)) -> MSCI-4 | V81: =IFERROR(_xlfn.XLOOKUP(A81,'MMPM1-AMM'!E:E,'MMPM1-AMM'!T:T),_xlfn.XLOOKUP(A81,'MMPM1-PMM'!E:E,'MMPM1-PMM'!S:S)) -> 3 | W81: =IFERROR(_xlfn.XLOOKUP(A81,'MMPM1-AMM'!E:E,'MMPM1-AMM'!U:U),_xlfn.XLOOKUP(A81,'MMPM1-PMM'!E:E,'MMPM1-PMM'!T:T)) -> 6 | Y81: TRUE | AB81: =_xlfn.XLOOKUP(A81,productlist[PRODUCT_ID],productlist[PRODUCT_ISIN]) -> DE000A1XQ7B0 | AC81: =_xlfn.XLOOKUP(A81,productlist[PRODUCT_ID],productlist[UNDERLYING_ISIN]) -> GB00BP5FSL16
A82: OMEE | B82: =_xlfn.XLOOKUP(A82,'Product List'!$A:$A,'Product List'!$D:$D) -> MSCI Emerging Markets EMEA Index Options | C82: =_xlfn.XLOOKUP(A82,'Product List'!$A:$A,'Product List'!$F:$F) -> INDEX OPTIONS | D82: =_xlfn.XLOOKUP(A82,'MMPM1-AMM'!E:E,'MMPM1-AMM'!K:K,_xlfn.XLOOKUP(A82,'MMPM1-PMM'!E:E,'MMPM1-PMM'!J:J)) -> MSCI-4 | E82: =_xlfn.XLOOKUP(A82,'MMPM1-AMM'!E:E,'MMPM1-AMM'!Q:Q,_xlfn.XLOOKUP(A82,'MMPM1-PMM'!E:E,'MMPM1-PMM'!P:P)) -> 6 | F82: =SUMIFS(MMPM2!H:H,MMPM2!C:C,U82,MMPM2!E:E,1,MMPM2!G:G,1) -> 15 | G82: =SUMIFS(MMPM2!H:H,MMPM2!C:C,U82,MMPM2!E:E,1,MMPM2!G:G,2) -> 187.5 | L82: =SUMIFS(MMPM2!I:I,MMPM2!C:C,U82,MMPM2!E:E,1,MMPM2!G:G,1) -> 3 | M82: =SUMIFS(MMPM2!I:I,MMPM2!C:C,U82,MMPM2!E:E,1,MMPM2!G:G,2) -> 0.2 | N82: =SUMIFS(MMPM2!I:I,MMPM2!C:C,U82,MMPM2!E:E,1,MMPM2!G:G,3) -> 37.5 | R82: Not applicable | S82: No doubling of mistrade range | U82: =IFERROR(_xlfn.XLOOKUP(A82,'MMPM1-PMM'!E:E,'MMPM1-PMM'!J:J),_xlfn.XLOOKUP(A82,'MMPM1-AMM'!E:E,'MMPM1-AMM'!K:K)) -> MSCI-4 | V82: =IFERROR(_xlfn.XLOOKUP(A82,'MMPM1-AMM'!E:E,'MMPM1-AMM'!T:T),_xlfn.XLOOKUP(A82,'MMPM1-PMM'!E:E,'MMPM1-PMM'!S:S)) -> 3 | W82: =IFERROR(_xlfn.XLOOKUP(A82,'MMPM1-AMM'!E:E,'MMPM1-AMM'!U:U),_xlfn.XLOOKUP(A82,'MMPM1-PMM'!E:E,'MMPM1-PMM'!T:T)) -> 6 | Y82: TRUE | AB82: =_xlfn.XLOOKUP(A82,productlist[PRODUCT_ID],productlist[PRODUCT_ISIN]) -> DE000A1XQ7C8 | AC82: =_xlfn.XLOOKUP(A82,productlist[PRODUCT_ID],productlist[UNDERLYING_ISIN]) -> GB00BP5FSM23
A83: OMEF | B83: =_xlfn.XLOOKUP(A83,'Product List'!$A:$A,'Product List'!$D:$D) -> MSCI Emerging Markets Price Index Options | C83: =_xlfn.XLOOKUP(A83,'Product List'!$A:$A,'Product List'!$F:$F) -> INDEX OPTIONS | D83: =_xlfn.XLOOKUP(A83,'MMPM1-AMM'!E:E,'MMPM1-AMM'!K:K,_xlfn.XLOOKUP(A83,'MMPM1-PMM'!E:E,'MMPM1-PMM'!J:J)) -> MSCI-3 | E83: =_xlfn.XLOOKUP(A83,'MMPM1-AMM'!E:E,'MMPM1-AMM'!Q:Q,_xlfn.XLOOKUP(A83,'MMPM1-PMM'!E:E,'MMPM1-PMM'!P:P)) -> 6 | F83: =SUMIFS(MMPM2!H:H,MMPM2!C:C,U83,MMPM2!E:E,1,MMPM2!G:G,1) -> 40 | G83: =SUMIFS(MMPM2!H:H,MMPM2!C:C,U83,MMPM2!E:E,1,MMPM2!G:G,2) -> 400 | L83: =SUMIFS(MMPM2!I:I,MMPM2!C:C,U83,MMPM2!E:E,1,MMPM2!G:G,1) -> 8 | M83: =SUMIFS(MMPM2!I:I,MMPM2!C:C,U83,MMPM2!E:E,1,MMPM2!G:G,2) -> 0.2 | N83: =SUMIFS(MMPM2!I:I,MMPM2!C:C,U83,MMPM2!E:E,1,MMPM2!G:G,3) -> 80 | R83: Not applicable | S83: No doubling of mistrade range | U83: =IFERROR(_xlfn.XLOOKUP(A83,'MMPM1-PMM'!E:E,'MMPM1-PMM'!J:J),_xlfn.XLOOKUP(A83,'MMPM1-AMM'!E:E,'MMPM1-AMM'!K:K)) -> MSCI-3 | V83: =IFERROR(_xlfn.XLOOKUP(A83,'MMPM1-AMM'!E:E,'MMPM1-AMM'!T:T),_xlfn.XLOOKUP(A83,'MMPM1-PMM'!E:E,'MMPM1-PMM'!S:S)) -> 3 | W83: =IFERROR(_xlfn.XLOOKUP(A83,'MMPM1-AMM'!E:E,'MMPM1-AMM'!U:U),_xlfn.XLOOKUP(A83,'MMPM1-PMM'!E:E,'MMPM1-PMM'!T:T)) -> 6 | Y83: TRUE | AB83: =_xlfn.XLOOKUP(A83,productlist[PRODUCT_ID],productlist[PRODUCT_ISIN]) -> DE000A11Q380 | AC83: =_xlfn.XLOOKUP(A83,productlist[PRODUCT_ID],productlist[UNDERLYING_ISIN]) -> GB00BP5FTD07
A84: OMEL | B84: =_xlfn.XLOOKUP(A84,'Product List'!$A:$A,'Product List'!$D:$D) -> MSCI Emerging Markets Latin America Index Options | C84: =_xlfn.XLOOKUP(A84,'Product List'!$A:$A,'Product List'!$F:$F) -> INDEX OPTIONS | D84: =_xlfn.XLOOKUP(A84,'MMPM1-AMM'!E:E,'MMPM1-AMM'!K:K,_xlfn.XLOOKUP(A84,'MMPM1-PMM'!E:E,'MMPM1-PMM'!J:J)) -> MSCI-3 | E84: =_xlfn.XLOOKUP(A84,'MMPM1-AMM'!E:E,'MMPM1-AMM'!Q:Q,_xlfn.XLOOKUP(A84,'MMPM1-PMM'!E:E,'MMPM1-PMM'!P:P)) -> 6 | F84: =SUMIFS(MMPM2!H:H,MMPM2!C:C,U84,MMPM2!E:E,1,MMPM2!G:G,1) -> 40 | G84: =SUMIFS(MMPM2!H:H,MMPM2!C:C,U84,MMPM2!E:E,1,MMPM2!G:G,2) -> 400 | L84: =SUMIFS(MMPM2!I:I,MMPM2!C:C,U84,MMPM2!E:E,1,MMPM2!G:G,1) -> 8 | M84: =SUMIFS(MMPM2!I:I,MMPM2!C:C,U84,MMPM2!E:E,1,MMPM2!G:G,2) -> 0.2 | N84: =SUMIFS(MMPM2!I:I,MMPM2!C:C,U84,MMPM2!E:E,1,MMPM2!G:G,3) -> 80 | R84: Not applicable | S84: No doubling of mistrade range | U84: =IFERROR(_xlfn.XLOOKUP(A84,'MMPM1-PMM'!E:E,'MMPM1-PMM'!J:J),_xlfn.XLOOKUP(A84,'MMPM1-AMM'!E:E,'MMPM1-AMM'!K:K)) -> MSCI-3 | V84: =IFERROR(_xlfn.XLOOKUP(A84,'MMPM1-AMM'!E:E,'MMPM1-AMM'!T:T),_xlfn.XLOOKUP(A84,'MMPM1-PMM'!E:E,'MMPM1-PMM'!S:S)) -> 3 | W84: =IFERROR(_xlfn.XLOOKUP(A84,'MMPM1-AMM'!E:E,'MMPM1-AMM'!U:U),_xlfn.XLOOKUP(A84,'MMPM1-PMM'!E:E,'MMPM1-PMM'!T:T)) -> 6 | Y84: TRUE | AB84: =_xlfn.XLOOKUP(A84,productlist[PRODUCT_ID],productlist[PRODUCT_ISIN]) -> DE000A1XQ7D6 | AC84: =_xlfn.XLOOKUP(A84,productlist[PRODUCT_ID],productlist[UNDERLYING_ISIN]) -> GB00BP5FSN30
A85: OMEM | B85: =_xlfn.XLOOKUP(A85,'Product List'!$A:$A,'Product List'!$D:$D) -> MSCI Emerging Markets Index Options | C85: =_xlfn.XLOOKUP(A85,'Product List'!$A:$A,'Product List'!$F:$F) -> INDEX OPTIONS | D85: =_xlfn.XLOOKUP(A85,'MMPM1-AMM'!E:E,'MMPM1-AMM'!K:K,_xlfn.XLOOKUP(A85,'MMPM1-PMM'!E:E,'MMPM1-PMM'!J:J)) -> MSCI-4 | E85: =_xlfn.XLOOKUP(A85,'MMPM1-AMM'!E:E,'MMPM1-AMM'!Q:Q,_xlfn.XLOOKUP(A85,'MMPM1-PMM'!E:E,'MMPM1-PMM'!P:P)) -> 6 | F85: =SUMIFS(MMPM2!H:H,MMPM2!C:C,U85,MMPM2!E:E,1,MMPM2!G:G,1) -> 15 | G85: =SUMIFS(MMPM2!H:H,MMPM2!C:C,U85,MMPM2!E:E,1,MMPM2!G:G,2) -> 187.5 | L85: =SUMIFS(MMPM2!I:I,MMPM2!C:C,U85,MMPM2!E:E,1,MMPM2!G:G,1) -> 3 | M85: =SUMIFS(MMPM2!I:I,MMPM2!C:C,U85,MMPM2!E:E,1,MMPM2!G:G,2) -> 0.2 | N85: =SUMIFS(MMPM2!I:I,MMPM2!C:C,U85,MMPM2!E:E,1,MMPM2!G:G,3) -> 37.5 | R85: Not applicable | S85: No doubling of mistrade range | U85: =IFERROR(_xlfn.XLOOKUP(A85,'MMPM1-PMM'!E:E,'MMPM1-PMM'!J:J),_xlfn.XLOOKUP(A85,'MMPM1-AMM'!E:E,'MMPM1-AMM'!K:K)) -> MSCI-4 | V85: =IFERROR(_xlfn.XLOOKUP(A85,'MMPM1-AMM'!E:E,'MMPM1-AMM'!T:T),_xlfn.XLOOKUP(A85,'MMPM1-PMM'!E:E,'MMPM1-PMM'!S:S)) -> 3 | W85: =IFERROR(_xlfn.XLOOKUP(A85,'MMPM1-AMM'!E:E,'MMPM1-AMM'!U:U),_xlfn.XLOOKUP(A85,'MMPM1-PMM'!E:E,'MMPM1-PMM'!T:T)) -> 6 | Y85: TRUE | AB85: =_xlfn.XLOOKUP(A85,productlist[PRODUCT_ID],productlist[PRODUCT_ISIN]) -> DE000A1XQ7A2 | AC85: =_xlfn.XLOOKUP(A85,productlist[PRODUCT_ID],productlist[UNDERLYING_ISIN]) -> GB00BP5FSK09
A86: OMEN | B86: =_xlfn.XLOOKUP(A86,'Product List'!$A:$A,'Product List'!$D:$D) -> MSCI Emerging Markets Index Options | C86: =_xlfn.XLOOKUP(A86,'Product List'!$A:$A,'Product List'!$F:$F) -> INDEX OPTIONS | D86: =_xlfn.XLOOKUP(A86,'MMPM1-AMM'!E:E,'MMPM1-AMM'!K:K,_xlfn.XLOOKUP(A86,'MMPM1-PMM'!E:E,'MMPM1-PMM'!J:J)) -> MSCI-4 | E86: =_xlfn.XLOOKUP(A86,'MMPM1-AMM'!E:E,'MMPM1-AMM'!Q:Q,_xlfn.XLOOKUP(A86,'MMPM1-PMM'!E:E,'MMPM1-PMM'!P:P)) -> 6 | F86: =SUMIFS(MMPM2!H:H,MMPM2!C:C,U86,MMPM2!E:E,1,MMPM2!G:G,1) -> 15 | G86: =SUMIFS(MMPM2!H:H,MMPM2!C:C,U86,MMPM2!E:E,1,MMPM2!G:G,2) -> 187.5 | L86: =SUMIFS(MMPM2!I:I,MMPM2!C:C,U86,MMPM2!E:E,1,MMPM2!G:G,1) -> 3 | M86: =SUMIFS(MMPM2!I:I,MMPM2!C:C,U86,MMPM2!E:E,1,MMPM2!G:G,2) -> 0.2 | N86: =SUMIFS(MMPM2!I:I,MMPM2!C:C,U86,MMPM2!E:E,1,MMPM2!G:G,3) -> 37.5 | R86: Not applicable | S86: No doubling of mistrade range | U86: =IFERROR(_xlfn.XLOOKUP(A86,'MMPM1-PMM'!E:E,'MMPM1-PMM'!J:J),_xlfn.XLOOKUP(A86,'MMPM1-AMM'!E:E,'MMPM1-AMM'!K:K)) -> MSCI-4 | V86: =IFERROR(_xlfn.XLOOKUP(A86,'MMPM1-AMM'!E:E,'MMPM1-AMM'!T:T),_xlfn.XLOOKUP(A86,'MMPM1-PMM'!E:E,'MMPM1-PMM'!S:S)) -> 3 | W86: =IFERROR(_xlfn.XLOOKUP(A86,'MMPM1-AMM'!E:E,'MMPM1-AMM'!U:U),_xlfn.XLOOKUP(A86,'MMPM1-PMM'!E:E,'MMPM1-PMM'!T:T)) -> 6 | Y86: TRUE | AB86: =_xlfn.XLOOKUP(A86,productlist[PRODUCT_ID],productlist[PRODUCT_ISIN]) -> DE000A11Q398 | AC86: =_xlfn.XLOOKUP(A86,productlist[PRODUCT_ID],productlist[UNDERLYING_ISIN]) -> GB00BP5FTF21
A87: OMEP | B87: =_xlfn.XLOOKUP(A87,'Product List'!$A:$A,'Product List'!$D:$D) -> MSCI Europe Price Index Options | C87: =_xlfn.XLOOKUP(A87,'Product List'!$A:$A,'Product List'!$F:$F) -> INDEX OPTIONS | D87: =_xlfn.XLOOKUP(A87,'MMPM1-AMM'!E:E,'MMPM1-AMM'!K:K,_xlfn.XLOOKUP(A87,'MMPM1-PMM'!E:E,'MMPM1-PMM'!J:J)) -> MSCI-1 | E87: =_xlfn.XLOOKUP(A87,'MMPM1-AMM'!E:E,'MMPM1-AMM'!Q:Q,_xlfn.XLOOKUP(A87,'MMPM1-PMM'!E:E,'MMPM1-PMM'!P:P)) -> 6 | F87: =SUMIFS(MMPM2!H:H,MMPM2!C:C,U87,MMPM2!E:E,1,MMPM2!G:G,1) -> 5.3 | G87: =SUMIFS(MMPM2!H:H,MMPM2!C:C,U87,MMPM2!E:E,1,MMPM2!G:G,2) -> 53.3 | L87: =SUMIFS(MMPM2!I:I,MMPM2!C:C,U87,MMPM2!E:E,1,MMPM2!G:G,1) -> 0.8 | M87: =SUMIFS(MMPM2!I:I,MMPM2!C:C,U87,MMPM2!E:E,1,MMPM2!G:G,2) -> 0.15 | N87: =SUMIFS(MMPM2!I:I,MMPM2!C:C,U87,MMPM2!E:E,1,MMPM2!G:G,3) -> 8 | R87: Not applicable | S87: No doubling of mistrade range | U87: =IFERROR(_xlfn.XLOOKUP(A87,'MMPM1-PMM'!E:E,'MMPM1-PMM'!J:J),_xlfn.XLOOKUP(A87,'MMPM1-AMM'!E:E,'MMPM1-AMM'!K:K)) -> MSCI-1 | V87: =IFERROR(_xlfn.XLOOKUP(A87,'MMPM1-AMM'!E:E,'MMPM1-AMM'!T:T),_xlfn.XLOOKUP(A87,'MMPM1-PMM'!E:E,'MMPM1-PMM'!S:S)) -> 3 | W87: =IFERROR(_xlfn.XLOOKUP(A87,'MMPM1-AMM'!E:E,'MMPM1-AMM'!U:U),_xlfn.XLOOKUP(A87,'MMPM1-PMM'!E:E,'MMPM1-PMM'!T:T)) -> 6 | Y87: TRUE | AB87: =_xlfn.XLOOKUP(A87,productlist[PRODUCT_ID],productlist[PRODUCT_ISIN]) -> DE000A11Q372 | AC87: =_xlfn.XLOOKUP(A87,productlist[PRODUCT_ID],productlist[UNDERLYING_ISIN]) -> GB00BP5FTB82
A88: OMEU | B88: =_xlfn.XLOOKUP(A88,'Product List'!$A:$A,'Product List'!$D:$D) -> MSCI Europe Index Options | C88: =_xlfn.XLOOKUP(A88,'Product List'!$A:$A,'Product List'!$F:$F) -> INDEX OPTIONS | D88: =_xlfn.XLOOKUP(A88,'MMPM1-AMM'!E:E,'MMPM1-AMM'!K:K,_xlfn.XLOOKUP(A88,'MMPM1-PMM'!E:E,'MMPM1-PMM'!J:J)) -> MSCI-1 | E88: =_xlfn.XLOOKUP(A88,'MMPM1-AMM'!E:E,'MMPM1-AMM'!Q:Q,_xlfn.XLOOKUP(A88,'MMPM1-PMM'!E:E,'MMPM1-PMM'!P:P)) -> 6 | F88: =SUMIFS(MMPM2!H:H,MMPM2!C:C,U88,MMPM2!E:E,1,MMPM2!G:G,1) -> 5.3 | G88: =SUMIFS(MMPM2!H:H,MMPM2!C:C,U88,MMPM2!E:E,1,MMPM2!G:G,2) -> 53.3 | L88: =SUMIFS(MMPM2!I:I,MMPM2!C:C,U88,MMPM2!E:E,1,MMPM2!G:G,1) -> 0.8 | M88: =SUMIFS(MMPM2!I:I,MMPM2!C:C,U88,MMPM2!E:E,1,MMPM2!G:G,2) -> 0.15 | N88: =SUMIFS(MMPM2!I:I,MMPM2!C:C,U88,MMPM2!E:E,1,MMPM2!G:G,3) -> 8 | R88: Not applicable | S88: No doubling of mistrade range | U88: =IFERROR(_xlfn.XLOOKUP(A88,'MMPM1-PMM'!E:E,'MMPM1-PMM'!J:J),_xlfn.XLOOKUP(A88,'MMPM1-AMM'!E:E,'MMPM1-AMM'!K:K)) -> MSCI-1 | V88: =IFERROR(_xlfn.XLOOKUP(A88,'MMPM1-AMM'!E:E,'MMPM1-AMM'!T:T),_xlfn.XLOOKUP(A88,'MMPM1-PMM'!E:E,'MMPM1-PMM'!S:S)) -> 3 | W88: =IFERROR(_xlfn.XLOOKUP(A88,'MMPM1-AMM'!E:E,'MMPM1-AMM'!U:U),_xlfn.XLOOKUP(A88,'MMPM1-PMM'!E:E,'MMPM1-PMM'!T:T)) -> 6 | Y88: TRUE | AB88: =_xlfn.XLOOKUP(A88,productlist[PRODUCT_ID],productlist[PRODUCT_ISIN]) -> DE000A1RRXH1 | AC88: =_xlfn.XLOOKUP(A88,productlist[PRODUCT_ID],productlist[UNDERLYING_ISIN]) -> GB00BP5FS112
A89: OMFP | B89: =_xlfn.XLOOKUP(A89,'Product List'!$A:$A,'Product List'!$D:$D) -> MSCI EAFE Price Index Options | C89: =_xlfn.XLOOKUP(A89,'Product List'!$A:$A,'Product List'!$F:$F) -> INDEX OPTIONS | D89: =_xlfn.XLOOKUP(A89,'MMPM1-AMM'!E:E,'MMPM1-AMM'!K:K,_xlfn.XLOOKUP(A89,'MMPM1-PMM'!E:E,'MMPM1-PMM'!J:J)) -> MSCI-5 | E89: =_xlfn.XLOOKUP(A89,'MMPM1-AMM'!E:E,'MMPM1-AMM'!Q:Q,_xlfn.XLOOKUP(A89,'MMPM1-PMM'!E:E,'MMPM1-PMM'!P:P)) -> 6 | F89: =SUMIFS(MMPM2!H:H,MMPM2!C:C,U89,MMPM2!E:E,1,MMPM2!G:G,1) -> 100 | G89: =SUMIFS(MMPM2!H:H,MMPM2!C:C,U89,MMPM2!E:E,1,MMPM2!G:G,2) -> 1666.7 | L89: =SUMIFS(MMPM2!I:I,MMPM2!C:C,U89,MMPM2!E:E,1,MMPM2!G:G,1) -> 20 | M89: =SUMIFS(MMPM2!I:I,MMPM2!C:C,U89,MMPM2!E:E,1,MMPM2!G:G,2) -> 0.2 | N89: =SUMIFS(MMPM2!I:I,MMPM2!C:C,U89,MMPM2!E:E,1,MMPM2!G:G,3) -> 333 | R89: Not applicable | S89: No doubling of mistrade range | U89: =IFERROR(_xlfn.XLOOKUP(A89,'MMPM1-PMM'!E:E,'MMPM1-PMM'!J:J),_xlfn.XLOOKUP(A89,'MMPM1-AMM'!E:E,'MMPM1-AMM'!K:K)) -> MSCI-5 | V89: =IFERROR(_xlfn.XLOOKUP(A89,'MMPM1-AMM'!E:E,'MMPM1-AMM'!T:T),_xlfn.XLOOKUP(A89,'MMPM1-PMM'!E:E,'MMPM1-PMM'!S:S)) -> 3 | W89: =IFERROR(_xlfn.XLOOKUP(A89,'MMPM1-AMM'!E:E,'MMPM1-AMM'!U:U),_xlfn.XLOOKUP(A89,'MMPM1-PMM'!E:E,'MMPM1-PMM'!T:T)) -> 6 | Y89: TRUE | AB89: =_xlfn.XLOOKUP(A89,productlist[PRODUCT_ID],productlist[PRODUCT_ISIN]) -> DE000A2DB9F7 | AC89: =_xlfn.XLOOKUP(A89,productlist[PRODUCT_ID],productlist[UNDERLYING_ISIN]) -> GB00BP689R20
A90: OMJP | B90: =_xlfn.XLOOKUP(A90,'Product List'!$A:$A,'Product List'!$D:$D) -> MSCI Japan Index Options | C90: =_xlfn.XLOOKUP(A90,'Product List'!$A:$A,'Product List'!$F:$F) -> INDEX OPTIONS | D90: =_xlfn.XLOOKUP(A90,'MMPM1-AMM'!E:E,'MMPM1-AMM'!K:K,_xlfn.XLOOKUP(A90,'MMPM1-PMM'!E:E,'MMPM1-PMM'!J:J)) -> MSCI-5 | E90: =_xlfn.XLOOKUP(A90,'MMPM1-AMM'!E:E,'MMPM1-AMM'!Q:Q,_xlfn.XLOOKUP(A90,'MMPM1-PMM'!E:E,'MMPM1-PMM'!P:P)) -> 6 | F90: =SUMIFS(MMPM2!H:H,MMPM2!C:C,U90,MMPM2!E:E,1,MMPM2!G:G,1) -> 100 | G90: =SUMIFS(MMPM2!H:H,MMPM2!C:C,U90,MMPM2!E:E,1,MMPM2!G:G,2) -> 1666.7 | L90: =SUMIFS(MMPM2!I:I,MMPM2!C:C,U90,MMPM2!E:E,1,MMPM2!G:G,1) -> 20 | M90: =SUMIFS(MMPM2!I:I,MMPM2!C:C,U90,MMPM2!E:E,1,MMPM2!G:G,2) -> 0.2 | N90: =SUMIFS(MMPM2!I:I,MMPM2!C:C,U90,MMPM2!E:E,1,MMPM2!G:G,3) -> 333 | R90: Not applicable | S90: No doubling of mistrade range | U90: =IFERROR(_xlfn.XLOOKUP(A90,'MMPM1-PMM'!E:E,'MMPM1-PMM'!J:J),_xlfn.XLOOKUP(A90,'MMPM1-AMM'!E:E,'MMPM1-AMM'!K:K)) -> MSCI-5 | V90: =IFERROR(_xlfn.XLOOKUP(A90,'MMPM1-AMM'!E:E,'MMPM1-AMM'!T:T),_xlfn.XLOOKUP(A90,'MMPM1-PMM'!E:E,'MMPM1-PMM'!S:S)) -> 3 | W90: =IFERROR(_xlfn.XLOOKUP(A90,'MMPM1-AMM'!E:E,'MMPM1-AMM'!U:U),_xlfn.XLOOKUP(A90,'MMPM1-PMM'!E:E,'MMPM1-PMM'!T:T)) -> 6 | Y90: TRUE | AB90: =_xlfn.XLOOKUP(A90,productlist[PRODUCT_ID],productlist[PRODUCT_ISIN]) -> DE000A2DB9H3 | AC90: =_xlfn.XLOOKUP(A90,productlist[PRODUCT_ID],productlist[UNDERLYING_ISIN]) -> GB00BP5FSP53
A91: OMWB | B91: =_xlfn.XLOOKUP(A91,'Product List'!$A:$A,'Product List'!$D:$D) -> MSCI World Index Options | C91: =_xlfn.XLOOKUP(A91,'Product List'!$A:$A,'Product List'!$F:$F) -> INDEX OPTIONS | D91: =_xlfn.XLOOKUP(A91,'MMPM1-AMM'!E:E,'MMPM1-AMM'!K:K,_xlfn.XLOOKUP(A91,'MMPM1-PMM'!E:E,'MMPM1-PMM'!J:J)) -> MSCI-5 | E91: =_xlfn.XLOOKUP(A91,'MMPM1-AMM'!E:E,'MMPM1-AMM'!Q:Q,_xlfn.XLOOKUP(A91,'MMPM1-PMM'!E:E,'MMPM1-PMM'!P:P)) -> 6 | F91: =SUMIFS(MMPM2!H:H,MMPM2!C:C,U91,MMPM2!E:E,1,MMPM2!G:G,1) -> 100 | G91: =SUMIFS(MMPM2!H:H,MMPM2!C:C,U91,MMPM2!E:E,1,MMPM2!G:G,2) -> 1666.7 | L91: =SUMIFS(MMPM2!I:I,MMPM2!C:C,U91,MMPM2!E:E,1,MMPM2!G:G,1) -> 20 | M91: =SUMIFS(MMPM2!I:I,MMPM2!C:C,U91,MMPM2!E:E,1,MMPM2!G:G,2) -> 0.2 | N91: =SUMIFS(MMPM2!I:I,MMPM2!C:C,U91,MMPM2!E:E,1,MMPM2!G:G,3) -> 333 | R91: Not applicable | S91: No doubling of mistrade range | U91: =IFERROR(_xlfn.XLOOKUP(A91,'MMPM1-PMM'!E:E,'MMPM1-PMM'!J:J),_xlfn.XLOOKUP(A91,'MMPM1-AMM'!E:E,'MMPM1-AMM'!K:K)) -> MSCI-5 | V91: =IFERROR(_xlfn.XLOOKUP(A91,'MMPM1-AMM'!E:E,'MMPM1-AMM'!T:T),_xlfn.XLOOKUP(A91,'MMPM1-PMM'!E:E,'MMPM1-PMM'!S:S)) -> 3 | W91: =IFERROR(_xlfn.XLOOKUP(A91,'MMPM1-AMM'!E:E,'MMPM1-AMM'!U:U),_xlfn.XLOOKUP(A91,'MMPM1-PMM'!E:E,'MMPM1-PMM'!T:T)) -> 6 | Y91: TRUE | AB91: =_xlfn.XLOOKUP(A91,productlist[PRODUCT_ID],productlist[PRODUCT_ISIN]) -> DE000A2RPLY3 | AC91: =_xlfn.XLOOKUP(A91,productlist[PRODUCT_ID],productlist[UNDERLYING_ISIN]) -> GB00BP68B985
A92: OMWN | B92: =_xlfn.XLOOKUP(A92,'Product List'!$A:$A,'Product List'!$D:$D) -> MSCI World Index Options | C92: =_xlfn.XLOOKUP(A92,'Product List'!$A:$A,'Product List'!$F:$F) -> INDEX OPTIONS | D92: =_xlfn.XLOOKUP(A92,'MMPM1-AMM'!E:E,'MMPM1-AMM'!K:K,_xlfn.XLOOKUP(A92,'MMPM1-PMM'!E:E,'MMPM1-PMM'!J:J)) -> MSCI-1 | E92: =_xlfn.XLOOKUP(A92,'MMPM1-AMM'!E:E,'MMPM1-AMM'!Q:Q,_xlfn.XLOOKUP(A92,'MMPM1-PMM'!E:E,'MMPM1-PMM'!P:P)) -> 6 | F92: =SUMIFS(MMPM2!H:H,MMPM2!C:C,U92,MMPM2!E:E,1,MMPM2!G:G,1) -> 5.3 | G92: =SUMIFS(MMPM2!H:H,MMPM2!C:C,U92,MMPM2!E:E,1,MMPM2!G:G,2) -> 53.3 | L92: =SUMIFS(MMPM2!I:I,MMPM2!C:C,U92,MMPM2!E:E,1,MMPM2!G:G,1) -> 0.8 | M92: =SUMIFS(MMPM2!I:I,MMPM2!C:C,U92,MMPM2!E:E,1,MMPM2!G:G,2) -> 0.15 | N92: =SUMIFS(MMPM2!I:I,MMPM2!C:C,U92,MMPM2!E:E,1,MMPM2!G:G,3) -> 8 | R92: Not applicable | S92: No doubling of mistrade range | U92: =IFERROR(_xlfn.XLOOKUP(A92,'MMPM1-PMM'!E:E,'MMPM1-PMM'!J:J),_xlfn.XLOOKUP(A92,'MMPM1-AMM'!E:E,'MMPM1-AMM'!K:K)) -> MSCI-1 | V92: =IFERROR(_xlfn.XLOOKUP(A92,'MMPM1-AMM'!E:E,'MMPM1-AMM'!T:T),_xlfn.XLOOKUP(A92,'MMPM1-PMM'!E:E,'MMPM1-PMM'!S:S)) -> 3 | W92: =IFERROR(_xlfn.XLOOKUP(A92,'MMPM1-AMM'!E:E,'MMPM1-AMM'!U:U),_xlfn.XLOOKUP(A92,'MMPM1-PMM'!E:E,'MMPM1-PMM'!T:T)) -> 6 | Y92: TRUE | AB92: =_xlfn.XLOOKUP(A92,productlist[PRODUCT_ID],productlist[PRODUCT_ISIN]) -> DE000A11Q4B8 | AC92: =_xlfn.XLOOKUP(A92,productlist[PRODUCT_ID],productlist[UNDERLYING_ISIN]) -> GB00BP5FTC99
A93: OMWO | B93: =_xlfn.XLOOKUP(A93,'Product List'!$A:$A,'Product List'!$D:$D) -> MSCI World Index Options | C93: =_xlfn.XLOOKUP(A93,'Product List'!$A:$A,'Product List'!$F:$F) -> INDEX OPTIONS | D93: =_xlfn.XLOOKUP(A93,'MMPM1-AMM'!E:E,'MMPM1-AMM'!K:K,_xlfn.XLOOKUP(A93,'MMPM1-PMM'!E:E,'MMPM1-PMM'!J:J)) -> MSCI-6 | E93: =_xlfn.XLOOKUP(A93,'MMPM1-AMM'!E:E,'MMPM1-AMM'!Q:Q,_xlfn.XLOOKUP(A93,'MMPM1-PMM'!E:E,'MMPM1-PMM'!P:P)) -> 6 | F93: =SUMIFS(MMPM2!H:H,MMPM2!C:C,U93,MMPM2!E:E,1,MMPM2!G:G,1) -> 500 | G93: =SUMIFS(MMPM2!H:H,MMPM2!C:C,U93,MMPM2!E:E,1,MMPM2!G:G,2) -> 6250 | L93: =SUMIFS(MMPM2!I:I,MMPM2!C:C,U93,MMPM2!E:E,1,MMPM2!G:G,1) -> 100 | M93: =SUMIFS(MMPM2!I:I,MMPM2!C:C,U93,MMPM2!E:E,1,MMPM2!G:G,2) -> 0.2 | N93: =SUMIFS(MMPM2!I:I,MMPM2!C:C,U93,MMPM2!E:E,1,MMPM2!G:G,3) -> 1250 | R93: Not applicable | S93: No doubling of mistrade range | U93: =IFERROR(_xlfn.XLOOKUP(A93,'MMPM1-PMM'!E:E,'MMPM1-PMM'!J:J),_xlfn.XLOOKUP(A93,'MMPM1-AMM'!E:E,'MMPM1-AMM'!K:K)) -> MSCI-6 | V93: =IFERROR(_xlfn.XLOOKUP(A93,'MMPM1-AMM'!E:E,'MMPM1-AMM'!T:T),_xlfn.XLOOKUP(A93,'MMPM1-PMM'!E:E,'MMPM1-PMM'!S:S)) -> 3 | W93: =IFERROR(_xlfn.XLOOKUP(A93,'MMPM1-AMM'!E:E,'MMPM1-AMM'!U:U),_xlfn.XLOOKUP(A93,'MMPM1-PMM'!E:E,'MMPM1-PMM'!T:T)) -> 6 | Y93: TRUE | AB93: =_xlfn.XLOOKUP(A93,productlist[PRODUCT_ID],productlist[PRODUCT_ISIN]) -> DE000A1RRXK5 | AC93: =_xlfn.XLOOKUP(A93,productlist[PRODUCT_ID],productlist[UNDERLYING_ISIN]) -> GB00BMY0G899
A94: OMWP | B94: =_xlfn.XLOOKUP(A94,'Product List'!$A:$A,'Product List'!$D:$D) -> MSCI World Price Index Options | C94: =_xlfn.XLOOKUP(A94,'Product List'!$A:$A,'Product List'!$F:$F) -> INDEX OPTIONS | D94: =_xlfn.XLOOKUP(A94,'MMPM1-AMM'!E:E,'MMPM1-AMM'!K:K,_xlfn.XLOOKUP(A94,'MMPM1-PMM'!E:E,'MMPM1-PMM'!J:J)) -> MSCI-5 | E94: =_xlfn.XLOOKUP(A94,'MMPM1-AMM'!E:E,'MMPM1-AMM'!Q:Q,_xlfn.XLOOKUP(A94,'MMPM1-PMM'!E:E,'MMPM1-PMM'!P:P)) -> 6 | F94: =SUMIFS(MMPM2!H:H,MMPM2!C:C,U94,MMPM2!E:E,1,MMPM2!G:G,1) -> 100 | G94: =SUMIFS(MMPM2!H:H,MMPM2!C:C,U94,MMPM2!E:E,1,MMPM2!G:G,2) -> 1666.7 | L94: =SUMIFS(MMPM2!I:I,MMPM2!C:C,U94,MMPM2!E:E,1,MMPM2!G:G,1) -> 20 | M94: =SUMIFS(MMPM2!I:I,MMPM2!C:C,U94,MMPM2!E:E,1,MMPM2!G:G,2) -> 0.2 | N94: =SUMIFS(MMPM2!I:I,MMPM2!C:C,U94,MMPM2!E:E,1,MMPM2!G:G,3) -> 333 | R94: Not applicable | S94: No doubling of mistrade range | U94: =IFERROR(_xlfn.XLOOKUP(A94,'MMPM1-PMM'!E:E,'MMPM1-PMM'!J:J),_xlfn.XLOOKUP(A94,'MMPM1-AMM'!E:E,'MMPM1-AMM'!K:K)) -> MSCI-5 | V94: =IFERROR(_xlfn.XLOOKUP(A94,'MMPM1-AMM'!E:E,'MMPM1-AMM'!T:T),_xlfn.XLOOKUP(A94,'MMPM1-PMM'!E:E,'MMPM1-PMM'!S:S)) -> 3 | W94: =IFERROR(_xlfn.XLOOKUP(A94,'MMPM1-AMM'!E:E,'MMPM1-AMM'!U:U),_xlfn.XLOOKUP(A94,'MMPM1-PMM'!E:E,'MMPM1-PMM'!T:T)) -> 6 | Y94: TRUE | AB94: =_xlfn.XLOOKUP(A94,productlist[PRODUCT_ID],productlist[PRODUCT_ISIN]) -> DE000A11Q4A0 | AC94: =_xlfn.XLOOKUP(A94,productlist[PRODUCT_ID],productlist[UNDERLYING_ISIN]) -> GB00BJDQQQ59
A95: OPHA | B95: =_xlfn.XLOOKUP(A95,'Product List'!$A:$A,'Product List'!$D:$D) -> WisdomTree physical Gold Options | C95: =_xlfn.XLOOKUP(A95,'Product List'!$A:$A,'Product List'!$F:$F) -> OPTIONS ON EXCHANGE-TRADED COMMODITIES SECURITIES | D95: =_xlfn.XLOOKUP(A95,'MMPM1-AMM'!E:E,'MMPM1-AMM'!K:K,_xlfn.XLOOKUP(A95,'MMPM1-PMM'!E:E,'MMPM1-PMM'!J:J)) -> CO-ETF2 | E95: =_xlfn.XLOOKUP(A95,'MMPM1-AMM'!E:E,'MMPM1-AMM'!Q:Q,_xlfn.XLOOKUP(A95,'MMPM1-PMM'!E:E,'MMPM1-PMM'!P:P)) -> 6 | F95: =SUMIFS(MMPM2!H:H,MMPM2!C:C,U95,MMPM2!E:E,1,MMPM2!G:G,1) -> 5 | G95: =SUMIFS(MMPM2!H:H,MMPM2!C:C,U95,MMPM2!E:E,1,MMPM2!G:G,2) -> 50 | L95: =SUMIFS(MMPM2!I:I,MMPM2!C:C,U95,MMPM2!E:E,1,MMPM2!G:G,1) -> 0.5 | M95: =SUMIFS(MMPM2!I:I,MMPM2!C:C,U95,MMPM2!E:E,1,MMPM2!G:G,2) -> 0.1 | N95: =SUMIFS(MMPM2!I:I,MMPM2!C:C,U95,MMPM2!E:E,1,MMPM2!G:G,3) -> 5 | R95: Not applicable | S95: No doubling of mistrade range | U95: =IFERROR(_xlfn.XLOOKUP(A95,'MMPM1-PMM'!E:E,'MMPM1-PMM'!J:J),_xlfn.XLOOKUP(A95,'MMPM1-AMM'!E:E,'MMPM1-AMM'!K:K)) -> CO-ETF2 | V95: =IFERROR(_xlfn.XLOOKUP(A95,'MMPM1-AMM'!E:E,'MMPM1-AMM'!T:T),_xlfn.XLOOKUP(A95,'MMPM1-PMM'!E:E,'MMPM1-PMM'!S:S)) -> 3 | W95: =IFERROR(_xlfn.XLOOKUP(A95,'MMPM1-AMM'!E:E,'MMPM1-AMM'!U:U),_xlfn.XLOOKUP(A95,'MMPM1-PMM'!E:E,'MMPM1-PMM'!T:T)) -> 6 | Y95: TRUE | AB95: =_xlfn.XLOOKUP(A95,productlist[PRODUCT_ID],productlist[PRODUCT_ISIN]) -> DE000A1KQSH8 | AC95: =_xlfn.XLOOKUP(A95,productlist[PRODUCT_ID],productlist[UNDERLYING_ISIN]) -> JE00B1VS3770
A96: OQDE | B96: =_xlfn.XLOOKUP(A96,'Product List'!$A:$A,'Product List'!$D:$D) -> iShares USD Corporate Bond UCITS Options [american] | C96: =_xlfn.XLOOKUP(A96,'Product List'!$A:$A,'Product List'!$F:$F) -> EXTF-OPTIONS | D96: =_xlfn.XLOOKUP(A96,'MMPM1-AMM'!E:E,'MMPM1-AMM'!K:K,_xlfn.XLOOKUP(A96,'MMPM1-PMM'!E:E,'MMPM1-PMM'!J:J)) -> FI-ETF | E96: =_xlfn.XLOOKUP(A96,'MMPM1-AMM'!E:E,'MMPM1-AMM'!Q:Q,_xlfn.XLOOKUP(A96,'MMPM1-PMM'!E:E,'MMPM1-PMM'!P:P)) -> 3 | F96: =SUMIFS(MMPM2!H:H,MMPM2!C:C,U96,MMPM2!E:E,1,MMPM2!G:G,1) -> 1.5 | G96: =SUMIFS(MMPM2!H:H,MMPM2!C:C,U96,MMPM2!E:E,1,MMPM2!G:G,2) -> 15 | L96: =SUMIFS(MMPM2!I:I,MMPM2!C:C,U96,MMPM2!E:E,1,MMPM2!G:G,1) -> 0.35 | M96: =SUMIFS(MMPM2!I:I,MMPM2!C:C,U96,MMPM2!E:E,1,MMPM2!G:G,2) -> 0.2 | N96: =SUMIFS(MMPM2!I:I,MMPM2!C:C,U96,MMPM2!E:E,1,MMPM2!G:G,3) -> 3 | R96: Not applicable | S96: No doubling of mistrade range | U96: =IFERROR(_xlfn.XLOOKUP(A96,'MMPM1-PMM'!E:E,'MMPM1-PMM'!J:J),_xlfn.XLOOKUP(A96,'MMPM1-AMM'!E:E,'MMPM1-AMM'!K:K)) -> FI-ETF | V96: =IFERROR(_xlfn.XLOOKUP(A96,'MMPM1-AMM'!E:E,'MMPM1-AMM'!T:T),_xlfn.XLOOKUP(A96,'MMPM1-PMM'!E:E,'MMPM1-PMM'!S:S)) -> 3 | W96: =IFERROR(_xlfn.XLOOKUP(A96,'MMPM1-AMM'!E:E,'MMPM1-AMM'!U:U),_xlfn.XLOOKUP(A96,'MMPM1-PMM'!E:E,'MMPM1-PMM'!T:T)) -> 3 | Y96: TRUE | AB96: =_xlfn.XLOOKUP(A96,productlist[PRODUCT_ID],productlist[PRODUCT_ISIN]) -> DE000A2G9QL0 | AC96: =_xlfn.XLOOKUP(A96,productlist[PRODUCT_ID],productlist[UNDERLYING_ISIN]) -> IE0032895942
A97: OSCE | B97: =_xlfn.XLOOKUP(A97,'Product List'!$A:$A,'Product List'!$D:$D) -> EURO STOXX® Small Index Options | C97: =_xlfn.XLOOKUP(A97,'Product List'!$A:$A,'Product List'!$F:$F) -> INDEX OPTIONS | D97: =_xlfn.XLOOKUP(A97,'MMPM1-AMM'!E:E,'MMPM1-AMM'!K:K,_xlfn.XLOOKUP(A97,'MMPM1-PMM'!E:E,'MMPM1-PMM'!J:J)) -> BB-Size | E97: =_xlfn.XLOOKUP(A97,'MMPM1-AMM'!E:E,'MMPM1-AMM'!Q:Q,_xlfn.XLOOKUP(A97,'MMPM1-PMM'!E:E,'MMPM1-PMM'!P:P)) -> 6 | F97: =SUMIFS(MMPM2!H:H,MMPM2!C:C,U97,MMPM2!E:E,1,MMPM2!G:G,1) -> 5.3 | G97: =SUMIFS(MMPM2!H:H,MMPM2!C:C,U97,MMPM2!E:E,1,MMPM2!G:G,2) -> 53.3 | L97: =SUMIFS(MMPM2!I:I,MMPM2!C:C,U97,MMPM2!E:E,1,MMPM2!G:G,1) -> 0.8 | M97: =SUMIFS(MMPM2!I:I,MMPM2!C:C,U97,MMPM2!E:E,1,MMPM2!G:G,2) -> 0.15 | N97: =SUMIFS(MMPM2!I:I,MMPM2!C:C,U97,MMPM2!E:E,1,MMPM2!G:G,3) -> 8 | R97: Not applicable | S97: No doubling of mistrade range | U97: =IFERROR(_xlfn.XLOOKUP(A97,'MMPM1-PMM'!E:E,'MMPM1-PMM'!J:J),_xlfn.XLOOKUP(A97,'MMPM1-AMM'!E:E,'MMPM1-AMM'!K:K)) -> BB-Size | V97: =IFERROR(_xlfn.XLOOKUP(A97,'MMPM1-AMM'!E:E,'MMPM1-AMM'!T:T),_xlfn.XLOOKUP(A97,'MMPM1-PMM'!E:E,'MMPM1-PMM'!S:S)) -> 3 | W97: =IFERROR(_xlfn.XLOOKUP(A97,'MMPM1-AMM'!E:E,'MMPM1-AMM'!U:U),_xlfn.XLOOKUP(A97,'MMPM1-PMM'!E:E,'MMPM1-PMM'!T:T)) -> 6 | Y97: TRUE | AB97: =_xlfn.XLOOKUP(A97,productlist[PRODUCT_ID],productlist[PRODUCT_ISIN]) -> DE000A1DKQS7 | AC97: =_xlfn.XLOOKUP(A97,productlist[PRODUCT_ID],productlist[UNDERLYING_ISIN]) -> CH0009107456
A98: OSCP | B98: =_xlfn.XLOOKUP(A98,'Product List'!$A:$A,'Product List'!$D:$D) -> STOXX® Europe Small 200 Index Options | C98: =_xlfn.XLOOKUP(A98,'Product List'!$A:$A,'Product List'!$F:$F) -> INDEX OPTIONS | D98: =_xlfn.XLOOKUP(A98,'MMPM1-AMM'!E:E,'MMPM1-AMM'!K:K,_xlfn.XLOOKUP(A98,'MMPM1-PMM'!E:E,'MMPM1-PMM'!J:J)) -> BB-Size | E98: =_xlfn.XLOOKUP(A98,'MMPM1-AMM'!E:E,'MMPM1-AMM'!Q:Q,_xlfn.XLOOKUP(A98,'MMPM1-PMM'!E:E,'MMPM1-PMM'!P:P)) -> 6 | F98: =SUMIFS(MMPM2!H:H,MMPM2!C:C,U98,MMPM2!E:E,1,MMPM2!G:G,1) -> 5.3 | G98: =SUMIFS(MMPM2!H:H,MMPM2!C:C,U98,MMPM2!E:E,1,MMPM2!G:G,2) -> 53.3 | L98: =SUMIFS(MMPM2!I:I,MMPM2!C:C,U98,MMPM2!E:E,1,MMPM2!G:G,1) -> 0.8 | M98: =SUMIFS(MMPM2!I:I,MMPM2!C:C,U98,MMPM2!E:E,1,MMPM2!G:G,2) -> 0.15 | N98: =SUMIFS(MMPM2!I:I,MMPM2!C:C,U98,MMPM2!E:E,1,MMPM2!G:G,3) -> 8 | R98: Not applicable | S98: No doubling of mistrade range | U98: =IFERROR(_xlfn.XLOOKUP(A98,'MMPM1-PMM'!E:E,'MMPM1-PMM'!J:J),_xlfn.XLOOKUP(A98,'MMPM1-AMM'!E:E,'MMPM1-AMM'!K:K)) -> BB-Size | V98: =IFERROR(_xlfn.XLOOKUP(A98,'MMPM1-AMM'!E:E,'MMPM1-AMM'!T:T),_xlfn.XLOOKUP(A98,'MMPM1-PMM'!E:E,'MMPM1-PMM'!S:S)) -> 3 | W98: =IFERROR(_xlfn.XLOOKUP(A98,'MMPM1-AMM'!E:E,'MMPM1-AMM'!U:U),_xlfn.XLOOKUP(A98,'MMPM1-PMM'!E:E,'MMPM1-PMM'!T:T)) -> 6 | Y98: TRUE | AB98: =_xlfn.XLOOKUP(A98,productlist[PRODUCT_ID],productlist[PRODUCT_ISIN]) -> DE000A1DKQW9 | AC98: =_xlfn.XLOOKUP(A98,productlist[PRODUCT_ID],productlist[UNDERLYING_ISIN]) -> CH0009107639
A99: OSDX | B99: =_xlfn.XLOOKUP(A99,'Product List'!$A:$A,'Product List'!$D:$D) -> DAX® 50 ESG Options | C99: =_xlfn.XLOOKUP(A99,'Product List'!$A:$A,'Product List'!$F:$F) -> INDEX OPTIONS | D99: =_xlfn.XLOOKUP(A99,'MMPM1-AMM'!E:E,'MMPM1-AMM'!K:K,_xlfn.XLOOKUP(A99,'MMPM1-PMM'!E:E,'MMPM1-PMM'!J:J)) -> DAX-ESG | E99: =_xlfn.XLOOKUP(A99,'MMPM1-AMM'!E:E,'MMPM1-AMM'!Q:Q,_xlfn.XLOOKUP(A99,'MMPM1-PMM'!E:E,'MMPM1-PMM'!P:P)) -> 6 | F99: =SUMIFS(MMPM2!H:H,MMPM2!C:C,U99,MMPM2!E:E,1,MMPM2!G:G,1) -> 13.3 | G99: =SUMIFS(MMPM2!H:H,MMPM2!C:C,U99,MMPM2!E:E,1,MMPM2!G:G,2) -> 133.3 | L99: =SUMIFS(MMPM2!I:I,MMPM2!C:C,U99,MMPM2!E:E,1,MMPM2!G:G,1) -> 2 | M99: =SUMIFS(MMPM2!I:I,MMPM2!C:C,U99,MMPM2!E:E,1,MMPM2!G:G,2) -> 0.15 | N99: =SUMIFS(MMPM2!I:I,MMPM2!C:C,U99,MMPM2!E:E,1,MMPM2!G:G,3) -> 20 | R99: Not applicable | S99: No doubling of mistrade range | U99: =IFERROR(_xlfn.XLOOKUP(A99,'MMPM1-PMM'!E:E,'MMPM1-PMM'!J:J),_xlfn.XLOOKUP(A99,'MMPM1-AMM'!E:E,'MMPM1-AMM'!K:K)) -> DAX-ESG | V99: =IFERROR(_xlfn.XLOOKUP(A99,'MMPM1-AMM'!E:E,'MMPM1-AMM'!T:T),_xlfn.XLOOKUP(A99,'MMPM1-PMM'!E:E,'MMPM1-PMM'!S:S)) -> 3 | W99: =IFERROR(_xlfn.XLOOKUP(A99,'MMPM1-AMM'!E:E,'MMPM1-AMM'!U:U),_xlfn.XLOOKUP(A99,'MMPM1-PMM'!E:E,'MMPM1-PMM'!T:T)) -> 6 | Y99: TRUE | AB99: =_xlfn.XLOOKUP(A99,productlist[PRODUCT_ID],productlist[PRODUCT_ISIN]) -> DE000A2QDW52 | AC99: =_xlfn.XLOOKUP(A99,productlist[PRODUCT_ID],productlist[UNDERLYING_ISIN]) -> DE000A0S3E04
A100: OSEG | B100: =_xlfn.XLOOKUP(A100,'Product List'!$A:$A,'Product List'!$D:$D) -> STOXX® Europe 600 ESG-X Index Options | C100: =_xlfn.XLOOKUP(A100,'Product List'!$A:$A,'Product List'!$F:$F) -> INDEX OPTIONS | D100: =_xlfn.XLOOKUP(A100,'MMPM1-AMM'!E:E,'MMPM1-AMM'!K:K,_xlfn.XLOOKUP(A100,'MMPM1-PMM'!E:E,'MMPM1-PMM'!J:J)) -> STX-ESG | E100: =_xlfn.XLOOKUP(A100,'MMPM1-AMM'!E:E,'MMPM1-AMM'!Q:Q,_xlfn.XLOOKUP(A100,'MMPM1-PMM'!E:E,'MMPM1-PMM'!P:P)) -> 6 | F100: =SUMIFS(MMPM2!H:H,MMPM2!C:C,U100,MMPM2!E:E,1,MMPM2!G:G,1) -> 5.3 | G100: =SUMIFS(MMPM2!H:H,MMPM2!C:C,U100,MMPM2!E:E,1,MMPM2!G:G,2) -> 53.3 | L100: =SUMIFS(MMPM2!I:I,MMPM2!C:C,U100,MMPM2!E:E,1,MMPM2!G:G,1) -> 0.8 | M100: =SUMIFS(MMPM2!I:I,MMPM2!C:C,U100,MMPM2!E:E,1,MMPM2!G:G,2) -> 0.15 | N100: =SUMIFS(MMPM2!I:I,MMPM2!C:C,U100,MMPM2!E:E,1,MMPM2!G:G,3) -> 8 | R100: =IF(D100="OVS","",IF(V100=3, "Not applicable",W100-1)) -> Not applicable | S100: No doubling of mistrade range | U100: =IFERROR(_xlfn.XLOOKUP(A100,'MMPM1-PMM'!E:E,'MMPM1-PMM'!J:J),_xlfn.XLOOKUP(A100,'MMPM1-AMM'!E:E,'MMPM1-AMM'!K:K)) -> STX-ESG | V100: =IFERROR(_xlfn.XLOOKUP(A100,'MMPM1-AMM'!E:E,'MMPM1-AMM'!T:T),_xlfn.XLOOKUP(A100,'MMPM1-PMM'!E:E,'MMPM1-PMM'!S:S)) -> 3 | W100: =IFERROR(_xlfn.XLOOKUP(A100,'MMPM1-AMM'!E:E,'MMPM1-AMM'!U:U),_xlfn.XLOOKUP(A100,'MMPM1-PMM'!E:E,'MMPM1-PMM'!T:T)) -> 6 | Y100: TRUE | AB100: =_xlfn.XLOOKUP(A100,productlist[PRODUCT_ID],productlist[PRODUCT_ISIN]) -> DE000A2YZPL6 | AC100: =_xlfn.XLOOKUP(A100,productlist[PRODUCT_ID],productlist[UNDERLYING_ISIN]) -> CH0445431064
A101: OSLI | B101: =_xlfn.XLOOKUP(A101,'Product List'!$A:$A,'Product List'!$D:$D) -> SLI Swiss Leader Index® Options | C101: =_xlfn.XLOOKUP(A101,'Product List'!$A:$A,'Product List'!$F:$F) -> INDEX OPTIONS | D101: =_xlfn.XLOOKUP(A101,'MMPM1-AMM'!E:E,'MMPM1-AMM'!K:K,_xlfn.XLOOKUP(A101,'MMPM1-PMM'!E:E,'MMPM1-PMM'!J:J)) -> OSLI | E101: =_xlfn.XLOOKUP(A101,'MMPM1-AMM'!E:E,'MMPM1-AMM'!Q:Q,_xlfn.XLOOKUP(A101,'MMPM1-PMM'!E:E,'MMPM1-PMM'!P:P)) -> 8 | F101: =SUMIFS(MMPM2!H:H,MMPM2!C:C,U101,MMPM2!E:E,1,MMPM2!G:G,1) -> 5.3 | G101: =SUMIFS(MMPM2!H:H,MMPM2!C:C,U101,MMPM2!E:E,1,MMPM2!G:G,2) -> 53.3 | I101: 5.3 | J101: 53.3 | L101: =SUMIFS(MMPM2!I:I,MMPM2!C:C,U101,MMPM2!E:E,1,MMPM2!G:G,1) -> 0.8 | M101: =SUMIFS(MMPM2!I:I,MMPM2!C:C,U101,MMPM2!E:E,1,MMPM2!G:G,2) -> 0.15 | N101: =SUMIFS(MMPM2!I:I,MMPM2!C:C,U101,MMPM2!E:E,1,MMPM2!G:G,3) -> 8 | O101: 1.6 | P101: 0.3 | Q101: 16 | R101: 7 | S101: 7 | U101: =IFERROR(_xlfn.XLOOKUP(A101,'MMPM1-PMM'!E:E,'MMPM1-PMM'!J:J),_xlfn.XLOOKUP(A101,'MMPM1-AMM'!E:E,'MMPM1-AMM'!K:K)) -> OSLI | V101: =IFERROR(_xlfn.XLOOKUP(A101,'MMPM1-AMM'!E:E,'MMPM1-AMM'!T:T),_xlfn.XLOOKUP(A101,'MMPM1-PMM'!E:E,'MMPM1-PMM'!S:S)) -> 6 | W101: =IFERROR(_xlfn.XLOOKUP(A101,'MMPM1-AMM'!E:E,'MMPM1-AMM'!U:U),_xlfn.XLOOKUP(A101,'MMPM1-PMM'!E:E,'MMPM1-PMM'!T:T)) -> 8 | Y101: TRUE | AB101: =_xlfn.XLOOKUP(A101,productlist[PRODUCT_ID],productlist[PRODUCT_ISIN]) -> DE000A0QZD77 | AC101: =_xlfn.XLOOKUP(A101,productlist[PRODUCT_ID],productlist[UNDERLYING_ISIN]) -> CH0030252883 | AE101: 7
A102: OSLS | B102: =_xlfn.XLOOKUP(A102,'Product List'!$A:$A,'Product List'!$D:$D) -> STOXX® Europe ESG Leaders Select 30 Index Options | C102: =_xlfn.XLOOKUP(A102,'Product List'!$A:$A,'Product List'!$F:$F) -> INDEX OPTIONS | D102: =_xlfn.XLOOKUP(A102,'MMPM1-AMM'!E:E,'MMPM1-AMM'!K:K,_xlfn.XLOOKUP(A102,'MMPM1-PMM'!E:E,'MMPM1-PMM'!J:J)) -> OSLS | E102: =_xlfn.XLOOKUP(A102,'MMPM1-AMM'!E:E,'MMPM1-AMM'!Q:Q,_xlfn.XLOOKUP(A102,'MMPM1-PMM'!E:E,'MMPM1-PMM'!P:P)) -> 6 | F102: 5.3 | G102: 53.3 | L102: 1.1 | M102: 0.2 | N102: 10.7 | R102: Not applicable | S102: Not applicable | U102: =IFERROR(_xlfn.XLOOKUP(A102,'MMPM1-PMM'!E:E,'MMPM1-PMM'!J:J),_xlfn.XLOOKUP(A102,'MMPM1-AMM'!E:E,'MMPM1-AMM'!K:K)) -> OSLS | V102: =IFERROR(_xlfn.XLOOKUP(A102,'MMPM1-AMM'!E:E,'MMPM1-AMM'!T:T),_xlfn.XLOOKUP(A102,'MMPM1-PMM'!E:E,'MMPM1-PMM'!S:S)) -> 3 | W102: =IFERROR(_xlfn.XLOOKUP(A102,'MMPM1-AMM'!E:E,'MMPM1-AMM'!U:U),_xlfn.XLOOKUP(A102,'MMPM1-PMM'!E:E,'MMPM1-PMM'!T:T)) -> 6 | Y102: TRUE | AB102: =_xlfn.XLOOKUP(A102,productlist[PRODUCT_ID],productlist[PRODUCT_ISIN]) -> DE000A2YZPK8 | AC102: =_xlfn.XLOOKUP(A102,productlist[PRODUCT_ID],productlist[UNDERLYING_ISIN]) -> CH0298407328
A103: OSMI | B103: =_xlfn.XLOOKUP(A103,'Product List'!$A:$A,'Product List'!$D:$D) -> SMI® Options | C103: =_xlfn.XLOOKUP(A103,'Product List'!$A:$A,'Product List'!$F:$F) -> INDEX OPTIONS | D103: =_xlfn.XLOOKUP(A103,'MMPM1-AMM'!E:E,'MMPM1-AMM'!K:K,_xlfn.XLOOKUP(A103,'MMPM1-PMM'!E:E,'MMPM1-PMM'!J:J)) -> OSMI | E103: =_xlfn.XLOOKUP(A103,'MMPM1-AMM'!E:E,'MMPM1-AMM'!Q:Q,_xlfn.XLOOKUP(A103,'MMPM1-PMM'!E:E,'MMPM1-PMM'!P:P)) -> 10 | F103: =SUMIFS(MMPM2!H:H,MMPM2!C:C,U103,MMPM2!E:E,1,MMPM2!G:G,1) -> 35 | G103: =SUMIFS(MMPM2!H:H,MMPM2!C:C,U103,MMPM2!E:E,1,MMPM2!G:G,2) -> 500 | I103: 35 | J103: 500 | L103: =SUMIFS(MMPM2!I:I,MMPM2!C:C,U103,MMPM2!E:E,1,MMPM2!G:G,1) -> 3.5 | M103: =SUMIFS(MMPM2!I:I,MMPM2!C:C,U103,MMPM2!E:E,1,MMPM2!G:G,2) -> 0.1 | N103: =SUMIFS(MMPM2!I:I,MMPM2!C:C,U103,MMPM2!E:E,1,MMPM2!G:G,3) -> 50 | O103: 7 | P103: 0.2 | Q103: 100 | R103: =AF103 -> 13 | S103: 9 | U103: =IFERROR(_xlfn.XLOOKUP(A103,'MMPM1-PMM'!E:E,'MMPM1-PMM'!J:J),_xlfn.XLOOKUP(A103,'MMPM1-AMM'!E:E,'MMPM1-AMM'!K:K)) -> OSMI | V103: =IFERROR(_xlfn.XLOOKUP(A103,'MMPM1-AMM'!E:E,'MMPM1-AMM'!T:T),_xlfn.XLOOKUP(A103,'MMPM1-PMM'!E:E,'MMPM1-PMM'!S:S)) -> 6 | W103: =IFERROR(_xlfn.XLOOKUP(A103,'MMPM1-AMM'!E:E,'MMPM1-AMM'!U:U),_xlfn.XLOOKUP(A103,'MMPM1-PMM'!E:E,'MMPM1-PMM'!T:T)) -> 10 | Y103: TRUE | AB103: =_xlfn.XLOOKUP(A103,productlist[PRODUCT_ID],productlist[PRODUCT_ISIN]) -> CH0008616382 | AC103: =_xlfn.XLOOKUP(A103,productlist[PRODUCT_ID],productlist[UNDERLYING_ISIN]) -> CH0009980894 | AE103: =W103-1 -> 9 | AF103: =IF(TODAY()<$AH$1,AE103+AG103,IF(TODAY()<$AI$1,AE103+AH103,IF(TODAY()<$AJ$1,AE103+AI103,IF(TODAY()>=$AJ$1,AE103+4)))) -> 13 | AG103: 1 | AH103: 2 | AI103: 3 | AJ103: 4
A104: OSMM | B104: =_xlfn.XLOOKUP(A104,'Product List'!$A:$A,'Product List'!$D:$D) -> SMIM® Options | C104: =_xlfn.XLOOKUP(A104,'Product List'!$A:$A,'Product List'!$F:$F) -> INDEX OPTIONS | D104: =_xlfn.XLOOKUP(A104,'MMPM1-AMM'!E:E,'MMPM1-AMM'!K:K,_xlfn.XLOOKUP(A104,'MMPM1-PMM'!E:E,'MMPM1-PMM'!J:J)) -> OSMM | E104: =_xlfn.XLOOKUP(A104,'MMPM1-AMM'!E:E,'MMPM1-AMM'!Q:Q,_xlfn.XLOOKUP(A104,'MMPM1-PMM'!E:E,'MMPM1-PMM'!P:P)) -> 7 | F104: =SUMIFS(MMPM2!H:H,MMPM2!C:C,U104,MMPM2!E:E,1,MMPM2!G:G,1) -> 5.3 | G104: =SUMIFS(MMPM2!H:H,MMPM2!C:C,U104,MMPM2!E:E,1,MMPM2!G:G,2) -> 53.3 | L104: =SUMIFS(MMPM2!I:I,MMPM2!C:C,U104,MMPM2!E:E,1,MMPM2!G:G,1) -> 0.8 | M104: =SUMIFS(MMPM2!I:I,MMPM2!C:C,U104,MMPM2!E:E,1,MMPM2!G:G,2) -> 0.15 | N104: =SUMIFS(MMPM2!I:I,MMPM2!C:C,U104,MMPM2!E:E,1,MMPM2!G:G,3) -> 8 | R104: =IF(D104="OVS","",IF(V104=3, "Not applicable",W104-1)) -> Not applicable | S104: No doubling of mistrade range | U104: =IFERROR(_xlfn.XLOOKUP(A104,'MMPM1-PMM'!E:E,'MMPM1-PMM'!J:J),_xlfn.XLOOKUP(A104,'MMPM1-AMM'!E:E,'MMPM1-AMM'!K:K)) -> OSMM | V104: =IFERROR(_xlfn.XLOOKUP(A104,'MMPM1-AMM'!E:E,'MMPM1-AMM'!T:T),_xlfn.XLOOKUP(A104,'MMPM1-PMM'!E:E,'MMPM1-PMM'!S:S)) -> 3 | W104: =IFERROR(_xlfn.XLOOKUP(A104,'MMPM1-AMM'!E:E,'MMPM1-AMM'!U:U),_xlfn.XLOOKUP(A104,'MMPM1-PMM'!E:E,'MMPM1-PMM'!T:T)) -> 7 | Y104: TRUE | AB104: =_xlfn.XLOOKUP(A104,productlist[PRODUCT_ID],productlist[PRODUCT_ISIN]) -> DE000A0JZHL8 | AC104: =_xlfn.XLOOKUP(A104,productlist[PRODUCT_ID],productlist[UNDERLYING_ISIN]) -> CH0019399838
A105: OSSX | B105: =_xlfn.XLOOKUP(A105,'Product List'!$A:$A,'Product List'!$D:$D) -> EURO STOXX 50® ESG Index Options | C105: =_xlfn.XLOOKUP(A105,'Product List'!$A:$A,'Product List'!$F:$F) -> INDEX OPTIONS | D105: =_xlfn.XLOOKUP(A105,'MMPM1-AMM'!E:E,'MMPM1-AMM'!K:K,_xlfn.XLOOKUP(A105,'MMPM1-PMM'!E:E,'MMPM1-PMM'!J:J)) -> STX-ESG | E105: =_xlfn.XLOOKUP(A105,'MMPM1-AMM'!E:E,'MMPM1-AMM'!Q:Q,_xlfn.XLOOKUP(A105,'MMPM1-PMM'!E:E,'MMPM1-PMM'!P:P)) -> 6 | F105: =SUMIFS(MMPM2!H:H,MMPM2!C:C,U105,MMPM2!E:E,1,MMPM2!G:G,1) -> 5.3 | G105: =SUMIFS(MMPM2!H:H,MMPM2!C:C,U105,MMPM2!E:E,1,MMPM2!G:G,2) -> 53.3 | L105: =SUMIFS(MMPM2!I:I,MMPM2!C:C,U105,MMPM2!E:E,1,MMPM2!G:G,1) -> 0.8 | M105: =SUMIFS(MMPM2!I:I,MMPM2!C:C,U105,MMPM2!E:E,1,MMPM2!G:G,2) -> 0.15 | N105: =SUMIFS(MMPM2!I:I,MMPM2!C:C,U105,MMPM2!E:E,1,MMPM2!G:G,3) -> 8 | R105: Not applicable | S105: No doubling of mistrade range | U105: =IFERROR(_xlfn.XLOOKUP(A105,'MMPM1-PMM'!E:E,'MMPM1-PMM'!J:J),_xlfn.XLOOKUP(A105,'MMPM1-AMM'!E:E,'MMPM1-AMM'!K:K)) -> STX-ESG | V105: =IFERROR(_xlfn.XLOOKUP(A105,'MMPM1-AMM'!E:E,'MMPM1-AMM'!T:T),_xlfn.XLOOKUP(A105,'MMPM1-PMM'!E:E,'MMPM1-PMM'!S:S)) -> 3 | W105: =IFERROR(_xlfn.XLOOKUP(A105,'MMPM1-AMM'!E:E,'MMPM1-AMM'!U:U),_xlfn.XLOOKUP(A105,'MMPM1-PMM'!E:E,'MMPM1-PMM'!T:T)) -> 6 | Y105: TRUE | AB105: =_xlfn.XLOOKUP(A105,productlist[PRODUCT_ID],productlist[PRODUCT_ISIN]) -> DE000A2QDW37 | AC105: =_xlfn.XLOOKUP(A105,productlist[PRODUCT_ID],productlist[UNDERLYING_ISIN]) -> CH0469557521
A106: OSTA | B106: =_xlfn.XLOOKUP(A106,'Product List'!$A:$A,'Product List'!$D:$D) -> STOXX® Europe 600 Automobiles & Parts Options | C106: =_xlfn.XLOOKUP(A106,'Product List'!$A:$A,'Product List'!$F:$F) -> INDEX OPTIONS | D106: =_xlfn.XLOOKUP(A106,'MMPM1-AMM'!E:E,'MMPM1-AMM'!K:K,_xlfn.XLOOKUP(A106,'MMPM1-PMM'!E:E,'MMPM1-PMM'!J:J)) -> STXSO1 | E106: =_xlfn.XLOOKUP(A106,'MMPM1-AMM'!E:E,'MMPM1-AMM'!Q:Q,_xlfn.XLOOKUP(A106,'MMPM1-PMM'!E:E,'MMPM1-PMM'!P:P)) -> 5 | F106: =SUMIFS(MMPM2!H:H,MMPM2!C:C,U106,MMPM2!E:E,1,MMPM2!G:G,1) -> 5.3 | G106: =SUMIFS(MMPM2!H:H,MMPM2!C:C,U106,MMPM2!E:E,1,MMPM2!G:G,2) -> 53.3 | L106: =SUMIFS(MMPM2!I:I,MMPM2!C:C,U106,MMPM2!E:E,1,MMPM2!G:G,1) -> 0.8 | M106: =SUMIFS(MMPM2!I:I,MMPM2!C:C,U106,MMPM2!E:E,1,MMPM2!G:G,2) -> 0.15 | N106: =SUMIFS(MMPM2!I:I,MMPM2!C:C,U106,MMPM2!E:E,1,MMPM2!G:G,3) -> 8 | R106: Not applicable | S106: =IF(D106="OVS","",IF(V106=3, "No doubling of mistrade range",W106-1)) -> No doubling of mistrade range | U106: =IFERROR(_xlfn.XLOOKUP(A106,'MMPM1-PMM'!E:E,'MMPM1-PMM'!J:J),_xlfn.XLOOKUP(A106,'MMPM1-AMM'!E:E,'MMPM1-AMM'!K:K)) -> STXSO1 | V106: =IFERROR(_xlfn.XLOOKUP(A106,'MMPM1-AMM'!E:E,'MMPM1-AMM'!T:T),_xlfn.XLOOKUP(A106,'MMPM1-PMM'!E:E,'MMPM1-PMM'!S:S)) -> 3 | W106: =IFERROR(_xlfn.XLOOKUP(A106,'MMPM1-AMM'!E:E,'MMPM1-AMM'!U:U),_xlfn.XLOOKUP(A106,'MMPM1-PMM'!E:E,'MMPM1-PMM'!T:T)) -> 5 | Y106: =W106=E106 -> TRUE | AB106: =_xlfn.XLOOKUP(A106,productlist[PRODUCT_ID],productlist[PRODUCT_ISIN]) -> DE000A0DMX65 | AC106: =_xlfn.XLOOKUP(A106,productlist[PRODUCT_ID],productlist[UNDERLYING_ISIN]) -> EU0009658681
A107: OSTB | B107: =_xlfn.XLOOKUP(A107,'Product List'!$A:$A,'Product List'!$D:$D) -> STOXX® Europe 600 Banks Options | C107: =_xlfn.XLOOKUP(A107,'Product List'!$A:$A,'Product List'!$F:$F) -> INDEX OPTIONS | D107: =_xlfn.XLOOKUP(A107,'MMPM1-AMM'!E:E,'MMPM1-AMM'!K:K,_xlfn.XLOOKUP(A107,'MMPM1-PMM'!E:E,'MMPM1-PMM'!J:J)) -> STXSO1 | E107: =_xlfn.XLOOKUP(A107,'MMPM1-AMM'!E:E,'MMPM1-AMM'!Q:Q,_xlfn.XLOOKUP(A107,'MMPM1-PMM'!E:E,'MMPM1-PMM'!P:P)) -> 5 | F107: =SUMIFS(MMPM2!H:H,MMPM2!C:C,U107,MMPM2!E:E,1,MMPM2!G:G,1) -> 5.3 | G107: =SUMIFS(MMPM2!H:H,MMPM2!C:C,U107,MMPM2!E:E,1,MMPM2!G:G,2) -> 53.3 | L107: =SUMIFS(MMPM2!I:I,MMPM2!C:C,U107,MMPM2!E:E,1,MMPM2!G:G,1) -> 0.8 | M107: =SUMIFS(MMPM2!I:I,MMPM2!C:C,U107,MMPM2!E:E,1,MMPM2!G:G,2) -> 0.15 | N107: =SUMIFS(MMPM2!I:I,MMPM2!C:C,U107,MMPM2!E:E,1,MMPM2!G:G,3) -> 8 | R107: Not applicable | S107: No doubling of mistrade range | U107: =IFERROR(_xlfn.XLOOKUP(A107,'MMPM1-PMM'!E:E,'MMPM1-PMM'!J:J),_xlfn.XLOOKUP(A107,'MMPM1-AMM'!E:E,'MMPM1-AMM'!K:K)) -> STXSO1 | V107: =IFERROR(_xlfn.XLOOKUP(A107,'MMPM1-AMM'!E:E,'MMPM1-AMM'!T:T),_xlfn.XLOOKUP(A107,'MMPM1-PMM'!E:E,'MMPM1-PMM'!S:S)) -> 3 | W107: =IFERROR(_xlfn.XLOOKUP(A107,'MMPM1-AMM'!E:E,'MMPM1-AMM'!U:U),_xlfn.XLOOKUP(A107,'MMPM1-PMM'!E:E,'MMPM1-PMM'!T:T)) -> 5 | Y107: TRUE | AB107: =_xlfn.XLOOKUP(A107,productlist[PRODUCT_ID],productlist[PRODUCT_ISIN]) -> DE0007200750 | AC107: =_xlfn.XLOOKUP(A107,productlist[PRODUCT_ID],productlist[UNDERLYING_ISIN]) -> EU0009658806
A108: OSTC | B108: =_xlfn.XLOOKUP(A108,'Product List'!$A:$A,'Product List'!$D:$D) -> STOXX® Europe 600 Chemicals Options | C108: =_xlfn.XLOOKUP(A108,'Product List'!$A:$A,'Product List'!$F:$F) -> INDEX OPTIONS | D108: =_xlfn.XLOOKUP(A108,'MMPM1-AMM'!E:E,'MMPM1-AMM'!K:K,_xlfn.XLOOKUP(A108,'MMPM1-PMM'!E:E,'MMPM1-PMM'!J:J)) -> STXSO1 | E108: =_xlfn.XLOOKUP(A108,'MMPM1-AMM'!E:E,'MMPM1-AMM'!Q:Q,_xlfn.XLOOKUP(A108,'MMPM1-PMM'!E:E,'MMPM1-PMM'!P:P)) -> 5 | F108: =SUMIFS(MMPM2!H:H,MMPM2!C:C,U108,MMPM2!E:E,1,MMPM2!G:G,1) -> 5.3 | G108: =SUMIFS(MMPM2!H:H,MMPM2!C:C,U108,MMPM2!E:E,1,MMPM2!G:G,2) -> 53.3 | L108: =SUMIFS(MMPM2!I:I,MMPM2!C:C,U108,MMPM2!E:E,1,MMPM2!G:G,1) -> 0.8 | M108: =SUMIFS(MMPM2!I:I,MMPM2!C:C,U108,MMPM2!E:E,1,MMPM2!G:G,2) -> 0.15 | N108: =SUMIFS(MMPM2!I:I,MMPM2!C:C,U108,MMPM2!E:E,1,MMPM2!G:G,3) -> 8 | R108: Not applicable | S108: No doubling of mistrade range | U108: =IFERROR(_xlfn.XLOOKUP(A108,'MMPM1-PMM'!E:E,'MMPM1-PMM'!J:J),_xlfn.XLOOKUP(A108,'MMPM1-AMM'!E:E,'MMPM1-AMM'!K:K)) -> STXSO1 | V108: =IFERROR(_xlfn.XLOOKUP(A108,'MMPM1-AMM'!E:E,'MMPM1-AMM'!T:T),_xlfn.XLOOKUP(A108,'MMPM1-PMM'!E:E,'MMPM1-PMM'!S:S)) -> 3 | W108: =IFERROR(_xlfn.XLOOKUP(A108,'MMPM1-AMM'!E:E,'MMPM1-AMM'!U:U),_xlfn.XLOOKUP(A108,'MMPM1-PMM'!E:E,'MMPM1-PMM'!T:T)) -> 5 | Y108: TRUE | AB108: =_xlfn.XLOOKUP(A108,productlist[PRODUCT_ID],productlist[PRODUCT_ISIN]) -> DE000A0DMX73 | AC108: =_xlfn.XLOOKUP(A108,productlist[PRODUCT_ID],productlist[UNDERLYING_ISIN]) -> EU0009658608
A109: OSTE | B109: =_xlfn.XLOOKUP(A109,'Product List'!$A:$A,'Product List'!$D:$D) -> STOXX® Europe 600 Oil & Gas Options | C109: =_xlfn.XLOOKUP(A109,'Product List'!$A:$A,'Product List'!$F:$F) -> INDEX OPTIONS | D109: =_xlfn.XLOOKUP(A109,'MMPM1-AMM'!E:E,'MMPM1-AMM'!K:K,_xlfn.XLOOKUP(A109,'MMPM1-PMM'!E:E,'MMPM1-PMM'!J:J)) -> STXSO1 | E109: =_xlfn.XLOOKUP(A109,'MMPM1-AMM'!E:E,'MMPM1-AMM'!Q:Q,_xlfn.XLOOKUP(A109,'MMPM1-PMM'!E:E,'MMPM1-PMM'!P:P)) -> 5 | F109: =SUMIFS(MMPM2!H:H,MMPM2!C:C,U109,MMPM2!E:E,1,MMPM2!G:G,1) -> 5.3 | G109: =SUMIFS(MMPM2!H:H,MMPM2!C:C,U109,MMPM2!E:E,1,MMPM2!G:G,2) -> 53.3 | L109: =SUMIFS(MMPM2!I:I,MMPM2!C:C,U109,MMPM2!E:E,1,MMPM2!G:G,1) -> 0.8 | M109: =SUMIFS(MMPM2!I:I,MMPM2!C:C,U109,MMPM2!E:E,1,MMPM2!G:G,2) -> 0.15 | N109: =SUMIFS(MMPM2!I:I,MMPM2!C:C,U109,MMPM2!E:E,1,MMPM2!G:G,3) -> 8 | R109: Not applicable | S109: No doubling of mistrade range | U109: =IFERROR(_xlfn.XLOOKUP(A109,'MMPM1-PMM'!E:E,'MMPM1-PMM'!J:J),_xlfn.XLOOKUP(A109,'MMPM1-AMM'!E:E,'MMPM1-AMM'!K:K)) -> STXSO1 | V109: =IFERROR(_xlfn.XLOOKUP(A109,'MMPM1-AMM'!E:E,'MMPM1-AMM'!T:T),_xlfn.XLOOKUP(A109,'MMPM1-PMM'!E:E,'MMPM1-PMM'!S:S)) -> 3 | W109: =IFERROR(_xlfn.XLOOKUP(A109,'MMPM1-AMM'!E:E,'MMPM1-AMM'!U:U),_xlfn.XLOOKUP(A109,'MMPM1-PMM'!E:E,'MMPM1-PMM'!T:T)) -> 5 | Y109: TRUE | AB109: =_xlfn.XLOOKUP(A109,productlist[PRODUCT_ID],productlist[PRODUCT_ISIN]) -> DE000A0AEU61 | AC109: =_xlfn.XLOOKUP(A109,productlist[PRODUCT_ID],productlist[UNDERLYING_ISIN]) -> EU0009658780
A110: OSTF | B110: =_xlfn.XLOOKUP(A110,'Product List'!$A:$A,'Product List'!$D:$D) -> STOXX® Europe 600 Financial Services Options | C110: =_xlfn.XLOOKUP(A110,'Product List'!$A:$A,'Product List'!$F:$F) -> INDEX OPTIONS | D110: =_xlfn.XLOOKUP(A110,'MMPM1-AMM'!E:E,'MMPM1-AMM'!K:K,_xlfn.XLOOKUP(A110,'MMPM1-PMM'!E:E,'MMPM1-PMM'!J:J)) -> STXSO1 | E110: =_xlfn.XLOOKUP(A110,'MMPM1-AMM'!E:E,'MMPM1-AMM'!Q:Q,_xlfn.XLOOKUP(A110,'MMPM1-PMM'!E:E,'MMPM1-PMM'!P:P)) -> 5 | F110: =SUMIFS(MMPM2!H:H,MMPM2!C:C,U110,MMPM2!E:E,1,MMPM2!G:G,1) -> 5.3 | G110: =SUMIFS(MMPM2!H:H,MMPM2!C:C,U110,MMPM2!E:E,1,MMPM2!G:G,2) -> 53.3 | L110: =SUMIFS(MMPM2!I:I,MMPM2!C:C,U110,MMPM2!E:E,1,MMPM2!G:G,1) -> 0.8 | M110: =SUMIFS(MMPM2!I:I,MMPM2!C:C,U110,MMPM2!E:E,1,MMPM2!G:G,2) -> 0.15 | N110: =SUMIFS(MMPM2!I:I,MMPM2!C:C,U110,MMPM2!E:E,1,MMPM2!G:G,3) -> 8 | R110: Not applicable | S110: No doubling of mistrade range | U110: =IFERROR(_xlfn.XLOOKUP(A110,'MMPM1-PMM'!E:E,'MMPM1-PMM'!J:J),_xlfn.XLOOKUP(A110,'MMPM1-AMM'!E:E,'MMPM1-AMM'!K:K)) -> STXSO1 | V110: =IFERROR(_xlfn.XLOOKUP(A110,'MMPM1-AMM'!E:E,'MMPM1-AMM'!T:T),_xlfn.XLOOKUP(A110,'MMPM1-PMM'!E:E,'MMPM1-PMM'!S:S)) -> 3 | W110: =IFERROR(_xlfn.XLOOKUP(A110,'MMPM1-AMM'!E:E,'MMPM1-AMM'!U:U),_xlfn.XLOOKUP(A110,'MMPM1-PMM'!E:E,'MMPM1-PMM'!T:T)) -> 5 | Y110: TRUE | AB110: =_xlfn.XLOOKUP(A110,productlist[PRODUCT_ID],productlist[PRODUCT_ISIN]) -> DE000A0AEU46 | AC110: =_xlfn.XLOOKUP(A110,productlist[PRODUCT_ID],productlist[UNDERLYING_ISIN]) -> EU0009658848
A111: OSTG | B111: =_xlfn.XLOOKUP(A111,'Product List'!$A:$A,'Product List'!$D:$D) -> STOXX® Europe 600 Industrial Goods & Services Options | C111: =_xlfn.XLOOKUP(A111,'Product List'!$A:$A,'Product List'!$F:$F) -> INDEX OPTIONS | D111: =_xlfn.XLOOKUP(A111,'MMPM1-AMM'!E:E,'MMPM1-AMM'!K:K,_xlfn.XLOOKUP(A111,'MMPM1-PMM'!E:E,'MMPM1-PMM'!J:J)) -> STXSO1 | E111: =_xlfn.XLOOKUP(A111,'MMPM1-AMM'!E:E,'MMPM1-AMM'!Q:Q,_xlfn.XLOOKUP(A111,'MMPM1-PMM'!E:E,'MMPM1-PMM'!P:P)) -> 5 | F111: =SUMIFS(MMPM2!H:H,MMPM2!C:C,U111,MMPM2!E:E,1,MMPM2!G:G,1) -> 5.3 | G111: =SUMIFS(MMPM2!H:H,MMPM2!C:C,U111,MMPM2!E:E,1,MMPM2!G:G,2) -> 53.3 | L111: =SUMIFS(MMPM2!I:I,MMPM2!C:C,U111,MMPM2!E:E,1,MMPM2!G:G,1) -> 0.8 | M111: =SUMIFS(MMPM2!I:I,MMPM2!C:C,U111,MMPM2!E:E,1,MMPM2!G:G,2) -> 0.15 | N111: =SUMIFS(MMPM2!I:I,MMPM2!C:C,U111,MMPM2!E:E,1,MMPM2!G:G,3) -> 8 | R111: Not applicable | S111: No doubling of mistrade range | U111: =IFERROR(_xlfn.XLOOKUP(A111,'MMPM1-PMM'!E:E,'MMPM1-PMM'!J:J),_xlfn.XLOOKUP(A111,'MMPM1-AMM'!E:E,'MMPM1-AMM'!K:K)) -> STXSO1 | V111: =IFERROR(_xlfn.XLOOKUP(A111,'MMPM1-AMM'!E:E,'MMPM1-AMM'!T:T),_xlfn.XLOOKUP(A111,'MMPM1-PMM'!E:E,'MMPM1-PMM'!S:S)) -> 3 | W111: =IFERROR(_xlfn.XLOOKUP(A111,'MMPM1-AMM'!E:E,'MMPM1-AMM'!U:U),_xlfn.XLOOKUP(A111,'MMPM1-PMM'!E:E,'MMPM1-PMM'!T:T)) -> 5 | Y111: TRUE | AB111: =_xlfn.XLOOKUP(A111,productlist[PRODUCT_ID],productlist[PRODUCT_ISIN]) -> DE000A0AEU95 | AC111: =_xlfn.XLOOKUP(A111,productlist[PRODUCT_ID],productlist[UNDERLYING_ISIN]) -> EU0009658905
A112: OSTH | B112: =_xlfn.XLOOKUP(A112,'Product List'!$A:$A,'Product List'!$D:$D) -> STOXX® Europe 600 Health Care Options | C112: =_xlfn.XLOOKUP(A112,'Product List'!$A:$A,'Product List'!$F:$F) -> INDEX OPTIONS | D112: =_xlfn.XLOOKUP(A112,'MMPM1-AMM'!E:E,'MMPM1-AMM'!K:K,_xlfn.XLOOKUP(A112,'MMPM1-PMM'!E:E,'MMPM1-PMM'!J:J)) -> STXSO2 | E112: =_xlfn.XLOOKUP(A112,'MMPM1-AMM'!E:E,'MMPM1-AMM'!Q:Q,_xlfn.XLOOKUP(A112,'MMPM1-PMM'!E:E,'MMPM1-PMM'!P:P)) -> 5 | F112: =SUMIFS(MMPM2!H:H,MMPM2!C:C,U112,MMPM2!E:E,1,MMPM2!G:G,1) -> 8.3 | G112: =SUMIFS(MMPM2!H:H,MMPM2!C:C,U112,MMPM2!E:E,1,MMPM2!G:G,2) -> 53.3 | L112: =SUMIFS(MMPM2!I:I,MMPM2!C:C,U112,MMPM2!E:E,1,MMPM2!G:G,1) -> 2.5 | M112: =SUMIFS(MMPM2!I:I,MMPM2!C:C,U112,MMPM2!E:E,1,MMPM2!G:G,2) -> 0.3 | N112: =SUMIFS(MMPM2!I:I,MMPM2!C:C,U112,MMPM2!E:E,1,MMPM2!G:G,3) -> 16.1 | R112: Not applicable | S112: No doubling of mistrade range | U112: =IFERROR(_xlfn.XLOOKUP(A112,'MMPM1-PMM'!E:E,'MMPM1-PMM'!J:J),_xlfn.XLOOKUP(A112,'MMPM1-AMM'!E:E,'MMPM1-AMM'!K:K)) -> STXSO2 | V112: =IFERROR(_xlfn.XLOOKUP(A112,'MMPM1-AMM'!E:E,'MMPM1-AMM'!T:T),_xlfn.XLOOKUP(A112,'MMPM1-PMM'!E:E,'MMPM1-PMM'!S:S)) -> 3 | W112: =IFERROR(_xlfn.XLOOKUP(A112,'MMPM1-AMM'!E:E,'MMPM1-AMM'!U:U),_xlfn.XLOOKUP(A112,'MMPM1-PMM'!E:E,'MMPM1-PMM'!T:T)) -> 4 | Y112: FALSE | AB112: =_xlfn.XLOOKUP(A112,productlist[PRODUCT_ID],productlist[PRODUCT_ISIN]) -> DE0005303614 | AC112: =_xlfn.XLOOKUP(A112,productlist[PRODUCT_ID],productlist[UNDERLYING_ISIN]) -> EU0009658723
A113: OSTI | B113: =_xlfn.XLOOKUP(A113,'Product List'!$A:$A,'Product List'!$D:$D) -> STOXX® Europe 600 Insurance Options | C113: =_xlfn.XLOOKUP(A113,'Product List'!$A:$A,'Product List'!$F:$F) -> INDEX OPTIONS | D113: =_xlfn.XLOOKUP(A113,'MMPM1-AMM'!E:E,'MMPM1-AMM'!K:K,_xlfn.XLOOKUP(A113,'MMPM1-PMM'!E:E,'MMPM1-PMM'!J:J)) -> STXSO2 | E113: =_xlfn.XLOOKUP(A113,'MMPM1-AMM'!E:E,'MMPM1-AMM'!Q:Q,_xlfn.XLOOKUP(A113,'MMPM1-PMM'!E:E,'MMPM1-PMM'!P:P)) -> 5 | F113: =SUMIFS(MMPM2!H:H,MMPM2!C:C,U113,MMPM2!E:E,1,MMPM2!G:G,1) -> 8.3 | G113: =SUMIFS(MMPM2!H:H,MMPM2!C:C,U113,MMPM2!E:E,1,MMPM2!G:G,2) -> 53.3 | L113: =SUMIFS(MMPM2!I:I,MMPM2!C:C,U113,MMPM2!E:E,1,MMPM2!G:G,1) -> 2.5 | M113: =SUMIFS(MMPM2!I:I,MMPM2!C:C,U113,MMPM2!E:E,1,MMPM2!G:G,2) -> 0.3 | N113: =SUMIFS(MMPM2!I:I,MMPM2!C:C,U113,MMPM2!E:E,1,MMPM2!G:G,3) -> 16.1 | R113: Not applicable | S113: No doubling of mistrade range | U113: =IFERROR(_xlfn.XLOOKUP(A113,'MMPM1-PMM'!E:E,'MMPM1-PMM'!J:J),_xlfn.XLOOKUP(A113,'MMPM1-AMM'!E:E,'MMPM1-AMM'!K:K)) -> STXSO2 | V113: =IFERROR(_xlfn.XLOOKUP(A113,'MMPM1-AMM'!E:E,'MMPM1-AMM'!T:T),_xlfn.XLOOKUP(A113,'MMPM1-PMM'!E:E,'MMPM1-PMM'!S:S)) -> 3 | W113: =IFERROR(_xlfn.XLOOKUP(A113,'MMPM1-AMM'!E:E,'MMPM1-AMM'!U:U),_xlfn.XLOOKUP(A113,'MMPM1-PMM'!E:E,'MMPM1-PMM'!T:T)) -> 4 | Y113: FALSE | AB113: =_xlfn.XLOOKUP(A113,productlist[PRODUCT_ID],productlist[PRODUCT_ISIN]) -> DE0002272101 | AC113: =_xlfn.XLOOKUP(A113,productlist[PRODUCT_ID],productlist[UNDERLYING_ISIN]) -> EU0009658822
A114: OSTJ | B114: =_xlfn.XLOOKUP(A114,'Product List'!$A:$A,'Product List'!$D:$D) -> STOXX® Europe 600 Energy Options | C114: =_xlfn.XLOOKUP(A114,'Product List'!$A:$A,'Product List'!$F:$F) -> INDEX OPTIONS | D114: =_xlfn.XLOOKUP(A114,'MMPM1-AMM'!E:E,'MMPM1-AMM'!K:K,_xlfn.XLOOKUP(A114,'MMPM1-PMM'!E:E,'MMPM1-PMM'!J:J)) -> STXSO1 | E114: =_xlfn.XLOOKUP(A114,'MMPM1-AMM'!E:E,'MMPM1-AMM'!Q:Q,_xlfn.XLOOKUP(A114,'MMPM1-PMM'!E:E,'MMPM1-PMM'!P:P)) -> 5 | F114: =SUMIFS(MMPM2!H:H,MMPM2!C:C,U114,MMPM2!E:E,1,MMPM2!G:G,1) -> 5.3 | G114: =SUMIFS(MMPM2!H:H,MMPM2!C:C,U114,MMPM2!E:E,1,MMPM2!G:G,2) -> 53.3 | L114: =SUMIFS(MMPM2!I:I,MMPM2!C:C,U114,MMPM2!E:E,1,MMPM2!G:G,1) -> 0.8 | M114: =SUMIFS(MMPM2!I:I,MMPM2!C:C,U114,MMPM2!E:E,1,MMPM2!G:G,2) -> 0.15 | N114: =SUMIFS(MMPM2!I:I,MMPM2!C:C,U114,MMPM2!E:E,1,MMPM2!G:G,3) -> 8 | R114: Not applicable | S114: No doubling of mistrade range | U114: =IFERROR(_xlfn.XLOOKUP(A114,'MMPM1-PMM'!E:E,'MMPM1-PMM'!J:J),_xlfn.XLOOKUP(A114,'MMPM1-AMM'!E:E,'MMPM1-AMM'!K:K)) -> STXSO1 | V114: =IFERROR(_xlfn.XLOOKUP(A114,'MMPM1-AMM'!E:E,'MMPM1-AMM'!T:T),_xlfn.XLOOKUP(A114,'MMPM1-PMM'!E:E,'MMPM1-PMM'!S:S)) -> 3 | W114: =IFERROR(_xlfn.XLOOKUP(A114,'MMPM1-AMM'!E:E,'MMPM1-AMM'!U:U),_xlfn.XLOOKUP(A114,'MMPM1-PMM'!E:E,'MMPM1-PMM'!T:T)) -> 5 | Y114: TRUE | AB114: =_xlfn.XLOOKUP(A114,productlist[PRODUCT_ID],productlist[PRODUCT_ISIN]) -> DE000A2QBER4 | AC114: =_xlfn.XLOOKUP(A114,productlist[PRODUCT_ID],productlist[UNDERLYING_ISIN]) -> CH0462356517
A115: OSTL | B115: =_xlfn.XLOOKUP(A115,'Product List'!$A:$A,'Product List'!$D:$D) -> STOXX® Europe 600 Real Estate Options | C115: =_xlfn.XLOOKUP(A115,'Product List'!$A:$A,'Product List'!$F:$F) -> INDEX OPTIONS | D115: =_xlfn.XLOOKUP(A115,'MMPM1-AMM'!E:E,'MMPM1-AMM'!K:K,_xlfn.XLOOKUP(A115,'MMPM1-PMM'!E:E,'MMPM1-PMM'!J:J)) -> STXSO1 | E115: =_xlfn.XLOOKUP(A115,'MMPM1-AMM'!E:E,'MMPM1-AMM'!Q:Q,_xlfn.XLOOKUP(A115,'MMPM1-PMM'!E:E,'MMPM1-PMM'!P:P)) -> 5 | F115: =SUMIFS(MMPM2!H:H,MMPM2!C:C,U115,MMPM2!E:E,1,MMPM2!G:G,1) -> 5.3 | G115: =SUMIFS(MMPM2!H:H,MMPM2!C:C,U115,MMPM2!E:E,1,MMPM2!G:G,2) -> 53.3 | L115: =SUMIFS(MMPM2!I:I,MMPM2!C:C,U115,MMPM2!E:E,1,MMPM2!G:G,1) -> 0.8 | M115: =SUMIFS(MMPM2!I:I,MMPM2!C:C,U115,MMPM2!E:E,1,MMPM2!G:G,2) -> 0.15 | N115: =SUMIFS(MMPM2!I:I,MMPM2!C:C,U115,MMPM2!E:E,1,MMPM2!G:G,3) -> 8 | R115: Not applicable | S115: No doubling of mistrade range | U115: =IFERROR(_xlfn.XLOOKUP(A115,'MMPM1-PMM'!E:E,'MMPM1-PMM'!J:J),_xlfn.XLOOKUP(A115,'MMPM1-AMM'!E:E,'MMPM1-AMM'!K:K)) -> STXSO1 | V115: =IFERROR(_xlfn.XLOOKUP(A115,'MMPM1-AMM'!E:E,'MMPM1-AMM'!T:T),_xlfn.XLOOKUP(A115,'MMPM1-PMM'!E:E,'MMPM1-PMM'!S:S)) -> 3 | W115: =IFERROR(_xlfn.XLOOKUP(A115,'MMPM1-AMM'!E:E,'MMPM1-AMM'!U:U),_xlfn.XLOOKUP(A115,'MMPM1-PMM'!E:E,'MMPM1-PMM'!T:T)) -> 5 | Y115: TRUE | AB115: =_xlfn.XLOOKUP(A115,productlist[PRODUCT_ID],productlist[PRODUCT_ISIN]) -> DE000A0V8N69 | AC115: =_xlfn.XLOOKUP(A115,productlist[PRODUCT_ID],productlist[UNDERLYING_ISIN]) -> CH0043274395
A116: OSTM | B116: =_xlfn.XLOOKUP(A116,'Product List'!$A:$A,'Product List'!$D:$D) -> STOXX® Europe 600 Media Options | C116: =_xlfn.XLOOKUP(A116,'Product List'!$A:$A,'Product List'!$F:$F) -> INDEX OPTIONS | D116: =_xlfn.XLOOKUP(A116,'MMPM1-AMM'!E:E,'MMPM1-AMM'!K:K,_xlfn.XLOOKUP(A116,'MMPM1-PMM'!E:E,'MMPM1-PMM'!J:J)) -> STXSO1 | E116: =_xlfn.XLOOKUP(A116,'MMPM1-AMM'!E:E,'MMPM1-AMM'!Q:Q,_xlfn.XLOOKUP(A116,'MMPM1-PMM'!E:E,'MMPM1-PMM'!P:P)) -> 5 | F116: =SUMIFS(MMPM2!H:H,MMPM2!C:C,U116,MMPM2!E:E,1,MMPM2!G:G,1) -> 5.3 | G116: =SUMIFS(MMPM2!H:H,MMPM2!C:C,U116,MMPM2!E:E,1,MMPM2!G:G,2) -> 53.3 | L116: =SUMIFS(MMPM2!I:I,MMPM2!C:C,U116,MMPM2!E:E,1,MMPM2!G:G,1) -> 0.8 | M116: =SUMIFS(MMPM2!I:I,MMPM2!C:C,U116,MMPM2!E:E,1,MMPM2!G:G,2) -> 0.15 | N116: =SUMIFS(MMPM2!I:I,MMPM2!C:C,U116,MMPM2!E:E,1,MMPM2!G:G,3) -> 8 | R116: Not applicable | S116: No doubling of mistrade range | U116: =IFERROR(_xlfn.XLOOKUP(A116,'MMPM1-PMM'!E:E,'MMPM1-PMM'!J:J),_xlfn.XLOOKUP(A116,'MMPM1-AMM'!E:E,'MMPM1-AMM'!K:K)) -> STXSO1 | V116: =IFERROR(_xlfn.XLOOKUP(A116,'MMPM1-AMM'!E:E,'MMPM1-AMM'!T:T),_xlfn.XLOOKUP(A116,'MMPM1-PMM'!E:E,'MMPM1-PMM'!S:S)) -> 3 | W116: =IFERROR(_xlfn.XLOOKUP(A116,'MMPM1-AMM'!E:E,'MMPM1-AMM'!U:U),_xlfn.XLOOKUP(A116,'MMPM1-PMM'!E:E,'MMPM1-PMM'!T:T)) -> 5 | Y116: TRUE | AB116: =_xlfn.XLOOKUP(A116,productlist[PRODUCT_ID],productlist[PRODUCT_ISIN]) -> DE000A0AEU87 | AC116: =_xlfn.XLOOKUP(A116,productlist[PRODUCT_ID],productlist[UNDERLYING_ISIN]) -> EU0009658640
A117: OSTN | B117: =_xlfn.XLOOKUP(A117,'Product List'!$A:$A,'Product List'!$D:$D) -> STOXX® Europe 600 Construction & Materials Options | C117: =_xlfn.XLOOKUP(A117,'Product List'!$A:$A,'Product List'!$F:$F) -> INDEX OPTIONS | D117: =_xlfn.XLOOKUP(A117,'MMPM1-AMM'!E:E,'MMPM1-AMM'!K:K,_xlfn.XLOOKUP(A117,'MMPM1-PMM'!E:E,'MMPM1-PMM'!J:J)) -> STXSO1 | E117: =_xlfn.XLOOKUP(A117,'MMPM1-AMM'!E:E,'MMPM1-AMM'!Q:Q,_xlfn.XLOOKUP(A117,'MMPM1-PMM'!E:E,'MMPM1-PMM'!P:P)) -> 5 | F117: =SUMIFS(MMPM2!H:H,MMPM2!C:C,U117,MMPM2!E:E,1,MMPM2!G:G,1) -> 5.3 | G117: =SUMIFS(MMPM2!H:H,MMPM2!C:C,U117,MMPM2!E:E,1,MMPM2!G:G,2) -> 53.3 | L117: =SUMIFS(MMPM2!I:I,MMPM2!C:C,U117,MMPM2!E:E,1,MMPM2!G:G,1) -> 0.8 | M117: =SUMIFS(MMPM2!I:I,MMPM2!C:C,U117,MMPM2!E:E,1,MMPM2!G:G,2) -> 0.15 | N117: =SUMIFS(MMPM2!I:I,MMPM2!C:C,U117,MMPM2!E:E,1,MMPM2!G:G,3) -> 8 | R117: Not applicable | S117: No doubling of mistrade range | U117: =IFERROR(_xlfn.XLOOKUP(A117,'MMPM1-PMM'!E:E,'MMPM1-PMM'!J:J),_xlfn.XLOOKUP(A117,'MMPM1-AMM'!E:E,'MMPM1-AMM'!K:K)) -> STXSO1 | V117: =IFERROR(_xlfn.XLOOKUP(A117,'MMPM1-AMM'!E:E,'MMPM1-AMM'!T:T),_xlfn.XLOOKUP(A117,'MMPM1-PMM'!E:E,'MMPM1-PMM'!S:S)) -> 3 | W117: =IFERROR(_xlfn.XLOOKUP(A117,'MMPM1-AMM'!E:E,'MMPM1-AMM'!U:U),_xlfn.XLOOKUP(A117,'MMPM1-PMM'!E:E,'MMPM1-PMM'!T:T)) -> 5 | Y117: TRUE | AB117: =_xlfn.XLOOKUP(A117,productlist[PRODUCT_ID],productlist[PRODUCT_ISIN]) -> DE000A0DMX81 | AC117: =_xlfn.XLOOKUP(A117,productlist[PRODUCT_ID],productlist[UNDERLYING_ISIN]) -> EU0009658889
A118: OSTO | B118: =_xlfn.XLOOKUP(A118,'Product List'!$A:$A,'Product List'!$D:$D) -> STOXX® Europe 600 Food & Beverage Options | C118: =_xlfn.XLOOKUP(A118,'Product List'!$A:$A,'Product List'!$F:$F) -> INDEX OPTIONS | D118: =_xlfn.XLOOKUP(A118,'MMPM1-AMM'!E:E,'MMPM1-AMM'!K:K,_xlfn.XLOOKUP(A118,'MMPM1-PMM'!E:E,'MMPM1-PMM'!J:J)) -> STXSO1 | E118: =_xlfn.XLOOKUP(A118,'MMPM1-AMM'!E:E,'MMPM1-AMM'!Q:Q,_xlfn.XLOOKUP(A118,'MMPM1-PMM'!E:E,'MMPM1-PMM'!P:P)) -> 5 | F118: =SUMIFS(MMPM2!H:H,MMPM2!C:C,U118,MMPM2!E:E,1,MMPM2!G:G,1) -> 5.3 | G118: =SUMIFS(MMPM2!H:H,MMPM2!C:C,U118,MMPM2!E:E,1,MMPM2!G:G,2) -> 53.3 | L118: =SUMIFS(MMPM2!I:I,MMPM2!C:C,U118,MMPM2!E:E,1,MMPM2!G:G,1) -> 0.8 | M118: =SUMIFS(MMPM2!I:I,MMPM2!C:C,U118,MMPM2!E:E,1,MMPM2!G:G,2) -> 0.15 | N118: =SUMIFS(MMPM2!I:I,MMPM2!C:C,U118,MMPM2!E:E,1,MMPM2!G:G,3) -> 8 | R118: Not applicable | S118: No doubling of mistrade range | U118: =IFERROR(_xlfn.XLOOKUP(A118,'MMPM1-PMM'!E:E,'MMPM1-PMM'!J:J),_xlfn.XLOOKUP(A118,'MMPM1-AMM'!E:E,'MMPM1-AMM'!K:K)) -> STXSO1 | V118: =IFERROR(_xlfn.XLOOKUP(A118,'MMPM1-AMM'!E:E,'MMPM1-AMM'!T:T),_xlfn.XLOOKUP(A118,'MMPM1-PMM'!E:E,'MMPM1-PMM'!S:S)) -> 3 | W118: =IFERROR(_xlfn.XLOOKUP(A118,'MMPM1-AMM'!E:E,'MMPM1-AMM'!U:U),_xlfn.XLOOKUP(A118,'MMPM1-PMM'!E:E,'MMPM1-PMM'!T:T)) -> 5 | Y118: TRUE | AB118: =_xlfn.XLOOKUP(A118,productlist[PRODUCT_ID],productlist[PRODUCT_ISIN]) -> DE000A0AEU79 | AC118: =_xlfn.XLOOKUP(A118,productlist[PRODUCT_ID],productlist[UNDERLYING_ISIN]) -> EU0009658749
A119: OSTP | B119: =_xlfn.XLOOKUP(A119,'Product List'!$A:$A,'Product List'!$D:$D) -> STOXX® Europe 600 Personal Care, Drug & Grocery Stores Options | C119: =_xlfn.XLOOKUP(A119,'Product List'!$A:$A,'Product List'!$F:$F) -> INDEX OPTIONS | D119: =_xlfn.XLOOKUP(A119,'MMPM1-AMM'!E:E,'MMPM1-AMM'!K:K,_xlfn.XLOOKUP(A119,'MMPM1-PMM'!E:E,'MMPM1-PMM'!J:J)) -> STXSO1 | E119: =_xlfn.XLOOKUP(A119,'MMPM1-AMM'!E:E,'MMPM1-AMM'!Q:Q,_xlfn.XLOOKUP(A119,'MMPM1-PMM'!E:E,'MMPM1-PMM'!P:P)) -> 5 | F119: =SUMIFS(MMPM2!H:H,MMPM2!C:C,U119,MMPM2!E:E,1,MMPM2!G:G,1) -> 5.3 | G119: =SUMIFS(MMPM2!H:H,MMPM2!C:C,U119,MMPM2!E:E,1,MMPM2!G:G,2) -> 53.3 | L119: =SUMIFS(MMPM2!I:I,MMPM2!C:C,U119,MMPM2!E:E,1,MMPM2!G:G,1) -> 0.8 | M119: =SUMIFS(MMPM2!I:I,MMPM2!C:C,U119,MMPM2!E:E,1,MMPM2!G:G,2) -> 0.15 | N119: =SUMIFS(MMPM2!I:I,MMPM2!C:C,U119,MMPM2!E:E,1,MMPM2!G:G,3) -> 8 | R119: Not applicable | S119: No doubling of mistrade range | U119: =IFERROR(_xlfn.XLOOKUP(A119,'MMPM1-PMM'!E:E,'MMPM1-PMM'!J:J),_xlfn.XLOOKUP(A119,'MMPM1-AMM'!E:E,'MMPM1-AMM'!K:K)) -> STXSO1 | V119: =IFERROR(_xlfn.XLOOKUP(A119,'MMPM1-AMM'!E:E,'MMPM1-AMM'!T:T),_xlfn.XLOOKUP(A119,'MMPM1-PMM'!E:E,'MMPM1-PMM'!S:S)) -> 3 | W119: =IFERROR(_xlfn.XLOOKUP(A119,'MMPM1-AMM'!E:E,'MMPM1-AMM'!U:U),_xlfn.XLOOKUP(A119,'MMPM1-PMM'!E:E,'MMPM1-PMM'!T:T)) -> 5 | Y119: TRUE | AB119: =_xlfn.XLOOKUP(A119,productlist[PRODUCT_ID],productlist[PRODUCT_ISIN]) -> DE000A2QBET0 | AC119: =_xlfn.XLOOKUP(A119,productlist[PRODUCT_ID],productlist[UNDERLYING_ISIN]) -> CH0462356970
A120: OSTQ | B120: =_xlfn.XLOOKUP(A120,'Product List'!$A:$A,'Product List'!$D:$D) -> STOXX® Europe 600 Consumer Products & Services Options | C120: =_xlfn.XLOOKUP(A120,'Product List'!$A:$A,'Product List'!$F:$F) -> INDEX OPTIONS | D120: =_xlfn.XLOOKUP(A120,'MMPM1-AMM'!E:E,'MMPM1-AMM'!K:K,_xlfn.XLOOKUP(A120,'MMPM1-PMM'!E:E,'MMPM1-PMM'!J:J)) -> STXSO1 | E120: =_xlfn.XLOOKUP(A120,'MMPM1-AMM'!E:E,'MMPM1-AMM'!Q:Q,_xlfn.XLOOKUP(A120,'MMPM1-PMM'!E:E,'MMPM1-PMM'!P:P)) -> 5 | F120: =SUMIFS(MMPM2!H:H,MMPM2!C:C,U120,MMPM2!E:E,1,MMPM2!G:G,1) -> 5.3 | G120: =SUMIFS(MMPM2!H:H,MMPM2!C:C,U120,MMPM2!E:E,1,MMPM2!G:G,2) -> 53.3 | L120: =SUMIFS(MMPM2!I:I,MMPM2!C:C,U120,MMPM2!E:E,1,MMPM2!G:G,1) -> 0.8 | M120: =SUMIFS(MMPM2!I:I,MMPM2!C:C,U120,MMPM2!E:E,1,MMPM2!G:G,2) -> 0.15 | N120: =SUMIFS(MMPM2!I:I,MMPM2!C:C,U120,MMPM2!E:E,1,MMPM2!G:G,3) -> 8 | R120: Not applicable | S120: No doubling of mistrade range | U120: =IFERROR(_xlfn.XLOOKUP(A120,'MMPM1-PMM'!E:E,'MMPM1-PMM'!J:J),_xlfn.XLOOKUP(A120,'MMPM1-AMM'!E:E,'MMPM1-AMM'!K:K)) -> STXSO1 | V120: =IFERROR(_xlfn.XLOOKUP(A120,'MMPM1-AMM'!E:E,'MMPM1-AMM'!T:T),_xlfn.XLOOKUP(A120,'MMPM1-PMM'!E:E,'MMPM1-PMM'!S:S)) -> 3 | W120: =IFERROR(_xlfn.XLOOKUP(A120,'MMPM1-AMM'!E:E,'MMPM1-AMM'!U:U),_xlfn.XLOOKUP(A120,'MMPM1-PMM'!E:E,'MMPM1-PMM'!T:T)) -> 5 | Y120: TRUE | AB120: =_xlfn.XLOOKUP(A120,productlist[PRODUCT_ID],productlist[PRODUCT_ISIN]) -> DE000A2QBES2 | AC120: =_xlfn.XLOOKUP(A120,productlist[PRODUCT_ID],productlist[UNDERLYING_ISIN]) -> CH0462356335
A121: OSTR | B121: =_xlfn.XLOOKUP(A121,'Product List'!$A:$A,'Product List'!$D:$D) -> STOXX® Europe 600 Retail Options | C121: =_xlfn.XLOOKUP(A121,'Product List'!$A:$A,'Product List'!$F:$F) -> INDEX OPTIONS | D121: =_xlfn.XLOOKUP(A121,'MMPM1-AMM'!E:E,'MMPM1-AMM'!K:K,_xlfn.XLOOKUP(A121,'MMPM1-PMM'!E:E,'MMPM1-PMM'!J:J)) -> STXSO1 | E121: =_xlfn.XLOOKUP(A121,'MMPM1-AMM'!E:E,'MMPM1-AMM'!Q:Q,_xlfn.XLOOKUP(A121,'MMPM1-PMM'!E:E,'MMPM1-PMM'!P:P)) -> 5 | F121: =SUMIFS(MMPM2!H:H,MMPM2!C:C,U121,MMPM2!E:E,1,MMPM2!G:G,1) -> 5.3 | G121: =SUMIFS(MMPM2!H:H,MMPM2!C:C,U121,MMPM2!E:E,1,MMPM2!G:G,2) -> 53.3 | L121: =SUMIFS(MMPM2!I:I,MMPM2!C:C,U121,MMPM2!E:E,1,MMPM2!G:G,1) -> 0.8 | M121: =SUMIFS(MMPM2!I:I,MMPM2!C:C,U121,MMPM2!E:E,1,MMPM2!G:G,2) -> 0.15 | N121: =SUMIFS(MMPM2!I:I,MMPM2!C:C,U121,MMPM2!E:E,1,MMPM2!G:G,3) -> 8 | R121: Not applicable | S121: No doubling of mistrade range | U121: =IFERROR(_xlfn.XLOOKUP(A121,'MMPM1-PMM'!E:E,'MMPM1-PMM'!J:J),_xlfn.XLOOKUP(A121,'MMPM1-AMM'!E:E,'MMPM1-AMM'!K:K)) -> STXSO1 | V121: =IFERROR(_xlfn.XLOOKUP(A121,'MMPM1-AMM'!E:E,'MMPM1-AMM'!T:T),_xlfn.XLOOKUP(A121,'MMPM1-PMM'!E:E,'MMPM1-PMM'!S:S)) -> 3 | W121: =IFERROR(_xlfn.XLOOKUP(A121,'MMPM1-AMM'!E:E,'MMPM1-AMM'!U:U),_xlfn.XLOOKUP(A121,'MMPM1-PMM'!E:E,'MMPM1-PMM'!T:T)) -> 5 | Y121: TRUE | AB121: =_xlfn.XLOOKUP(A121,productlist[PRODUCT_ID],productlist[PRODUCT_ISIN]) -> DE000A0DMX32 | AC121: =_xlfn.XLOOKUP(A121,productlist[PRODUCT_ID],productlist[UNDERLYING_ISIN]) -> CH0019112553
A122: OSTS | B122: =_xlfn.XLOOKUP(A122,'Product List'!$A:$A,'Product List'!$D:$D) -> STOXX® Europe 600 Basic Resources Options | C122: =_xlfn.XLOOKUP(A122,'Product List'!$A:$A,'Product List'!$F:$F) -> INDEX OPTIONS | D122: =_xlfn.XLOOKUP(A122,'MMPM1-AMM'!E:E,'MMPM1-AMM'!K:K,_xlfn.XLOOKUP(A122,'MMPM1-PMM'!E:E,'MMPM1-PMM'!J:J)) -> STXSO1 | E122: =_xlfn.XLOOKUP(A122,'MMPM1-AMM'!E:E,'MMPM1-AMM'!Q:Q,_xlfn.XLOOKUP(A122,'MMPM1-PMM'!E:E,'MMPM1-PMM'!P:P)) -> 5 | F122: =SUMIFS(MMPM2!H:H,MMPM2!C:C,U122,MMPM2!E:E,1,MMPM2!G:G,1) -> 5.3 | G122: =SUMIFS(MMPM2!H:H,MMPM2!C:C,U122,MMPM2!E:E,1,MMPM2!G:G,2) -> 53.3 | L122: =SUMIFS(MMPM2!I:I,MMPM2!C:C,U122,MMPM2!E:E,1,MMPM2!G:G,1) -> 0.8 | M122: =SUMIFS(MMPM2!I:I,MMPM2!C:C,U122,MMPM2!E:E,1,MMPM2!G:G,2) -> 0.15 | N122: =SUMIFS(MMPM2!I:I,MMPM2!C:C,U122,MMPM2!E:E,1,MMPM2!G:G,3) -> 8 | R122: Not applicable | S122: No doubling of mistrade range | U122: =IFERROR(_xlfn.XLOOKUP(A122,'MMPM1-PMM'!E:E,'MMPM1-PMM'!J:J),_xlfn.XLOOKUP(A122,'MMPM1-AMM'!E:E,'MMPM1-AMM'!K:K)) -> STXSO1 | V122: =IFERROR(_xlfn.XLOOKUP(A122,'MMPM1-AMM'!E:E,'MMPM1-AMM'!T:T),_xlfn.XLOOKUP(A122,'MMPM1-PMM'!E:E,'MMPM1-PMM'!S:S)) -> 3 | W122: =IFERROR(_xlfn.XLOOKUP(A122,'MMPM1-AMM'!E:E,'MMPM1-AMM'!U:U),_xlfn.XLOOKUP(A122,'MMPM1-PMM'!E:E,'MMPM1-PMM'!T:T)) -> 5 | Y122: TRUE | AB122: =_xlfn.XLOOKUP(A122,productlist[PRODUCT_ID],productlist[PRODUCT_ISIN]) -> DE000A0AEU53 | AC122: =_xlfn.XLOOKUP(A122,productlist[PRODUCT_ID],productlist[UNDERLYING_ISIN]) -> EU0009658624
A123: OSTT | B123: =_xlfn.XLOOKUP(A123,'Product List'!$A:$A,'Product List'!$D:$D) -> STOXX® Europe 600 Telecommunications Options | C123: =_xlfn.XLOOKUP(A123,'Product List'!$A:$A,'Product List'!$F:$F) -> INDEX OPTIONS | D123: =_xlfn.XLOOKUP(A123,'MMPM1-AMM'!E:E,'MMPM1-AMM'!K:K,_xlfn.XLOOKUP(A123,'MMPM1-PMM'!E:E,'MMPM1-PMM'!J:J)) -> STXSO1 | E123: =_xlfn.XLOOKUP(A123,'MMPM1-AMM'!E:E,'MMPM1-AMM'!Q:Q,_xlfn.XLOOKUP(A123,'MMPM1-PMM'!E:E,'MMPM1-PMM'!P:P)) -> 5 | F123: =SUMIFS(MMPM2!H:H,MMPM2!C:C,U123,MMPM2!E:E,1,MMPM2!G:G,1) -> 5.3 | G123: =SUMIFS(MMPM2!H:H,MMPM2!C:C,U123,MMPM2!E:E,1,MMPM2!G:G,2) -> 53.3 | L123: =SUMIFS(MMPM2!I:I,MMPM2!C:C,U123,MMPM2!E:E,1,MMPM2!G:G,1) -> 0.8 | M123: =SUMIFS(MMPM2!I:I,MMPM2!C:C,U123,MMPM2!E:E,1,MMPM2!G:G,2) -> 0.15 | N123: =SUMIFS(MMPM2!I:I,MMPM2!C:C,U123,MMPM2!E:E,1,MMPM2!G:G,3) -> 8 | R123: Not applicable | S123: No doubling of mistrade range | U123: =IFERROR(_xlfn.XLOOKUP(A123,'MMPM1-PMM'!E:E,'MMPM1-PMM'!J:J),_xlfn.XLOOKUP(A123,'MMPM1-AMM'!E:E,'MMPM1-AMM'!K:K)) -> STXSO1 | V123: =IFERROR(_xlfn.XLOOKUP(A123,'MMPM1-AMM'!E:E,'MMPM1-AMM'!T:T),_xlfn.XLOOKUP(A123,'MMPM1-PMM'!E:E,'MMPM1-PMM'!S:S)) -> 3 | W123: =IFERROR(_xlfn.XLOOKUP(A123,'MMPM1-AMM'!E:E,'MMPM1-AMM'!U:U),_xlfn.XLOOKUP(A123,'MMPM1-PMM'!E:E,'MMPM1-PMM'!T:T)) -> 5 | Y123: TRUE | AB123: =_xlfn.XLOOKUP(A123,productlist[PRODUCT_ID],productlist[PRODUCT_ISIN]) -> DE0007200768 | AC123: =_xlfn.XLOOKUP(A123,productlist[PRODUCT_ID],productlist[UNDERLYING_ISIN]) -> EU0009658947
A124: OSTU | B124: =_xlfn.XLOOKUP(A124,'Product List'!$A:$A,'Product List'!$D:$D) -> STOXX® Europe 600 Utilities Options | C124: =_xlfn.XLOOKUP(A124,'Product List'!$A:$A,'Product List'!$F:$F) -> INDEX OPTIONS | D124: =_xlfn.XLOOKUP(A124,'MMPM1-AMM'!E:E,'MMPM1-AMM'!K:K,_xlfn.XLOOKUP(A124,'MMPM1-PMM'!E:E,'MMPM1-PMM'!J:J)) -> STXSO1 | E124: =_xlfn.XLOOKUP(A124,'MMPM1-AMM'!E:E,'MMPM1-AMM'!Q:Q,_xlfn.XLOOKUP(A124,'MMPM1-PMM'!E:E,'MMPM1-PMM'!P:P)) -> 5 | F124: =SUMIFS(MMPM2!H:H,MMPM2!C:C,U124,MMPM2!E:E,1,MMPM2!G:G,1) -> 5.3 | G124: =SUMIFS(MMPM2!H:H,MMPM2!C:C,U124,MMPM2!E:E,1,MMPM2!G:G,2) -> 53.3 | L124: =SUMIFS(MMPM2!I:I,MMPM2!C:C,U124,MMPM2!E:E,1,MMPM2!G:G,1) -> 0.8 | M124: =SUMIFS(MMPM2!I:I,MMPM2!C:C,U124,MMPM2!E:E,1,MMPM2!G:G,2) -> 0.15 | N124: =SUMIFS(MMPM2!I:I,MMPM2!C:C,U124,MMPM2!E:E,1,MMPM2!G:G,3) -> 8 | R124: Not applicable | S124: No doubling of mistrade range | U124: =IFERROR(_xlfn.XLOOKUP(A124,'MMPM1-PMM'!E:E,'MMPM1-PMM'!J:J),_xlfn.XLOOKUP(A124,'MMPM1-AMM'!E:E,'MMPM1-AMM'!K:K)) -> STXSO1 | V124: =IFERROR(_xlfn.XLOOKUP(A124,'MMPM1-AMM'!E:E,'MMPM1-AMM'!T:T),_xlfn.XLOOKUP(A124,'MMPM1-PMM'!E:E,'MMPM1-PMM'!S:S)) -> 3 | W124: =IFERROR(_xlfn.XLOOKUP(A124,'MMPM1-AMM'!E:E,'MMPM1-AMM'!U:U),_xlfn.XLOOKUP(A124,'MMPM1-PMM'!E:E,'MMPM1-PMM'!T:T)) -> 5 | Y124: TRUE | AB124: =_xlfn.XLOOKUP(A124,productlist[PRODUCT_ID],productlist[PRODUCT_ISIN]) -> DE0002272093 | AC124: =_xlfn.XLOOKUP(A124,productlist[PRODUCT_ID],productlist[UNDERLYING_ISIN]) -> EU0009658962
A125: OSTV | B125: =_xlfn.XLOOKUP(A125,'Product List'!$A:$A,'Product List'!$D:$D) -> STOXX® Europe 600 Travel & Leisure Options | C125: =_xlfn.XLOOKUP(A125,'Product List'!$A:$A,'Product List'!$F:$F) -> INDEX OPTIONS | D125: =_xlfn.XLOOKUP(A125,'MMPM1-AMM'!E:E,'MMPM1-AMM'!K:K,_xlfn.XLOOKUP(A125,'MMPM1-PMM'!E:E,'MMPM1-PMM'!J:J)) -> STXSO1 | E125: =_xlfn.XLOOKUP(A125,'MMPM1-AMM'!E:E,'MMPM1-AMM'!Q:Q,_xlfn.XLOOKUP(A125,'MMPM1-PMM'!E:E,'MMPM1-PMM'!P:P)) -> 5 | F125: =SUMIFS(MMPM2!H:H,MMPM2!C:C,U125,MMPM2!E:E,1,MMPM2!G:G,1) -> 5.3 | G125: =SUMIFS(MMPM2!H:H,MMPM2!C:C,U125,MMPM2!E:E,1,MMPM2!G:G,2) -> 53.3 | L125: =SUMIFS(MMPM2!I:I,MMPM2!C:C,U125,MMPM2!E:E,1,MMPM2!G:G,1) -> 0.8 | M125: =SUMIFS(MMPM2!I:I,MMPM2!C:C,U125,MMPM2!E:E,1,MMPM2!G:G,2) -> 0.15 | N125: =SUMIFS(MMPM2!I:I,MMPM2!C:C,U125,MMPM2!E:E,1,MMPM2!G:G,3) -> 8 | R125: Not applicable | S125: No doubling of mistrade range | U125: =IFERROR(_xlfn.XLOOKUP(A125,'MMPM1-PMM'!E:E,'MMPM1-PMM'!J:J),_xlfn.XLOOKUP(A125,'MMPM1-AMM'!E:E,'MMPM1-AMM'!K:K)) -> STXSO1 | V125: =IFERROR(_xlfn.XLOOKUP(A125,'MMPM1-AMM'!E:E,'MMPM1-AMM'!T:T),_xlfn.XLOOKUP(A125,'MMPM1-PMM'!E:E,'MMPM1-PMM'!S:S)) -> 3 | W125: =IFERROR(_xlfn.XLOOKUP(A125,'MMPM1-AMM'!E:E,'MMPM1-AMM'!U:U),_xlfn.XLOOKUP(A125,'MMPM1-PMM'!E:E,'MMPM1-PMM'!T:T)) -> 5 | Y125: TRUE | AB125: =_xlfn.XLOOKUP(A125,productlist[PRODUCT_ID],productlist[PRODUCT_ISIN]) -> DE000A0DMX40 | AC125: =_xlfn.XLOOKUP(A125,productlist[PRODUCT_ID],productlist[UNDERLYING_ISIN]) -> CH0019112744
A126: OSTW | B126: =_xlfn.XLOOKUP(A126,'Product List'!$A:$A,'Product List'!$D:$D) -> STOXX® Europe 600 Food, Beverage & Tobacco Options | C126: =_xlfn.XLOOKUP(A126,'Product List'!$A:$A,'Product List'!$F:$F) -> INDEX OPTIONS | D126: =_xlfn.XLOOKUP(A126,'MMPM1-AMM'!E:E,'MMPM1-AMM'!K:K,_xlfn.XLOOKUP(A126,'MMPM1-PMM'!E:E,'MMPM1-PMM'!J:J)) -> STXSO1 | E126: =_xlfn.XLOOKUP(A126,'MMPM1-AMM'!E:E,'MMPM1-AMM'!Q:Q,_xlfn.XLOOKUP(A126,'MMPM1-PMM'!E:E,'MMPM1-PMM'!P:P)) -> 5 | F126: =SUMIFS(MMPM2!H:H,MMPM2!C:C,U126,MMPM2!E:E,1,MMPM2!G:G,1) -> 5.3 | G126: =SUMIFS(MMPM2!H:H,MMPM2!C:C,U126,MMPM2!E:E,1,MMPM2!G:G,2) -> 53.3 | L126: =SUMIFS(MMPM2!I:I,MMPM2!C:C,U126,MMPM2!E:E,1,MMPM2!G:G,1) -> 0.8 | M126: =SUMIFS(MMPM2!I:I,MMPM2!C:C,U126,MMPM2!E:E,1,MMPM2!G:G,2) -> 0.15 | N126: =SUMIFS(MMPM2!I:I,MMPM2!C:C,U126,MMPM2!E:E,1,MMPM2!G:G,3) -> 8 | R126: Not applicable | S126: No doubling of mistrade range | U126: =IFERROR(_xlfn.XLOOKUP(A126,'MMPM1-PMM'!E:E,'MMPM1-PMM'!J:J),_xlfn.XLOOKUP(A126,'MMPM1-AMM'!E:E,'MMPM1-AMM'!K:K)) -> STXSO1 | V126: =IFERROR(_xlfn.XLOOKUP(A126,'MMPM1-AMM'!E:E,'MMPM1-AMM'!T:T),_xlfn.XLOOKUP(A126,'MMPM1-PMM'!E:E,'MMPM1-PMM'!S:S)) -> 3 | W126: =IFERROR(_xlfn.XLOOKUP(A126,'MMPM1-AMM'!E:E,'MMPM1-AMM'!U:U),_xlfn.XLOOKUP(A126,'MMPM1-PMM'!E:E,'MMPM1-PMM'!T:T)) -> 5 | Y126: TRUE | AB126: =_xlfn.XLOOKUP(A126,productlist[PRODUCT_ID],productlist[PRODUCT_ISIN]) -> DE000A2QBEQ6 | AC126: =_xlfn.XLOOKUP(A126,productlist[PRODUCT_ID],productlist[UNDERLYING_ISIN]) -> CH0462356897
A127: OSTX | B127: =_xlfn.XLOOKUP(A127,'Product List'!$A:$A,'Product List'!$D:$D) -> STOXX® Europe 50 Index Options | C127: =_xlfn.XLOOKUP(A127,'Product List'!$A:$A,'Product List'!$F:$F) -> INDEX OPTIONS | D127: =_xlfn.XLOOKUP(A127,'MMPM1-AMM'!E:E,'MMPM1-AMM'!K:K,_xlfn.XLOOKUP(A127,'MMPM1-PMM'!E:E,'MMPM1-PMM'!J:J)) -> OSTX | E127: =_xlfn.XLOOKUP(A127,'MMPM1-AMM'!E:E,'MMPM1-AMM'!Q:Q,_xlfn.XLOOKUP(A127,'MMPM1-PMM'!E:E,'MMPM1-PMM'!P:P)) -> 7 | F127: =SUMIFS(MMPM2!H:H,MMPM2!C:C,U127,MMPM2!E:E,1,MMPM2!G:G,1) -> 15 | G127: =SUMIFS(MMPM2!H:H,MMPM2!C:C,U127,MMPM2!E:E,1,MMPM2!G:G,2) -> 187.5 | L127: =SUMIFS(MMPM2!I:I,MMPM2!C:C,U127,MMPM2!E:E,1,MMPM2!G:G,1) -> 3 | M127: =SUMIFS(MMPM2!I:I,MMPM2!C:C,U127,MMPM2!E:E,1,MMPM2!G:G,2) -> 0.2 | N127: =SUMIFS(MMPM2!I:I,MMPM2!C:C,U127,MMPM2!E:E,1,MMPM2!G:G,3) -> 37.5 | R127: Not applicable | S127: No doubling of mistrade range | U127: =IFERROR(_xlfn.XLOOKUP(A127,'MMPM1-PMM'!E:E,'MMPM1-PMM'!J:J),_xlfn.XLOOKUP(A127,'MMPM1-AMM'!E:E,'MMPM1-AMM'!K:K)) -> OSTX | V127: =IFERROR(_xlfn.XLOOKUP(A127,'MMPM1-AMM'!E:E,'MMPM1-AMM'!T:T),_xlfn.XLOOKUP(A127,'MMPM1-PMM'!E:E,'MMPM1-PMM'!S:S)) -> 3 | W127: =IFERROR(_xlfn.XLOOKUP(A127,'MMPM1-AMM'!E:E,'MMPM1-AMM'!U:U),_xlfn.XLOOKUP(A127,'MMPM1-PMM'!E:E,'MMPM1-PMM'!T:T)) -> 7 | Y127: TRUE | AB127: =_xlfn.XLOOKUP(A127,productlist[PRODUCT_ID],productlist[PRODUCT_ISIN]) -> DE0009652370 | AC127: =_xlfn.XLOOKUP(A127,productlist[PRODUCT_ID],productlist[UNDERLYING_ISIN]) -> EU0009658160
A128: OSTY | B128: =_xlfn.XLOOKUP(A128,'Product List'!$A:$A,'Product List'!$D:$D) -> STOXX® Europe 600 Technology Options | C128: =_xlfn.XLOOKUP(A128,'Product List'!$A:$A,'Product List'!$F:$F) -> INDEX OPTIONS | D128: =_xlfn.XLOOKUP(A128,'MMPM1-AMM'!E:E,'MMPM1-AMM'!K:K,_xlfn.XLOOKUP(A128,'MMPM1-PMM'!E:E,'MMPM1-PMM'!J:J)) -> STXSO1 | E128: =_xlfn.XLOOKUP(A128,'MMPM1-AMM'!E:E,'MMPM1-AMM'!Q:Q,_xlfn.XLOOKUP(A128,'MMPM1-PMM'!E:E,'MMPM1-PMM'!P:P)) -> 5 | F128: =SUMIFS(MMPM2!H:H,MMPM2!C:C,U128,MMPM2!E:E,1,MMPM2!G:G,1) -> 5.3 | G128: =SUMIFS(MMPM2!H:H,MMPM2!C:C,U128,MMPM2!E:E,1,MMPM2!G:G,2) -> 53.3 | L128: =SUMIFS(MMPM2!I:I,MMPM2!C:C,U128,MMPM2!E:E,1,MMPM2!G:G,1) -> 0.8 | M128: =SUMIFS(MMPM2!I:I,MMPM2!C:C,U128,MMPM2!E:E,1,MMPM2!G:G,2) -> 0.15 | N128: =SUMIFS(MMPM2!I:I,MMPM2!C:C,U128,MMPM2!E:E,1,MMPM2!G:G,3) -> 8 | R128: Not applicable | S128: No doubling of mistrade range | U128: =IFERROR(_xlfn.XLOOKUP(A128,'MMPM1-PMM'!E:E,'MMPM1-PMM'!J:J),_xlfn.XLOOKUP(A128,'MMPM1-AMM'!E:E,'MMPM1-AMM'!K:K)) -> STXSO1 | V128: =IFERROR(_xlfn.XLOOKUP(A128,'MMPM1-AMM'!E:E,'MMPM1-AMM'!T:T),_xlfn.XLOOKUP(A128,'MMPM1-PMM'!E:E,'MMPM1-PMM'!S:S)) -> 3 | W128: =IFERROR(_xlfn.XLOOKUP(A128,'MMPM1-AMM'!E:E,'MMPM1-AMM'!U:U),_xlfn.XLOOKUP(A128,'MMPM1-PMM'!E:E,'MMPM1-PMM'!T:T)) -> 5 | Y128: TRUE | AB128: =_xlfn.XLOOKUP(A128,productlist[PRODUCT_ID],productlist[PRODUCT_ISIN]) -> DE0007200776 | AC128: =_xlfn.XLOOKUP(A128,productlist[PRODUCT_ID],productlist[UNDERLYING_ISIN]) -> EU0009658921
A129: OSTZ | B129: =_xlfn.XLOOKUP(A129,'Product List'!$A:$A,'Product List'!$D:$D) -> STOXX® Europe 600 Personal & Household Goods Options | C129: =_xlfn.XLOOKUP(A129,'Product List'!$A:$A,'Product List'!$F:$F) -> INDEX OPTIONS | D129: =_xlfn.XLOOKUP(A129,'MMPM1-AMM'!E:E,'MMPM1-AMM'!K:K,_xlfn.XLOOKUP(A129,'MMPM1-PMM'!E:E,'MMPM1-PMM'!J:J)) -> STXSO2 | E129: =_xlfn.XLOOKUP(A129,'MMPM1-AMM'!E:E,'MMPM1-AMM'!Q:Q,_xlfn.XLOOKUP(A129,'MMPM1-PMM'!E:E,'MMPM1-PMM'!P:P)) -> 5 | F129: =SUMIFS(MMPM2!H:H,MMPM2!C:C,U129,MMPM2!E:E,1,MMPM2!G:G,1) -> 8.3 | G129: =SUMIFS(MMPM2!H:H,MMPM2!C:C,U129,MMPM2!E:E,1,MMPM2!G:G,2) -> 53.3 | L129: =SUMIFS(MMPM2!I:I,MMPM2!C:C,U129,MMPM2!E:E,1,MMPM2!G:G,1) -> 2.5 | M129: =SUMIFS(MMPM2!I:I,MMPM2!C:C,U129,MMPM2!E:E,1,MMPM2!G:G,2) -> 0.3 | N129: =SUMIFS(MMPM2!I:I,MMPM2!C:C,U129,MMPM2!E:E,1,MMPM2!G:G,3) -> 16.1 | R129: Not applicable | S129: No doubling of mistrade range | U129: =IFERROR(_xlfn.XLOOKUP(A129,'MMPM1-PMM'!E:E,'MMPM1-PMM'!J:J),_xlfn.XLOOKUP(A129,'MMPM1-AMM'!E:E,'MMPM1-AMM'!K:K)) -> STXSO2 | V129: =IFERROR(_xlfn.XLOOKUP(A129,'MMPM1-AMM'!E:E,'MMPM1-AMM'!T:T),_xlfn.XLOOKUP(A129,'MMPM1-PMM'!E:E,'MMPM1-PMM'!S:S)) -> 3 | W129: =IFERROR(_xlfn.XLOOKUP(A129,'MMPM1-AMM'!E:E,'MMPM1-AMM'!U:U),_xlfn.XLOOKUP(A129,'MMPM1-PMM'!E:E,'MMPM1-PMM'!T:T)) -> 4 | Y129: FALSE | AB129: =_xlfn.XLOOKUP(A129,productlist[PRODUCT_ID],productlist[PRODUCT_ISIN]) -> DE000A0DMX57 | AC129: =_xlfn.XLOOKUP(A129,productlist[PRODUCT_ID],productlist[UNDERLYING_ISIN]) -> CH0019112330
A130: OTDX | B130: =_xlfn.XLOOKUP(A130,'Product List'!$A:$A,'Product List'!$D:$D) -> TecDAX® Options | C130: =_xlfn.XLOOKUP(A130,'Product List'!$A:$A,'Product List'!$F:$F) -> INDEX OPTIONS | D130: =_xlfn.XLOOKUP(A130,'MMPM1-AMM'!E:E,'MMPM1-AMM'!K:K,_xlfn.XLOOKUP(A130,'MMPM1-PMM'!E:E,'MMPM1-PMM'!J:J)) -> OTDX | E130: =_xlfn.XLOOKUP(A130,'MMPM1-AMM'!E:E,'MMPM1-AMM'!Q:Q,_xlfn.XLOOKUP(A130,'MMPM1-PMM'!E:E,'MMPM1-PMM'!P:P)) -> 7 | F130: =SUMIFS(MMPM2!H:H,MMPM2!C:C,U130,MMPM2!E:E,1,MMPM2!G:G,1) -> 13.3 | G130: =SUMIFS(MMPM2!H:H,MMPM2!C:C,U130,MMPM2!E:E,1,MMPM2!G:G,2) -> 133.3 | L130: =SUMIFS(MMPM2!I:I,MMPM2!C:C,U130,MMPM2!E:E,1,MMPM2!G:G,1) -> 2 | M130: =SUMIFS(MMPM2!I:I,MMPM2!C:C,U130,MMPM2!E:E,1,MMPM2!G:G,2) -> 0.15 | N130: =SUMIFS(MMPM2!I:I,MMPM2!C:C,U130,MMPM2!E:E,1,MMPM2!G:G,3) -> 20 | R130: Not applicable | S130: No doubling of mistrade range | U130: =IFERROR(_xlfn.XLOOKUP(A130,'MMPM1-PMM'!E:E,'MMPM1-PMM'!J:J),_xlfn.XLOOKUP(A130,'MMPM1-AMM'!E:E,'MMPM1-AMM'!K:K)) -> OTDX | V130: =IFERROR(_xlfn.XLOOKUP(A130,'MMPM1-AMM'!E:E,'MMPM1-AMM'!T:T),_xlfn.XLOOKUP(A130,'MMPM1-PMM'!E:E,'MMPM1-PMM'!S:S)) -> 3 | W130: =IFERROR(_xlfn.XLOOKUP(A130,'MMPM1-AMM'!E:E,'MMPM1-AMM'!U:U),_xlfn.XLOOKUP(A130,'MMPM1-PMM'!E:E,'MMPM1-PMM'!T:T)) -> 7 | Y130: TRUE | AB130: =_xlfn.XLOOKUP(A130,productlist[PRODUCT_ID],productlist[PRODUCT_ISIN]) -> DE0002270352 | AC130: =_xlfn.XLOOKUP(A130,productlist[PRODUCT_ID],productlist[UNDERLYING_ISIN]) -> DE0007203275
A131: OVS2 | B131: =_xlfn.XLOOKUP(A131,'Product List'!$A:$A,'Product List'!$D:$D) -> Options on VSTOXX® Futures | C131: =_xlfn.XLOOKUP(A131,'Product List'!$A:$A,'Product List'!$F:$F) -> VOLATILITY INDEX OPTIONS | D131: =_xlfn.XLOOKUP(A131,'MMPM1-AMM'!E:E,'MMPM1-AMM'!K:K,_xlfn.XLOOKUP(A131,'MMPM1-PMM'!E:E,'MMPM1-PMM'!J:J)) -> OVS2-1 | E131: =_xlfn.XLOOKUP(A131,'MMPM1-AMM'!E:E,'MMPM1-AMM'!Q:Q,_xlfn.XLOOKUP(A131,'MMPM1-PMM'!E:E,'MMPM1-PMM'!P:P)) -> 3 | F131: =SUMIFS(MMPM2!H:H,MMPM2!C:C,U131,MMPM2!E:E,1,MMPM2!G:G,1) -> 2 | G131: =SUMIFS(MMPM2!H:H,MMPM2!C:C,U131,MMPM2!E:E,1,MMPM2!G:G,2) -> 20 | I131: 2 | J131: 20 | L131: =SUMIFS(MMPM2!I:I,MMPM2!C:C,U131,MMPM2!E:E,1,MMPM2!G:G,1) -> 0.15 | M131: =SUMIFS(MMPM2!I:I,MMPM2!C:C,U131,MMPM2!E:E,1,MMPM2!G:G,2) -> 0.08 | N131: =SUMIFS(MMPM2!I:I,MMPM2!C:C,U131,MMPM2!E:E,1,MMPM2!G:G,3) -> 1.5 | O131: 0.4 | P131: 0.2 | Q131: 4 | S131: 5 | U131: =IFERROR(_xlfn.XLOOKUP(A131,'MMPM1-PMM'!E:E,'MMPM1-PMM'!J:J),_xlfn.XLOOKUP(A131,'MMPM1-AMM'!E:E,'MMPM1-AMM'!K:K)) -> OVS2-1 | V131: =IFERROR(_xlfn.XLOOKUP(A131,'MMPM1-AMM'!E:E,'MMPM1-AMM'!T:T),_xlfn.XLOOKUP(A131,'MMPM1-PMM'!E:E,'MMPM1-PMM'!S:S)) -> 9 | W131: =IFERROR(_xlfn.XLOOKUP(A131,'MMPM1-AMM'!E:E,'MMPM1-AMM'!U:U),_xlfn.XLOOKUP(A131,'MMPM1-PMM'!E:E,'MMPM1-PMM'!T:T)) -> 6 | Y131: FALSE | AB131: =_xlfn.XLOOKUP(A131,productlist[PRODUCT_ID],productlist[PRODUCT_ISIN]) -> DE000A2BM405 | AC131: =_xlfn.XLOOKUP(A131,productlist[PRODUCT_ID],productlist[UNDERLYING_ISIN]) -> 
A132: OXGL | B132: =_xlfn.XLOOKUP(A132,'Product List'!$A:$A,'Product List'!$D:$D) -> Xetra-Gold® Options | C132: =_xlfn.XLOOKUP(A132,'Product List'!$A:$A,'Product List'!$F:$F) -> OPTION ON XETRA-GOLD | D132: =_xlfn.XLOOKUP(A132,'MMPM1-AMM'!E:E,'MMPM1-AMM'!K:K,_xlfn.XLOOKUP(A132,'MMPM1-PMM'!E:E,'MMPM1-PMM'!J:J)) -> CO-ETF1 | E132: =_xlfn.XLOOKUP(A132,'MMPM1-AMM'!E:E,'MMPM1-AMM'!Q:Q,_xlfn.XLOOKUP(A132,'MMPM1-PMM'!E:E,'MMPM1-PMM'!P:P)) -> 6 | F132: =SUMIFS(MMPM2!H:H,MMPM2!C:C,U132,MMPM2!E:E,1,MMPM2!G:G,1) -> 2 | G132: =SUMIFS(MMPM2!H:H,MMPM2!C:C,U132,MMPM2!E:E,1,MMPM2!G:G,2) -> 20 | L132: =SUMIFS(MMPM2!I:I,MMPM2!C:C,U132,MMPM2!E:E,1,MMPM2!G:G,1) -> 0.2 | M132: =SUMIFS(MMPM2!I:I,MMPM2!C:C,U132,MMPM2!E:E,1,MMPM2!G:G,2) -> 0.1 | N132: =SUMIFS(MMPM2!I:I,MMPM2!C:C,U132,MMPM2!E:E,1,MMPM2!G:G,3) -> 2 | R132: =IF(D132="OVS","",IF(V132=3, "Not applicable",W132-1)) -> Not applicable | S132: No doubling of mistrade range | U132: =IFERROR(_xlfn.XLOOKUP(A132,'MMPM1-PMM'!E:E,'MMPM1-PMM'!J:J),_xlfn.XLOOKUP(A132,'MMPM1-AMM'!E:E,'MMPM1-AMM'!K:K)) -> CO-ETF1 | V132: =IFERROR(_xlfn.XLOOKUP(A132,'MMPM1-AMM'!E:E,'MMPM1-AMM'!T:T),_xlfn.XLOOKUP(A132,'MMPM1-PMM'!E:E,'MMPM1-PMM'!S:S)) -> 3 | W132: =IFERROR(_xlfn.XLOOKUP(A132,'MMPM1-AMM'!E:E,'MMPM1-AMM'!U:U),_xlfn.XLOOKUP(A132,'MMPM1-PMM'!E:E,'MMPM1-PMM'!T:T)) -> 6 | Y132: TRUE | AB132: =_xlfn.XLOOKUP(A132,productlist[PRODUCT_ID],productlist[PRODUCT_ISIN]) -> DE000A1EY8W7 | AC132: =_xlfn.XLOOKUP(A132,productlist[PRODUCT_ID],productlist[UNDERLYING_ISIN]) -> DE000A0S9GB0
A133: OXXE | B133: =_xlfn.XLOOKUP(A133,'Product List'!$A:$A,'Product List'!$D:$D) -> EURO STOXX® Index Options | C133: =_xlfn.XLOOKUP(A133,'Product List'!$A:$A,'Product List'!$F:$F) -> INDEX OPTIONS | D133: =_xlfn.XLOOKUP(A133,'MMPM1-AMM'!E:E,'MMPM1-AMM'!K:K,_xlfn.XLOOKUP(A133,'MMPM1-PMM'!E:E,'MMPM1-PMM'!J:J)) -> BB-Size | E133: =_xlfn.XLOOKUP(A133,'MMPM1-AMM'!E:E,'MMPM1-AMM'!Q:Q,_xlfn.XLOOKUP(A133,'MMPM1-PMM'!E:E,'MMPM1-PMM'!P:P)) -> 6 | F133: =SUMIFS(MMPM2!H:H,MMPM2!C:C,U133,MMPM2!E:E,1,MMPM2!G:G,1) -> 5.3 | G133: =SUMIFS(MMPM2!H:H,MMPM2!C:C,U133,MMPM2!E:E,1,MMPM2!G:G,2) -> 53.3 | L133: =SUMIFS(MMPM2!I:I,MMPM2!C:C,U133,MMPM2!E:E,1,MMPM2!G:G,1) -> 0.8 | M133: =SUMIFS(MMPM2!I:I,MMPM2!C:C,U133,MMPM2!E:E,1,MMPM2!G:G,2) -> 0.15 | N133: =SUMIFS(MMPM2!I:I,MMPM2!C:C,U133,MMPM2!E:E,1,MMPM2!G:G,3) -> 8 | R133: =IF(D133="OVS","",IF(V133=3, "Not applicable",W133-1)) -> Not applicable | S133: No doubling of mistrade range | U133: =IFERROR(_xlfn.XLOOKUP(A133,'MMPM1-PMM'!E:E,'MMPM1-PMM'!J:J),_xlfn.XLOOKUP(A133,'MMPM1-AMM'!E:E,'MMPM1-AMM'!K:K)) -> BB-Size | V133: =IFERROR(_xlfn.XLOOKUP(A133,'MMPM1-AMM'!E:E,'MMPM1-AMM'!T:T),_xlfn.XLOOKUP(A133,'MMPM1-PMM'!E:E,'MMPM1-PMM'!S:S)) -> 3 | W133: =IFERROR(_xlfn.XLOOKUP(A133,'MMPM1-AMM'!E:E,'MMPM1-AMM'!U:U),_xlfn.XLOOKUP(A133,'MMPM1-PMM'!E:E,'MMPM1-PMM'!T:T)) -> 6 | Y133: TRUE | AB133: =_xlfn.XLOOKUP(A133,productlist[PRODUCT_ID],productlist[PRODUCT_ISIN]) -> DE000A1DKQP3 | AC133: =_xlfn.XLOOKUP(A133,productlist[PRODUCT_ID],productlist[UNDERLYING_ISIN]) -> EU0009658186
A134: OXXP | B134: =_xlfn.XLOOKUP(A134,'Product List'!$A:$A,'Product List'!$D:$D) -> STOXX® Europe 600 Index Options | C134: =_xlfn.XLOOKUP(A134,'Product List'!$A:$A,'Product List'!$F:$F) -> INDEX OPTIONS | D134: =_xlfn.XLOOKUP(A134,'MMPM1-AMM'!E:E,'MMPM1-AMM'!K:K,_xlfn.XLOOKUP(A134,'MMPM1-PMM'!E:E,'MMPM1-PMM'!J:J)) -> OXXP | E134: =_xlfn.XLOOKUP(A134,'MMPM1-AMM'!E:E,'MMPM1-AMM'!Q:Q,_xlfn.XLOOKUP(A134,'MMPM1-PMM'!E:E,'MMPM1-PMM'!P:P)) -> 4 | F134: =SUMIFS(MMPM2!H:H,MMPM2!C:C,U134,MMPM2!E:E,1,MMPM2!G:G,1) -> 5.3 | G134: =SUMIFS(MMPM2!H:H,MMPM2!C:C,U134,MMPM2!E:E,1,MMPM2!G:G,2) -> 53.3 | L134: =SUMIFS(MMPM2!I:I,MMPM2!C:C,U134,MMPM2!E:E,1,MMPM2!G:G,1) -> 0.8 | M134: =SUMIFS(MMPM2!I:I,MMPM2!C:C,U134,MMPM2!E:E,1,MMPM2!G:G,2) -> 0.15 | N134: =SUMIFS(MMPM2!I:I,MMPM2!C:C,U134,MMPM2!E:E,1,MMPM2!G:G,3) -> 8 | R134: Not applicable | S134: No doubling of mistrade range | U134: =IFERROR(_xlfn.XLOOKUP(A134,'MMPM1-PMM'!E:E,'MMPM1-PMM'!J:J),_xlfn.XLOOKUP(A134,'MMPM1-AMM'!E:E,'MMPM1-AMM'!K:K)) -> OXXP | V134: =IFERROR(_xlfn.XLOOKUP(A134,'MMPM1-AMM'!E:E,'MMPM1-AMM'!T:T),_xlfn.XLOOKUP(A134,'MMPM1-PMM'!E:E,'MMPM1-PMM'!S:S)) -> 3 | W134: =IFERROR(_xlfn.XLOOKUP(A134,'MMPM1-AMM'!E:E,'MMPM1-AMM'!U:U),_xlfn.XLOOKUP(A134,'MMPM1-PMM'!E:E,'MMPM1-PMM'!T:T)) -> 6 | Y134: FALSE | AB134: =_xlfn.XLOOKUP(A134,productlist[PRODUCT_ID],productlist[PRODUCT_ISIN]) -> DE000A1DKQT5 | AC134: =_xlfn.XLOOKUP(A134,productlist[PRODUCT_ID],productlist[UNDERLYING_ISIN]) -> EU0009658202
A135: OXXS | B135: =_xlfn.XLOOKUP(A135,'Product List'!$A:$A,'Product List'!$D:$D) -> STOXX® Europe Select 50 Index Options | C135: =_xlfn.XLOOKUP(A135,'Product List'!$A:$A,'Product List'!$F:$F) -> INDEX OPTIONS | D135: =_xlfn.XLOOKUP(A135,'MMPM1-AMM'!E:E,'MMPM1-AMM'!K:K,_xlfn.XLOOKUP(A135,'MMPM1-PMM'!E:E,'MMPM1-PMM'!J:J)) -> OXXS | E135: =_xlfn.XLOOKUP(A135,'MMPM1-AMM'!E:E,'MMPM1-AMM'!Q:Q,_xlfn.XLOOKUP(A135,'MMPM1-PMM'!E:E,'MMPM1-PMM'!P:P)) -> 6 | F135: =SUMIFS(MMPM2!H:H,MMPM2!C:C,U135,MMPM2!E:E,1,MMPM2!G:G,1) -> 5.3 | G135: =SUMIFS(MMPM2!H:H,MMPM2!C:C,U135,MMPM2!E:E,1,MMPM2!G:G,2) -> 53.3 | L135: =SUMIFS(MMPM2!I:I,MMPM2!C:C,U135,MMPM2!E:E,1,MMPM2!G:G,1) -> 1.1 | M135: =SUMIFS(MMPM2!I:I,MMPM2!C:C,U135,MMPM2!E:E,1,MMPM2!G:G,2) -> 0.2 | N135: =SUMIFS(MMPM2!I:I,MMPM2!C:C,U135,MMPM2!E:E,1,MMPM2!G:G,3) -> 10.7 | R135: Not applicable | S135: No doubling of mistrade range | U135: =IFERROR(_xlfn.XLOOKUP(A135,'MMPM1-PMM'!E:E,'MMPM1-PMM'!J:J),_xlfn.XLOOKUP(A135,'MMPM1-AMM'!E:E,'MMPM1-AMM'!K:K)) -> OXXS | V135: =IFERROR(_xlfn.XLOOKUP(A135,'MMPM1-AMM'!E:E,'MMPM1-AMM'!T:T),_xlfn.XLOOKUP(A135,'MMPM1-PMM'!E:E,'MMPM1-PMM'!S:S)) -> 3 | W135: =IFERROR(_xlfn.XLOOKUP(A135,'MMPM1-AMM'!E:E,'MMPM1-AMM'!U:U),_xlfn.XLOOKUP(A135,'MMPM1-PMM'!E:E,'MMPM1-PMM'!T:T)) -> 6 | Y135: TRUE | AB135: =_xlfn.XLOOKUP(A135,productlist[PRODUCT_ID],productlist[PRODUCT_ISIN]) -> DE000A2RPDK9 | AC135: =_xlfn.XLOOKUP(A135,productlist[PRODUCT_ID],productlist[UNDERLYING_ISIN]) -> CH0298406999
A136: XMT | B136: =_xlfn.XLOOKUP(A136,'Product List'!$A:$A,'Product List'!$D:$D) -> iShares SMI® (CH) Options | C136: =_xlfn.XLOOKUP(A136,'Product List'!$A:$A,'Product List'!$F:$F) -> EXTF-OPTIONS | D136: =_xlfn.XLOOKUP(A136,'MMPM1-AMM'!E:E,'MMPM1-AMM'!K:K,_xlfn.XLOOKUP(A136,'MMPM1-PMM'!E:E,'MMPM1-PMM'!J:J)) -> ETF2 | E136: =_xlfn.XLOOKUP(A136,'MMPM1-AMM'!E:E,'MMPM1-AMM'!Q:Q,_xlfn.XLOOKUP(A136,'MMPM1-PMM'!E:E,'MMPM1-PMM'!P:P)) -> 6 | F136: =SUMIFS(MMPM2!H:H,MMPM2!C:C,U136,MMPM2!E:E,1,MMPM2!G:G,1) -> 1.5 | G136: =SUMIFS(MMPM2!H:H,MMPM2!C:C,U136,MMPM2!E:E,1,MMPM2!G:G,2) -> 15 | L136: =SUMIFS(MMPM2!I:I,MMPM2!C:C,U136,MMPM2!E:E,1,MMPM2!G:G,1) -> 0.25 | M136: =SUMIFS(MMPM2!I:I,MMPM2!C:C,U136,MMPM2!E:E,1,MMPM2!G:G,2) -> 0.15 | N136: =SUMIFS(MMPM2!I:I,MMPM2!C:C,U136,MMPM2!E:E,1,MMPM2!G:G,3) -> 2.25 | R136: Not applicable | S136: No doubling of mistrade range | U136: =IFERROR(_xlfn.XLOOKUP(A136,'MMPM1-PMM'!E:E,'MMPM1-PMM'!J:J),_xlfn.XLOOKUP(A136,'MMPM1-AMM'!E:E,'MMPM1-AMM'!K:K)) -> ETF2 | V136: =IFERROR(_xlfn.XLOOKUP(A136,'MMPM1-AMM'!E:E,'MMPM1-AMM'!T:T),_xlfn.XLOOKUP(A136,'MMPM1-PMM'!E:E,'MMPM1-PMM'!S:S)) -> 3 | W136: =IFERROR(_xlfn.XLOOKUP(A136,'MMPM1-AMM'!E:E,'MMPM1-AMM'!U:U),_xlfn.XLOOKUP(A136,'MMPM1-PMM'!E:E,'MMPM1-PMM'!T:T)) -> 6 | Y136: TRUE | AB136: =_xlfn.XLOOKUP(A136,productlist[PRODUCT_ID],productlist[PRODUCT_ISIN]) -> CH0008899764 | AC136: =_xlfn.XLOOKUP(A136,productlist[PRODUCT_ID],productlist[UNDERLYING_ISIN]) -> CH0008899764
A137: OSMX | B137: =_xlfn.XLOOKUP(A137,'Product List'!$A:$A,'Product List'!$D:$D) -> Mini-MDAX® Options | C137: =_xlfn.XLOOKUP(A137,'Product List'!$A:$A,'Product List'!$F:$F) -> INDEX OPTIONS | D137: =_xlfn.XLOOKUP(A137,'MMPM1-AMM'!E:E,'MMPM1-AMM'!K:K,_xlfn.XLOOKUP(A137,'MMPM1-PMM'!E:E,'MMPM1-PMM'!J:J)) -> O2MX | E137: =_xlfn.XLOOKUP(A137,'MMPM1-AMM'!E:E,'MMPM1-AMM'!Q:Q,_xlfn.XLOOKUP(A137,'MMPM1-PMM'!E:E,'MMPM1-PMM'!P:P)) -> 7 | F137: =SUMIFS(MMPM2!H:H,MMPM2!C:C,U137,MMPM2!E:E,1,MMPM2!G:G,1) -> 66.6 | G137: =SUMIFS(MMPM2!H:H,MMPM2!C:C,U137,MMPM2!E:E,1,MMPM2!G:G,2) -> 666.6 | L137: =SUMIFS(MMPM2!I:I,MMPM2!C:C,U137,MMPM2!E:E,1,MMPM2!G:G,1) -> 10 | M137: =SUMIFS(MMPM2!I:I,MMPM2!C:C,U137,MMPM2!E:E,1,MMPM2!G:G,2) -> 0.15 | N137: =SUMIFS(MMPM2!I:I,MMPM2!C:C,U137,MMPM2!E:E,1,MMPM2!G:G,3) -> 100 | R137: Not applicable | S137: No doubling of mistrade range | U137: =IFERROR(_xlfn.XLOOKUP(A137,'MMPM1-PMM'!E:E,'MMPM1-PMM'!J:J),_xlfn.XLOOKUP(A137,'MMPM1-AMM'!E:E,'MMPM1-AMM'!K:K)) -> O2MX | V137: =IFERROR(_xlfn.XLOOKUP(A137,'MMPM1-AMM'!E:E,'MMPM1-AMM'!T:T),_xlfn.XLOOKUP(A137,'MMPM1-PMM'!E:E,'MMPM1-PMM'!S:S)) -> 3 | W137: =IFERROR(_xlfn.XLOOKUP(A137,'MMPM1-AMM'!E:E,'MMPM1-AMM'!U:U),_xlfn.XLOOKUP(A137,'MMPM1-PMM'!E:E,'MMPM1-PMM'!T:T)) -> 7 | Y137: TRUE | AB137: =_xlfn.XLOOKUP(A137,productlist[PRODUCT_ID],productlist[PRODUCT_ISIN]) -> DE000A2L0RP1 | AC137: =_xlfn.XLOOKUP(A137,productlist[PRODUCT_ID],productlist[UNDERLYING_ISIN]) -> DE0008467416
A138: OMCH | B138: =_xlfn.XLOOKUP(A138,'Product List'!$A:$A,'Product List'!$D:$D) -> MSCI China Index Options | C138: =_xlfn.XLOOKUP(A138,'Product List'!$A:$A,'Product List'!$F:$F) -> INDEX OPTIONS | D138: =_xlfn.XLOOKUP(A138,'MMPM1-AMM'!E:E,'MMPM1-AMM'!K:K,_xlfn.XLOOKUP(A138,'MMPM1-PMM'!E:E,'MMPM1-PMM'!J:J)) -> MSCI-4 | E138: =_xlfn.XLOOKUP(A138,'MMPM1-AMM'!E:E,'MMPM1-AMM'!Q:Q,_xlfn.XLOOKUP(A138,'MMPM1-PMM'!E:E,'MMPM1-PMM'!P:P)) -> 6 | F138: =SUMIFS(MMPM2!H:H,MMPM2!C:C,U138,MMPM2!E:E,1,MMPM2!G:G,1) -> 15 | G138: =SUMIFS(MMPM2!H:H,MMPM2!C:C,U138,MMPM2!E:E,1,MMPM2!G:G,2) -> 187.5 | L138: =SUMIFS(MMPM2!I:I,MMPM2!C:C,U138,MMPM2!E:E,1,MMPM2!G:G,1) -> 3 | M138: =SUMIFS(MMPM2!I:I,MMPM2!C:C,U138,MMPM2!E:E,1,MMPM2!G:G,2) -> 0.2 | N138: =SUMIFS(MMPM2!I:I,MMPM2!C:C,U138,MMPM2!E:E,1,MMPM2!G:G,3) -> 37.5 | R138: Not applicable | S138: =IF(D138="OVS","",IF(V138=3, "No doubling of mistrade range",W138-1)) -> No doubling of mistrade range | U138: =IFERROR(_xlfn.XLOOKUP(A138,'MMPM1-PMM'!E:E,'MMPM1-PMM'!J:J),_xlfn.XLOOKUP(A138,'MMPM1-AMM'!E:E,'MMPM1-AMM'!K:K)) -> MSCI-4 | V138: =IFERROR(_xlfn.XLOOKUP(A138,'MMPM1-AMM'!E:E,'MMPM1-AMM'!T:T),_xlfn.XLOOKUP(A138,'MMPM1-PMM'!E:E,'MMPM1-PMM'!S:S)) -> 3 | W138: =IFERROR(_xlfn.XLOOKUP(A138,'MMPM1-AMM'!E:E,'MMPM1-AMM'!U:U),_xlfn.XLOOKUP(A138,'MMPM1-PMM'!E:E,'MMPM1-PMM'!T:T)) -> 6 | Y138: =W138=E138 -> TRUE | AB138: =_xlfn.XLOOKUP(A138,productlist[PRODUCT_ID],productlist[PRODUCT_ISIN]) -> DE000A3DCW16 | AC138: =_xlfn.XLOOKUP(A138,productlist[PRODUCT_ID],productlist[UNDERLYING_ISIN]) -> GB00BN7DFX04
A139: OMSA | B139: =_xlfn.XLOOKUP(A139,'Product List'!$A:$A,'Product List'!$D:$D) -> MSCI Saudi Arabia Index Options | C139: =_xlfn.XLOOKUP(A139,'Product List'!$A:$A,'Product List'!$F:$F) -> INDEX OPTIONS | D139: =_xlfn.XLOOKUP(A139,'MMPM1-AMM'!E:E,'MMPM1-AMM'!K:K,_xlfn.XLOOKUP(A139,'MMPM1-PMM'!E:E,'MMPM1-PMM'!J:J)) -> MSCI-3 | E139: =_xlfn.XLOOKUP(A139,'MMPM1-AMM'!E:E,'MMPM1-AMM'!Q:Q,_xlfn.XLOOKUP(A139,'MMPM1-PMM'!E:E,'MMPM1-PMM'!P:P)) -> 6 | F139: =SUMIFS(MMPM2!H:H,MMPM2!C:C,U139,MMPM2!E:E,1,MMPM2!G:G,1) -> 40 | G139: =SUMIFS(MMPM2!H:H,MMPM2!C:C,U139,MMPM2!E:E,1,MMPM2!G:G,2) -> 400 | L139: =SUMIFS(MMPM2!I:I,MMPM2!C:C,U139,MMPM2!E:E,1,MMPM2!G:G,1) -> 8 | M139: =SUMIFS(MMPM2!I:I,MMPM2!C:C,U139,MMPM2!E:E,1,MMPM2!G:G,2) -> 0.2 | N139: =SUMIFS(MMPM2!I:I,MMPM2!C:C,U139,MMPM2!E:E,1,MMPM2!G:G,3) -> 80 | R139: Not applicable | S139: No doubling of mistrade range | U139: =IFERROR(_xlfn.XLOOKUP(A139,'MMPM1-PMM'!E:E,'MMPM1-PMM'!J:J),_xlfn.XLOOKUP(A139,'MMPM1-AMM'!E:E,'MMPM1-AMM'!K:K)) -> MSCI-3 | V139: =IFERROR(_xlfn.XLOOKUP(A139,'MMPM1-AMM'!E:E,'MMPM1-AMM'!T:T),_xlfn.XLOOKUP(A139,'MMPM1-PMM'!E:E,'MMPM1-PMM'!S:S)) -> 3 | W139: =IFERROR(_xlfn.XLOOKUP(A139,'MMPM1-AMM'!E:E,'MMPM1-AMM'!U:U),_xlfn.XLOOKUP(A139,'MMPM1-PMM'!E:E,'MMPM1-PMM'!T:T)) -> 6 | Y139: =W139=E139 -> TRUE | AB139: =_xlfn.XLOOKUP(A139,productlist[PRODUCT_ID],productlist[PRODUCT_ISIN]) -> DE000A3DCW24 | AC139: =_xlfn.XLOOKUP(A139,productlist[PRODUCT_ID],productlist[UNDERLYING_ISIN]) -> GB00BP68BQ52
A140: OKW1 | B140: =_xlfn.XLOOKUP(A140,'Product List'!$A:$A,'Product List'!$D:$D) ->  | C140: =_xlfn.XLOOKUP(A140,'Product List'!$A:$A,'Product List'!$F:$F) ->  | D140: =_xlfn.XLOOKUP(A140,'MMPM1-AMM'!E:E,'MMPM1-AMM'!K:K,_xlfn.XLOOKUP(A140,'MMPM1-PMM'!E:E,'MMPM1-PMM'!J:J)) ->  | E140: =_xlfn.XLOOKUP(A140,'MMPM1-AMM'!E:E,'MMPM1-AMM'!Q:Q,_xlfn.XLOOKUP(A140,'MMPM1-PMM'!E:E,'MMPM1-PMM'!P:P)) ->  | F140: =SUMIFS(MMPM2!H:H,MMPM2!C:C,U140,MMPM2!E:E,1,MMPM2!G:G,1) -> 0 | G140: =SUMIFS(MMPM2!H:H,MMPM2!C:C,U140,MMPM2!E:E,1,MMPM2!G:G,2) -> 0 | L140: =SUMIFS(MMPM2!I:I,MMPM2!C:C,U140,MMPM2!E:E,1,MMPM2!G:G,1) -> 0 | M140: =SUMIFS(MMPM2!I:I,MMPM2!C:C,U140,MMPM2!E:E,1,MMPM2!G:G,2) -> 0 | N140: =SUMIFS(MMPM2!I:I,MMPM2!C:C,U140,MMPM2!E:E,1,MMPM2!G:G,3) -> 0 | R140: =IF(D140="OVS","",IF(V140=3, "Not applicable",W140-1)) ->  | U140: =IFERROR(_xlfn.XLOOKUP(A140,'MMPM1-PMM'!E:E,'MMPM1-PMM'!J:J),_xlfn.XLOOKUP(A140,'MMPM1-AMM'!E:E,'MMPM1-AMM'!K:K)) ->  | V140: =IFERROR(_xlfn.XLOOKUP(A140,'MMPM1-AMM'!E:E,'MMPM1-AMM'!T:T),_xlfn.XLOOKUP(A140,'MMPM1-PMM'!E:E,'MMPM1-PMM'!S:S)) ->  | W140: =IFERROR(_xlfn.XLOOKUP(A140,'MMPM1-AMM'!E:E,'MMPM1-AMM'!U:U),_xlfn.XLOOKUP(A140,'MMPM1-PMM'!E:E,'MMPM1-PMM'!T:T)) ->  | AB140: =_xlfn.XLOOKUP(A140,productlist[PRODUCT_ID],productlist[PRODUCT_ISIN]) ->  | AC140: =_xlfn.XLOOKUP(A140,productlist[PRODUCT_ID],productlist[UNDERLYING_ISIN]) -> 
A141: OKW3 | B141: =_xlfn.XLOOKUP(A141,'Product List'!$A:$A,'Product List'!$D:$D) ->  | C141: =_xlfn.XLOOKUP(A141,'Product List'!$A:$A,'Product List'!$F:$F) ->  | D141: =_xlfn.XLOOKUP(A141,'MMPM1-AMM'!E:E,'MMPM1-AMM'!K:K,_xlfn.XLOOKUP(A141,'MMPM1-PMM'!E:E,'MMPM1-PMM'!J:J)) ->  | E141: =_xlfn.XLOOKUP(A141,'MMPM1-AMM'!E:E,'MMPM1-AMM'!Q:Q,_xlfn.XLOOKUP(A141,'MMPM1-PMM'!E:E,'MMPM1-PMM'!P:P)) ->  | F141: =SUMIFS(MMPM2!H:H,MMPM2!C:C,U141,MMPM2!E:E,1,MMPM2!G:G,1) -> 0 | G141: =SUMIFS(MMPM2!H:H,MMPM2!C:C,U141,MMPM2!E:E,1,MMPM2!G:G,2) -> 0 | L141: =SUMIFS(MMPM2!I:I,MMPM2!C:C,U141,MMPM2!E:E,1,MMPM2!G:G,1) -> 0 | M141: =SUMIFS(MMPM2!I:I,MMPM2!C:C,U141,MMPM2!E:E,1,MMPM2!G:G,2) -> 0 | N141: =SUMIFS(MMPM2!I:I,MMPM2!C:C,U141,MMPM2!E:E,1,MMPM2!G:G,3) -> 0 | U141: =IFERROR(_xlfn.XLOOKUP(A141,'MMPM1-PMM'!E:E,'MMPM1-PMM'!J:J),_xlfn.XLOOKUP(A141,'MMPM1-AMM'!E:E,'MMPM1-AMM'!K:K)) ->  | V141: =IFERROR(_xlfn.XLOOKUP(A141,'MMPM1-AMM'!E:E,'MMPM1-AMM'!T:T),_xlfn.XLOOKUP(A141,'MMPM1-PMM'!E:E,'MMPM1-PMM'!S:S)) ->  | W141: =IFERROR(_xlfn.XLOOKUP(A141,'MMPM1-AMM'!E:E,'MMPM1-AMM'!U:U),_xlfn.XLOOKUP(A141,'MMPM1-PMM'!E:E,'MMPM1-PMM'!T:T)) ->  | AB141: =_xlfn.XLOOKUP(A141,productlist[PRODUCT_ID],productlist[PRODUCT_ISIN]) ->  | AC141: =_xlfn.XLOOKUP(A141,productlist[PRODUCT_ID],productlist[UNDERLYING_ISIN]) -> 
A142: OKW4 | B142: =_xlfn.XLOOKUP(A142,'Product List'!$A:$A,'Product List'!$D:$D) ->  | C142: =_xlfn.XLOOKUP(A142,'Product List'!$A:$A,'Product List'!$F:$F) ->  | D142: =_xlfn.XLOOKUP(A142,'MMPM1-AMM'!E:E,'MMPM1-AMM'!K:K,_xlfn.XLOOKUP(A142,'MMPM1-PMM'!E:E,'MMPM1-PMM'!J:J)) ->  | E142: =_xlfn.XLOOKUP(A142,'MMPM1-AMM'!E:E,'MMPM1-AMM'!Q:Q,_xlfn.XLOOKUP(A142,'MMPM1-PMM'!E:E,'MMPM1-PMM'!P:P)) ->  | F142: =SUMIFS(MMPM2!H:H,MMPM2!C:C,U142,MMPM2!E:E,1,MMPM2!G:G,1) -> 0 | G142: =SUMIFS(MMPM2!H:H,MMPM2!C:C,U142,MMPM2!E:E,1,MMPM2!G:G,2) -> 0 | L142: =SUMIFS(MMPM2!I:I,MMPM2!C:C,U142,MMPM2!E:E,1,MMPM2!G:G,1) -> 0 | M142: =SUMIFS(MMPM2!I:I,MMPM2!C:C,U142,MMPM2!E:E,1,MMPM2!G:G,2) -> 0 | N142: =SUMIFS(MMPM2!I:I,MMPM2!C:C,U142,MMPM2!E:E,1,MMPM2!G:G,3) -> 0 | U142: =IFERROR(_xlfn.XLOOKUP(A142,'MMPM1-PMM'!E:E,'MMPM1-PMM'!J:J),_xlfn.XLOOKUP(A142,'MMPM1-AMM'!E:E,'MMPM1-AMM'!K:K)) ->  | V142: =IFERROR(_xlfn.XLOOKUP(A142,'MMPM1-AMM'!E:E,'MMPM1-AMM'!T:T),_xlfn.XLOOKUP(A142,'MMPM1-PMM'!E:E,'MMPM1-PMM'!S:S)) ->  | W142: =IFERROR(_xlfn.XLOOKUP(A142,'MMPM1-AMM'!E:E,'MMPM1-AMM'!U:U),_xlfn.XLOOKUP(A142,'MMPM1-PMM'!E:E,'MMPM1-PMM'!T:T)) ->  | AB142: =_xlfn.XLOOKUP(A142,productlist[PRODUCT_ID],productlist[PRODUCT_ISIN]) ->  | AC142: =_xlfn.XLOOKUP(A142,productlist[PRODUCT_ID],productlist[UNDERLYING_ISIN]) -> 
A143: OKW5 | B143: =_xlfn.XLOOKUP(A143,'Product List'!$A:$A,'Product List'!$D:$D) ->  | C143: =_xlfn.XLOOKUP(A143,'Product List'!$A:$A,'Product List'!$F:$F) ->  | D143: =_xlfn.XLOOKUP(A143,'MMPM1-AMM'!E:E,'MMPM1-AMM'!K:K,_xlfn.XLOOKUP(A143,'MMPM1-PMM'!E:E,'MMPM1-PMM'!J:J)) ->  | E143: =_xlfn.XLOOKUP(A143,'MMPM1-AMM'!E:E,'MMPM1-AMM'!Q:Q,_xlfn.XLOOKUP(A143,'MMPM1-PMM'!E:E,'MMPM1-PMM'!P:P)) ->  | F143: =SUMIFS(MMPM2!H:H,MMPM2!C:C,U143,MMPM2!E:E,1,MMPM2!G:G,1) -> 0 | G143: =SUMIFS(MMPM2!H:H,MMPM2!C:C,U143,MMPM2!E:E,1,MMPM2!G:G,2) -> 0 | L143: =SUMIFS(MMPM2!I:I,MMPM2!C:C,U143,MMPM2!E:E,1,MMPM2!G:G,1) -> 0 | M143: =SUMIFS(MMPM2!I:I,MMPM2!C:C,U143,MMPM2!E:E,1,MMPM2!G:G,2) -> 0 | N143: =SUMIFS(MMPM2!I:I,MMPM2!C:C,U143,MMPM2!E:E,1,MMPM2!G:G,3) -> 0 | U143: =IFERROR(_xlfn.XLOOKUP(A143,'MMPM1-PMM'!E:E,'MMPM1-PMM'!J:J),_xlfn.XLOOKUP(A143,'MMPM1-AMM'!E:E,'MMPM1-AMM'!K:K)) ->  | V143: =IFERROR(_xlfn.XLOOKUP(A143,'MMPM1-AMM'!E:E,'MMPM1-AMM'!T:T),_xlfn.XLOOKUP(A143,'MMPM1-PMM'!E:E,'MMPM1-PMM'!S:S)) ->  | W143: =IFERROR(_xlfn.XLOOKUP(A143,'MMPM1-AMM'!E:E,'MMPM1-AMM'!U:U),_xlfn.XLOOKUP(A143,'MMPM1-PMM'!E:E,'MMPM1-PMM'!T:T)) ->  | AB143: =_xlfn.XLOOKUP(A143,productlist[PRODUCT_ID],productlist[PRODUCT_ISIN]) ->  | AC143: =_xlfn.XLOOKUP(A143,productlist[PRODUCT_ID],productlist[UNDERLYING_ISIN]) -> 
A144: EEDM | B144: =_xlfn.XLOOKUP(A144,'Product List'!$A:$A,'Product List'!$D:$D) -> iShares MSCI Emerging Markets ESG Enhanced UCITS Options | C144: =_xlfn.XLOOKUP(A144,'Product List'!$A:$A,'Product List'!$F:$F) -> EXTF-OPTIONS | D144: =_xlfn.XLOOKUP(A144,'MMPM1-AMM'!E:E,'MMPM1-AMM'!K:K,_xlfn.XLOOKUP(A144,'MMPM1-PMM'!E:E,'MMPM1-PMM'!J:J)) -> ETF6 | E144: =_xlfn.XLOOKUP(A144,'MMPM1-AMM'!E:E,'MMPM1-AMM'!Q:Q,_xlfn.XLOOKUP(A144,'MMPM1-PMM'!E:E,'MMPM1-PMM'!P:P)) -> 6 | F144: =SUMIFS(MMPM2!H:H,MMPM2!C:C,U144,MMPM2!E:E,1,MMPM2!G:G,1) -> 1 | G144: =SUMIFS(MMPM2!H:H,MMPM2!C:C,U144,MMPM2!E:E,1,MMPM2!G:G,2) -> 5 | L144: =SUMIFS(MMPM2!I:I,MMPM2!C:C,U144,MMPM2!E:E,1,MMPM2!G:G,1) -> 0.2 | M144: =SUMIFS(MMPM2!I:I,MMPM2!C:C,U144,MMPM2!E:E,1,MMPM2!G:G,2) -> 0.2 | N144: =SUMIFS(MMPM2!I:I,MMPM2!C:C,U144,MMPM2!E:E,1,MMPM2!G:G,3) -> 1 | R144: Not applicable | S144: No doubling of mistrade range | U144: =IFERROR(_xlfn.XLOOKUP(A144,'MMPM1-PMM'!E:E,'MMPM1-PMM'!J:J),_xlfn.XLOOKUP(A144,'MMPM1-AMM'!E:E,'MMPM1-AMM'!K:K)) -> ETF6 | V144: =IFERROR(_xlfn.XLOOKUP(A144,'MMPM1-AMM'!E:E,'MMPM1-AMM'!T:T),_xlfn.XLOOKUP(A144,'MMPM1-PMM'!E:E,'MMPM1-PMM'!S:S)) -> 3 | W144: =IFERROR(_xlfn.XLOOKUP(A144,'MMPM1-AMM'!E:E,'MMPM1-AMM'!U:U),_xlfn.XLOOKUP(A144,'MMPM1-PMM'!E:E,'MMPM1-PMM'!T:T)) -> 6 | Y144: =W144=E144 -> TRUE | AB144: =_xlfn.XLOOKUP(A144,productlist[PRODUCT_ID],productlist[PRODUCT_ISIN]) -> IE00BHZPJ122 | AC144: =_xlfn.XLOOKUP(A144,productlist[PRODUCT_ID],productlist[UNDERLYING_ISIN]) -> IE00BHZPJ122
A145: EEDS | B145: =_xlfn.XLOOKUP(A145,'Product List'!$A:$A,'Product List'!$D:$D) -> iShares MSCI USA ESG Enhanced UCITS Options | C145: =_xlfn.XLOOKUP(A145,'Product List'!$A:$A,'Product List'!$F:$F) -> EXTF-OPTIONS | D145: =_xlfn.XLOOKUP(A145,'MMPM1-AMM'!E:E,'MMPM1-AMM'!K:K,_xlfn.XLOOKUP(A145,'MMPM1-PMM'!E:E,'MMPM1-PMM'!J:J)) -> ETF1 | E145: =_xlfn.XLOOKUP(A145,'MMPM1-AMM'!E:E,'MMPM1-AMM'!Q:Q,_xlfn.XLOOKUP(A145,'MMPM1-PMM'!E:E,'MMPM1-PMM'!P:P)) -> 6 | F145: =SUMIFS(MMPM2!H:H,MMPM2!C:C,U145,MMPM2!E:E,1,MMPM2!G:G,1) -> 1 | G145: =SUMIFS(MMPM2!H:H,MMPM2!C:C,U145,MMPM2!E:E,1,MMPM2!G:G,2) -> 5 | L145: =SUMIFS(MMPM2!I:I,MMPM2!C:C,U145,MMPM2!E:E,1,MMPM2!G:G,1) -> 0.15 | M145: =SUMIFS(MMPM2!I:I,MMPM2!C:C,U145,MMPM2!E:E,1,MMPM2!G:G,2) -> 0.15 | N145: =SUMIFS(MMPM2!I:I,MMPM2!C:C,U145,MMPM2!E:E,1,MMPM2!G:G,3) -> 0.75 | R145: Not applicable | S145: No doubling of mistrade range | U145: =IFERROR(_xlfn.XLOOKUP(A145,'MMPM1-PMM'!E:E,'MMPM1-PMM'!J:J),_xlfn.XLOOKUP(A145,'MMPM1-AMM'!E:E,'MMPM1-AMM'!K:K)) -> ETF1 | V145: =IFERROR(_xlfn.XLOOKUP(A145,'MMPM1-AMM'!E:E,'MMPM1-AMM'!T:T),_xlfn.XLOOKUP(A145,'MMPM1-PMM'!E:E,'MMPM1-PMM'!S:S)) -> 3 | W145: =IFERROR(_xlfn.XLOOKUP(A145,'MMPM1-AMM'!E:E,'MMPM1-AMM'!U:U),_xlfn.XLOOKUP(A145,'MMPM1-PMM'!E:E,'MMPM1-PMM'!T:T)) -> 6 | Y145: =W145=E145 -> TRUE | AB145: =_xlfn.XLOOKUP(A145,productlist[PRODUCT_ID],productlist[PRODUCT_ISIN]) -> IE00BHZPJ890 | AC145: =_xlfn.XLOOKUP(A145,productlist[PRODUCT_ID],productlist[UNDERLYING_ISIN]) -> IE00BHZPJ890
A146: EEWD | B146: =_xlfn.XLOOKUP(A146,'Product List'!$A:$A,'Product List'!$D:$D) -> iShares MSCI World ESG Enhanced UCITS Options | C146: =_xlfn.XLOOKUP(A146,'Product List'!$A:$A,'Product List'!$F:$F) -> EXTF-OPTIONS | D146: =_xlfn.XLOOKUP(A146,'MMPM1-AMM'!E:E,'MMPM1-AMM'!K:K,_xlfn.XLOOKUP(A146,'MMPM1-PMM'!E:E,'MMPM1-PMM'!J:J)) -> ETF1 | E146: =_xlfn.XLOOKUP(A146,'MMPM1-AMM'!E:E,'MMPM1-AMM'!Q:Q,_xlfn.XLOOKUP(A146,'MMPM1-PMM'!E:E,'MMPM1-PMM'!P:P)) -> 6 | F146: =SUMIFS(MMPM2!H:H,MMPM2!C:C,U146,MMPM2!E:E,1,MMPM2!G:G,1) -> 1 | G146: =SUMIFS(MMPM2!H:H,MMPM2!C:C,U146,MMPM2!E:E,1,MMPM2!G:G,2) -> 5 | L146: =SUMIFS(MMPM2!I:I,MMPM2!C:C,U146,MMPM2!E:E,1,MMPM2!G:G,1) -> 0.15 | M146: =SUMIFS(MMPM2!I:I,MMPM2!C:C,U146,MMPM2!E:E,1,MMPM2!G:G,2) -> 0.15 | N146: =SUMIFS(MMPM2!I:I,MMPM2!C:C,U146,MMPM2!E:E,1,MMPM2!G:G,3) -> 0.75 | R146: Not applicable | S146: No doubling of mistrade range | U146: =IFERROR(_xlfn.XLOOKUP(A146,'MMPM1-PMM'!E:E,'MMPM1-PMM'!J:J),_xlfn.XLOOKUP(A146,'MMPM1-AMM'!E:E,'MMPM1-AMM'!K:K)) -> ETF1 | V146: =IFERROR(_xlfn.XLOOKUP(A146,'MMPM1-AMM'!E:E,'MMPM1-AMM'!T:T),_xlfn.XLOOKUP(A146,'MMPM1-PMM'!E:E,'MMPM1-PMM'!S:S)) -> 3 | W146: =IFERROR(_xlfn.XLOOKUP(A146,'MMPM1-AMM'!E:E,'MMPM1-AMM'!U:U),_xlfn.XLOOKUP(A146,'MMPM1-PMM'!E:E,'MMPM1-PMM'!T:T)) -> 6 | Y146: =W146=E146 -> TRUE | AB146: =_xlfn.XLOOKUP(A146,productlist[PRODUCT_ID],productlist[PRODUCT_ISIN]) -> IE00BG11HV38 | AC146: =_xlfn.XLOOKUP(A146,productlist[PRODUCT_ID],productlist[UNDERLYING_ISIN]) -> IE00BG11HV38
A147: EMNU | B147: =_xlfn.XLOOKUP(A147,'Product List'!$A:$A,'Product List'!$D:$D) -> iShares MSCI Europe ESG Enhanced UCITS Options | C147: =_xlfn.XLOOKUP(A147,'Product List'!$A:$A,'Product List'!$F:$F) -> EXTF-OPTIONS | D147: =_xlfn.XLOOKUP(A147,'MMPM1-AMM'!E:E,'MMPM1-AMM'!K:K,_xlfn.XLOOKUP(A147,'MMPM1-PMM'!E:E,'MMPM1-PMM'!J:J)) -> ETF1 | E147: =_xlfn.XLOOKUP(A147,'MMPM1-AMM'!E:E,'MMPM1-AMM'!Q:Q,_xlfn.XLOOKUP(A147,'MMPM1-PMM'!E:E,'MMPM1-PMM'!P:P)) -> 6 | F147: =SUMIFS(MMPM2!H:H,MMPM2!C:C,U147,MMPM2!E:E,1,MMPM2!G:G,1) -> 1 | G147: =SUMIFS(MMPM2!H:H,MMPM2!C:C,U147,MMPM2!E:E,1,MMPM2!G:G,2) -> 5 | L147: =SUMIFS(MMPM2!I:I,MMPM2!C:C,U147,MMPM2!E:E,1,MMPM2!G:G,1) -> 0.15 | M147: =SUMIFS(MMPM2!I:I,MMPM2!C:C,U147,MMPM2!E:E,1,MMPM2!G:G,2) -> 0.15 | N147: =SUMIFS(MMPM2!I:I,MMPM2!C:C,U147,MMPM2!E:E,1,MMPM2!G:G,3) -> 0.75 | R147: Not applicable | S147: No doubling of mistrade range | U147: =IFERROR(_xlfn.XLOOKUP(A147,'MMPM1-PMM'!E:E,'MMPM1-PMM'!J:J),_xlfn.XLOOKUP(A147,'MMPM1-AMM'!E:E,'MMPM1-AMM'!K:K)) -> ETF1 | V147: =IFERROR(_xlfn.XLOOKUP(A147,'MMPM1-AMM'!E:E,'MMPM1-AMM'!T:T),_xlfn.XLOOKUP(A147,'MMPM1-PMM'!E:E,'MMPM1-PMM'!S:S)) -> 3 | W147: =IFERROR(_xlfn.XLOOKUP(A147,'MMPM1-AMM'!E:E,'MMPM1-AMM'!U:U),_xlfn.XLOOKUP(A147,'MMPM1-PMM'!E:E,'MMPM1-PMM'!T:T)) -> 6 | Y147: =W147=E147 -> TRUE | AB147: =_xlfn.XLOOKUP(A147,productlist[PRODUCT_ID],productlist[PRODUCT_ISIN]) -> IE00BHZPJ676 | AC147: =_xlfn.XLOOKUP(A147,productlist[PRODUCT_ID],productlist[UNDERLYING_ISIN]) -> IE00BHZPJ676
A148: OEBD | B148: =_xlfn.XLOOKUP(A148,'Product List'!$A:$A,'Product List'!$D:$D) -> EURO STOXX® Banks Index Dividend Options | C148: =_xlfn.XLOOKUP(A148,'Product List'!$A:$A,'Product List'!$F:$F) -> INDEX DIVIDEND OPTIONS | D148: =_xlfn.XLOOKUP(A148,'MMPM1-AMM'!E:E,'MMPM1-AMM'!K:K,_xlfn.XLOOKUP(A148,'MMPM1-PMM'!E:E,'MMPM1-PMM'!J:J)) -> OEBD | E148: =_xlfn.XLOOKUP(A148,'MMPM1-AMM'!E:E,'MMPM1-AMM'!Q:Q,_xlfn.XLOOKUP(A148,'MMPM1-PMM'!E:E,'MMPM1-PMM'!P:P)) -> 3 | F148: =SUMIFS(MMPM2!H:H,MMPM2!C:C,U148,MMPM2!E:E,1,MMPM2!G:G,1) -> 0.3 | G148: =SUMIFS(MMPM2!H:H,MMPM2!C:C,U148,MMPM2!E:E,1,MMPM2!G:G,2) -> 1 | I148: 0.3 | J148: 1 | L148: =SUMIFS(MMPM2!I:I,MMPM2!C:C,U148,MMPM2!E:E,1,MMPM2!G:G,1) -> 0.1 | M148: =SUMIFS(MMPM2!I:I,MMPM2!C:C,U148,MMPM2!E:E,1,MMPM2!G:G,2) -> 0.5 | N148: =SUMIFS(MMPM2!I:I,MMPM2!C:C,U148,MMPM2!E:E,1,MMPM2!G:G,3) -> 0.5 | O148: 0.15 | P148: 0.6 | Q148: 0.5 | R148: =IF(D148="OVS","",IF(V148=3, "Not applicable",W148-1)) -> 2 | S148: 2 | U148: =IFERROR(_xlfn.XLOOKUP(A148,'MMPM1-PMM'!E:E,'MMPM1-PMM'!J:J),_xlfn.XLOOKUP(A148,'MMPM1-AMM'!E:E,'MMPM1-AMM'!K:K)) -> OEBD | V148: =IFERROR(_xlfn.XLOOKUP(A148,'MMPM1-AMM'!E:E,'MMPM1-AMM'!T:T),_xlfn.XLOOKUP(A148,'MMPM1-PMM'!E:E,'MMPM1-PMM'!S:S)) -> 6 | W148: =IFERROR(_xlfn.XLOOKUP(A148,'MMPM1-AMM'!E:E,'MMPM1-AMM'!U:U),_xlfn.XLOOKUP(A148,'MMPM1-PMM'!E:E,'MMPM1-PMM'!T:T)) -> 3 | Y148: =W148=E148 -> TRUE | AB148: =_xlfn.XLOOKUP(A148,productlist[PRODUCT_ID],productlist[PRODUCT_ISIN]) -> DE000A3DL3Z5 | AC148: =_xlfn.XLOOKUP(A148,productlist[PRODUCT_ID],productlist[UNDERLYING_ISIN]) ->  | AE148: 3
A149: OMSM | B149: =_xlfn.XLOOKUP(A149,'Product List'!$A:$A,'Product List'!$D:$D) -> MSCI Emerging Markets Screened Index Options | C149: =_xlfn.XLOOKUP(A149,'Product List'!$A:$A,'Product List'!$F:$F) -> INDEX OPTIONS | D149: =_xlfn.XLOOKUP(A149,'MMPM1-AMM'!E:E,'MMPM1-AMM'!K:K,_xlfn.XLOOKUP(A149,'MMPM1-PMM'!E:E,'MMPM1-PMM'!J:J)) -> MSCI-3 | E149: =_xlfn.XLOOKUP(A149,'MMPM1-AMM'!E:E,'MMPM1-AMM'!Q:Q,_xlfn.XLOOKUP(A149,'MMPM1-PMM'!E:E,'MMPM1-PMM'!P:P)) -> 6 | F149: =SUMIFS(MMPM2!H:H,MMPM2!C:C,U149,MMPM2!E:E,1,MMPM2!G:G,1) -> 40 | G149: =SUMIFS(MMPM2!H:H,MMPM2!C:C,U149,MMPM2!E:E,1,MMPM2!G:G,2) -> 400 | L149: =SUMIFS(MMPM2!I:I,MMPM2!C:C,U149,MMPM2!E:E,1,MMPM2!G:G,1) -> 8 | M149: =SUMIFS(MMPM2!I:I,MMPM2!C:C,U149,MMPM2!E:E,1,MMPM2!G:G,2) -> 0.2 | N149: =SUMIFS(MMPM2!I:I,MMPM2!C:C,U149,MMPM2!E:E,1,MMPM2!G:G,3) -> 80 | R149: Not applicable | S149: =IF(D149="OVS","",IF(V149=3, "No doubling of mistrade range",W149-1)) -> No doubling of mistrade range | U149: =IFERROR(_xlfn.XLOOKUP(A149,'MMPM1-PMM'!E:E,'MMPM1-PMM'!J:J),_xlfn.XLOOKUP(A149,'MMPM1-AMM'!E:E,'MMPM1-AMM'!K:K)) -> MSCI-3 | V149: =IFERROR(_xlfn.XLOOKUP(A149,'MMPM1-AMM'!E:E,'MMPM1-AMM'!T:T),_xlfn.XLOOKUP(A149,'MMPM1-PMM'!E:E,'MMPM1-PMM'!S:S)) -> 3 | W149: =IFERROR(_xlfn.XLOOKUP(A149,'MMPM1-AMM'!E:E,'MMPM1-AMM'!U:U),_xlfn.XLOOKUP(A149,'MMPM1-PMM'!E:E,'MMPM1-PMM'!T:T)) -> 6 | Y149: =W149=E149 -> TRUE | AB149: =_xlfn.XLOOKUP(A149,productlist[PRODUCT_ID],productlist[PRODUCT_ISIN]) -> DE000A3DXFB5 | AC149: =_xlfn.XLOOKUP(A149,productlist[PRODUCT_ID],productlist[UNDERLYING_ISIN]) -> GB00BP68BV06
A150: OMSS | B150: =_xlfn.XLOOKUP(A150,'Product List'!$A:$A,'Product List'!$D:$D) -> MSCI Emerging Markets Asia Screened Index Options | C150: =_xlfn.XLOOKUP(A150,'Product List'!$A:$A,'Product List'!$F:$F) -> INDEX OPTIONS | D150: =_xlfn.XLOOKUP(A150,'MMPM1-AMM'!E:E,'MMPM1-AMM'!K:K,_xlfn.XLOOKUP(A150,'MMPM1-PMM'!E:E,'MMPM1-PMM'!J:J)) -> MSCI-3 | E150: =_xlfn.XLOOKUP(A150,'MMPM1-AMM'!E:E,'MMPM1-AMM'!Q:Q,_xlfn.XLOOKUP(A150,'MMPM1-PMM'!E:E,'MMPM1-PMM'!P:P)) -> 6 | F150: =SUMIFS(MMPM2!H:H,MMPM2!C:C,U150,MMPM2!E:E,1,MMPM2!G:G,1) -> 40 | G150: =SUMIFS(MMPM2!H:H,MMPM2!C:C,U150,MMPM2!E:E,1,MMPM2!G:G,2) -> 400 | L150: =SUMIFS(MMPM2!I:I,MMPM2!C:C,U150,MMPM2!E:E,1,MMPM2!G:G,1) -> 8 | M150: =SUMIFS(MMPM2!I:I,MMPM2!C:C,U150,MMPM2!E:E,1,MMPM2!G:G,2) -> 0.2 | N150: =SUMIFS(MMPM2!I:I,MMPM2!C:C,U150,MMPM2!E:E,1,MMPM2!G:G,3) -> 80 | R150: Not applicable | S150: No doubling of mistrade range | U150: =IFERROR(_xlfn.XLOOKUP(A150,'MMPM1-PMM'!E:E,'MMPM1-PMM'!J:J),_xlfn.XLOOKUP(A150,'MMPM1-AMM'!E:E,'MMPM1-AMM'!K:K)) -> MSCI-3 | V150: =IFERROR(_xlfn.XLOOKUP(A150,'MMPM1-AMM'!E:E,'MMPM1-AMM'!T:T),_xlfn.XLOOKUP(A150,'MMPM1-PMM'!E:E,'MMPM1-PMM'!S:S)) -> 3 | W150: =IFERROR(_xlfn.XLOOKUP(A150,'MMPM1-AMM'!E:E,'MMPM1-AMM'!U:U),_xlfn.XLOOKUP(A150,'MMPM1-PMM'!E:E,'MMPM1-PMM'!T:T)) -> 6 | Y150: TRUE | AB150: =_xlfn.XLOOKUP(A150,productlist[PRODUCT_ID],productlist[PRODUCT_ISIN]) -> DE000A3DXFA7 | AC150: =_xlfn.XLOOKUP(A150,productlist[PRODUCT_ID],productlist[UNDERLYING_ISIN]) -> GB00BN7DFW96
A151: OMSU | B151: =_xlfn.XLOOKUP(A151,'Product List'!$A:$A,'Product List'!$D:$D) -> MSCI USA Screened Index Options | C151: =_xlfn.XLOOKUP(A151,'Product List'!$A:$A,'Product List'!$F:$F) -> INDEX OPTIONS | D151: =_xlfn.XLOOKUP(A151,'MMPM1-AMM'!E:E,'MMPM1-AMM'!K:K,_xlfn.XLOOKUP(A151,'MMPM1-PMM'!E:E,'MMPM1-PMM'!J:J)) -> MSCI-3 | E151: =_xlfn.XLOOKUP(A151,'MMPM1-AMM'!E:E,'MMPM1-AMM'!Q:Q,_xlfn.XLOOKUP(A151,'MMPM1-PMM'!E:E,'MMPM1-PMM'!P:P)) -> 6 | F151: =SUMIFS(MMPM2!H:H,MMPM2!C:C,U151,MMPM2!E:E,1,MMPM2!G:G,1) -> 40 | G151: =SUMIFS(MMPM2!H:H,MMPM2!C:C,U151,MMPM2!E:E,1,MMPM2!G:G,2) -> 400 | L151: =SUMIFS(MMPM2!I:I,MMPM2!C:C,U151,MMPM2!E:E,1,MMPM2!G:G,1) -> 8 | M151: =SUMIFS(MMPM2!I:I,MMPM2!C:C,U151,MMPM2!E:E,1,MMPM2!G:G,2) -> 0.2 | N151: =SUMIFS(MMPM2!I:I,MMPM2!C:C,U151,MMPM2!E:E,1,MMPM2!G:G,3) -> 80 | R151: Not applicable | S151: No doubling of mistrade range | U151: =IFERROR(_xlfn.XLOOKUP(A151,'MMPM1-PMM'!E:E,'MMPM1-PMM'!J:J),_xlfn.XLOOKUP(A151,'MMPM1-AMM'!E:E,'MMPM1-AMM'!K:K)) -> MSCI-3 | V151: =IFERROR(_xlfn.XLOOKUP(A151,'MMPM1-AMM'!E:E,'MMPM1-AMM'!T:T),_xlfn.XLOOKUP(A151,'MMPM1-PMM'!E:E,'MMPM1-PMM'!S:S)) -> 3 | W151: =IFERROR(_xlfn.XLOOKUP(A151,'MMPM1-AMM'!E:E,'MMPM1-AMM'!U:U),_xlfn.XLOOKUP(A151,'MMPM1-PMM'!E:E,'MMPM1-PMM'!T:T)) -> 6 | Y151: TRUE | AB151: =_xlfn.XLOOKUP(A151,productlist[PRODUCT_ID],productlist[PRODUCT_ISIN]) -> DE000A3DXF87 | AC151: =_xlfn.XLOOKUP(A151,productlist[PRODUCT_ID],productlist[UNDERLYING_ISIN]) -> GB00BP68BS76
A152: OMSW | B152: =_xlfn.XLOOKUP(A152,'Product List'!$A:$A,'Product List'!$D:$D) -> MSCI World Screened Index Options | C152: =_xlfn.XLOOKUP(A152,'Product List'!$A:$A,'Product List'!$F:$F) -> INDEX OPTIONS | D152: =_xlfn.XLOOKUP(A152,'MMPM1-AMM'!E:E,'MMPM1-AMM'!K:K,_xlfn.XLOOKUP(A152,'MMPM1-PMM'!E:E,'MMPM1-PMM'!J:J)) -> MSCI-3 | E152: =_xlfn.XLOOKUP(A152,'MMPM1-AMM'!E:E,'MMPM1-AMM'!Q:Q,_xlfn.XLOOKUP(A152,'MMPM1-PMM'!E:E,'MMPM1-PMM'!P:P)) -> 6 | F152: =SUMIFS(MMPM2!H:H,MMPM2!C:C,U152,MMPM2!E:E,1,MMPM2!G:G,1) -> 40 | G152: =SUMIFS(MMPM2!H:H,MMPM2!C:C,U152,MMPM2!E:E,1,MMPM2!G:G,2) -> 400 | L152: =SUMIFS(MMPM2!I:I,MMPM2!C:C,U152,MMPM2!E:E,1,MMPM2!G:G,1) -> 8 | M152: =SUMIFS(MMPM2!I:I,MMPM2!C:C,U152,MMPM2!E:E,1,MMPM2!G:G,2) -> 0.2 | N152: =SUMIFS(MMPM2!I:I,MMPM2!C:C,U152,MMPM2!E:E,1,MMPM2!G:G,3) -> 80 | R152: Not applicable | S152: No doubling of mistrade range | U152: =IFERROR(_xlfn.XLOOKUP(A152,'MMPM1-PMM'!E:E,'MMPM1-PMM'!J:J),_xlfn.XLOOKUP(A152,'MMPM1-AMM'!E:E,'MMPM1-AMM'!K:K)) -> MSCI-3 | V152: =IFERROR(_xlfn.XLOOKUP(A152,'MMPM1-AMM'!E:E,'MMPM1-AMM'!T:T),_xlfn.XLOOKUP(A152,'MMPM1-PMM'!E:E,'MMPM1-PMM'!S:S)) -> 3 | W152: =IFERROR(_xlfn.XLOOKUP(A152,'MMPM1-AMM'!E:E,'MMPM1-AMM'!U:U),_xlfn.XLOOKUP(A152,'MMPM1-PMM'!E:E,'MMPM1-PMM'!T:T)) -> 6 | Y152: TRUE | AB152: =_xlfn.XLOOKUP(A152,productlist[PRODUCT_ID],productlist[PRODUCT_ISIN]) -> DE000A3DXF95 | AC152: =_xlfn.XLOOKUP(A152,productlist[PRODUCT_ID],productlist[UNDERLYING_ISIN]) -> GB00BP68BT83
A153: ODXS | B153: =_xlfn.XLOOKUP(A153,'Product List'!$A:$A,'Product List'!$D:$D) -> Micro-DAX® Options | C153: =_xlfn.XLOOKUP(A153,'Product List'!$A:$A,'Product List'!$F:$F) -> INDEX OPTIONS | D153: =_xlfn.XLOOKUP(A153,'MMPM1-AMM'!E:E,'MMPM1-AMM'!K:K,_xlfn.XLOOKUP(A153,'MMPM1-PMM'!E:E,'MMPM1-PMM'!J:J)) -> ODXS | E153: =_xlfn.XLOOKUP(A153,'MMPM1-AMM'!E:E,'MMPM1-AMM'!Q:Q,_xlfn.XLOOKUP(A153,'MMPM1-PMM'!E:E,'MMPM1-PMM'!P:P)) -> 6 | F153: =SUMIFS(MMPM2!H:H,MMPM2!C:C,U153,MMPM2!E:E,1,MMPM2!G:G,1) -> 25 | G153: =SUMIFS(MMPM2!H:H,MMPM2!C:C,U153,MMPM2!E:E,1,MMPM2!G:G,2) -> 300 | L153: =SUMIFS(MMPM2!I:I,MMPM2!C:C,U153,MMPM2!E:E,1,MMPM2!G:G,1) -> 2 | M153: =SUMIFS(MMPM2!I:I,MMPM2!C:C,U153,MMPM2!E:E,1,MMPM2!G:G,2) -> 0.08 | N153: =SUMIFS(MMPM2!I:I,MMPM2!C:C,U153,MMPM2!E:E,1,MMPM2!G:G,3) -> 24 | R153: =IF(D153="OVS","",IF(V153=3, "Not applicable",W153-1)) -> Not applicable | S153: =IF(D153="OVS","",IF(V153=3, "No doubling of mistrade range",W153-1)) -> No doubling of mistrade range | U153: =IFERROR(_xlfn.XLOOKUP(A153,'MMPM1-PMM'!E:E,'MMPM1-PMM'!J:J),_xlfn.XLOOKUP(A153,'MMPM1-AMM'!E:E,'MMPM1-AMM'!K:K)) -> ODXS | V153: =IFERROR(_xlfn.XLOOKUP(A153,'MMPM1-AMM'!E:E,'MMPM1-AMM'!T:T),_xlfn.XLOOKUP(A153,'MMPM1-PMM'!E:E,'MMPM1-PMM'!S:S)) -> 3 | W153: =IFERROR(_xlfn.XLOOKUP(A153,'MMPM1-AMM'!E:E,'MMPM1-AMM'!U:U),_xlfn.XLOOKUP(A153,'MMPM1-PMM'!E:E,'MMPM1-PMM'!T:T)) -> 6 | Y153: TRUE | AB153: =_xlfn.XLOOKUP(A153,productlist[PRODUCT_ID],productlist[PRODUCT_ISIN]) -> DE000A3DX109 | AC153: =_xlfn.XLOOKUP(A153,productlist[PRODUCT_ID],productlist[UNDERLYING_ISIN]) -> DE0008469008
A154: CNYA | B154: =_xlfn.XLOOKUP(A154,'Product List'!$A:$A,'Product List'!$D:$D) -> iShares MSCI China A UCITS ETF Options | C154: =_xlfn.XLOOKUP(A154,'Product List'!$A:$A,'Product List'!$F:$F) -> EXTF-OPTIONS | D154: =_xlfn.XLOOKUP(A154,'MMPM1-AMM'!E:E,'MMPM1-AMM'!K:K,_xlfn.XLOOKUP(A154,'MMPM1-PMM'!E:E,'MMPM1-PMM'!J:J)) -> ETF1 | E154: =_xlfn.XLOOKUP(A154,'MMPM1-AMM'!E:E,'MMPM1-AMM'!Q:Q,_xlfn.XLOOKUP(A154,'MMPM1-PMM'!E:E,'MMPM1-PMM'!P:P)) -> 6 | F154: =SUMIFS(MMPM2!H:H,MMPM2!C:C,U154,MMPM2!E:E,1,MMPM2!G:G,1) -> 1 | G154: =SUMIFS(MMPM2!H:H,MMPM2!C:C,U154,MMPM2!E:E,1,MMPM2!G:G,2) -> 5 | L154: =SUMIFS(MMPM2!I:I,MMPM2!C:C,U154,MMPM2!E:E,1,MMPM2!G:G,1) -> 0.15 | M154: =SUMIFS(MMPM2!I:I,MMPM2!C:C,U154,MMPM2!E:E,1,MMPM2!G:G,2) -> 0.15 | N154: =SUMIFS(MMPM2!I:I,MMPM2!C:C,U154,MMPM2!E:E,1,MMPM2!G:G,3) -> 0.75 | R154: Not applicable | S154: No doubling of mistrade range | U154: =IFERROR(_xlfn.XLOOKUP(A154,'MMPM1-PMM'!E:E,'MMPM1-PMM'!J:J),_xlfn.XLOOKUP(A154,'MMPM1-AMM'!E:E,'MMPM1-AMM'!K:K)) -> ETF1 | V154: =IFERROR(_xlfn.XLOOKUP(A154,'MMPM1-AMM'!E:E,'MMPM1-AMM'!T:T),_xlfn.XLOOKUP(A154,'MMPM1-PMM'!E:E,'MMPM1-PMM'!S:S)) -> 3 | W154: =IFERROR(_xlfn.XLOOKUP(A154,'MMPM1-AMM'!E:E,'MMPM1-AMM'!U:U),_xlfn.XLOOKUP(A154,'MMPM1-PMM'!E:E,'MMPM1-PMM'!T:T)) -> 6 | Y154: TRUE | AB154: =_xlfn.XLOOKUP(A154,productlist[PRODUCT_ID],productlist[PRODUCT_ISIN]) -> IE00BQT3WG13 | AC154: =_xlfn.XLOOKUP(A154,productlist[PRODUCT_ID],productlist[UNDERLYING_ISIN]) -> IE00BQT3WG13
A155: EXSB | B155: =_xlfn.XLOOKUP(A155,'Product List'!$A:$A,'Product List'!$D:$D) -> iShares DivDAX UCITS ETF Options | C155: =_xlfn.XLOOKUP(A155,'Product List'!$A:$A,'Product List'!$F:$F) -> EXTF-OPTIONS | D155: =_xlfn.XLOOKUP(A155,'MMPM1-AMM'!E:E,'MMPM1-AMM'!K:K,_xlfn.XLOOKUP(A155,'MMPM1-PMM'!E:E,'MMPM1-PMM'!J:J)) -> ETF1 | E155: =_xlfn.XLOOKUP(A155,'MMPM1-AMM'!E:E,'MMPM1-AMM'!Q:Q,_xlfn.XLOOKUP(A155,'MMPM1-PMM'!E:E,'MMPM1-PMM'!P:P)) -> 6 | F155: =SUMIFS(MMPM2!H:H,MMPM2!C:C,U155,MMPM2!E:E,1,MMPM2!G:G,1) -> 1 | G155: =SUMIFS(MMPM2!H:H,MMPM2!C:C,U155,MMPM2!E:E,1,MMPM2!G:G,2) -> 5 | L155: =SUMIFS(MMPM2!I:I,MMPM2!C:C,U155,MMPM2!E:E,1,MMPM2!G:G,1) -> 0.15 | M155: =SUMIFS(MMPM2!I:I,MMPM2!C:C,U155,MMPM2!E:E,1,MMPM2!G:G,2) -> 0.15 | N155: =SUMIFS(MMPM2!I:I,MMPM2!C:C,U155,MMPM2!E:E,1,MMPM2!G:G,3) -> 0.75 | R155: Not applicable | S155: No doubling of mistrade range | U155: =IFERROR(_xlfn.XLOOKUP(A155,'MMPM1-PMM'!E:E,'MMPM1-PMM'!J:J),_xlfn.XLOOKUP(A155,'MMPM1-AMM'!E:E,'MMPM1-AMM'!K:K)) -> ETF1 | V155: =IFERROR(_xlfn.XLOOKUP(A155,'MMPM1-AMM'!E:E,'MMPM1-AMM'!T:T),_xlfn.XLOOKUP(A155,'MMPM1-PMM'!E:E,'MMPM1-PMM'!S:S)) -> 3 | W155: =IFERROR(_xlfn.XLOOKUP(A155,'MMPM1-AMM'!E:E,'MMPM1-AMM'!U:U),_xlfn.XLOOKUP(A155,'MMPM1-PMM'!E:E,'MMPM1-PMM'!T:T)) -> 6 | Y155: TRUE | AB155: =_xlfn.XLOOKUP(A155,productlist[PRODUCT_ID],productlist[PRODUCT_ISIN]) -> DE0002635273 | AC155: =_xlfn.XLOOKUP(A155,productlist[PRODUCT_ID],productlist[UNDERLYING_ISIN]) -> DE0002635273
A156: IDFX | B156: =_xlfn.XLOOKUP(A156,'Product List'!$A:$A,'Product List'!$D:$D) -> iShares China Large Cap UCITS ETF Options | C156: =_xlfn.XLOOKUP(A156,'Product List'!$A:$A,'Product List'!$F:$F) -> EXTF-OPTIONS | D156: =_xlfn.XLOOKUP(A156,'MMPM1-AMM'!E:E,'MMPM1-AMM'!K:K,_xlfn.XLOOKUP(A156,'MMPM1-PMM'!E:E,'MMPM1-PMM'!J:J)) -> ETF2 | E156: =_xlfn.XLOOKUP(A156,'MMPM1-AMM'!E:E,'MMPM1-AMM'!Q:Q,_xlfn.XLOOKUP(A156,'MMPM1-PMM'!E:E,'MMPM1-PMM'!P:P)) -> 6 | F156: =SUMIFS(MMPM2!H:H,MMPM2!C:C,U156,MMPM2!E:E,1,MMPM2!G:G,1) -> 1.5 | G156: =SUMIFS(MMPM2!H:H,MMPM2!C:C,U156,MMPM2!E:E,1,MMPM2!G:G,2) -> 15 | L156: =SUMIFS(MMPM2!I:I,MMPM2!C:C,U156,MMPM2!E:E,1,MMPM2!G:G,1) -> 0.25 | M156: =SUMIFS(MMPM2!I:I,MMPM2!C:C,U156,MMPM2!E:E,1,MMPM2!G:G,2) -> 0.15 | N156: =SUMIFS(MMPM2!I:I,MMPM2!C:C,U156,MMPM2!E:E,1,MMPM2!G:G,3) -> 2.25 | R156: Not applicable | S156: No doubling of mistrade range | U156: =IFERROR(_xlfn.XLOOKUP(A156,'MMPM1-PMM'!E:E,'MMPM1-PMM'!J:J),_xlfn.XLOOKUP(A156,'MMPM1-AMM'!E:E,'MMPM1-AMM'!K:K)) -> ETF2 | V156: =IFERROR(_xlfn.XLOOKUP(A156,'MMPM1-AMM'!E:E,'MMPM1-AMM'!T:T),_xlfn.XLOOKUP(A156,'MMPM1-PMM'!E:E,'MMPM1-PMM'!S:S)) -> 3 | W156: =IFERROR(_xlfn.XLOOKUP(A156,'MMPM1-AMM'!E:E,'MMPM1-AMM'!U:U),_xlfn.XLOOKUP(A156,'MMPM1-PMM'!E:E,'MMPM1-PMM'!T:T)) -> 6 | Y156: TRUE | AB156: =_xlfn.XLOOKUP(A156,productlist[PRODUCT_ID],productlist[PRODUCT_ISIN]) -> IE00B02KXK85 | AC156: =_xlfn.XLOOKUP(A156,productlist[PRODUCT_ID],productlist[UNDERLYING_ISIN]) -> IE00B02KXK85
A157: OKM1 | B157: =_xlfn.XLOOKUP(A157,'Product List'!$A:$A,'Product List'!$D:$D) ->  | C157: =_xlfn.XLOOKUP(A157,'Product List'!$A:$A,'Product List'!$F:$F) ->  | D157: =_xlfn.XLOOKUP(A157,'MMPM1-AMM'!E:E,'MMPM1-AMM'!K:K,_xlfn.XLOOKUP(A157,'MMPM1-PMM'!E:E,'MMPM1-PMM'!J:J)) ->  | E157: =_xlfn.XLOOKUP(A157,'MMPM1-AMM'!E:E,'MMPM1-AMM'!Q:Q,_xlfn.XLOOKUP(A157,'MMPM1-PMM'!E:E,'MMPM1-PMM'!P:P)) ->  | F157: =SUMIFS(MMPM2!H:H,MMPM2!C:C,U157,MMPM2!E:E,1,MMPM2!G:G,1) -> 0 | G157: =SUMIFS(MMPM2!H:H,MMPM2!C:C,U157,MMPM2!E:E,1,MMPM2!G:G,2) -> 0 | L157: =SUMIFS(MMPM2!I:I,MMPM2!C:C,U157,MMPM2!E:E,1,MMPM2!G:G,1) -> 0 | M157: =SUMIFS(MMPM2!I:I,MMPM2!C:C,U157,MMPM2!E:E,1,MMPM2!G:G,2) -> 0 | N157: =SUMIFS(MMPM2!I:I,MMPM2!C:C,U157,MMPM2!E:E,1,MMPM2!G:G,3) -> 0 | U157: =IFERROR(_xlfn.XLOOKUP(A157,'MMPM1-PMM'!E:E,'MMPM1-PMM'!J:J),_xlfn.XLOOKUP(A157,'MMPM1-AMM'!E:E,'MMPM1-AMM'!K:K)) ->  | V157: =IFERROR(_xlfn.XLOOKUP(A157,'MMPM1-AMM'!E:E,'MMPM1-AMM'!T:T),_xlfn.XLOOKUP(A157,'MMPM1-PMM'!E:E,'MMPM1-PMM'!S:S)) ->  | W157: =IFERROR(_xlfn.XLOOKUP(A157,'MMPM1-AMM'!E:E,'MMPM1-AMM'!U:U),_xlfn.XLOOKUP(A157,'MMPM1-PMM'!E:E,'MMPM1-PMM'!T:T)) ->  | AB157: =_xlfn.XLOOKUP(A157,productlist[PRODUCT_ID],productlist[PRODUCT_ISIN]) ->  | AC157: =_xlfn.XLOOKUP(A157,productlist[PRODUCT_ID],productlist[UNDERLYING_ISIN]) -> 
A158: OKM2 | B158: =_xlfn.XLOOKUP(A158,'Product List'!$A:$A,'Product List'!$D:$D) ->  | C158: =_xlfn.XLOOKUP(A158,'Product List'!$A:$A,'Product List'!$F:$F) ->  | D158: =_xlfn.XLOOKUP(A158,'MMPM1-AMM'!E:E,'MMPM1-AMM'!K:K,_xlfn.XLOOKUP(A158,'MMPM1-PMM'!E:E,'MMPM1-PMM'!J:J)) ->  | E158: =_xlfn.XLOOKUP(A158,'MMPM1-AMM'!E:E,'MMPM1-AMM'!Q:Q,_xlfn.XLOOKUP(A158,'MMPM1-PMM'!E:E,'MMPM1-PMM'!P:P)) ->  | F158: =SUMIFS(MMPM2!H:H,MMPM2!C:C,U158,MMPM2!E:E,1,MMPM2!G:G,1) -> 0 | G158: =SUMIFS(MMPM2!H:H,MMPM2!C:C,U158,MMPM2!E:E,1,MMPM2!G:G,2) -> 0 | L158: =SUMIFS(MMPM2!I:I,MMPM2!C:C,U158,MMPM2!E:E,1,MMPM2!G:G,1) -> 0 | M158: =SUMIFS(MMPM2!I:I,MMPM2!C:C,U158,MMPM2!E:E,1,MMPM2!G:G,2) -> 0 | N158: =SUMIFS(MMPM2!I:I,MMPM2!C:C,U158,MMPM2!E:E,1,MMPM2!G:G,3) -> 0 | U158: =IFERROR(_xlfn.XLOOKUP(A158,'MMPM1-PMM'!E:E,'MMPM1-PMM'!J:J),_xlfn.XLOOKUP(A158,'MMPM1-AMM'!E:E,'MMPM1-AMM'!K:K)) ->  | V158: =IFERROR(_xlfn.XLOOKUP(A158,'MMPM1-AMM'!E:E,'MMPM1-AMM'!T:T),_xlfn.XLOOKUP(A158,'MMPM1-PMM'!E:E,'MMPM1-PMM'!S:S)) ->  | W158: =IFERROR(_xlfn.XLOOKUP(A158,'MMPM1-AMM'!E:E,'MMPM1-AMM'!U:U),_xlfn.XLOOKUP(A158,'MMPM1-PMM'!E:E,'MMPM1-PMM'!T:T)) ->  | AB158: =_xlfn.XLOOKUP(A158,productlist[PRODUCT_ID],productlist[PRODUCT_ISIN]) ->  | AC158: =_xlfn.XLOOKUP(A158,productlist[PRODUCT_ID],productlist[UNDERLYING_ISIN]) -> 
A159: OKM3 | B159: =_xlfn.XLOOKUP(A159,'Product List'!$A:$A,'Product List'!$D:$D) ->  | C159: =_xlfn.XLOOKUP(A159,'Product List'!$A:$A,'Product List'!$F:$F) ->  | D159: =_xlfn.XLOOKUP(A159,'MMPM1-AMM'!E:E,'MMPM1-AMM'!K:K,_xlfn.XLOOKUP(A159,'MMPM1-PMM'!E:E,'MMPM1-PMM'!J:J)) ->  | E159: =_xlfn.XLOOKUP(A159,'MMPM1-AMM'!E:E,'MMPM1-AMM'!Q:Q,_xlfn.XLOOKUP(A159,'MMPM1-PMM'!E:E,'MMPM1-PMM'!P:P)) ->  | F159: =SUMIFS(MMPM2!H:H,MMPM2!C:C,U159,MMPM2!E:E,1,MMPM2!G:G,1) -> 0 | G159: =SUMIFS(MMPM2!H:H,MMPM2!C:C,U159,MMPM2!E:E,1,MMPM2!G:G,2) -> 0 | L159: =SUMIFS(MMPM2!I:I,MMPM2!C:C,U159,MMPM2!E:E,1,MMPM2!G:G,1) -> 0 | M159: =SUMIFS(MMPM2!I:I,MMPM2!C:C,U159,MMPM2!E:E,1,MMPM2!G:G,2) -> 0 | N159: =SUMIFS(MMPM2!I:I,MMPM2!C:C,U159,MMPM2!E:E,1,MMPM2!G:G,3) -> 0 | U159: =IFERROR(_xlfn.XLOOKUP(A159,'MMPM1-PMM'!E:E,'MMPM1-PMM'!J:J),_xlfn.XLOOKUP(A159,'MMPM1-AMM'!E:E,'MMPM1-AMM'!K:K)) ->  | V159: =IFERROR(_xlfn.XLOOKUP(A159,'MMPM1-AMM'!E:E,'MMPM1-AMM'!T:T),_xlfn.XLOOKUP(A159,'MMPM1-PMM'!E:E,'MMPM1-PMM'!S:S)) ->  | W159: =IFERROR(_xlfn.XLOOKUP(A159,'MMPM1-AMM'!E:E,'MMPM1-AMM'!U:U),_xlfn.XLOOKUP(A159,'MMPM1-PMM'!E:E,'MMPM1-PMM'!T:T)) ->  | AB159: =_xlfn.XLOOKUP(A159,productlist[PRODUCT_ID],productlist[PRODUCT_ISIN]) ->  | AC159: =_xlfn.XLOOKUP(A159,productlist[PRODUCT_ID],productlist[UNDERLYING_ISIN]) -> 
A160: OKM4 | B160: =_xlfn.XLOOKUP(A160,'Product List'!$A:$A,'Product List'!$D:$D) ->  | C160: =_xlfn.XLOOKUP(A160,'Product List'!$A:$A,'Product List'!$F:$F) ->  | D160: =_xlfn.XLOOKUP(A160,'MMPM1-AMM'!E:E,'MMPM1-AMM'!K:K,_xlfn.XLOOKUP(A160,'MMPM1-PMM'!E:E,'MMPM1-PMM'!J:J)) ->  | E160: =_xlfn.XLOOKUP(A160,'MMPM1-AMM'!E:E,'MMPM1-AMM'!Q:Q,_xlfn.XLOOKUP(A160,'MMPM1-PMM'!E:E,'MMPM1-PMM'!P:P)) ->  | F160: =SUMIFS(MMPM2!H:H,MMPM2!C:C,U160,MMPM2!E:E,1,MMPM2!G:G,1) -> 0 | G160: =SUMIFS(MMPM2!H:H,MMPM2!C:C,U160,MMPM2!E:E,1,MMPM2!G:G,2) -> 0 | L160: =SUMIFS(MMPM2!I:I,MMPM2!C:C,U160,MMPM2!E:E,1,MMPM2!G:G,1) -> 0 | M160: =SUMIFS(MMPM2!I:I,MMPM2!C:C,U160,MMPM2!E:E,1,MMPM2!G:G,2) -> 0 | N160: =SUMIFS(MMPM2!I:I,MMPM2!C:C,U160,MMPM2!E:E,1,MMPM2!G:G,3) -> 0 | U160: =IFERROR(_xlfn.XLOOKUP(A160,'MMPM1-PMM'!E:E,'MMPM1-PMM'!J:J),_xlfn.XLOOKUP(A160,'MMPM1-AMM'!E:E,'MMPM1-AMM'!K:K)) ->  | V160: =IFERROR(_xlfn.XLOOKUP(A160,'MMPM1-AMM'!E:E,'MMPM1-AMM'!T:T),_xlfn.XLOOKUP(A160,'MMPM1-PMM'!E:E,'MMPM1-PMM'!S:S)) ->  | W160: =IFERROR(_xlfn.XLOOKUP(A160,'MMPM1-AMM'!E:E,'MMPM1-AMM'!U:U),_xlfn.XLOOKUP(A160,'MMPM1-PMM'!E:E,'MMPM1-PMM'!T:T)) ->  | AB160: =_xlfn.XLOOKUP(A160,productlist[PRODUCT_ID],productlist[PRODUCT_ISIN]) ->  | AC160: =_xlfn.XLOOKUP(A160,productlist[PRODUCT_ID],productlist[UNDERLYING_ISIN]) -> 
A161: OKM5 | B161: =_xlfn.XLOOKUP(A161,'Product List'!$A:$A,'Product List'!$D:$D) ->  | C161: =_xlfn.XLOOKUP(A161,'Product List'!$A:$A,'Product List'!$F:$F) ->  | D161: =_xlfn.XLOOKUP(A161,'MMPM1-AMM'!E:E,'MMPM1-AMM'!K:K,_xlfn.XLOOKUP(A161,'MMPM1-PMM'!E:E,'MMPM1-PMM'!J:J)) ->  | E161: =_xlfn.XLOOKUP(A161,'MMPM1-AMM'!E:E,'MMPM1-AMM'!Q:Q,_xlfn.XLOOKUP(A161,'MMPM1-PMM'!E:E,'MMPM1-PMM'!P:P)) ->  | F161: =SUMIFS(MMPM2!H:H,MMPM2!C:C,U161,MMPM2!E:E,1,MMPM2!G:G,1) -> 0 | G161: =SUMIFS(MMPM2!H:H,MMPM2!C:C,U161,MMPM2!E:E,1,MMPM2!G:G,2) -> 0 | L161: =SUMIFS(MMPM2!I:I,MMPM2!C:C,U161,MMPM2!E:E,1,MMPM2!G:G,1) -> 0 | M161: =SUMIFS(MMPM2!I:I,MMPM2!C:C,U161,MMPM2!E:E,1,MMPM2!G:G,2) -> 0 | N161: =SUMIFS(MMPM2!I:I,MMPM2!C:C,U161,MMPM2!E:E,1,MMPM2!G:G,3) -> 0 | U161: =IFERROR(_xlfn.XLOOKUP(A161,'MMPM1-PMM'!E:E,'MMPM1-PMM'!J:J),_xlfn.XLOOKUP(A161,'MMPM1-AMM'!E:E,'MMPM1-AMM'!K:K)) ->  | V161: =IFERROR(_xlfn.XLOOKUP(A161,'MMPM1-AMM'!E:E,'MMPM1-AMM'!T:T),_xlfn.XLOOKUP(A161,'MMPM1-PMM'!E:E,'MMPM1-PMM'!S:S)) ->  | W161: =IFERROR(_xlfn.XLOOKUP(A161,'MMPM1-AMM'!E:E,'MMPM1-AMM'!U:U),_xlfn.XLOOKUP(A161,'MMPM1-PMM'!E:E,'MMPM1-PMM'!T:T)) ->  | AB161: =_xlfn.XLOOKUP(A161,productlist[PRODUCT_ID],productlist[PRODUCT_ISIN]) ->  | AC161: =_xlfn.XLOOKUP(A161,productlist[PRODUCT_ID],productlist[UNDERLYING_ISIN]) -> 
A162: OEXP | B162: =_xlfn.XLOOKUP(A162,'Product List'!$A:$A,'Product List'!$D:$D) -> EURO STOXX 50® End-of-Day Index Options | C162: =_xlfn.XLOOKUP(A162,'Product List'!$A:$A,'Product List'!$F:$F) -> INDEX OPTIONS | D162: =_xlfn.XLOOKUP(A162,'MMPM1-AMM'!E:E,'MMPM1-AMM'!K:K,_xlfn.XLOOKUP(A162,'MMPM1-PMM'!E:E,'MMPM1-PMM'!J:J)) -> OEXP | E162: =_xlfn.XLOOKUP(A162,'MMPM1-AMM'!E:E,'MMPM1-AMM'!Q:Q,_xlfn.XLOOKUP(A162,'MMPM1-PMM'!E:E,'MMPM1-PMM'!P:P)) -> 1 | F162: 15 | G162: 225 | L162: 1.2 | M162: 0.08 | N162: 18 | R162: Not applicable | S162: =IF(D162="OVS","",IF(V162=3, "No doubling of mistrade range",W162-1)) -> No doubling of mistrade range | U162: =IFERROR(_xlfn.XLOOKUP(A162,'MMPM1-PMM'!E:E,'MMPM1-PMM'!J:J),_xlfn.XLOOKUP(A162,'MMPM1-AMM'!E:E,'MMPM1-AMM'!K:K)) -> OEXP | V162: =IFERROR(_xlfn.XLOOKUP(A162,'MMPM1-AMM'!E:E,'MMPM1-AMM'!T:T),_xlfn.XLOOKUP(A162,'MMPM1-PMM'!E:E,'MMPM1-PMM'!S:S)) -> 3 | W162: =IFERROR(_xlfn.XLOOKUP(A162,'MMPM1-AMM'!E:E,'MMPM1-AMM'!U:U),_xlfn.XLOOKUP(A162,'MMPM1-PMM'!E:E,'MMPM1-PMM'!T:T)) -> 2 | Y162: =W162=E162 -> FALSE | AB162: =_xlfn.XLOOKUP(A162,productlist[PRODUCT_ID],productlist[PRODUCT_ISIN]) -> DE000A3EDH05 | AC162: =_xlfn.XLOOKUP(A162,productlist[PRODUCT_ID],productlist[UNDERLYING_ISIN]) -> EU0009658145
A163: ODBT | B163: =_xlfn.XLOOKUP(A163,'Product List'!$A:$A,'Product List'!$D:$D) -> iShares USD Treasury Bond 1-3yr UCITS Options | C163: =_xlfn.XLOOKUP(A163,'Product List'!$A:$A,'Product List'!$F:$F) -> EXTF-OPTIONS | D163: =_xlfn.XLOOKUP(A163,'MMPM1-AMM'!E:E,'MMPM1-AMM'!K:K,_xlfn.XLOOKUP(A163,'MMPM1-PMM'!E:E,'MMPM1-PMM'!J:J)) -> FI-ETF | E163: =_xlfn.XLOOKUP(A163,'MMPM1-AMM'!E:E,'MMPM1-AMM'!Q:Q,_xlfn.XLOOKUP(A163,'MMPM1-PMM'!E:E,'MMPM1-PMM'!P:P)) -> 3 | F163: 1.5 | G163: 15 | L163: 0.45 | M163: 0.3 | N163: 4.5 | R163: Not applicable | S163: No doubling of mistrade range | U163: =IFERROR(_xlfn.XLOOKUP(A163,'MMPM1-PMM'!E:E,'MMPM1-PMM'!J:J),_xlfn.XLOOKUP(A163,'MMPM1-AMM'!E:E,'MMPM1-AMM'!K:K)) -> FI-ETF | V163: =IFERROR(_xlfn.XLOOKUP(A163,'MMPM1-AMM'!E:E,'MMPM1-AMM'!T:T),_xlfn.XLOOKUP(A163,'MMPM1-PMM'!E:E,'MMPM1-PMM'!S:S)) -> 3 | W163: =IFERROR(_xlfn.XLOOKUP(A163,'MMPM1-AMM'!E:E,'MMPM1-AMM'!U:U),_xlfn.XLOOKUP(A163,'MMPM1-PMM'!E:E,'MMPM1-PMM'!T:T)) -> 3 | Y163: TRUE | AB163: =_xlfn.XLOOKUP(A163,productlist[PRODUCT_ID],productlist[PRODUCT_ISIN]) -> DE000A3ENS18 | AC163: =_xlfn.XLOOKUP(A163,productlist[PRODUCT_ID],productlist[UNDERLYING_ISIN]) -> IE00B14X4S71
A164: ODTM | B164: =_xlfn.XLOOKUP(A164,'Product List'!$A:$A,'Product List'!$D:$D) -> iShares USD Treasury Bond 7-10yr UCITS Options | C164: =_xlfn.XLOOKUP(A164,'Product List'!$A:$A,'Product List'!$F:$F) -> EXTF-OPTIONS | D164: =_xlfn.XLOOKUP(A164,'MMPM1-AMM'!E:E,'MMPM1-AMM'!K:K,_xlfn.XLOOKUP(A164,'MMPM1-PMM'!E:E,'MMPM1-PMM'!J:J)) -> FI-ETF | E164: =_xlfn.XLOOKUP(A164,'MMPM1-AMM'!E:E,'MMPM1-AMM'!Q:Q,_xlfn.XLOOKUP(A164,'MMPM1-PMM'!E:E,'MMPM1-PMM'!P:P)) -> 3 | F164: 1.5 | G164: 15 | L164: 0.45 | M164: 0.3 | N164: 4.5 | R164: Not applicable | S164: No doubling of mistrade range | U164: =IFERROR(_xlfn.XLOOKUP(A164,'MMPM1-PMM'!E:E,'MMPM1-PMM'!J:J),_xlfn.XLOOKUP(A164,'MMPM1-AMM'!E:E,'MMPM1-AMM'!K:K)) -> FI-ETF | V164: =IFERROR(_xlfn.XLOOKUP(A164,'MMPM1-AMM'!E:E,'MMPM1-AMM'!T:T),_xlfn.XLOOKUP(A164,'MMPM1-PMM'!E:E,'MMPM1-PMM'!S:S)) -> 3 | W164: =IFERROR(_xlfn.XLOOKUP(A164,'MMPM1-AMM'!E:E,'MMPM1-AMM'!U:U),_xlfn.XLOOKUP(A164,'MMPM1-PMM'!E:E,'MMPM1-PMM'!T:T)) -> 3 | Y164: TRUE | AB164: =_xlfn.XLOOKUP(A164,productlist[PRODUCT_ID],productlist[PRODUCT_ISIN]) -> DE000A3ENS00 | AC164: =_xlfn.XLOOKUP(A164,productlist[PRODUCT_ID],productlist[UNDERLYING_ISIN]) -> IE00B1FZS798
A165: OBTE | B165: =_xlfn.XLOOKUP(A165,'Product List'!$A:$A,'Product List'!$D:$D) -> Options on FTSE Bitcoin Index Futures [EUR] | C165: =_xlfn.XLOOKUP(A165,'Product List'!$A:$A,'Product List'!$F:$F) -> CRYPTO OPTIONS | D165: =_xlfn.XLOOKUP(A165,'MMPM1-AMM'!E:E,'MMPM1-AMM'!K:K,_xlfn.XLOOKUP(A165,'MMPM1-PMM'!E:E,'MMPM1-PMM'!J:J)) -> OBTX | E165: =_xlfn.XLOOKUP(A165,'MMPM1-AMM'!E:E,'MMPM1-AMM'!Q:Q,_xlfn.XLOOKUP(A165,'MMPM1-PMM'!E:E,'MMPM1-PMM'!P:P)) -> 5 | F165: 500 | G165: 5000 | L165: 100 | M165: 0.2 | N165: 1000 | R165: =IF(D165="OVS","",IF(V165=3, "Not applicable",W165-1)) -> 4 | S165: 4 | U165: =IFERROR(_xlfn.XLOOKUP(A165,'MMPM1-PMM'!E:E,'MMPM1-PMM'!J:J),_xlfn.XLOOKUP(A165,'MMPM1-AMM'!E:E,'MMPM1-AMM'!K:K)) -> OBTX | V165: =IFERROR(_xlfn.XLOOKUP(A165,'MMPM1-AMM'!E:E,'MMPM1-AMM'!T:T),_xlfn.XLOOKUP(A165,'MMPM1-PMM'!E:E,'MMPM1-PMM'!S:S)) -> 6 | W165: =IFERROR(_xlfn.XLOOKUP(A165,'MMPM1-AMM'!E:E,'MMPM1-AMM'!U:U),_xlfn.XLOOKUP(A165,'MMPM1-PMM'!E:E,'MMPM1-PMM'!T:T)) -> 5 | Y165: TRUE | AB165: =_xlfn.XLOOKUP(A165,productlist[PRODUCT_ID],productlist[PRODUCT_ISIN]) -> DE000A3EV4A3 | AC165: =_xlfn.XLOOKUP(A165,productlist[PRODUCT_ID],productlist[UNDERLYING_ISIN]) -> 
A166: OBTU | B166: =_xlfn.XLOOKUP(A166,'Product List'!$A:$A,'Product List'!$D:$D) -> Options on FTSE Bitcoin Index Futures [USD] | C166: =_xlfn.XLOOKUP(A166,'Product List'!$A:$A,'Product List'!$F:$F) -> CRYPTO OPTIONS | D166: =_xlfn.XLOOKUP(A166,'MMPM1-AMM'!E:E,'MMPM1-AMM'!K:K,_xlfn.XLOOKUP(A166,'MMPM1-PMM'!E:E,'MMPM1-PMM'!J:J)) -> OBTX | E166: =_xlfn.XLOOKUP(A166,'MMPM1-AMM'!E:E,'MMPM1-AMM'!Q:Q,_xlfn.XLOOKUP(A166,'MMPM1-PMM'!E:E,'MMPM1-PMM'!P:P)) -> 5 | F166: 500 | G166: 5000 | L166: 100 | M166: 0.2 | N166: 1000 | R166: =IF(D166="OVS","",IF(V166=3, "Not applicable",W166-1)) -> 4 | S166: 4 | U166: =IFERROR(_xlfn.XLOOKUP(A166,'MMPM1-PMM'!E:E,'MMPM1-PMM'!J:J),_xlfn.XLOOKUP(A166,'MMPM1-AMM'!E:E,'MMPM1-AMM'!K:K)) -> OBTX | V166: =IFERROR(_xlfn.XLOOKUP(A166,'MMPM1-AMM'!E:E,'MMPM1-AMM'!T:T),_xlfn.XLOOKUP(A166,'MMPM1-PMM'!E:E,'MMPM1-PMM'!S:S)) -> 6 | W166: =IFERROR(_xlfn.XLOOKUP(A166,'MMPM1-AMM'!E:E,'MMPM1-AMM'!U:U),_xlfn.XLOOKUP(A166,'MMPM1-PMM'!E:E,'MMPM1-PMM'!T:T)) -> 5 | Y166: TRUE | AB166: =_xlfn.XLOOKUP(A166,productlist[PRODUCT_ID],productlist[PRODUCT_ISIN]) -> DE000A3EV4B1 | AC166: =_xlfn.XLOOKUP(A166,productlist[PRODUCT_ID],productlist[UNDERLYING_ISIN]) -> 
A167: ODAP | B167: DAX® Index EoD Options | C167: INDEX OPTIONS | D167: =_xlfn.XLOOKUP(A167,'MMPM1-AMM'!E:E,'MMPM1-AMM'!K:K,_xlfn.XLOOKUP(A167,'MMPM1-PMM'!E:E,'MMPM1-PMM'!J:J)) -> ODAP | E167: 1 | F167: 50 | G167: 120 | I167: =IFERROR(_xlfn.XLOOKUP(A167,'MMPM1-PMM'!E:E,'MMPM1-PMM'!J:J),_xlfn.XLOOKUP(A167,'MMPM1-AMM'!E:E,'MMPM1-AMM'!K:K)) -> ODAP | J167: =IFERROR(_xlfn.XLOOKUP(A167,'MMPM1-AMM'!E:E,'MMPM1-AMM'!T:T),_xlfn.XLOOKUP(A167,'MMPM1-PMM'!E:E,'MMPM1-PMM'!S:S)) -> 3 | K167: =IFERROR(_xlfn.XLOOKUP(A167,'MMPM1-AMM'!E:E,'MMPM1-AMM'!U:U),_xlfn.XLOOKUP(A167,'MMPM1-PMM'!E:E,'MMPM1-PMM'!T:T)) -> 6 | L167: 4 | M167: 0.1 | N167: 12 | P167: =_xlfn.XLOOKUP(A167,productlist[PRODUCT_ID],productlist[PRODUCT_ISIN]) -> DE000A3EWF12 | Q167: =_xlfn.XLOOKUP(A167,productlist[PRODUCT_ID],productlist[UNDERLYING_ISIN]) -> DE0008469008 | R167: Not applicable | S167: No doubling of mistrade range | U167: =IFERROR(_xlfn.XLOOKUP(A167,'MMPM1-PMM'!E:E,'MMPM1-PMM'!J:J),_xlfn.XLOOKUP(A167,'MMPM1-AMM'!E:E,'MMPM1-AMM'!K:K)) -> ODAP | V167: =IFERROR(_xlfn.XLOOKUP(A167,'MMPM1-AMM'!E:E,'MMPM1-AMM'!T:T),_xlfn.XLOOKUP(A167,'MMPM1-PMM'!E:E,'MMPM1-PMM'!S:S)) -> 3 | W167: =IFERROR(_xlfn.XLOOKUP(A167,'MMPM1-AMM'!E:E,'MMPM1-AMM'!U:U),_xlfn.XLOOKUP(A167,'MMPM1-PMM'!E:E,'MMPM1-PMM'!T:T)) -> 6 | Y167: FALSE | AB167: =_xlfn.XLOOKUP(A167,productlist[PRODUCT_ID],productlist[PRODUCT_ISIN]) -> DE000A3EWF12 | AC167: =_xlfn.XLOOKUP(A167,productlist[PRODUCT_ID],productlist[UNDERLYING_ISIN]) -> DE0008469008
A168: OED5 | B168: =_xlfn.XLOOKUP(A168,'Product List'!$A:$A,'Product List'!$D:$D) -> Five-Year Mid Curve Options on EURO STOXX 50® Index Dividend Futures | C168: =_xlfn.XLOOKUP(A168,'Product List'!$A:$A,'Product List'!$F:$F) -> INDEX DIVIDEND OPTIONS | D168: =_xlfn.XLOOKUP(A168,'MMPM1-AMM'!E:E,'MMPM1-AMM'!K:K,_xlfn.XLOOKUP(A168,'MMPM1-PMM'!E:E,'MMPM1-PMM'!J:J)) -> OED | E168: =_xlfn.XLOOKUP(A168,'MMPM1-AMM'!E:E,'MMPM1-AMM'!Q:Q,_xlfn.XLOOKUP(A168,'MMPM1-PMM'!E:E,'MMPM1-PMM'!P:P)) -> 4 | F168: =SUMIFS(MMPM2!H:H,MMPM2!C:C,U168,MMPM2!E:E,1,MMPM2!G:G,1) -> 3.99 | G168: =SUMIFS(MMPM2!H:H,MMPM2!C:C,U168,MMPM2!E:E,1,MMPM2!G:G,2) -> 19.99 | L168: =SUMIFS(MMPM2!I:I,MMPM2!C:C,U168,MMPM2!E:E,1,MMPM2!G:G,1) -> 2.4 | M168: =SUMIFS(MMPM2!I:I,MMPM2!C:C,U168,MMPM2!E:E,1,MMPM2!G:G,2) -> 0.6 | N168: =SUMIFS(MMPM2!I:I,MMPM2!C:C,U168,MMPM2!E:E,1,MMPM2!G:G,3) -> 10 | R168: =IF(D168="OVS","",IF(V168=3, "Not applicable",W168-1)) -> Not applicable | S168: No doubling of mistrade range | U168: =IFERROR(_xlfn.XLOOKUP(A168,'MMPM1-PMM'!E:E,'MMPM1-PMM'!J:J),_xlfn.XLOOKUP(A168,'MMPM1-AMM'!E:E,'MMPM1-AMM'!K:K)) -> OED | V168: =IFERROR(_xlfn.XLOOKUP(A168,'MMPM1-AMM'!E:E,'MMPM1-AMM'!T:T),_xlfn.XLOOKUP(A168,'MMPM1-PMM'!E:E,'MMPM1-PMM'!S:S)) -> 3 | W168: =IFERROR(_xlfn.XLOOKUP(A168,'MMPM1-AMM'!E:E,'MMPM1-AMM'!U:U),_xlfn.XLOOKUP(A168,'MMPM1-PMM'!E:E,'MMPM1-PMM'!T:T)) -> 5 | Y168: FALSE | AB168: =_xlfn.XLOOKUP(A168,productlist[PRODUCT_ID],productlist[PRODUCT_ISIN]) -> DE000A3EXN45 | AC168: =_xlfn.XLOOKUP(A168,productlist[PRODUCT_ID],productlist[UNDERLYING_ISIN]) -> 
A169: OED4 | B169: =_xlfn.XLOOKUP(A169,'Product List'!$A:$A,'Product List'!$D:$D) -> Four-Year Mid Curve Options on EURO STOXX 50® Index Dividend Futures | C169: =_xlfn.XLOOKUP(A169,'Product List'!$A:$A,'Product List'!$F:$F) -> INDEX DIVIDEND OPTIONS | D169: =_xlfn.XLOOKUP(A169,'MMPM1-AMM'!E:E,'MMPM1-AMM'!K:K,_xlfn.XLOOKUP(A169,'MMPM1-PMM'!E:E,'MMPM1-PMM'!J:J)) -> OED | E169: =_xlfn.XLOOKUP(A169,'MMPM1-AMM'!E:E,'MMPM1-AMM'!Q:Q,_xlfn.XLOOKUP(A169,'MMPM1-PMM'!E:E,'MMPM1-PMM'!P:P)) -> 4 | F169: =SUMIFS(MMPM2!H:H,MMPM2!C:C,U169,MMPM2!E:E,1,MMPM2!G:G,1) -> 3.99 | G169: =SUMIFS(MMPM2!H:H,MMPM2!C:C,U169,MMPM2!E:E,1,MMPM2!G:G,2) -> 19.99 | L169: =SUMIFS(MMPM2!I:I,MMPM2!C:C,U169,MMPM2!E:E,1,MMPM2!G:G,1) -> 2.4 | M169: =SUMIFS(MMPM2!I:I,MMPM2!C:C,U169,MMPM2!E:E,1,MMPM2!G:G,2) -> 0.6 | N169: =SUMIFS(MMPM2!I:I,MMPM2!C:C,U169,MMPM2!E:E,1,MMPM2!G:G,3) -> 10 | R169: Not applicable | S169: =IF(D169="OVS","",IF(V169=3, "No doubling of mistrade range",W169-1)) -> No doubling of mistrade range | U169: =IFERROR(_xlfn.XLOOKUP(A169,'MMPM1-PMM'!E:E,'MMPM1-PMM'!J:J),_xlfn.XLOOKUP(A169,'MMPM1-AMM'!E:E,'MMPM1-AMM'!K:K)) -> OED | V169: =IFERROR(_xlfn.XLOOKUP(A169,'MMPM1-AMM'!E:E,'MMPM1-AMM'!T:T),_xlfn.XLOOKUP(A169,'MMPM1-PMM'!E:E,'MMPM1-PMM'!S:S)) -> 3 | W169: =IFERROR(_xlfn.XLOOKUP(A169,'MMPM1-AMM'!E:E,'MMPM1-AMM'!U:U),_xlfn.XLOOKUP(A169,'MMPM1-PMM'!E:E,'MMPM1-PMM'!T:T)) -> 5 | Y169: =W169=E169 -> FALSE | AB169: =_xlfn.XLOOKUP(A169,productlist[PRODUCT_ID],productlist[PRODUCT_ISIN]) -> DE000A3EXN37 | AC169: =_xlfn.XLOOKUP(A169,productlist[PRODUCT_ID],productlist[UNDERLYING_ISIN]) -> 
A170: OED1 | B170: =_xlfn.XLOOKUP(A170,'Product List'!$A:$A,'Product List'!$D:$D) -> One-Year Mid Curve Options on EURO STOXX 50® Index Dividend Futures | C170: =_xlfn.XLOOKUP(A170,'Product List'!$A:$A,'Product List'!$F:$F) -> INDEX DIVIDEND OPTIONS | D170: =_xlfn.XLOOKUP(A170,'MMPM1-AMM'!E:E,'MMPM1-AMM'!K:K,_xlfn.XLOOKUP(A170,'MMPM1-PMM'!E:E,'MMPM1-PMM'!J:J)) -> OED | E170: =_xlfn.XLOOKUP(A170,'MMPM1-AMM'!E:E,'MMPM1-AMM'!Q:Q,_xlfn.XLOOKUP(A170,'MMPM1-PMM'!E:E,'MMPM1-PMM'!P:P)) -> 4 | F170: =SUMIFS(MMPM2!H:H,MMPM2!C:C,U170,MMPM2!E:E,1,MMPM2!G:G,1) -> 3.99 | G170: =SUMIFS(MMPM2!H:H,MMPM2!C:C,U170,MMPM2!E:E,1,MMPM2!G:G,2) -> 19.99 | L170: =SUMIFS(MMPM2!I:I,MMPM2!C:C,U170,MMPM2!E:E,1,MMPM2!G:G,1) -> 2.4 | M170: =SUMIFS(MMPM2!I:I,MMPM2!C:C,U170,MMPM2!E:E,1,MMPM2!G:G,2) -> 0.6 | N170: =SUMIFS(MMPM2!I:I,MMPM2!C:C,U170,MMPM2!E:E,1,MMPM2!G:G,3) -> 10 | R170: Not applicable | S170: No doubling of mistrade range | U170: =IFERROR(_xlfn.XLOOKUP(A170,'MMPM1-PMM'!E:E,'MMPM1-PMM'!J:J),_xlfn.XLOOKUP(A170,'MMPM1-AMM'!E:E,'MMPM1-AMM'!K:K)) -> OED | V170: =IFERROR(_xlfn.XLOOKUP(A170,'MMPM1-AMM'!E:E,'MMPM1-AMM'!T:T),_xlfn.XLOOKUP(A170,'MMPM1-PMM'!E:E,'MMPM1-PMM'!S:S)) -> 3 | W170: =IFERROR(_xlfn.XLOOKUP(A170,'MMPM1-AMM'!E:E,'MMPM1-AMM'!U:U),_xlfn.XLOOKUP(A170,'MMPM1-PMM'!E:E,'MMPM1-PMM'!T:T)) -> 5 | Y170: FALSE | AB170: =_xlfn.XLOOKUP(A170,productlist[PRODUCT_ID],productlist[PRODUCT_ISIN]) -> DE000A3EXN03 | AC170: =_xlfn.XLOOKUP(A170,productlist[PRODUCT_ID],productlist[UNDERLYING_ISIN]) -> 
A171: OED3 | B171: =_xlfn.XLOOKUP(A171,'Product List'!$A:$A,'Product List'!$D:$D) -> Three-Year Mid Curve Options on EURO STOXX 50® Index Dividend Futures | C171: =_xlfn.XLOOKUP(A171,'Product List'!$A:$A,'Product List'!$F:$F) -> INDEX DIVIDEND OPTIONS | D171: =_xlfn.XLOOKUP(A171,'MMPM1-AMM'!E:E,'MMPM1-AMM'!K:K,_xlfn.XLOOKUP(A171,'MMPM1-PMM'!E:E,'MMPM1-PMM'!J:J)) -> OED | E171: =_xlfn.XLOOKUP(A171,'MMPM1-AMM'!E:E,'MMPM1-AMM'!Q:Q,_xlfn.XLOOKUP(A171,'MMPM1-PMM'!E:E,'MMPM1-PMM'!P:P)) -> 4 | F171: =SUMIFS(MMPM2!H:H,MMPM2!C:C,U171,MMPM2!E:E,1,MMPM2!G:G,1) -> 3.99 | G171: =SUMIFS(MMPM2!H:H,MMPM2!C:C,U171,MMPM2!E:E,1,MMPM2!G:G,2) -> 19.99 | L171: =SUMIFS(MMPM2!I:I,MMPM2!C:C,U171,MMPM2!E:E,1,MMPM2!G:G,1) -> 2.4 | M171: =SUMIFS(MMPM2!I:I,MMPM2!C:C,U171,MMPM2!E:E,1,MMPM2!G:G,2) -> 0.6 | N171: =SUMIFS(MMPM2!I:I,MMPM2!C:C,U171,MMPM2!E:E,1,MMPM2!G:G,3) -> 10 | R171: Not applicable | S171: No doubling of mistrade range | U171: =IFERROR(_xlfn.XLOOKUP(A171,'MMPM1-PMM'!E:E,'MMPM1-PMM'!J:J),_xlfn.XLOOKUP(A171,'MMPM1-AMM'!E:E,'MMPM1-AMM'!K:K)) -> OED | V171: =IFERROR(_xlfn.XLOOKUP(A171,'MMPM1-AMM'!E:E,'MMPM1-AMM'!T:T),_xlfn.XLOOKUP(A171,'MMPM1-PMM'!E:E,'MMPM1-PMM'!S:S)) -> 3 | W171: =IFERROR(_xlfn.XLOOKUP(A171,'MMPM1-AMM'!E:E,'MMPM1-AMM'!U:U),_xlfn.XLOOKUP(A171,'MMPM1-PMM'!E:E,'MMPM1-PMM'!T:T)) -> 5 | Y171: FALSE | AB171: =_xlfn.XLOOKUP(A171,productlist[PRODUCT_ID],productlist[PRODUCT_ISIN]) -> DE000A3EXN29 | AC171: =_xlfn.XLOOKUP(A171,productlist[PRODUCT_ID],productlist[UNDERLYING_ISIN]) -> 
A172: OED2 | B172: =_xlfn.XLOOKUP(A172,'Product List'!$A:$A,'Product List'!$D:$D) -> Two-Year Mid Curve Options on EURO STOXX 50® Index Dividend Futures | C172: =_xlfn.XLOOKUP(A172,'Product List'!$A:$A,'Product List'!$F:$F) -> INDEX DIVIDEND OPTIONS | D172: =_xlfn.XLOOKUP(A172,'MMPM1-AMM'!E:E,'MMPM1-AMM'!K:K,_xlfn.XLOOKUP(A172,'MMPM1-PMM'!E:E,'MMPM1-PMM'!J:J)) -> OED | E172: =_xlfn.XLOOKUP(A172,'MMPM1-AMM'!E:E,'MMPM1-AMM'!Q:Q,_xlfn.XLOOKUP(A172,'MMPM1-PMM'!E:E,'MMPM1-PMM'!P:P)) -> 4 | F172: =SUMIFS(MMPM2!H:H,MMPM2!C:C,U172,MMPM2!E:E,1,MMPM2!G:G,1) -> 3.99 | G172: =SUMIFS(MMPM2!H:H,MMPM2!C:C,U172,MMPM2!E:E,1,MMPM2!G:G,2) -> 19.99 | L172: =SUMIFS(MMPM2!I:I,MMPM2!C:C,U172,MMPM2!E:E,1,MMPM2!G:G,1) -> 2.4 | M172: =SUMIFS(MMPM2!I:I,MMPM2!C:C,U172,MMPM2!E:E,1,MMPM2!G:G,2) -> 0.6 | N172: =SUMIFS(MMPM2!I:I,MMPM2!C:C,U172,MMPM2!E:E,1,MMPM2!G:G,3) -> 10 | R172: Not applicable | S172: No doubling of mistrade range | U172: =IFERROR(_xlfn.XLOOKUP(A172,'MMPM1-PMM'!E:E,'MMPM1-PMM'!J:J),_xlfn.XLOOKUP(A172,'MMPM1-AMM'!E:E,'MMPM1-AMM'!K:K)) -> OED | V172: =IFERROR(_xlfn.XLOOKUP(A172,'MMPM1-AMM'!E:E,'MMPM1-AMM'!T:T),_xlfn.XLOOKUP(A172,'MMPM1-PMM'!E:E,'MMPM1-PMM'!S:S)) -> 3 | W172: =IFERROR(_xlfn.XLOOKUP(A172,'MMPM1-AMM'!E:E,'MMPM1-AMM'!U:U),_xlfn.XLOOKUP(A172,'MMPM1-PMM'!E:E,'MMPM1-PMM'!T:T)) -> 5 | Y172: FALSE | AB172: =_xlfn.XLOOKUP(A172,productlist[PRODUCT_ID],productlist[PRODUCT_ISIN]) -> DE000A3EXN11 | AC172: =_xlfn.XLOOKUP(A172,productlist[PRODUCT_ID],productlist[UNDERLYING_ISIN]) -> 
A173: OETE | B173: =_xlfn.XLOOKUP(A173,'Product List'!$A:$A,'Product List'!$D:$D) -> Options on FTSE Ethereum Index Futures [EUR] | C173: =_xlfn.XLOOKUP(A173,'Product List'!$A:$A,'Product List'!$F:$F) -> CRYPTO OPTIONS | D173: =_xlfn.XLOOKUP(A173,'MMPM1-AMM'!E:E,'MMPM1-AMM'!K:K,_xlfn.XLOOKUP(A173,'MMPM1-PMM'!E:E,'MMPM1-PMM'!J:J)) -> OETX | E173: =_xlfn.XLOOKUP(A173,'MMPM1-AMM'!E:E,'MMPM1-AMM'!Q:Q,_xlfn.XLOOKUP(A173,'MMPM1-PMM'!E:E,'MMPM1-PMM'!P:P)) -> 5 | F173: =SUMIFS(MMPM2!H:H,MMPM2!C:C,U173,MMPM2!E:E,1,MMPM2!G:G,1) -> 40 | G173: =SUMIFS(MMPM2!H:H,MMPM2!C:C,U173,MMPM2!E:E,1,MMPM2!G:G,2) -> 200 | L173: =SUMIFS(MMPM2!I:I,MMPM2!C:C,U173,MMPM2!E:E,1,MMPM2!G:G,1) -> 10 | M173: =SUMIFS(MMPM2!I:I,MMPM2!C:C,U173,MMPM2!E:E,1,MMPM2!G:G,2) -> 0.25 | N173: =SUMIFS(MMPM2!I:I,MMPM2!C:C,U173,MMPM2!E:E,1,MMPM2!G:G,3) -> 50 | R173: 4 | S173: 4 | U173: =IFERROR(_xlfn.XLOOKUP(A173,'MMPM1-PMM'!E:E,'MMPM1-PMM'!J:J),_xlfn.XLOOKUP(A173,'MMPM1-AMM'!E:E,'MMPM1-AMM'!K:K)) -> OETX | V173: =IFERROR(_xlfn.XLOOKUP(A173,'MMPM1-AMM'!E:E,'MMPM1-AMM'!T:T),_xlfn.XLOOKUP(A173,'MMPM1-PMM'!E:E,'MMPM1-PMM'!S:S)) -> 6 | W173: =IFERROR(_xlfn.XLOOKUP(A173,'MMPM1-AMM'!E:E,'MMPM1-AMM'!U:U),_xlfn.XLOOKUP(A173,'MMPM1-PMM'!E:E,'MMPM1-PMM'!T:T)) -> 5 | Y173: TRUE | AB173: =_xlfn.XLOOKUP(A173,productlist[PRODUCT_ID],productlist[PRODUCT_ISIN]) -> DE000A4043C9 | AC173: =_xlfn.XLOOKUP(A173,productlist[PRODUCT_ID],productlist[UNDERLYING_ISIN]) -> 
A174: OETU | B174: =_xlfn.XLOOKUP(A174,'Product List'!$A:$A,'Product List'!$D:$D) -> Options on FTSE Ethereum Index Futures [USD] | C174: =_xlfn.XLOOKUP(A174,'Product List'!$A:$A,'Product List'!$F:$F) -> CRYPTO OPTIONS | D174: =_xlfn.XLOOKUP(A174,'MMPM1-AMM'!E:E,'MMPM1-AMM'!K:K,_xlfn.XLOOKUP(A174,'MMPM1-PMM'!E:E,'MMPM1-PMM'!J:J)) -> OETX | E174: =_xlfn.XLOOKUP(A174,'MMPM1-AMM'!E:E,'MMPM1-AMM'!Q:Q,_xlfn.XLOOKUP(A174,'MMPM1-PMM'!E:E,'MMPM1-PMM'!P:P)) -> 5 | F174: =SUMIFS(MMPM2!H:H,MMPM2!C:C,U174,MMPM2!E:E,1,MMPM2!G:G,1) -> 40 | G174: =SUMIFS(MMPM2!H:H,MMPM2!C:C,U174,MMPM2!E:E,1,MMPM2!G:G,2) -> 200 | L174: =SUMIFS(MMPM2!I:I,MMPM2!C:C,U174,MMPM2!E:E,1,MMPM2!G:G,1) -> 10 | M174: =SUMIFS(MMPM2!I:I,MMPM2!C:C,U174,MMPM2!E:E,1,MMPM2!G:G,2) -> 0.25 | N174: =SUMIFS(MMPM2!I:I,MMPM2!C:C,U174,MMPM2!E:E,1,MMPM2!G:G,3) -> 50 | R174: 4 | S174: 4 | U174: =IFERROR(_xlfn.XLOOKUP(A174,'MMPM1-PMM'!E:E,'MMPM1-PMM'!J:J),_xlfn.XLOOKUP(A174,'MMPM1-AMM'!E:E,'MMPM1-AMM'!K:K)) -> OETX | V174: =IFERROR(_xlfn.XLOOKUP(A174,'MMPM1-AMM'!E:E,'MMPM1-AMM'!T:T),_xlfn.XLOOKUP(A174,'MMPM1-PMM'!E:E,'MMPM1-PMM'!S:S)) -> 6 | W174: =IFERROR(_xlfn.XLOOKUP(A174,'MMPM1-AMM'!E:E,'MMPM1-AMM'!U:U),_xlfn.XLOOKUP(A174,'MMPM1-PMM'!E:E,'MMPM1-PMM'!T:T)) -> 5 | Y174: TRUE | AB174: =_xlfn.XLOOKUP(A174,productlist[PRODUCT_ID],productlist[PRODUCT_ISIN]) -> DE000A4043D7 | AC174: =_xlfn.XLOOKUP(A174,productlist[PRODUCT_ID],productlist[UNDERLYING_ISIN]) -> 
A175: IB1T | B175: =_xlfn.XLOOKUP(A175,'Product List'!$A:$A,'Product List'!$D:$D) -> iShares Physical Bitcoin Options [EUR] | C175: =_xlfn.XLOOKUP(A175,'Product List'!$A:$A,'Product List'!$F:$F) -> EXTF-OPTIONS | D175: =_xlfn.XLOOKUP(A175,'MMPM1-AMM'!E:E,'MMPM1-AMM'!K:K,_xlfn.XLOOKUP(A175,'MMPM1-PMM'!E:E,'MMPM1-PMM'!J:J)) -> ETF6 | E175: =_xlfn.XLOOKUP(A175,'MMPM1-AMM'!E:E,'MMPM1-AMM'!Q:Q,_xlfn.XLOOKUP(A175,'MMPM1-PMM'!E:E,'MMPM1-PMM'!P:P)) -> 3 | F175: =SUMIFS(MMPM2!H:H,MMPM2!C:C,U175,MMPM2!E:E,1,MMPM2!G:G,1) -> 1 | G175: =SUMIFS(MMPM2!H:H,MMPM2!C:C,U175,MMPM2!E:E,1,MMPM2!G:G,2) -> 5 | L175: =SUMIFS(MMPM2!I:I,MMPM2!C:C,U175,MMPM2!E:E,1,MMPM2!G:G,1) -> 0.2 | M175: =SUMIFS(MMPM2!I:I,MMPM2!C:C,U175,MMPM2!E:E,1,MMPM2!G:G,2) -> 0.2 | N175: =SUMIFS(MMPM2!I:I,MMPM2!C:C,U175,MMPM2!E:E,1,MMPM2!G:G,3) -> 1 | R175: =IF(D175="OVS","",IF(V175=3, "Not applicable",W175-1)) -> Not applicable | S175: =IF(D175="OVS","",IF(V175=3, "No doubling of mistrade range",W175-1)) -> No doubling of mistrade range | U175: =IFERROR(_xlfn.XLOOKUP(A175,'MMPM1-PMM'!E:E,'MMPM1-PMM'!J:J),_xlfn.XLOOKUP(A175,'MMPM1-AMM'!E:E,'MMPM1-AMM'!K:K)) -> ETF6 | V175: =IFERROR(_xlfn.XLOOKUP(A175,'MMPM1-AMM'!E:E,'MMPM1-AMM'!T:T),_xlfn.XLOOKUP(A175,'MMPM1-PMM'!E:E,'MMPM1-PMM'!S:S)) -> 3 | W175: =IFERROR(_xlfn.XLOOKUP(A175,'MMPM1-AMM'!E:E,'MMPM1-AMM'!U:U),_xlfn.XLOOKUP(A175,'MMPM1-PMM'!E:E,'MMPM1-PMM'!T:T)) -> 6 | Y175: =W175=E175 -> FALSE | AB175: =_xlfn.XLOOKUP(A175,productlist[PRODUCT_ID],productlist[PRODUCT_ISIN]) -> XS2940466316 | AC175: =_xlfn.XLOOKUP(A175,productlist[PRODUCT_ID],productlist[UNDERLYING_ISIN]) -> XS2940466316
A176: BTCN | B176: =_xlfn.XLOOKUP(A176,'Product List'!$A:$A,'Product List'!$D:$D) -> iShares Physical Bitcoin Options [USD] | C176: =_xlfn.XLOOKUP(A176,'Product List'!$A:$A,'Product List'!$F:$F) -> EXTF-OPTIONS | D176: =_xlfn.XLOOKUP(A176,'MMPM1-AMM'!E:E,'MMPM1-AMM'!K:K,_xlfn.XLOOKUP(A176,'MMPM1-PMM'!E:E,'MMPM1-PMM'!J:J)) -> ETF6 | E176: =_xlfn.XLOOKUP(A176,'MMPM1-AMM'!E:E,'MMPM1-AMM'!Q:Q,_xlfn.XLOOKUP(A176,'MMPM1-PMM'!E:E,'MMPM1-PMM'!P:P)) -> 3 | F176: =SUMIFS(MMPM2!H:H,MMPM2!C:C,U176,MMPM2!E:E,1,MMPM2!G:G,1) -> 1 | G176: =SUMIFS(MMPM2!H:H,MMPM2!C:C,U176,MMPM2!E:E,1,MMPM2!G:G,2) -> 5 | L176: =SUMIFS(MMPM2!I:I,MMPM2!C:C,U176,MMPM2!E:E,1,MMPM2!G:G,1) -> 0.2 | M176: =SUMIFS(MMPM2!I:I,MMPM2!C:C,U176,MMPM2!E:E,1,MMPM2!G:G,2) -> 0.2 | N176: =SUMIFS(MMPM2!I:I,MMPM2!C:C,U176,MMPM2!E:E,1,MMPM2!G:G,3) -> 1 | R176: Not applicable | S176: No doubling of mistrade range | U176: =IFERROR(_xlfn.XLOOKUP(A176,'MMPM1-PMM'!E:E,'MMPM1-PMM'!J:J),_xlfn.XLOOKUP(A176,'MMPM1-AMM'!E:E,'MMPM1-AMM'!K:K)) -> ETF6 | V176: =IFERROR(_xlfn.XLOOKUP(A176,'MMPM1-AMM'!E:E,'MMPM1-AMM'!T:T),_xlfn.XLOOKUP(A176,'MMPM1-PMM'!E:E,'MMPM1-PMM'!S:S)) -> 3 | W176: =IFERROR(_xlfn.XLOOKUP(A176,'MMPM1-AMM'!E:E,'MMPM1-AMM'!U:U),_xlfn.XLOOKUP(A176,'MMPM1-PMM'!E:E,'MMPM1-PMM'!T:T)) -> 6 | Y176: FALSE | AB176: =_xlfn.XLOOKUP(A176,productlist[PRODUCT_ID],productlist[PRODUCT_ISIN]) -> DE000A4ALRQ7 | AC176: =_xlfn.XLOOKUP(A176,productlist[PRODUCT_ID],productlist[UNDERLYING_ISIN]) -> DE000A4ALRQ7
P177: =_xlfn.XLOOKUP(A177,productlist[PRODUCT_ID],productlist[PRODUCT_ISIN]) ->  | Q177: =_xlfn.XLOOKUP(A177,productlist[PRODUCT_ID],productlist[UNDERLYING_ISIN]) -> 
P178: =_xlfn.XLOOKUP(A178,productlist[PRODUCT_ID],productlist[PRODUCT_ISIN]) ->  | Q178: =_xlfn.XLOOKUP(A178,productlist[PRODUCT_ID],productlist[UNDERLYING_ISIN]) -> 
P179: =_xlfn.XLOOKUP(A179,productlist[PRODUCT_ID],productlist[PRODUCT_ISIN]) ->  | Q179: =_xlfn.XLOOKUP(A179,productlist[PRODUCT_ID],productlist[UNDERLYING_ISIN]) -> 
P180: =_xlfn.XLOOKUP(A180,productlist[PRODUCT_ID],productlist[PRODUCT_ISIN]) ->  | Q180: =_xlfn.XLOOKUP(A180,productlist[PRODUCT_ID],productlist[UNDERLYING_ISIN]) -> 
P181: =_xlfn.XLOOKUP(A181,productlist[PRODUCT_ID],productlist[PRODUCT_ISIN]) ->  | Q181: =_xlfn.XLOOKUP(A181,productlist[PRODUCT_ID],productlist[UNDERLYING_ISIN]) -> 
P182: =_xlfn.XLOOKUP(A182,productlist[PRODUCT_ID],productlist[PRODUCT_ISIN]) ->  | Q182: =_xlfn.XLOOKUP(A182,productlist[PRODUCT_ID],productlist[UNDERLYING_ISIN]) -> 
P183: =_xlfn.XLOOKUP(A183,productlist[PRODUCT_ID],productlist[PRODUCT_ISIN]) ->  | Q183: =_xlfn.XLOOKUP(A183,productlist[PRODUCT_ID],productlist[UNDERLYING_ISIN]) -> 
P184: =_xlfn.XLOOKUP(A184,productlist[PRODUCT_ID],productlist[PRODUCT_ISIN]) ->  | Q184: =_xlfn.XLOOKUP(A184,productlist[PRODUCT_ID],productlist[UNDERLYING_ISIN]) -> 
P185: =_xlfn.XLOOKUP(A185,productlist[PRODUCT_ID],productlist[PRODUCT_ISIN]) ->  | Q185: =_xlfn.XLOOKUP(A185,productlist[PRODUCT_ID],productlist[UNDERLYING_ISIN]) -> 
P186: =_xlfn.XLOOKUP(A186,productlist[PRODUCT_ID],productlist[PRODUCT_ISIN]) ->  | Q186: =_xlfn.XLOOKUP(A186,productlist[PRODUCT_ID],productlist[UNDERLYING_ISIN]) -> 
P187: =_xlfn.XLOOKUP(A187,productlist[PRODUCT_ID],productlist[PRODUCT_ISIN]) ->  | Q187: =_xlfn.XLOOKUP(A187,productlist[PRODUCT_ID],productlist[UNDERLYING_ISIN]) -> 
P188: =_xlfn.XLOOKUP(A188,productlist[PRODUCT_ID],productlist[PRODUCT_ISIN]) ->  | Q188: =_xlfn.XLOOKUP(A188,productlist[PRODUCT_ID],productlist[UNDERLYING_ISIN]) -> 
P189: =_xlfn.XLOOKUP(A189,productlist[PRODUCT_ID],productlist[PRODUCT_ISIN]) ->  | Q189: =_xlfn.XLOOKUP(A189,productlist[PRODUCT_ID],productlist[UNDERLYING_ISIN]) -> 
P190: =_xlfn.XLOOKUP(A190,productlist[PRODUCT_ID],productlist[PRODUCT_ISIN]) ->  | Q190: =_xlfn.XLOOKUP(A190,productlist[PRODUCT_ID],productlist[UNDERLYING_ISIN]) -> 
P191: =_xlfn.XLOOKUP(A191,productlist[PRODUCT_ID],productlist[PRODUCT_ISIN]) ->  | Q191: =_xlfn.XLOOKUP(A191,productlist[PRODUCT_ID],productlist[UNDERLYING_ISIN]) -> 
P192: =_xlfn.XLOOKUP(A192,productlist[PRODUCT_ID],productlist[PRODUCT_ISIN]) ->  | Q192: =_xlfn.XLOOKUP(A192,productlist[PRODUCT_ID],productlist[UNDERLYING_ISIN]) -> 
P193: =_xlfn.XLOOKUP(A193,productlist[PRODUCT_ID],productlist[PRODUCT_ISIN]) ->  | Q193: =_xlfn.XLOOKUP(A193,productlist[PRODUCT_ID],productlist[UNDERLYING_ISIN]) -> 
P194: =_xlfn.XLOOKUP(A194,productlist[PRODUCT_ID],productlist[PRODUCT_ISIN]) ->  | Q194: =_xlfn.XLOOKUP(A194,productlist[PRODUCT_ID],productlist[UNDERLYING_ISIN]) -> 
P195: =_xlfn.XLOOKUP(A195,productlist[PRODUCT_ID],productlist[PRODUCT_ISIN]) ->  | Q195: =_xlfn.XLOOKUP(A195,productlist[PRODUCT_ID],productlist[UNDERLYING_ISIN]) -> 
P196: =_xlfn.XLOOKUP(A196,productlist[PRODUCT_ID],productlist[PRODUCT_ISIN]) ->  | Q196: =_xlfn.XLOOKUP(A196,productlist[PRODUCT_ID],productlist[UNDERLYING_ISIN]) -> 
P197: =_xlfn.XLOOKUP(A197,productlist[PRODUCT_ID],productlist[PRODUCT_ISIN]) ->  | Q197: =_xlfn.XLOOKUP(A197,productlist[PRODUCT_ID],productlist[UNDERLYING_ISIN]) -> 
P198: =_xlfn.XLOOKUP(A198,productlist[PRODUCT_ID],productlist[PRODUCT_ISIN]) ->  | Q198: =_xlfn.XLOOKUP(A198,productlist[PRODUCT_ID],productlist[UNDERLYING_ISIN]) -> 
P199: =_xlfn.XLOOKUP(A199,productlist[PRODUCT_ID],productlist[PRODUCT_ISIN]) ->  | Q199: =_xlfn.XLOOKUP(A199,productlist[PRODUCT_ID],productlist[UNDERLYING_ISIN]) -> 
P200: =_xlfn.XLOOKUP(A200,productlist[PRODUCT_ID],productlist[PRODUCT_ISIN]) ->  | Q200: =_xlfn.XLOOKUP(A200,productlist[PRODUCT_ID],productlist[UNDERLYING_ISIN]) -> 
... 101 more rows

Sheet Fixed Income (hidden)
A1: Product ID | B1: Product Name
A2: OGB1 | B2: 1st Friday Weekly Options on Euro-Bund Futures | D2: Mistrade Range in points
C3: Reference prices up to | D3: 1st and 2nd expiration Weekly Option | E3: 5 exchange days before expiration
C4: 0 - 0.09 | D4: 0.05 | E4: 0.09
C5: 0.1 - 0.29 | D5: 0.06 | E5: 0.09
C6: 0.3 - 1.00 | D6: 0.09 | E6: 0.12
C7: > 1.00 | D7: 0.12 | E7: 0.12
C9: For the transactions in option contracts accomplished during a Stressed Market period, the mistrade ranges reduplicate.
A10: OGB2 | B10: 2nd Friday Weekly Options on Euro-Bund Futures | D10: Mistrade Range in points
C11: Reference prices up to | D11: 1st and 2nd expiration Weekly Option | E11: 5 exchange days before expiration
C12: 0 - 0.09 | D12: 0.05 | E12: 0.09
C13: 0.1 - 0.29 | D13: 0.06 | E13: 0.09
C14: 0.3 - 1.00 | D14: 0.09 | E14: 0.12
C15: > 1.00 | D15: 0.12 | E15: 0.12
C17: For the transactions in option contracts accomplished during a Stressed Market period, the mistrade ranges reduplicate.
A18: OGB3 | B18: 3rd Friday Weekly Options on Euro-Bund Futures | D18: Mistrade Range in points
C19: Reference prices up to | D19: 1st and 2nd expiration Weekly Option | E19: 5 exchange days before expiration
C20: 0 - 0.09 | D20: 0.05 | E20: 0.09
C21: 0.1 - 0.29 | D21: 0.06 | E21: 0.09
C22: 0.3 - 1.00 | D22: 0.09 | E22: 0.12
C23: > 1.00 | D23: 0.12 | E23: 0.12
C25: For the transactions in option contracts accomplished during a Stressed Market period, the mistrade ranges reduplicate.
A26: OGB4 | B26: 4th Friday Weekly Options on Euro-Bund Futures | D26: Mistrade Range in points
C27: Reference prices up to | D27: 1st and 2nd expiration Weekly Option | E27: 5 exchange days before expiration
C28: 0 - 0.09 | D28: 0.05 | E28: 0.09
C29: 0.1 - 0.29 | D29: 0.06 | E29: 0.09
C30: 0.3 - 1.00 | D30: 0.09 | E30: 0.12
C31: > 1.00 | D31: 0.12 | E31: 0.12
C33: For the transactions in option contracts accomplished during a Stressed Market period, the mistrade ranges reduplicate.
A34: OGB5 | B34: 5th Friday Weekly Options on Euro-Bund Futures | D34: Mistrade Range in points
C35: Reference prices up to | D35: 1st and 2nd expiration Weekly Option | E35: 5 exchange days before expiration
C36: 0 - 0.09 | D36: 0.05 | E36: 0.09
C37: 0.1 - 0.29 | D37: 0.06 | E37: 0.09
C38: 0.3 - 1.00 | D38: 0.09 | E38: 0.12
C39: > 1.00 | D39: 0.12 | E39: 0.12
C41: For the transactions in option contracts accomplished during a Stressed Market period, the mistrade ranges reduplicate.
A42: OGBM | B42: Options on Euro-Bobl Futures | D42: Mistrade Range in points
C43: Reference prices up to | D43: 1. expiration month | E43: 2. expiration month | F43: 3. - 4. expiration month | G43: 5 exchange days before expiration
C44: 0 - 0.09 | D44: 0.03 | E44: 0.06 | F44: 0.09 | G44: 0.06
C45: 0.1 - 0.29 | D45: 0.04 | E45: 0.08 | F45: 0.13 | G45: 0.06
C46: 0.3 - 1.00 | D46: 0.06 | E46: 0.13 | F46: 0.19 | G46: 0.08
C47: > 1.00 | D47: 0.08 | E47: 0.17 | F47: 0.25 | G47: 0.08
C49: For the transactions in option contracts accomplished during a Stressed Market period, the mistrade ranges reduplicate.
A50: OBTP | B50: Options on Euro-BTP Futures | D50: Mistrade Range in points
C51: Reference prices up to | D51: 1. expiration month | E51: 2. - 4. expiration month | F51: 5 exchange days before expiration
C52: 0.2 | D52: 0.3 | E52: 0.42 | F52: 0.42
C53: 0.5 | D53: 0.36 | E53: 0.54 | F53: 0.54
C54: 1 | D54: 0.54 | E54: 0.66 | F54: 0.66
C55: 2 | D55: 0.6 | E55: 0.9 | F55: 0.9
C56: > 2.00 | D56: 0.66 | E56: 1.05 | F56: 1.05
C58: For the transactions in option contracts accomplished during a Stressed Market period, the mistrade ranges reduplicate.
A59: OGBX | B59: Options on Euro-Buxl Futures | D59: Mistrade Range in points
C60: Reference prices up to | D60: 1. expiration month | E60: 2. - 4. expiration month | F60: 5 exchange days before expiration
C61: 0.2 | D61: 0.15 | E61: 0.25 | F61: 0.25
C62: 0.5 | D62: 0.2 | E62: 0.3 | F62: 0.3
C63: 1 | D63: 0.3 | E63: 0.45 | F63: 0.45
C64: 2 | D64: 0.6 | E64: 0.9 | F64: 0.9
C65: >2.00 | D65: 0.9 | E65: 1.35 | F65: 1.35
C66: For the transactions in option contracts accomplished during a Stressed Market period, the mistrade ranges reduplicate.
A67: OGBL | B67: Options on Euro-Bund Futures | D67: Mistrade Range in points
C68: Reference prices up to | D68: 1. expiration month | E68: 2. expiration month | F68: 3. - 4. expiration month | G68: 5 exchange days before expiration
C69: 0 - 0.09 | D69: 0.03 | E69: 0.06 | F69: 0.09 | G69: 0.06
C70: 0.1 - 0.29 | D70: 0.04 | E70: 0.08 | F70: 0.13 | G70: 0.06
C71: 0.3 - 1.00 | D71: 0.06 | E71: 0.13 | F71: 0.19 | G71: 0.08
C72: > 1.00 | D72: 0.08 | E72: 0.17 | F72: 0.25 | G72: 0.08
B75: Sub-monthly Options on Euro-Bund Futures | D75: Mistrade Range in points
C76: Reference prices up to | D76: 1st and 2nd expiration Weekly Option | E76: 3rd, 4th and 5th expiration Weekly Option | F76: 5 exchange days before expiration
C77: 0 - 0.09 | D77: 0.05 | E77: 0.09 | F77: 0.09
C78: 0.1 - 0.29 | D78: 0.06 | E78: 0.09 | F78: 0.09
C79: 0.3 - 1.00 | D79: 0.09 | E79: 0.12 | F79: 0.12
C80: > 1.00 | D80: 0.12 | E80: 0.12 | F80: 0.12
C84: For the transactions in option contracts accomplished during a Stressed Market period, the mistrade ranges reduplicate.
A85: OOAT | B85: Options on Euro-OAT Futures | D85: Mistrade Range in points
C86: Reference price up to | D86: 1. expiration month | E86: 2. - 4. expiration month | F86: 5 exchange days before expiration
C87: 0.2 | D87: 0.1 | E87: 0.14 | F87: 0.14
C88: 0.5 | D88: 0.12 | E88: 0.18 | F88: 0.18
C89: 1 | D89: 0.18 | E89: 0.22 | F89: 0.22
C90: 2 | D90: 0.2 | E90: 0.3 | F90: 0.3
C91: > 2.00 | D91: 0.22 | E91: 0.35 | F91: 0.35
C93: For the transactions in option contracts accomplished during a Stressed Market period, the mistrade ranges reduplicate.
A94: OGBS | B94: Options on Euro-Schatz Futures | D94: Mistrade Range in points
C95: Reference prices up to | D95: 1. expiration month | E95: 2. expiration month | F95: 3. - 4. expiration month | G95: 5 exchange days before expiration
C96: 0 - 0.09 | D96: 0.03 | E96: 0.06 | F96: 0.09 | G96: 0.06
C97: 0.1 - 0.29 | D97: 0.04 | E97: 0.08 | F97: 0.13 | G97: 0.06
C98: 0.3 - 1.00 | D98: 0.06 | E98: 0.13 | F98: 0.19 | G98: 0.08
C99: > 1.00 | D99: 0.08 | E99: 0.17 | F99: 0.25 | G99: 0.08
C101: For the transactions in option contracts accomplished during a Stressed Market period, the mistrade ranges reduplicate.
A102: OEU3 | B102: Options on Three-Month EURIBOR Futures | C102: Reference prices up to | D102: Mistrade Range | E102: Mistrade Range | F102: Mistrade Range
D103: (first three expiration months, in points) | E103: (all other quarterly expiration months, in points) | F103: (five exchange days prior to expiration, in points)
C104: 0.09 | D104: 0.02 | E104: 0.03 | F104: 0.03
C105: 0.29 | D105: 0.02 | E105: 0.04 | F105: 0.03
C106: 1 | D106: 0.03 | E106: 0.06 | F106: 0.04
C107: 999.99 | D107: 0.04 | E107: 0.08 | F107: 0.04
C109: For the transactions in option contracts accomplished during a Stressed Market period, the mistrade ranges reduplicate.
A110: OEM1 | B110: =_xlfn.XLOOKUP(A110,'Product List'!A:A,'Product List'!D:D) -> One-Year Mid Curve Options on Three-Month EURIBOR Futures | C110: Reference prices up to | D110: Mistrade Range | E110: Mistrade Range | F110: Mistrade Range
D111: (first three expiration months, in points) | E111: (all other quarterly expiration months, in points) | F111: (five exchange days prior to expiration, in points)
C112: 0.09 | D112: 0.03 | E112: 0.06 | F112: 0.06
C113: 0.29 | D113: 0.04 | E113: 0.08 | F113: 0.06
C114: 1 | D114: 0.06 | E114: 0.12 | F114: 0.08
C115: 999.99 | D115: 0.08 | E115: 0.16 | F115: 0.08
C117: For the transactions in option contracts accomplished during a Stressed Market period, the mistrade ranges reduplicate.
A118: OEM2 | B118: =_xlfn.XLOOKUP(A118,'Product List'!A:A,'Product List'!D:D) -> Two-Year Mid Curve Options on Three-Month EURIBOR Futures | C118: Reference prices up to | D118: Mistrade Range | E118: Mistrade Range | F118: Mistrade Range
D119: (first three expiration months, in points) | E119: (all other quarterly expiration months, in points) | F119: (five exchange days prior to expiration, in points)
C120: 0.09 | D120: 0.03 | E120: 0.06 | F120: 0.06
C121: 0.29 | D121: 0.04 | E121: 0.08 | F121: 0.06
C122: 1 | D122: 0.06 | E122: 0.12 | F122: 0.08
C123: 999.99 | D123: 0.08 | E123: 0.16 | F123: 0.08
C125: For the transactions in option contracts accomplished during a Stressed Market period, the mistrade ranges reduplicate.
A126: OEM3 | B126: =_xlfn.XLOOKUP(A126,'Product List'!A:A,'Product List'!D:D) -> Three-Year Mid Curve Options on Three-Month EURIBOR Futures | C126: Reference prices up to | D126: Mistrade Range | E126: Mistrade Range | F126: Mistrade Range
D127: (first three expiration months, in points) | E127: (all other quarterly expiration months, in points) | F127: (five exchange days prior to expiration, in points)
C128: 0.09 | D128: 0.03 | E128: 0.06 | F128: 0.06
C129: 0.29 | D129: 0.04 | E129: 0.08 | F129: 0.06
C130: 1 | D130: 0.06 | E130: 0.12 | F130: 0.08
C131: 999.99 | D131: 0.08 | E131: 0.16 | F131: 0.08
C133: For the transactions in option contracts accomplished during a Stressed Market period, the mistrade ranges reduplicate.
A134: OEM4 | B134: =_xlfn.XLOOKUP(A134,'Product List'!A:A,'Product List'!D:D) -> Four-Year Mid Curve Options on Three-Month EURIBOR Futures | C134: Reference prices up to | D134: Mistrade Range | E134: Mistrade Range | F134: Mistrade Range
D135: (first three expiration months, in points) | E135: (all other quarterly expiration months, in points) | F135: (five exchange days prior to expiration, in points)
C136: 0.09 | D136: 0.03 | E136: 0.06 | F136: 0.06
C137: 0.29 | D137: 0.04 | E137: 0.08 | F137: 0.06
C138: 1 | D138: 0.06 | E138: 0.12 | F138: 0.08
C139: 999.99 | D139: 0.08 | E139: 0.16 | F139: 0.08
C141: For the transactions in option contracts accomplished during a Stressed Market period, the mistrade ranges reduplicate.

Sheet SSDF_PD (hidden)
A1: Product | B1: Name | E1: until 1st Dec Expiration | F1: until 2nd Dec Expiration | G1: until 3rd Dec Expiration and above | I1: Spread Class Code | J1: First - | K1: Second - | L1: third - | M1: fourth - | N1: ISIN | O1: Product Group | X1: find
A2: T2KA | B2: =_xlfn.XLOOKUP(A2,'Product List'!A:A,'Product List'!D:D) -> thyssenkrupp-TKMS Basket Dividend Futures | E2: =IF(LEN(I2)<16,RIGHT(LEFT(I2,7),2)/100,0.5) -> 0.5 | F2: =IF(LEN(I2)<16,RIGHT(LEFT(I2,10),2)/100,0.5) -> 0.5 | G2: =IF(LEN(I2)<16,RIGHT(LEFT(I2,13),2)/100,0.6) -> 0.6 | H2: of fair value | I2: =_xlfn.XLOOKUP(A2,productlist[PRODUCT_ID],productlist[Spread Class Code]) -> SSDF-50-50-60-Q | J2: =FIND("-",_xlfn.XLOOKUP(A2,'Product List'!A:A,'Product List'!E:E)) -> 5 | K2: =FIND("-",_xlfn.XLOOKUP(A2,'Product List'!A:A,'Product List'!E:E),J2+1) -> 8 | L2: =FIND("-",_xlfn.XLOOKUP(A2,'Product List'!A:A,'Product List'!E:E),K2+1) -> 11 | M2: =FIND("-",_xlfn.XLOOKUP(A2,'Product List'!A:A,'Product List'!E:E),L2+2) -> 14 | N2: =_xlfn.XLOOKUP(A2,'Product List'!A:A,'Product List'!I:I) -> DE000A4AQGC9 | O2: =_xlfn.XLOOKUP(A2,'Product List'!A:A,'Product List'!F:F) -> SINGLE STOCK DIVIDEND FUTURES | Q2: =IF(LEN(I2)<16,MIN(RIGHT(LEFT(I2,7),2)/100,0.4),0.4) -> 0.4 | R2: =IF(LEN(I2)<16,MIN(RIGHT(LEFT(I2,10),2)/100,0.45),0.45) -> 0.45 | S2: =IF(LEN(I2)<16,MIN(RIGHT(LEFT(I2,13),2)/100,0.55),0.55) -> 0.55 | T2: =E2=Q2 -> FALSE | U2: =F2=R2 -> FALSE | V2: =G2=S2 -> FALSE | X2: =FIND("00",I2) ->  | Y2: =LEN(I2) -> 15
A3: B2X7 | B3: =_xlfn.XLOOKUP(A3,'Product List'!A:A,'Product List'!D:D) -> Proximus Dividend Futures | E3: 0.5 | F3: 0.5 | G3: 0.6 | H3: of fair value | I3: =_xlfn.XLOOKUP(A3,productlist[PRODUCT_ID],productlist[Spread Class Code]) -> SSDF-50-50-60-Q | J3: =FIND("-",_xlfn.XLOOKUP(A3,'Product List'!A:A,'Product List'!E:E)) -> 5 | K3: =FIND("-",_xlfn.XLOOKUP(A3,'Product List'!A:A,'Product List'!E:E),J3+1) -> 8 | L3: =FIND("-",_xlfn.XLOOKUP(A3,'Product List'!A:A,'Product List'!E:E),K3+1) -> 11 | M3: =FIND("-",_xlfn.XLOOKUP(A3,'Product List'!A:A,'Product List'!E:E),L3+2) -> 14 | N3: =_xlfn.XLOOKUP(A3,'Product List'!A:A,'Product List'!I:I) -> XC000A3CLMY2 | O3: =_xlfn.XLOOKUP(A3,'Product List'!A:A,'Product List'!F:F) -> SINGLE STOCK DIVIDEND FUTURES | Q3: 0.4 | R3: 0.45 | S3: 0.55 | T3: FALSE | U3: FALSE | V3: FALSE | Y3: 15
A4: E2AI | B4: =_xlfn.XLOOKUP(A4,'Product List'!A:A,'Product List'!D:D) -> Groupe Bruxelles Lambert Dividend Futures | E4: 0.5 | F4: 0.5 | G4: 0.6 | H4: of fair value | I4: =_xlfn.XLOOKUP(A4,productlist[PRODUCT_ID],productlist[Spread Class Code]) -> SSDF-50-50-60-Q | J4: =FIND("-",_xlfn.XLOOKUP(A4,'Product List'!A:A,'Product List'!E:E)) -> 5 | K4: =FIND("-",_xlfn.XLOOKUP(A4,'Product List'!A:A,'Product List'!E:E),J4+1) -> 8 | L4: =FIND("-",_xlfn.XLOOKUP(A4,'Product List'!A:A,'Product List'!E:E),K4+1) -> 11 | M4: =FIND("-",_xlfn.XLOOKUP(A4,'Product List'!A:A,'Product List'!E:E),L4+2) -> 14 | N4: =_xlfn.XLOOKUP(A4,'Product List'!A:A,'Product List'!I:I) -> XC000A3CLMW6 | O4: =_xlfn.XLOOKUP(A4,'Product List'!A:A,'Product List'!F:F) -> SINGLE STOCK DIVIDEND FUTURES | Q4: 0.4 | R4: 0.45 | S4: 0.55 | T4: FALSE | U4: FALSE | V4: FALSE | Y4: 15
A5: U2NC | B5: =_xlfn.XLOOKUP(A5,'Product List'!A:A,'Product List'!D:D) -> UCB Dividend Futures | E5: 0.5 | F5: 0.5 | G5: 0.6 | H5: of fair value | I5: =_xlfn.XLOOKUP(A5,productlist[PRODUCT_ID],productlist[Spread Class Code]) -> SSDF-50-50-60-Q | J5: =FIND("-",_xlfn.XLOOKUP(A5,'Product List'!A:A,'Product List'!E:E)) -> 5 | K5: =FIND("-",_xlfn.XLOOKUP(A5,'Product List'!A:A,'Product List'!E:E),J5+1) -> 8 | L5: =FIND("-",_xlfn.XLOOKUP(A5,'Product List'!A:A,'Product List'!E:E),K5+1) -> 11 | M5: =FIND("-",_xlfn.XLOOKUP(A5,'Product List'!A:A,'Product List'!E:E),L5+2) -> 14 | N5: =_xlfn.XLOOKUP(A5,'Product List'!A:A,'Product List'!I:I) -> XC000A3CLMX4 | O5: =_xlfn.XLOOKUP(A5,'Product List'!A:A,'Product List'!F:F) -> SINGLE STOCK DIVIDEND FUTURES | Q5: 0.4 | R5: 0.45 | S5: 0.55 | T5: FALSE | U5: FALSE | V5: FALSE | Y5: 15
A6: U2EI | B6: =_xlfn.XLOOKUP(A6,'Product List'!A:A,'Product List'!D:D) -> Terna Dividend Futures | E6: 0.5 | F6: 0.5 | G6: 0.6 | H6: of fair value | I6: =_xlfn.XLOOKUP(A6,productlist[PRODUCT_ID],productlist[Spread Class Code]) -> SSDF-100-100-200-Q | J6: =FIND("-",_xlfn.XLOOKUP(A6,'Product List'!A:A,'Product List'!E:E)) -> 5 | K6: =FIND("-",_xlfn.XLOOKUP(A6,'Product List'!A:A,'Product List'!E:E),J6+1) -> 9 | L6: =FIND("-",_xlfn.XLOOKUP(A6,'Product List'!A:A,'Product List'!E:E),K6+1) -> 13 | M6: =FIND("-",_xlfn.XLOOKUP(A6,'Product List'!A:A,'Product List'!E:E),L6+2) -> 17 | N6: =_xlfn.XLOOKUP(A6,'Product List'!A:A,'Product List'!I:I) -> XC000A13RNA3 | O6: =_xlfn.XLOOKUP(A6,'Product List'!A:A,'Product List'!F:F) -> SINGLE STOCK DIVIDEND FUTURES | Q6: 0.4 | R6: 0.45 | S6: 0.55 | T6: FALSE | U6: FALSE | V6: FALSE | X6: 7 | Y6: 18
A7: H3OL | B7: =_xlfn.XLOOKUP(A7,'Product List'!A:A,'Product List'!D:D) -> Holcim-Amrize Basket Dividend Futures | E7: 0.5 | F7: 0.5 | G7: 0.6 | H7: of fair value | I7: =_xlfn.XLOOKUP(A7,productlist[PRODUCT_ID],productlist[Spread Class Code]) -> SSDF-100-100-200-Q | J7: =FIND("-",_xlfn.XLOOKUP(A7,'Product List'!A:A,'Product List'!E:E)) -> 5 | K7: =FIND("-",_xlfn.XLOOKUP(A7,'Product List'!A:A,'Product List'!E:E),J7+1) -> 9 | L7: =FIND("-",_xlfn.XLOOKUP(A7,'Product List'!A:A,'Product List'!E:E),K7+1) -> 13 | M7: =FIND("-",_xlfn.XLOOKUP(A7,'Product List'!A:A,'Product List'!E:E),L7+2) -> 17 | N7: =_xlfn.XLOOKUP(A7,'Product List'!A:A,'Product List'!I:I) -> DE000A4ANB85 | O7: =_xlfn.XLOOKUP(A7,'Product List'!A:A,'Product List'!F:F) -> SINGLE STOCK DIVIDEND FUTURES | Q7: 0.4 | R7: 0.45 | S7: 0.55 | T7: FALSE | U7: FALSE | V7: FALSE | X7: 7 | Y7: 18
A8: S2LH | B8: =_xlfn.XLOOKUP(A8,'Product List'!A:A,'Product List'!D:D) -> Swiss Life Holding Dividend Futures | E8: 0.5 | F8: 0.5 | G8: 0.6 | H8: of fair value | I8: =_xlfn.XLOOKUP(A8,productlist[PRODUCT_ID],productlist[Spread Class Code]) -> SSDF-100-100-200-Q | J8: =FIND("-",_xlfn.XLOOKUP(A8,'Product List'!A:A,'Product List'!E:E)) -> 5 | K8: =FIND("-",_xlfn.XLOOKUP(A8,'Product List'!A:A,'Product List'!E:E),J8+1) -> 9 | L8: =FIND("-",_xlfn.XLOOKUP(A8,'Product List'!A:A,'Product List'!E:E),K8+1) -> 13 | M8: =FIND("-",_xlfn.XLOOKUP(A8,'Product List'!A:A,'Product List'!E:E),L8+2) -> 17 | N8: =_xlfn.XLOOKUP(A8,'Product List'!A:A,'Product List'!I:I) -> XC000A2X2GH1 | O8: =_xlfn.XLOOKUP(A8,'Product List'!A:A,'Product List'!F:F) -> SINGLE STOCK DIVIDEND FUTURES | Q8: 0.4 | R8: 0.45 | S8: 0.55 | T8: FALSE | U8: FALSE | V8: FALSE | X8: 7 | Y8: 18
A9: A2ZN | B9: =_xlfn.XLOOKUP(A9,'Product List'!A:A,'Product List'!D:D) -> AstraZeneca Dividend Futures | E9: 0.5 | F9: 0.5 | G9: 0.6 | H9: of fair value | I9: =_xlfn.XLOOKUP(A9,productlist[PRODUCT_ID],productlist[Spread Class Code]) -> SSDF-200-200-200 | J9: =FIND("-",_xlfn.XLOOKUP(A9,'Product List'!A:A,'Product List'!E:E)) -> 5 | K9: =FIND("-",_xlfn.XLOOKUP(A9,'Product List'!A:A,'Product List'!E:E),J9+1) -> 9 | L9: =FIND("-",_xlfn.XLOOKUP(A9,'Product List'!A:A,'Product List'!E:E),K9+1) -> 13 | M9: =FIND("-",_xlfn.XLOOKUP(A9,'Product List'!A:A,'Product List'!E:E),L9+2) ->  | N9: =_xlfn.XLOOKUP(A9,'Product List'!A:A,'Product List'!I:I) -> XC000A1KD0X7 | O9: =_xlfn.XLOOKUP(A9,'Product List'!A:A,'Product List'!F:F) -> SINGLE STOCK DIVIDEND FUTURES | Q9: 0.4 | R9: 0.45 | S9: 0.55 | T9: FALSE | U9: FALSE | V9: FALSE | X9: 7 | Y9: 16
A10: B2T | B10: =_xlfn.XLOOKUP(A10,'Product List'!A:A,'Product List'!D:D) -> BT Group Dividend Futures | E10: 0.5 | F10: 0.5 | G10: 0.6 | H10: of fair value | I10: =_xlfn.XLOOKUP(A10,productlist[PRODUCT_ID],productlist[Spread Class Code]) -> SSDF-100-100-200 | J10: =FIND("-",_xlfn.XLOOKUP(A10,'Product List'!A:A,'Product List'!E:E)) -> 5 | K10: =FIND("-",_xlfn.XLOOKUP(A10,'Product List'!A:A,'Product List'!E:E),J10+1) -> 9 | L10: =FIND("-",_xlfn.XLOOKUP(A10,'Product List'!A:A,'Product List'!E:E),K10+1) -> 13 | M10: =FIND("-",_xlfn.XLOOKUP(A10,'Product List'!A:A,'Product List'!E:E),L10+2) ->  | N10: =_xlfn.XLOOKUP(A10,'Product List'!A:A,'Product List'!I:I) -> XC000A1KD052 | O10: =_xlfn.XLOOKUP(A10,'Product List'!A:A,'Product List'!F:F) -> SINGLE STOCK DIVIDEND FUTURES | Q10: 0.4 | R10: 0.45 | S10: 0.55 | T10: FALSE | U10: FALSE | V10: FALSE | X10: 7 | Y10: 16
A11: B3AR | B11: =_xlfn.XLOOKUP(A11,'Product List'!A:A,'Product List'!D:D) -> Barclays Dividend Futures | E11: 0.5 | F11: 0.5 | G11: 0.6 | H11: of fair value | I11: =_xlfn.XLOOKUP(A11,productlist[PRODUCT_ID],productlist[Spread Class Code]) -> SSDF-100-100-200 | J11: =FIND("-",_xlfn.XLOOKUP(A11,'Product List'!A:A,'Product List'!E:E)) -> 5 | K11: =FIND("-",_xlfn.XLOOKUP(A11,'Product List'!A:A,'Product List'!E:E),J11+1) -> 9 | L11: =FIND("-",_xlfn.XLOOKUP(A11,'Product List'!A:A,'Product List'!E:E),K11+1) -> 13 | M11: =FIND("-",_xlfn.XLOOKUP(A11,'Product List'!A:A,'Product List'!E:E),L11+2) ->  | N11: =_xlfn.XLOOKUP(A11,'Product List'!A:A,'Product List'!I:I) -> XC000A1KD037 | O11: =_xlfn.XLOOKUP(A11,'Product List'!A:A,'Product List'!F:F) -> SINGLE STOCK DIVIDEND FUTURES | Q11: 0.4 | R11: 0.45 | S11: 0.55 | T11: FALSE | U11: FALSE | V11: FALSE | X11: 7 | Y11: 16
A12: G2EC | B12: =_xlfn.XLOOKUP(A12,'Product List'!A:A,'Product List'!D:D) -> GE Aerospace Dividend Futures | E12: 0.4 | F12: 0.45 | G12: 0.55 | H12: of fair value | I12: =_xlfn.XLOOKUP(A12,productlist[PRODUCT_ID],productlist[Spread Class Code]) -> SSDF-40-45-55 | J12: =FIND("-",_xlfn.XLOOKUP(A12,'Product List'!A:A,'Product List'!E:E)) -> 5 | K12: =FIND("-",_xlfn.XLOOKUP(A12,'Product List'!A:A,'Product List'!E:E),J12+1) -> 8 | L12: =FIND("-",_xlfn.XLOOKUP(A12,'Product List'!A:A,'Product List'!E:E),K12+1) -> 11 | M12: =FIND("-",_xlfn.XLOOKUP(A12,'Product List'!A:A,'Product List'!E:E),L12+2) ->  | N12: =_xlfn.XLOOKUP(A12,'Product List'!A:A,'Product List'!I:I) -> XC000A11Q9G8 | O12: =_xlfn.XLOOKUP(A12,'Product List'!A:A,'Product List'!F:F) -> SINGLE STOCK DIVIDEND FUTURES | Q12: 0.4 | R12: 0.45 | S12: 0.55 | T12: TRUE | U12: TRUE | V12: TRUE | Y12: 13
A13: I2NT | B13: =_xlfn.XLOOKUP(A13,'Product List'!A:A,'Product List'!D:D) -> Intel Dividend Futures | E13: 0.4 | F13: 0.45 | G13: 0.55 | H13: of fair value | I13: =_xlfn.XLOOKUP(A13,productlist[PRODUCT_ID],productlist[Spread Class Code]) -> SSDF-40-45-55 | J13: =FIND("-",_xlfn.XLOOKUP(A13,'Product List'!A:A,'Product List'!E:E)) -> 5 | K13: =FIND("-",_xlfn.XLOOKUP(A13,'Product List'!A:A,'Product List'!E:E),J13+1) -> 8 | L13: =FIND("-",_xlfn.XLOOKUP(A13,'Product List'!A:A,'Product List'!E:E),K13+1) -> 11 | M13: =FIND("-",_xlfn.XLOOKUP(A13,'Product List'!A:A,'Product List'!E:E),L13+2) ->  | N13: =_xlfn.XLOOKUP(A13,'Product List'!A:A,'Product List'!I:I) -> XC000A11Q9J2 | O13: =_xlfn.XLOOKUP(A13,'Product List'!A:A,'Product List'!F:F) -> SINGLE STOCK DIVIDEND FUTURES | Q13: 0.4 | R13: 0.45 | S13: 0.55 | T13: TRUE | U13: TRUE | V13: TRUE | Y13: 13
A14: K2OF | B14: =_xlfn.XLOOKUP(A14,'Product List'!A:A,'Product List'!D:D) -> The Coca-Cola Company Dividend Futures | E14: 0.4 | F14: 0.45 | G14: 0.55 | H14: of fair value | I14: =_xlfn.XLOOKUP(A14,productlist[PRODUCT_ID],productlist[Spread Class Code]) -> SSDF-40-45-55 | J14: =FIND("-",_xlfn.XLOOKUP(A14,'Product List'!A:A,'Product List'!E:E)) -> 5 | K14: =FIND("-",_xlfn.XLOOKUP(A14,'Product List'!A:A,'Product List'!E:E),J14+1) -> 8 | L14: =FIND("-",_xlfn.XLOOKUP(A14,'Product List'!A:A,'Product List'!E:E),K14+1) -> 11 | M14: =FIND("-",_xlfn.XLOOKUP(A14,'Product List'!A:A,'Product List'!E:E),L14+2) ->  | N14: =_xlfn.XLOOKUP(A14,'Product List'!A:A,'Product List'!I:I) -> XC000A11Q9F0 | O14: =_xlfn.XLOOKUP(A14,'Product List'!A:A,'Product List'!F:F) -> SINGLE STOCK DIVIDEND FUTURES | Q14: 0.4 | R14: 0.45 | S14: 0.55 | T14: TRUE | U14: TRUE | V14: TRUE | Y14: 13
A15: W2MT | B15: =_xlfn.XLOOKUP(A15,'Product List'!A:A,'Product List'!D:D) -> Walmart Dividend Futures | E15: 0.4 | F15: 0.45 | G15: 0.55 | H15: of fair value | I15: =_xlfn.XLOOKUP(A15,productlist[PRODUCT_ID],productlist[Spread Class Code]) -> SSDF-40-45-55 | J15: =FIND("-",_xlfn.XLOOKUP(A15,'Product List'!A:A,'Product List'!E:E)) -> 5 | K15: =FIND("-",_xlfn.XLOOKUP(A15,'Product List'!A:A,'Product List'!E:E),J15+1) -> 8 | L15: =FIND("-",_xlfn.XLOOKUP(A15,'Product List'!A:A,'Product List'!E:E),K15+1) -> 11 | M15: =FIND("-",_xlfn.XLOOKUP(A15,'Product List'!A:A,'Product List'!E:E),L15+2) ->  | N15: =_xlfn.XLOOKUP(A15,'Product List'!A:A,'Product List'!I:I) -> XC000A11Q9T1 | O15: =_xlfn.XLOOKUP(A15,'Product List'!A:A,'Product List'!F:F) -> SINGLE STOCK DIVIDEND FUTURES | Q15: 0.4 | R15: 0.45 | S15: 0.55 | T15: TRUE | U15: TRUE | V15: TRUE | Y15: 13
A16: E2DS | B16: =_xlfn.XLOOKUP(A16,'Product List'!A:A,'Product List'!D:D) -> Endesa Dividend Futures | E16: 0.5 | F16: 0.5 | G16: 0.6 | H16: of fair value | I16: =_xlfn.XLOOKUP(A16,productlist[PRODUCT_ID],productlist[Spread Class Code]) -> SSDF-100-100-200-Q | J16: =FIND("-",_xlfn.XLOOKUP(A16,'Product List'!A:A,'Product List'!E:E)) -> 5 | K16: =FIND("-",_xlfn.XLOOKUP(A16,'Product List'!A:A,'Product List'!E:E),J16+1) -> 9 | L16: =FIND("-",_xlfn.XLOOKUP(A16,'Product List'!A:A,'Product List'!E:E),K16+1) -> 13 | M16: =FIND("-",_xlfn.XLOOKUP(A16,'Product List'!A:A,'Product List'!E:E),L16+2) -> 17 | N16: =_xlfn.XLOOKUP(A16,'Product List'!A:A,'Product List'!I:I) -> XC000A2X2GK5 | O16: =_xlfn.XLOOKUP(A16,'Product List'!A:A,'Product List'!F:F) -> SINGLE STOCK DIVIDEND FUTURES | Q16: 0.4 | R16: 0.45 | S16: 0.55 | T16: FALSE | U16: FALSE | V16: FALSE | X16: 7 | Y16: 18
A17: S2NF | B17: =_xlfn.XLOOKUP(A17,'Product List'!A:A,'Product List'!D:D) -> Snam-Italgas Dividend Futures | E17: 0.5 | F17: 0.5 | G17: 0.6 | H17: of fair value | I17: =_xlfn.XLOOKUP(A17,productlist[PRODUCT_ID],productlist[Spread Class Code]) -> SSDF-100-100-200-Q | J17: =FIND("-",_xlfn.XLOOKUP(A17,'Product List'!A:A,'Product List'!E:E)) -> 5 | K17: =FIND("-",_xlfn.XLOOKUP(A17,'Product List'!A:A,'Product List'!E:E),J17+1) -> 9 | L17: =FIND("-",_xlfn.XLOOKUP(A17,'Product List'!A:A,'Product List'!E:E),K17+1) -> 13 | M17: =FIND("-",_xlfn.XLOOKUP(A17,'Product List'!A:A,'Product List'!E:E),L17+2) -> 17 | N17: =_xlfn.XLOOKUP(A17,'Product List'!A:A,'Product List'!I:I) -> XC000A2X2GV2 | O17: =_xlfn.XLOOKUP(A17,'Product List'!A:A,'Product List'!F:F) -> SINGLE STOCK DIVIDEND FUTURES | Q17: 0.4 | R17: 0.45 | S17: 0.55 | T17: FALSE | U17: FALSE | V17: FALSE | X17: 7 | Y17: 18
A18: N2NG | B18: =_xlfn.XLOOKUP(A18,'Product List'!A:A,'Product List'!D:D) -> NN Group Dividend Futures | E18: 0.5 | F18: 0.5 | G18: 0.6 | H18: of fair value | I18: =_xlfn.XLOOKUP(A18,productlist[PRODUCT_ID],productlist[Spread Class Code]) -> SSDF-100-100-200-Q | J18: =FIND("-",_xlfn.XLOOKUP(A18,'Product List'!A:A,'Product List'!E:E)) -> 5 | K18: =FIND("-",_xlfn.XLOOKUP(A18,'Product List'!A:A,'Product List'!E:E),J18+1) -> 9 | L18: =FIND("-",_xlfn.XLOOKUP(A18,'Product List'!A:A,'Product List'!E:E),K18+1) -> 13 | M18: =FIND("-",_xlfn.XLOOKUP(A18,'Product List'!A:A,'Product List'!E:E),L18+2) -> 17 | N18: =_xlfn.XLOOKUP(A18,'Product List'!A:A,'Product List'!I:I) -> XC000A3CLNF9 | O18: =_xlfn.XLOOKUP(A18,'Product List'!A:A,'Product List'!F:F) -> SINGLE STOCK DIVIDEND FUTURES | Q18: 0.4 | R18: 0.45 | S18: 0.55 | T18: FALSE | U18: FALSE | V18: FALSE | X18: 7 | Y18: 18
A19: H2MI | B19: =_xlfn.XLOOKUP(A19,'Product List'!A:A,'Product List'!D:D) -> Hermes International Dividend Futures | E19: 0.5 | F19: 0.5 | G19: 0.6 | H19: of fair value | I19: =_xlfn.XLOOKUP(A19,productlist[PRODUCT_ID],productlist[Spread Class Code]) -> SSDF-100-100-200-Q | J19: =FIND("-",_xlfn.XLOOKUP(A19,'Product List'!A:A,'Product List'!E:E)) -> 5 | K19: =FIND("-",_xlfn.XLOOKUP(A19,'Product List'!A:A,'Product List'!E:E),J19+1) -> 9 | L19: =FIND("-",_xlfn.XLOOKUP(A19,'Product List'!A:A,'Product List'!E:E),K19+1) -> 13 | M19: =FIND("-",_xlfn.XLOOKUP(A19,'Product List'!A:A,'Product List'!E:E),L19+2) -> 17 | N19: =_xlfn.XLOOKUP(A19,'Product List'!A:A,'Product List'!I:I) -> XC000A2X2GA6 | O19: =_xlfn.XLOOKUP(A19,'Product List'!A:A,'Product List'!F:F) -> SINGLE STOCK DIVIDEND FUTURES | Q19: 0.4 | R19: 0.45 | S19: 0.55 | T19: FALSE | U19: FALSE | V19: FALSE | X19: 7 | Y19: 18
A20: S2CM | B20: =_xlfn.XLOOKUP(A20,'Product List'!A:A,'Product List'!D:D) -> Swisscom Dividend Futures | E20: 0.5 | F20: 0.5 | G20: 0.6 | H20: of fair value | I20: =_xlfn.XLOOKUP(A20,productlist[PRODUCT_ID],productlist[Spread Class Code]) -> SSDF-100-100-200-Q | J20: =FIND("-",_xlfn.XLOOKUP(A20,'Product List'!A:A,'Product List'!E:E)) -> 5 | K20: =FIND("-",_xlfn.XLOOKUP(A20,'Product List'!A:A,'Product List'!E:E),J20+1) -> 9 | L20: =FIND("-",_xlfn.XLOOKUP(A20,'Product List'!A:A,'Product List'!E:E),K20+1) -> 13 | M20: =FIND("-",_xlfn.XLOOKUP(A20,'Product List'!A:A,'Product List'!E:E),L20+2) -> 17 | N20: =_xlfn.XLOOKUP(A20,'Product List'!A:A,'Product List'!I:I) -> XC000A1HTZX2 | O20: =_xlfn.XLOOKUP(A20,'Product List'!A:A,'Product List'!F:F) -> SINGLE STOCK DIVIDEND FUTURES | Q20: 0.4 | R20: 0.45 | S20: 0.55 | T20: FALSE | U20: FALSE | V20: FALSE | X20: 7 | Y20: 18
A21: N3G | B21: =_xlfn.XLOOKUP(A21,'Product List'!A:A,'Product List'!D:D) -> National Grid Dividend Futures | E21: 0.5 | F21: 0.5 | G21: 0.6 | H21: of fair value | I21: =_xlfn.XLOOKUP(A21,productlist[PRODUCT_ID],productlist[Spread Class Code]) -> SSDF-50-50-60 | J21: =FIND("-",_xlfn.XLOOKUP(A21,'Product List'!A:A,'Product List'!E:E)) -> 5 | K21: =FIND("-",_xlfn.XLOOKUP(A21,'Product List'!A:A,'Product List'!E:E),J21+1) -> 8 | L21: =FIND("-",_xlfn.XLOOKUP(A21,'Product List'!A:A,'Product List'!E:E),K21+1) -> 11 | M21: =FIND("-",_xlfn.XLOOKUP(A21,'Product List'!A:A,'Product List'!E:E),L21+2) ->  | N21: =_xlfn.XLOOKUP(A21,'Product List'!A:A,'Product List'!I:I) -> XC000A13RMY5 | O21: =_xlfn.XLOOKUP(A21,'Product List'!A:A,'Product List'!F:F) -> SINGLE STOCK DIVIDEND FUTURES | Q21: 0.4 | R21: 0.45 | S21: 0.55 | T21: FALSE | U21: FALSE | V21: FALSE | Y21: 13
A22: E2SL | B22: =_xlfn.XLOOKUP(A22,'Product List'!A:A,'Product List'!D:D) -> EssilorLuxottica Dividend Futures | E22: 0.5 | F22: 0.5 | G22: 0.6 | H22: of fair value | I22: =_xlfn.XLOOKUP(A22,productlist[PRODUCT_ID],productlist[Spread Class Code]) -> SSDF-100-100-200-Q | J22: =FIND("-",_xlfn.XLOOKUP(A22,'Product List'!A:A,'Product List'!E:E)) -> 5 | K22: =FIND("-",_xlfn.XLOOKUP(A22,'Product List'!A:A,'Product List'!E:E),J22+1) -> 9 | L22: =FIND("-",_xlfn.XLOOKUP(A22,'Product List'!A:A,'Product List'!E:E),K22+1) -> 13 | M22: =FIND("-",_xlfn.XLOOKUP(A22,'Product List'!A:A,'Product List'!E:E),L22+2) -> 17 | N22: =_xlfn.XLOOKUP(A22,'Product List'!A:A,'Product List'!I:I) -> XC000A1PHSR7 | O22: =_xlfn.XLOOKUP(A22,'Product List'!A:A,'Product List'!F:F) -> SINGLE STOCK DIVIDEND FUTURES | Q22: 0.4 | R22: 0.45 | S22: 0.55 | T22: FALSE | U22: FALSE | V22: FALSE | X22: 7 | Y22: 18
A23: T2QI | B23: =_xlfn.XLOOKUP(A23,'Product List'!A:A,'Product List'!D:D) -> Telecom Italia Dividend Futures | E23: 0.5 | F23: 0.5 | G23: 0.6 | H23: of fair value | I23: =_xlfn.XLOOKUP(A23,productlist[PRODUCT_ID],productlist[Spread Class Code]) -> SSDF-100-100-200-Q | J23: =FIND("-",_xlfn.XLOOKUP(A23,'Product List'!A:A,'Product List'!E:E)) -> 5 | K23: =FIND("-",_xlfn.XLOOKUP(A23,'Product List'!A:A,'Product List'!E:E),J23+1) -> 9 | L23: =FIND("-",_xlfn.XLOOKUP(A23,'Product List'!A:A,'Product List'!E:E),K23+1) -> 13 | M23: =FIND("-",_xlfn.XLOOKUP(A23,'Product List'!A:A,'Product List'!E:E),L23+2) -> 17 | N23: =_xlfn.XLOOKUP(A23,'Product List'!A:A,'Product List'!I:I) -> XC000A1DKDN8 | O23: =_xlfn.XLOOKUP(A23,'Product List'!A:A,'Product List'!F:F) -> SINGLE STOCK DIVIDEND FUTURES | Q23: 0.4 | R23: 0.45 | S23: 0.55 | T23: FALSE | U23: FALSE | V23: FALSE | X23: 7 | Y23: 18
A24: C2RT | B24: =_xlfn.XLOOKUP(A24,'Product List'!A:A,'Product List'!D:D) -> CaixaBank Dividend Futures | E24: 0.5 | F24: 0.5 | G24: 0.6 | H24: of fair value | I24: =_xlfn.XLOOKUP(A24,productlist[PRODUCT_ID],productlist[Spread Class Code]) -> SSDF-100-100-200-Q | J24: =FIND("-",_xlfn.XLOOKUP(A24,'Product List'!A:A,'Product List'!E:E)) -> 5 | K24: =FIND("-",_xlfn.XLOOKUP(A24,'Product List'!A:A,'Product List'!E:E),J24+1) -> 9 | L24: =FIND("-",_xlfn.XLOOKUP(A24,'Product List'!A:A,'Product List'!E:E),K24+1) -> 13 | M24: =FIND("-",_xlfn.XLOOKUP(A24,'Product List'!A:A,'Product List'!E:E),L24+2) -> 17 | N24: =_xlfn.XLOOKUP(A24,'Product List'!A:A,'Product List'!I:I) -> XC000A2X2GM1 | O24: =_xlfn.XLOOKUP(A24,'Product List'!A:A,'Product List'!F:F) -> SINGLE STOCK DIVIDEND FUTURES | Q24: 0.4 | R24: 0.45 | S24: 0.55 | T24: FALSE | U24: FALSE | V24: FALSE | X24: 7 | Y24: 18
A25: A2MZ | B25: =_xlfn.XLOOKUP(A25,'Product List'!A:A,'Product List'!D:D) -> Amazon.com Dividend Futures | E25: 0.4 | F25: 0.45 | G25: 0.55 | H25: of fair value | I25: =_xlfn.XLOOKUP(A25,productlist[PRODUCT_ID],productlist[Spread Class Code]) -> SSDF-40-45-55 | J25: =FIND("-",_xlfn.XLOOKUP(A25,'Product List'!A:A,'Product List'!E:E)) -> 5 | K25: =FIND("-",_xlfn.XLOOKUP(A25,'Product List'!A:A,'Product List'!E:E),J25+1) -> 8 | L25: =FIND("-",_xlfn.XLOOKUP(A25,'Product List'!A:A,'Product List'!E:E),K25+1) -> 11 | M25: =FIND("-",_xlfn.XLOOKUP(A25,'Product List'!A:A,'Product List'!E:E),L25+2) ->  | N25: =_xlfn.XLOOKUP(A25,'Product List'!A:A,'Product List'!I:I) -> XC000A11Q883 | O25: =_xlfn.XLOOKUP(A25,'Product List'!A:A,'Product List'!F:F) -> SINGLE STOCK DIVIDEND FUTURES | Q25: 0.4 | R25: 0.45 | S25: 0.55 | T25: TRUE | U25: TRUE | V25: TRUE | Y25: 13
A26: A2BN | B26: =_xlfn.XLOOKUP(A26,'Product List'!A:A,'Product List'!D:D) -> ABN Amro Dividend Futures | E26: 0.5 | F26: 0.5 | G26: 0.6 | H26: of fair value | I26: =_xlfn.XLOOKUP(A26,productlist[PRODUCT_ID],productlist[Spread Class Code]) -> SSDF-100-100-200-Q | J26: =FIND("-",_xlfn.XLOOKUP(A26,'Product List'!A:A,'Product List'!E:E)) -> 5 | K26: =FIND("-",_xlfn.XLOOKUP(A26,'Product List'!A:A,'Product List'!E:E),J26+1) -> 9 | L26: =FIND("-",_xlfn.XLOOKUP(A26,'Product List'!A:A,'Product List'!E:E),K26+1) -> 13 | M26: =FIND("-",_xlfn.XLOOKUP(A26,'Product List'!A:A,'Product List'!E:E),L26+2) -> 17 | N26: =_xlfn.XLOOKUP(A26,'Product List'!A:A,'Product List'!I:I) -> XC000A3CLND4 | O26: =_xlfn.XLOOKUP(A26,'Product List'!A:A,'Product List'!F:F) -> SINGLE STOCK DIVIDEND FUTURES | Q26: 0.4 | R26: 0.45 | S26: 0.55 | T26: FALSE | U26: FALSE | V26: FALSE | X26: 7 | Y26: 18
A27: A2EN | B27: =_xlfn.XLOOKUP(A27,'Product List'!A:A,'Product List'!D:D) -> AEGON Dividend Futures | E27: 0.5 | F27: 0.5 | G27: 0.6 | H27: of fair value | I27: =_xlfn.XLOOKUP(A27,productlist[PRODUCT_ID],productlist[Spread Class Code]) -> SSDF-100-100-200-Q | J27: =FIND("-",_xlfn.XLOOKUP(A27,'Product List'!A:A,'Product List'!E:E)) -> 5 | K27: =FIND("-",_xlfn.XLOOKUP(A27,'Product List'!A:A,'Product List'!E:E),J27+1) -> 9 | L27: =FIND("-",_xlfn.XLOOKUP(A27,'Product List'!A:A,'Product List'!E:E),K27+1) -> 13 | M27: =FIND("-",_xlfn.XLOOKUP(A27,'Product List'!A:A,'Product List'!E:E),L27+2) -> 17 | N27: =_xlfn.XLOOKUP(A27,'Product List'!A:A,'Product List'!I:I) -> XC000A1DKC51 | O27: =_xlfn.XLOOKUP(A27,'Product List'!A:A,'Product List'!F:F) -> SINGLE STOCK DIVIDEND FUTURES | Q27: 0.4 | R27: 0.45 | S27: 0.55 | T27: FALSE | U27: FALSE | V27: FALSE | X27: 7 | Y27: 18
A28: I2FX | B28: =_xlfn.XLOOKUP(A28,'Product List'!A:A,'Product List'!D:D) -> Infineon Dividend Futures | E28: 0.5 | F28: 0.5 | G28: 0.6 | H28: of fair value | I28: =_xlfn.XLOOKUP(A28,productlist[PRODUCT_ID],productlist[Spread Class Code]) -> SSDF-100-100-200-Q | J28: =FIND("-",_xlfn.XLOOKUP(A28,'Product List'!A:A,'Product List'!E:E)) -> 5 | K28: =FIND("-",_xlfn.XLOOKUP(A28,'Product List'!A:A,'Product List'!E:E),J28+1) -> 9 | L28: =FIND("-",_xlfn.XLOOKUP(A28,'Product List'!A:A,'Product List'!E:E),K28+1) -> 13 | M28: =FIND("-",_xlfn.XLOOKUP(A28,'Product List'!A:A,'Product List'!E:E),L28+2) -> 17 | N28: =_xlfn.XLOOKUP(A28,'Product List'!A:A,'Product List'!I:I) -> XC000A2X2FX0 | O28: =_xlfn.XLOOKUP(A28,'Product List'!A:A,'Product List'!F:F) -> SINGLE STOCK DIVIDEND FUTURES | Q28: 0.4 | R28: 0.45 | S28: 0.55 | T28: FALSE | U28: FALSE | V28: FALSE | X28: 7 | Y28: 18
A29: P2U4 | B29: =_xlfn.XLOOKUP(A29,'Product List'!A:A,'Product List'!D:D) -> Publicis Groupe Dividend Futures | E29: 0.5 | F29: 0.5 | G29: 0.6 | H29: of fair value | I29: =_xlfn.XLOOKUP(A29,productlist[PRODUCT_ID],productlist[Spread Class Code]) -> SSDF-100-100-200-Q | J29: =FIND("-",_xlfn.XLOOKUP(A29,'Product List'!A:A,'Product List'!E:E)) -> 5 | K29: =FIND("-",_xlfn.XLOOKUP(A29,'Product List'!A:A,'Product List'!E:E),J29+1) -> 9 | L29: =FIND("-",_xlfn.XLOOKUP(A29,'Product List'!A:A,'Product List'!E:E),K29+1) -> 13 | M29: =FIND("-",_xlfn.XLOOKUP(A29,'Product List'!A:A,'Product List'!E:E),L29+2) -> 17 | N29: =_xlfn.XLOOKUP(A29,'Product List'!A:A,'Product List'!I:I) -> XC000A13RMZ2 | O29: =_xlfn.XLOOKUP(A29,'Product List'!A:A,'Product List'!F:F) -> SINGLE STOCK DIVIDEND FUTURES | Q29: 0.4 | R29: 0.45 | S29: 0.55 | T29: FALSE | U29: FALSE | V29: FALSE | X29: 7 | Y29: 18
A30: R2AC | B30: =_xlfn.XLOOKUP(A30,'Product List'!A:A,'Product List'!D:D) -> Ferrari Dividend Futures | E30: 0.5 | F30: 0.5 | G30: 0.6 | H30: of fair value | I30: =_xlfn.XLOOKUP(A30,productlist[PRODUCT_ID],productlist[Spread Class Code]) -> SSDF-100-100-200-Q | J30: =FIND("-",_xlfn.XLOOKUP(A30,'Product List'!A:A,'Product List'!E:E)) -> 5 | K30: =FIND("-",_xlfn.XLOOKUP(A30,'Product List'!A:A,'Product List'!E:E),J30+1) -> 9 | L30: =FIND("-",_xlfn.XLOOKUP(A30,'Product List'!A:A,'Product List'!E:E),K30+1) -> 13 | M30: =FIND("-",_xlfn.XLOOKUP(A30,'Product List'!A:A,'Product List'!E:E),L30+2) -> 17 | N30: =_xlfn.XLOOKUP(A30,'Product List'!A:A,'Product List'!I:I) -> XC000A2X2GT6 | O30: =_xlfn.XLOOKUP(A30,'Product List'!A:A,'Product List'!F:F) -> SINGLE STOCK DIVIDEND FUTURES | Q30: 0.4 | R30: 0.45 | S30: 0.55 | T30: FALSE | U30: FALSE | V30: FALSE | X30: 7 | Y30: 18
A31: H2NK | B31: =_xlfn.XLOOKUP(A31,'Product List'!A:A,'Product List'!D:D) -> Heineken Dividend Futures | E31: 0.5 | F31: 0.5 | G31: 0.6 | H31: of fair value | I31: =_xlfn.XLOOKUP(A31,productlist[PRODUCT_ID],productlist[Spread Class Code]) -> SSDF-100-100-200-Q | J31: =FIND("-",_xlfn.XLOOKUP(A31,'Product List'!A:A,'Product List'!E:E)) -> 5 | K31: =FIND("-",_xlfn.XLOOKUP(A31,'Product List'!A:A,'Product List'!E:E),J31+1) -> 9 | L31: =FIND("-",_xlfn.XLOOKUP(A31,'Product List'!A:A,'Product List'!E:E),K31+1) -> 13 | M31: =FIND("-",_xlfn.XLOOKUP(A31,'Product List'!A:A,'Product List'!E:E),L31+2) -> 17 | N31: =_xlfn.XLOOKUP(A31,'Product List'!A:A,'Product List'!I:I) -> XC000A3CLNE2 | O31: =_xlfn.XLOOKUP(A31,'Product List'!A:A,'Product List'!F:F) -> SINGLE STOCK DIVIDEND FUTURES | Q31: 0.4 | R31: 0.45 | S31: 0.55 | T31: FALSE | U31: FALSE | V31: FALSE | X31: 7 | Y31: 18
